Workbook

Sheet COVER
B2: Statistical Office of the European Union
B10: Directorate E: Sectoral and regional statistics
B11: Unit E-2: Environmental statistics and accounts; sustainable development
C16: QUESTIONNAIRE
B17: Biennial Waste Statistics Regulation - Waste Generation 2022 DATA COLLECTION

Sheet Methodology
B2: DETAILED EXPLANATORY NOTES AND METHODOLOGY
B5: Table of contents
B6: 1. Background
B7: 2. Legal acts
B8: 3. Data reporting - questionnaire
B10: 1. Background
B11: Regular Community statistics on the production and management of waste from businesses and private households are required by the Community for monitoring the implementation of waste policy. Regulation (EC) No 2150/2002 of the European Parliament and of the Council of 25 November 2002 on waste statistics creates the basis for monitoring compliance with the principles of maximisation of recovery and safe disposal. This reporting template allows Member States to report waste generation pursuant to the requirements of this Regulation and the amending Commission Regulation (EU) No 849/2010. The guidelines are available here:
B12: https://ec.europa.eu/eurostat/web/waste/methodology
B14: 2. Legal acts
B15: European Parliament and Council Regulation 2002/2150 was last amended by amending Commission Regulation (EU) No 849/2010. Definitions and classifications in these Regulations are based on the Waste Framework Directive - Directive 2008/98/EC of the European Parliament and the Council (https://eur-lex.europa.eu/legal-content/EN/TXT/?uri=CELEX:02008L0098-20180705) The legislation is available here:
B16: https://ec.europa.eu/eurostat/web/waste/legislation
B17: https://eur-lex.europa.eu/legal-content/EN/TXT/?uri=CELEX:02008L0098-20180705
B18: 3. Data reporting - questionnaire
B19: This document assists Member States to report high quality, harmonised and efficient waste statistics. The reporting shall cover a full calendar year. The basic instructions sheet consists of some information necessary for filling in this questionnaire correctly.

Sheet Basic instructions
C3: Biennial Statistics on Waste Generation 2022 DATA COLLECTION
C4: Basic instructions
C6: Before filling in the questionnaire please read carefully the instructions below. This EXCEL workbook is the questionnaire. Please do not delete or add rows in the questionnaire. This EXCEL workbook contains macros. In order to make them work you need to save the file in your computer and then reopen it and enable macros resp. make it a trusted document. After you completely filled in the table and before sending it, please, validate the questionnaire with the button "validate questionnaire" above. You find the results of this immediate validation in the table "ErrorLog".
C7: Please note that this questionnaire only includes one table.
C9: 1. Getting started
C10: Enter the data without changing the format of the questionnaire (i.e. do not add/delete rows or columns) since Eurostat uses automated routines for data validation.
C11: Please select your country (click on the white cell): | G11: Croatia | J11: =IF(G11="","",VLOOKUP(G11,Lists!A2:B40,2,FALSE)) -> HR
C12: Reference year: | G12: 2020
C13: The due date for reporting is 30 June 2022
C14: Who is the primary contact point for biennial statistics on waste generation in your country?
C16: Name:
C18: Institution: | D18: Ministry of Economy and Sustainable Development
C20: Unit: | D20: Institute for Environment and Nature
C22: Telephone:
C24: Email adress:
C25: Eurostat would be grateful if you could send us the completed questionnaire ahead of the deadline.
C27: 2. Data transmission:
C28: The standard tool for the transmission of statistical data is the eDAMIS system. The system creates a secure environment for the transmission of data, it records all data submissions and acknowledges the data delivery. The eDAMIS system has been installed in the National Statistical Institutes.
C29: Please submit this questionnaire to Eurostat using the eDAMIS reporting system. Use the following details: Domain name: WASTE Data set name: WASTE_GEN
C30: Should you have any questions regarding data transmission do not hesitate to contact your local eDAMIS coordinator or the Eurostat eDAMIS helpdesk at:
F31: https://webgate.ec.europa.eu/edamis/helpcenter/website/index.htm
C32: e-mail address: ESTAT-SUPPORT-EDAMIS@EC.EUROPA.EU or call (+352) 4301- 33213
C33: For methodological questions contact Eurostat's waste team: ESTAT-WASTE-STATISTICS@EC.EUROPA.EU
C35: 3. Reporting conventions
C36: Description | E36: Symbol
C37: Real zero | E37: 0
C38: Not available | G38: (Empty cell means "not available")
C40: 1. White shaded (uncoloured) boxes: Provision of data is mandatory
C41: 2. Black shaded boxes: reporting is not applicable
C42: 3. Grey shaded boxes: calculation is automatic; do not input any data into these cells
C45: 4. Metadata:
C46: Please provide data by the Metadatahandler: | F46: https://webgate.ec.europa.eu/estat/spe/metaconv/home.htm
C48: 5. Footnotes: You are asked to report data that follow as closely as possible the Waste Statistics Regulation waste definitions and reporting rules (see paragraphs below). Please report problems with the coverage or data quality in the Metadatahandler.
C49: Flags (footnote symbols) should be entered in the reporting tables in the footnote columns, next to the value cell. There are two types of footnotes: - Letters for standard footnotes (as defined by Eurostat) and - Numbers for country-specific footnotes (to be defined by the data compilers).
C50: Standard footnotes
C51: The following footnotes will be used for the automatic data processing and data dissemination. Hence, they cannot be changed:
C52: B) break in series
C53: E) estimated data
C54: P) provisional
C55: To include standard footnotes use the drop-down menu. The drop-down menue includes as well combinations of footnotes. If you need to put more than one footnote in a field, please, use these combinations in the drop-down menue.
C57: Country-specific footnotes
C58: The specific footnotes can be used for any meaning beyond the pre-defined footnotes. To include the specific footnotes, insert the text in the footnote column corresponding to the value cell. Please report the footnote text in the worksheet 'Footnotes list' starting from number 1. You can select the number of the specific footnote from the drop-down menu. Please do not report footnotes that elaborate on e.g. source data and compilation methods; these are to be described in the quality report and the metadata sheets.
C60: 6. Methodology and questions: Guidance and the Manual on waste statistics are available on Eurostat website:
C61: https://ec.europa.eu/eurostat/web/waste/methodology
C62: The guidelines contain definitions, examples and recommendations to ensure that data are compiled and maintained on a consistent basis. They explain the scope and the reasoning behind the terms of the tables, and provide extra information necessary to allow a consistent collection and interpretation of the data to be reported by countries.
C63: A summary methodology is presented in this questionnaire, in the sheet named 'Methodology'. It is essential to read this sheet before filling in the questionnaire as it contains, beside the summary methodology, important information on priorities for filling in the tables, data sources and hints for establishing a methodology at national level.
C65: If you have questions, please send them to the following email addresses:
C66: ESTAT-WASTE-STATISTICS@EC.EUROPA.EU
B67: Annex: How to fill in the data sheets of the questionnaire
C68: You are kindly requested to:
C70: 1) | D70: To fill in all the uncoloured cells with a value.
C71: 2) | D71: Cells, which contain sums, are filled in automatically, unless there are empty fields in one of the summands. In this case, the field containing the sum has to be filled as well. In case, you assume that a formula should be added in a cell, please, send us an email with this formula. Please, do not add the formula yourself. The formula may be helpful all countries.
C72: 3) | D72: Flags (footnote symbols) can be entered in the reporting tables in the footnote columns.
C73: 4) | D73: To include standard footnotes use the drop-down menu.
C74: 5) | D74: The text of specific footnotes can be entered in the worksheet 'Footnotes list'.
C75: 6) | D75: Empty fields are a breach of the Regulation 2150/2002. An explanation, why the value is not available, has to be entered.

Sheet Table_1
B3: Country: | D3: =IF('Basic instructions'!$G$11="","",'Basic instructions'!$G$11) -> Croatia | F3: =IF('Basic instructions'!$J$11="","",'Basic instructions'!$J$11) -> HR
B4: Reference year: | D4: =IF('Basic instructions'!$G$12="","",'Basic instructions'!$G$12) -> 2020
G5: A | L5: B | Q5: C10-C12 | V5: C13-C15 | AA5: C16 | AF5: C17_C18 | AK5: C19 | AP5: C20-C22 | AU5: C23 | AZ5: C24_C25 | BE5: C26-C30 | BJ5: C31-C33 | BO5: C | BT5: D | BY5: E36_E37_E39 | CD5: E38 | CI5: E | CN5: F | CS5: G-U_X_G4677 | CX5: G4677 | DC5: EP_HH | DH5: TOTAL_HH
B6: Unit: Tonnes | D6: T | G6: =G5 -> A | L6: =L5 -> B | Q6: =Q5 -> C10-C12 | V6: =V5 -> C13-C15 | AA6: =AA5 -> C16 | AF6: =AF5 -> C17_C18 | AK6: =AK5 -> C19 | AP6: =AP5 -> C20-C22 | AU6: =AU5 -> C23 | AZ6: =AZ5 -> C24_C25 | BE6: =BE5 -> C26-C30 | BJ6: =BJ5 -> C31-C33 | BO6: =BO5 -> C | BT6: =BT5 -> D | BY6: =BY5 -> E36_E37_E39 | CD6: =CD5 -> E38 | CI6: =CI5 -> E | CN6: =CN5 -> F | CS6: =CS5 -> G-U_X_G4677 | CX6: =CX5 -> G4677 | DC6: =DC5 -> EP_HH | DH6: =DH5 -> TOTAL_HH
B7: WASTE GENERATION by waste category (EWC-STAT) and economic activity (NACE) | G7: Agriculture, forestry and fishing | H7: Standard footnote | I7: Confidentiality footnote | J7: Explanatory footnote | L7: Mining and quarrying | M7: Standard footnote | N7: Confidentiality footnote | O7: Explanatory footnote | Q7: Manufacture of food products; beverages and tobacco products | R7: Standard footnote | S7: Confidentiality footnote | T7: Explanatory footnote | V7: Manufacture of textiles, wearing apparel, leather and related products | W7: Standard footnote | X7: Confidentiality footnote | Y7: Explanatory footnote | AA7: Manufacture of wood and of products of wood and cork, except furniture; manufacture of articles of straw and plaiting materials | AB7: Standard footnote | AC7: Confidentiality footnote | AD7: Explanatory footnote | AF7: Manufacture of paper and paper products; printing and reproduction of recorded media | AG7: Standard footnote | AH7: Confidentiality footnote | AI7: Explanatory footnote | AK7: Manufacture of coke and refined petroleum products | AL7: Standard footnote | AM7: Confidentiality footnote | AN7: Explanatory footnote | AP7: Manufacture of chemical, pharmaceutical, rubber and plastic products | AQ7: Standard footnote | AR7: Confidentiality footnote | AS7: Explanatory footnote | AU7: Manufacture of other non-metallic mineral products | AV7: Standard footnote | AW7: Confidentiality footnote | AX7: Explanatory footnote | AZ7: Manufacture of basic metals and fabricated metal products, except machinery and equipment | BA7: Standard footnote | BB7: Confidentiality footnote | BC7: Explanatory footnote | BE7: Manufacture of computer, electronic and optical products, electrical equipment, motor vehicles and other transport equipment | BF7: Standard footnote | BG7: Confidentiality footnote | BH7: Explanatory footnote | BJ7: Manufacture of furniture; jewellery, musical instruments, toys; repair and installation of machinery and equipment | BK7: Standard footnote | BL7: Confidentiality footnote | BM7: Explanatory footnote | BO7: Manufacturing | BP7: Standard footnote | BQ7: Confidentiality footnote | BR7: Explanatory footnote | BT7: Electricity, gas, steam and air conditioning supply | BU7: Standard footnote | BV7: Confidentiality footnote | BW7: Explanatory footnote | BY7: Water collection, treatment and supply; sewerage; remediation activities and other waste management services | BZ7: Standard footnote | CA7: Confidentiality footnote | CB7: Explanatory footnote | CD7: Waste collection, treatment and disposal activities; materials recovery | CE7: Standard footnote | CF7: Confidentiality footnote | CG7: Explanatory footnote | CI7: Water supply; sewerage, waste management and remediation activities | CJ7: Standard footnote | CK7: Confidentiality footnote | CL7: Explanatory footnote | CN7: Construction | CO7: Standard footnote | CP7: Confidentiality footnote | CQ7: Explanatory footnote | CS7: Services (except wholesale of waste and scrap) | CT7: Standard footnote | CU7: Confidentiality footnote | CV7: Explanatory footnote | CX7: Wholesale of waste and scrap | CY7: Standard footnote | CZ7: Confidentiality footnote | DA7: Explanatory footnote | DC7: Households | DD7: Standard footnote | DE7: Confidentiality footnote | DF7: Explanatory footnote | DH7: All NACE activities plus households | DI7: Standard footnote | DJ7: Confidentiality footnote | DK7: Explanatory footnote
B8: W011 | C8: W011 | D8: Spent solvents | E8: HAZ | F8: Hazardous | G8: 0 | L8: 0 | Q8: 0.362 | V8: 19.157 | AA8: 1.755 | AF8: 86.157 | AK8: 77.19 | AP8: 1164.395 | AU8: 1.093 | AZ8: 19.559 | BE8: 248.999 | BJ8: 19.802 | BN8: =IF(TRIM(BM8)="", "", IF(VLOOKUP(BM8,#REF!,2,FALSE)=0,"",VLOOKUP(BM8,#REF!,2,FALSE) ) ) ->  | BO8: =IF(AND(TRIM(Q8)="",TRIM(V8)="",TRIM(AA8)="", TRIM(AF8)="", TRIM(AK8)="", TRIM(AP8)="", TRIM(AU8)="", TRIM(AZ8)="", TRIM(BE8)="", TRIM(BJ8)=""),"",Q8+V8+AA8+AF8+AK8+AP8+AU8+AZ8+BE8+BJ8) -> 1638.469 | BS8: =IF(TRIM(BR8)="", "", IF(VLOOKUP(BR8,#REF!,2,FALSE)=0,"",VLOOKUP(BR8,#REF!,2,FALSE) ) ) ->  | BT8: 0.104 | BY8: 0.176 | CD8: 3.247 | CH8: =IF(TRIM(CG8)="", "", IF(VLOOKUP(CG8,#REF!,2,FALSE)=0,"",VLOOKUP(CG8,#REF!,2,FALSE) ) ) ->  | CI8: =IF(AND(TRIM(BY8)="",TRIM(CD8)=""),"",BY8+CD8) -> 3.423 | CM8: =IF(TRIM(CL8)="", "", IF(VLOOKUP(CL8,#REF!,2,FALSE)=0,"",VLOOKUP(CL8,#REF!,2,FALSE) ) ) ->  | CN8: 1.44 | CS8: 70.974 | CX8: 0 | DC8: 0.27 | DG8: =IF(TRIM(DF8)="", "", IF(VLOOKUP(DF8,#REF!,2,FALSE)=0,"",VLOOKUP(DF8,#REF!,2,FALSE) ) ) ->  | DH8: =IF(AND(TRIM(G8)="",TRIM(L8)="",TRIM(BO8)="",TRIM(BT8)="",TRIM(CI8)="",TRIM(CN8)="",TRIM(CS8)="",TRIM(CX8)="",TRIM(DC8)=""),"",SUM(G8,L8,BO8,BT8,CI8,CN8,CS8,CX8,DC8)) -> 1714.68 | DL8: =IF(TRIM(DK8)="", "", IF(VLOOKUP(DK8,#REF!,2,FALSE)=0,"",VLOOKUP(DK8,#REF!,2,FALSE) ) ) -> 
F9: Not applicable | G9: 0 | L9: 0 | Q9: 0 | V9: 0 | AA9: 0 | AF9: 0 | AK9: 0 | AP9: 0 | AU9: 0 | AZ9: 0 | BE9: 0 | BJ9: 0 | BT9: 0 | BY9: 0 | CD9: 0 | CN9: 0 | CS9: 0 | CX9: 0 | DC9: 0
C10: W011 | E10: HAZ_NHAZ | F10: Total | G10: =IF(AND(TRIM(G8)="",TRIM(G9)=""),"",G8+G9) -> 0 | L10: =IF(AND(TRIM(L8)="",TRIM(L9)=""),"",L8+L9) -> 0 | Q10: =IF(AND(TRIM(Q8)="",TRIM(Q9)=""),"",Q8+Q9) -> 0.362 | V10: =IF(AND(TRIM(V8)="",TRIM(V9)=""),"",V8+V9) -> 19.157 | AA10: =IF(AND(TRIM(AA8)="",TRIM(AA9)=""),"",AA8+AA9) -> 1.755 | AF10: =IF(AND(TRIM(AF8)="",TRIM(AF9)=""),"",AF8+AF9) -> 86.157 | AK10: =IF(AND(TRIM(AK8)="",TRIM(AK9)=""),"",AK8+AK9) -> 77.19 | AP10: =IF(AND(TRIM(AP8)="",TRIM(AP9)=""),"",AP8+AP9) -> 1164.395 | AU10: =IF(AND(TRIM(AU8)="",TRIM(AU9)=""),"",AU8+AU9) -> 1.093 | AZ10: =IF(AND(TRIM(AZ8)="",TRIM(AZ9)=""),"",AZ8+AZ9) -> 19.559 | BE10: =IF(AND(TRIM(BE8)="",TRIM(BE9)=""),"",BE8+BE9) -> 248.999 | BJ10: =IF(AND(TRIM(BJ8)="",TRIM(BJ9)=""),"",BJ8+BJ9) -> 19.802 | BN10: =IF(TRIM(BM10)="", "", IF(VLOOKUP(BM10,#REF!,2,FALSE)=0,"",VLOOKUP(BM10,#REF!,2,FALSE) ) ) ->  | BO10: =IF(AND(TRIM(BO8)="", TRIM(BO9)=""), "", (IF(ISNUMBER(BO8),BO8,0)+IF(ISNUMBER(BO9),BO9,0))) -> 1638.469 | BS10: =IF(TRIM(BR10)="", "", IF(VLOOKUP(BR10,#REF!,2,FALSE)=0,"",VLOOKUP(BR10,#REF!,2,FALSE) ) ) ->  | BT10: =IF(AND(TRIM(BT8)="",TRIM(BT9)=""),"",BT8+BT9) -> 0.104 | BY10: =IF(AND(TRIM(BY8)="",TRIM(BY9)=""),"",BY8+BY9) -> 0.176 | CD10: =IF(AND(TRIM(CD8)="",TRIM(CD9)=""),"",CD8+CD9) -> 3.247 | CH10: =IF(TRIM(CG10)="", "", IF(VLOOKUP(CG10,#REF!,2,FALSE)=0,"",VLOOKUP(CG10,#REF!,2,FALSE) ) ) ->  | CI10: =IF(AND(TRIM(CI8)="", TRIM(CI9)=""), "", (IF(ISNUMBER(CI8),CI8,0)+IF(ISNUMBER(CI9),CI9,0))) -> 3.423 | CM10: =IF(TRIM(CL10)="", "", IF(VLOOKUP(CL10,#REF!,2,FALSE)=0,"",VLOOKUP(CL10,#REF!,2,FALSE) ) ) ->  | CN10: =IF(AND(TRIM(CN8)="",TRIM(CN9)=""),"",CN8+CN9) -> 1.44 | CS10: =IF(AND(TRIM(CS8)="",TRIM(CS9)=""),"",CS8+CS9) -> 70.974 | CX10: =IF(AND(TRIM(CX8)="",TRIM(CX9)=""),"",CX8+CX9) -> 0 | DC10: =IF(AND(TRIM(DC8)="",TRIM(DC9)=""),"",DC8+DC9) -> 0.27 | DG10: =IF(TRIM(DF10)="", "", IF(VLOOKUP(DF10,#REF!,2,FALSE)=0,"",VLOOKUP(DF10,#REF!,2,FALSE) ) ) ->  | DH10: =IF(AND(TRIM(DH8)="", TRIM(DH9)=""), "", SUM(DH8,DH9) ) -> 1714.68 | DL10: =IF(TRIM(DK10)="", "", IF(VLOOKUP(DK10,#REF!,2,FALSE)=0,"",VLOOKUP(DK10,#REF!,2,FALSE) ) ) -> 
B11: W012 | C11: W012 | D11: Acid, alkaline or saline wastes | E11: HAZ | F11: Hazardous | G11: 0 | L11: 18.018 | Q11: 34.426 | V11: 0 | AA11: 0.007 | AF11: 116.749 | AK11: 28.788 | AP11: 387.555 | AU11: 0.253 | AZ11: 3599.979 | BE11: 135.859 | BJ11: 4.122 | BN11: =IF(TRIM(BM11)="", "", IF(VLOOKUP(BM11,#REF!,2,FALSE)=0,"",VLOOKUP(BM11,#REF!,2,FALSE) ) ) ->  | BO11: =IF(AND(TRIM(Q11)="",TRIM(V11)="",TRIM(AA11)="", TRIM(AF11)="", TRIM(AK11)="", TRIM(AP11)="", TRIM(AU11)="", TRIM(AZ11)="", TRIM(BE11)="", TRIM(BJ11)=""),"",Q11+V11+AA11+AF11+AK11+AP11+AU11+AZ11+BE11+BJ11) -> 4307.738 | BS11: =IF(TRIM(BR11)="", "", IF(VLOOKUP(BR11,#REF!,2,FALSE)=0,"",VLOOKUP(BR11,#REF!,2,FALSE) ) ) ->  | BT11: 2.1425 | BY11: 0.442 | CD11: 5.97 | CH11: =IF(TRIM(CG11)="", "", IF(VLOOKUP(CG11,#REF!,2,FALSE)=0,"",VLOOKUP(CG11,#REF!,2,FALSE) ) ) ->  | CI11: =IF(AND(TRIM(BY11)="",TRIM(CD11)=""),"",BY11+CD11) -> 6.412 | CM11: =IF(TRIM(CL11)="", "", IF(VLOOKUP(CL11,#REF!,2,FALSE)=0,"",VLOOKUP(CL11,#REF!,2,FALSE) ) ) ->  | CN11: 4.02 | CS11: 68.001 | CX11: 0 | DC11: 1.041 | DG11: =IF(TRIM(DF11)="", "", IF(VLOOKUP(DF11,#REF!,2,FALSE)=0,"",VLOOKUP(DF11,#REF!,2,FALSE) ) ) ->  | DH11: =IF(AND(TRIM(G11)="",TRIM(L11)="",TRIM(BO11)="",TRIM(BT11)="",TRIM(CI11)="",TRIM(CN11)="",TRIM(CS11)="",TRIM(CX11)="",TRIM(DC11)=""),"",SUM(G11,L11,BO11,BT11,CI11,CN11,CS11,CX11,DC11)) -> 4407.373 | DL11: =IF(TRIM(DK11)="", "", IF(VLOOKUP(DK11,#REF!,2,FALSE)=0,"",VLOOKUP(DK11,#REF!,2,FALSE) ) ) -> 
C12: W012 | E12: NHAZ | F12: Non-hazardous | G12: 0 | L12: 0 | Q12: 0 | V12: 0 | AA12: 0 | AF12: 0 | AK12: 15.92 | AP12: 0.075 | AU12: 0 | AZ12: 410 | BE12: 1.251 | BJ12: 0 | BN12: =IF(TRIM(BM12)="", "", IF(VLOOKUP(BM12,#REF!,2,FALSE)=0,"",VLOOKUP(BM12,#REF!,2,FALSE) ) ) ->  | BO12: =IF(AND(TRIM(Q12)="",TRIM(V12)="",TRIM(AA12)="", TRIM(AF12)="", TRIM(AK12)="", TRIM(AP12)="", TRIM(AU12)="", TRIM(AZ12)="", TRIM(BE12)="", TRIM(BJ12)=""),"",Q12+V12+AA12+AF12+AK12+AP12+AU12+AZ12+BE12+BJ12) -> 427.246 | BS12: =IF(TRIM(BR12)="", "", IF(VLOOKUP(BR12,#REF!,2,FALSE)=0,"",VLOOKUP(BR12,#REF!,2,FALSE) ) ) ->  | BT12: 0 | BY12: 0 | CD12: 0 | CH12: =IF(TRIM(CG12)="", "", IF(VLOOKUP(CG12,#REF!,2,FALSE)=0,"",VLOOKUP(CG12,#REF!,2,FALSE) ) ) ->  | CI12: =IF(AND(TRIM(BY12)="",TRIM(CD12)=""),"",BY12+CD12) -> 0 | CM12: =IF(TRIM(CL12)="", "", IF(VLOOKUP(CL12,#REF!,2,FALSE)=0,"",VLOOKUP(CL12,#REF!,2,FALSE) ) ) ->  | CN12: 0 | CS12: 0 | CX12: 0 | DC12: 0 | DG12: =IF(TRIM(DF12)="", "", IF(VLOOKUP(DF12,#REF!,2,FALSE)=0,"",VLOOKUP(DF12,#REF!,2,FALSE) ) ) ->  | DH12: =IF(AND(TRIM(G12)="",TRIM(L12)="",TRIM(BO12)="",TRIM(BT12)="",TRIM(CI12)="",TRIM(CN12)="",TRIM(CS12)="",TRIM(CX12)="",TRIM(DC12)=""),"",SUM(G12,L12,BO12,BT12,CI12,CN12,CS12,CX12,DC12)) -> 427.246 | DL12: =IF(TRIM(DK12)="", "", IF(VLOOKUP(DK12,#REF!,2,FALSE)=0,"",VLOOKUP(DK12,#REF!,2,FALSE) ) ) -> 
C13: W012 | E13: HAZ_NHAZ | F13: Total | G13: =IF(AND(TRIM(G11)="",TRIM(G12)=""),"",G11+G12) -> 0 | L13: =IF(AND(TRIM(L11)="",TRIM(L12)=""),"",L11+L12) -> 18.018 | Q13: =IF(AND(TRIM(Q11)="",TRIM(Q12)=""),"",Q11+Q12) -> 34.426 | V13: =IF(AND(TRIM(V11)="",TRIM(V12)=""),"",V11+V12) -> 0 | AA13: =IF(AND(TRIM(AA11)="",TRIM(AA12)=""),"",AA11+AA12) -> 0.007 | AF13: =IF(AND(TRIM(AF11)="",TRIM(AF12)=""),"",AF11+AF12) -> 116.749 | AK13: =IF(AND(TRIM(AK11)="",TRIM(AK12)=""),"",AK11+AK12) -> 44.708 | AP13: =IF(AND(TRIM(AP11)="",TRIM(AP12)=""),"",AP11+AP12) -> 387.63 | AU13: =IF(AND(TRIM(AU11)="",TRIM(AU12)=""),"",AU11+AU12) -> 0.253 | AZ13: =IF(AND(TRIM(AZ11)="",TRIM(AZ12)=""),"",AZ11+AZ12) -> 4009.979 | BE13: =IF(AND(TRIM(BE11)="",TRIM(BE12)=""),"",BE11+BE12) -> 137.11 | BJ13: =IF(AND(TRIM(BJ11)="",TRIM(BJ12)=""),"",BJ11+BJ12) -> 4.122 | BN13: =IF(TRIM(BM13)="", "", IF(VLOOKUP(BM13,#REF!,2,FALSE)=0,"",VLOOKUP(BM13,#REF!,2,FALSE) ) ) ->  | BO13: =IF(AND(TRIM(BO11)="", TRIM(BO12)=""), "", (IF(ISNUMBER(BO11),BO11,0)+IF(ISNUMBER(BO12),BO12,0))) -> 4734.984 | BS13: =IF(TRIM(BR13)="", "", IF(VLOOKUP(BR13,#REF!,2,FALSE)=0,"",VLOOKUP(BR13,#REF!,2,FALSE) ) ) ->  | BT13: =IF(AND(TRIM(BT11)="",TRIM(BT12)=""),"",BT11+BT12) -> 2.143 | BY13: =IF(AND(TRIM(BY11)="",TRIM(BY12)=""),"",BY11+BY12) -> 0.442 | CD13: =IF(AND(TRIM(CD11)="",TRIM(CD12)=""),"",CD11+CD12) -> 5.97 | CH13: =IF(TRIM(CG13)="", "", IF(VLOOKUP(CG13,#REF!,2,FALSE)=0,"",VLOOKUP(CG13,#REF!,2,FALSE) ) ) ->  | CI13: =IF(AND(TRIM(CI11)="", TRIM(CI12)=""), "", (IF(ISNUMBER(CI11),CI11,0)+IF(ISNUMBER(CI12),CI12,0))) -> 6.412 | CM13: =IF(TRIM(CL13)="", "", IF(VLOOKUP(CL13,#REF!,2,FALSE)=0,"",VLOOKUP(CL13,#REF!,2,FALSE) ) ) ->  | CN13: =IF(AND(TRIM(CN11)="",TRIM(CN12)=""),"",CN11+CN12) -> 4.02 | CS13: =IF(AND(TRIM(CS11)="",TRIM(CS12)=""),"",CS11+CS12) -> 68.001 | CX13: =IF(AND(TRIM(CX11)="",TRIM(CX12)=""),"",CX11+CX12) -> 0 | DC13: =IF(AND(TRIM(DC11)="",TRIM(DC12)=""),"",DC11+DC12) -> 1.041 | DG13: =IF(TRIM(DF13)="", "", IF(VLOOKUP(DF13,#REF!,2,FALSE)=0,"",VLOOKUP(DF13,#REF!,2,FALSE) ) ) ->  | DH13: =IF(AND(TRIM(DH11)="", TRIM(DH12)=""), "", SUM(DH11,DH12) ) -> 4834.619 | DL13: =IF(TRIM(DK13)="", "", IF(VLOOKUP(DK13,#REF!,2,FALSE)=0,"",VLOOKUP(DK13,#REF!,2,FALSE) ) ) -> 
B14: W013 | C14: W013 | D14: Used oils | E14: HAZ | F14: Hazardous | G14: 108.064 | L14: 2804.32 | Q14: 61.76 | V14: 6.748 | AA14: 48.569 | AF14: 42.326 | AK14: 262.485 | AP14: 56.134 | AU14: 130.29 | AZ14: 1756.413 | BE14: 1885.288 | BJ14: 315.889 | BN14: =IF(TRIM(BM14)="", "", IF(VLOOKUP(BM14,#REF!,2,FALSE)=0,"",VLOOKUP(BM14,#REF!,2,FALSE) ) ) ->  | BO14: =IF(AND(TRIM(Q14)="",TRIM(V14)="",TRIM(AA14)="", TRIM(AF14)="", TRIM(AK14)="", TRIM(AP14)="", TRIM(AU14)="", TRIM(AZ14)="", TRIM(BE14)="", TRIM(BJ14)=""),"",Q14+V14+AA14+AF14+AK14+AP14+AU14+AZ14+BE14+BJ14) -> 4565.902 | BS14: =IF(TRIM(BR14)="", "", IF(VLOOKUP(BR14,#REF!,2,FALSE)=0,"",VLOOKUP(BR14,#REF!,2,FALSE) ) ) ->  | BT14: 437.1 | BY14: 46.2875 | CD14: 243.14 | CH14: =IF(TRIM(CG14)="", "", IF(VLOOKUP(CG14,#REF!,2,FALSE)=0,"",VLOOKUP(CG14,#REF!,2,FALSE) ) ) ->  | CI14: =IF(AND(TRIM(BY14)="",TRIM(CD14)=""),"",BY14+CD14) -> 289.428 | CM14: =IF(TRIM(CL14)="", "", IF(VLOOKUP(CL14,#REF!,2,FALSE)=0,"",VLOOKUP(CL14,#REF!,2,FALSE) ) ) ->  | CN14: 152.296 | CS14: 5079.878 | CX14: 2.344 | DC14: 78.229 | DG14: =IF(TRIM(DF14)="", "", IF(VLOOKUP(DF14,#REF!,2,FALSE)=0,"",VLOOKUP(DF14,#REF!,2,FALSE) ) ) ->  | DH14: =IF(AND(TRIM(G14)="",TRIM(L14)="",TRIM(BO14)="",TRIM(BT14)="",TRIM(CI14)="",TRIM(CN14)="",TRIM(CS14)="",TRIM(CX14)="",TRIM(DC14)=""),"",SUM(G14,L14,BO14,BT14,CI14,CN14,CS14,CX14,DC14)) -> 13517.561 | DL14: =IF(TRIM(DK14)="", "", IF(VLOOKUP(DK14,#REF!,2,FALSE)=0,"",VLOOKUP(DK14,#REF!,2,FALSE) ) ) -> 
F15: Not applicable | G15: 0 | L15: 0 | Q15: 0 | V15: 0 | AA15: 0 | AF15: 0 | AK15: 0 | AP15: 0 | AU15: 0 | AZ15: 0 | BE15: 0 | BJ15: 0 | BT15: 0 | BY15: 0 | CD15: 0 | CN15: 0 | CS15: 0 | CX15: 0 | DC15: 0
C16: W013 | E16: HAZ_NHAZ | F16: Total | G16: =IF(AND(TRIM(G14)="",TRIM(G15)=""),"",G14+G15) -> 108.064 | L16: =IF(AND(TRIM(L14)="",TRIM(L15)=""),"",L14+L15) -> 2804.32 | Q16: =IF(AND(TRIM(Q14)="",TRIM(Q15)=""),"",Q14+Q15) -> 61.76 | V16: =IF(AND(TRIM(V14)="",TRIM(V15)=""),"",V14+V15) -> 6.748 | AA16: =IF(AND(TRIM(AA14)="",TRIM(AA15)=""),"",AA14+AA15) -> 48.569 | AF16: =IF(AND(TRIM(AF14)="",TRIM(AF15)=""),"",AF14+AF15) -> 42.326 | AK16: =IF(AND(TRIM(AK14)="",TRIM(AK15)=""),"",AK14+AK15) -> 262.485 | AP16: =IF(AND(TRIM(AP14)="",TRIM(AP15)=""),"",AP14+AP15) -> 56.134 | AU16: =IF(AND(TRIM(AU14)="",TRIM(AU15)=""),"",AU14+AU15) -> 130.29 | AZ16: =IF(AND(TRIM(AZ14)="",TRIM(AZ15)=""),"",AZ14+AZ15) -> 1756.413 | BE16: =IF(AND(TRIM(BE14)="",TRIM(BE15)=""),"",BE14+BE15) -> 1885.288 | BJ16: =IF(AND(TRIM(BJ14)="",TRIM(BJ15)=""),"",BJ14+BJ15) -> 315.889 | BN16: =IF(TRIM(BM16)="", "", IF(VLOOKUP(BM16,#REF!,2,FALSE)=0,"",VLOOKUP(BM16,#REF!,2,FALSE) ) ) ->  | BO16: =IF(AND(TRIM(BO14)="", TRIM(BO15)=""), "", (IF(ISNUMBER(BO14),BO14,0)+IF(ISNUMBER(BO15),BO15,0))) -> 4565.902 | BS16: =IF(TRIM(BR16)="", "", IF(VLOOKUP(BR16,#REF!,2,FALSE)=0,"",VLOOKUP(BR16,#REF!,2,FALSE) ) ) ->  | BT16: =IF(AND(TRIM(BT14)="",TRIM(BT15)=""),"",BT14+BT15) -> 437.1 | BY16: =IF(AND(TRIM(BY14)="",TRIM(BY15)=""),"",BY14+BY15) -> 46.288 | CD16: =IF(AND(TRIM(CD14)="",TRIM(CD15)=""),"",CD14+CD15) -> 243.14 | CH16: =IF(TRIM(CG16)="", "", IF(VLOOKUP(CG16,#REF!,2,FALSE)=0,"",VLOOKUP(CG16,#REF!,2,FALSE) ) ) ->  | CI16: =IF(AND(TRIM(CI14)="", TRIM(CI15)=""), "", (IF(ISNUMBER(CI14),CI14,0)+IF(ISNUMBER(CI15),CI15,0))) -> 289.428 | CM16: =IF(TRIM(CL16)="", "", IF(VLOOKUP(CL16,#REF!,2,FALSE)=0,"",VLOOKUP(CL16,#REF!,2,FALSE) ) ) ->  | CN16: =IF(AND(TRIM(CN14)="",TRIM(CN15)=""),"",CN14+CN15) -> 152.296 | CS16: =IF(AND(TRIM(CS14)="",TRIM(CS15)=""),"",CS14+CS15) -> 5079.878 | CX16: =IF(AND(TRIM(CX14)="",TRIM(CX15)=""),"",CX14+CX15) -> 2.344 | DC16: =IF(AND(TRIM(DC14)="",TRIM(DC15)=""),"",DC14+DC15) -> 78.229 | DG16: =IF(TRIM(DF16)="", "", IF(VLOOKUP(DF16,#REF!,2,FALSE)=0,"",VLOOKUP(DF16,#REF!,2,FALSE) ) ) ->  | DH16: =IF(AND(TRIM(DH14)="", TRIM(DH15)=""), "", SUM(DH14,DH15) ) -> 13517.561 | DL16: =IF(TRIM(DK16)="", "", IF(VLOOKUP(DK16,#REF!,2,FALSE)=0,"",VLOOKUP(DK16,#REF!,2,FALSE) ) ) -> 
B17: W02A | C17: W02A | D17: Chemical wastes | E17: HAZ | F17: Hazardous | G17: 250.71 | L17: 446.314 | Q17: 244.831 | V17: 320.47 | AA17: 104.971 | AF17: 813.035 | AK17: 1532.93 | AP17: 1446.934 | AU17: 382.618 | AZ17: 3248.421 | BE17: 1327.489 | BJ17: 1065.653 | BN17: =IF(TRIM(BM17)="", "", IF(VLOOKUP(BM17,#REF!,2,FALSE)=0,"",VLOOKUP(BM17,#REF!,2,FALSE) ) ) ->  | BO17: =IF(AND(TRIM(Q17)="",TRIM(V17)="",TRIM(AA17)="", TRIM(AF17)="", TRIM(AK17)="", TRIM(AP17)="", TRIM(AU17)="", TRIM(AZ17)="", TRIM(BE17)="", TRIM(BJ17)=""),"",Q17+V17+AA17+AF17+AK17+AP17+AU17+AZ17+BE17+BJ17) -> 10487.352 | BS17: =IF(TRIM(BR17)="", "", IF(VLOOKUP(BR17,#REF!,2,FALSE)=0,"",VLOOKUP(BR17,#REF!,2,FALSE) ) ) ->  | BT17: 482.122 | BY17: 542.521 | CD17: 1453.166 | CH17: =IF(TRIM(CG17)="", "", IF(VLOOKUP(CG17,#REF!,2,FALSE)=0,"",VLOOKUP(CG17,#REF!,2,FALSE) ) ) ->  | CI17: =IF(AND(TRIM(BY17)="",TRIM(CD17)=""),"",BY17+CD17) -> 1995.687 | CM17: =IF(TRIM(CL17)="", "", IF(VLOOKUP(CL17,#REF!,2,FALSE)=0,"",VLOOKUP(CL17,#REF!,2,FALSE) ) ) ->  | CN17: 1298.846 | CS17: 6893.723 | CX17: 0.025 | DC17: 272.455 | DG17: =IF(TRIM(DF17)="", "", IF(VLOOKUP(DF17,#REF!,2,FALSE)=0,"",VLOOKUP(DF17,#REF!,2,FALSE) ) ) ->  | DH17: =IF(AND(TRIM(G17)="",TRIM(L17)="",TRIM(BO17)="",TRIM(BT17)="",TRIM(CI17)="",TRIM(CN17)="",TRIM(CS17)="",TRIM(CX17)="",TRIM(DC17)=""),"",SUM(G17,L17,BO17,BT17,CI17,CN17,CS17,CX17,DC17)) -> 22127.234 | DL17: =IF(TRIM(DK17)="", "", IF(VLOOKUP(DK17,#REF!,2,FALSE)=0,"",VLOOKUP(DK17,#REF!,2,FALSE) ) ) -> 
C18: W02A | E18: NHAZ | F18: Non-hazardous | G18: 1.47 | L18: 0.38 | Q18: 283.435 | V18: 1659.203 | AA18: 138.8225 | AF18: 24.95 | AK18: 145.4 | AP18: 501.023 | AU18: 26.724 | AZ18: 106.235 | BE18: 92.99 | BJ18: 87.207 | BN18: =IF(TRIM(BM18)="", "", IF(VLOOKUP(BM18,#REF!,2,FALSE)=0,"",VLOOKUP(BM18,#REF!,2,FALSE) ) ) ->  | BO18: =IF(AND(TRIM(Q18)="",TRIM(V18)="",TRIM(AA18)="", TRIM(AF18)="", TRIM(AK18)="", TRIM(AP18)="", TRIM(AU18)="", TRIM(AZ18)="", TRIM(BE18)="", TRIM(BJ18)=""),"",Q18+V18+AA18+AF18+AK18+AP18+AU18+AZ18+BE18+BJ18) -> 3065.99 | BS18: =IF(TRIM(BR18)="", "", IF(VLOOKUP(BR18,#REF!,2,FALSE)=0,"",VLOOKUP(BR18,#REF!,2,FALSE) ) ) ->  | BT18: 240.413 | BY18: 46.014 | CD18: 13.988 | CH18: =IF(TRIM(CG18)="", "", IF(VLOOKUP(CG18,#REF!,2,FALSE)=0,"",VLOOKUP(CG18,#REF!,2,FALSE) ) ) ->  | CI18: =IF(AND(TRIM(BY18)="",TRIM(CD18)=""),"",BY18+CD18) -> 60.002 | CM18: =IF(TRIM(CL18)="", "", IF(VLOOKUP(CL18,#REF!,2,FALSE)=0,"",VLOOKUP(CL18,#REF!,2,FALSE) ) ) ->  | CN18: 3.775 | CS18: 139.475 | CX18: 0 | DC18: 378.843 | DG18: =IF(TRIM(DF18)="", "", IF(VLOOKUP(DF18,#REF!,2,FALSE)=0,"",VLOOKUP(DF18,#REF!,2,FALSE) ) ) ->  | DH18: =IF(AND(TRIM(G18)="",TRIM(L18)="",TRIM(BO18)="",TRIM(BT18)="",TRIM(CI18)="",TRIM(CN18)="",TRIM(CS18)="",TRIM(CX18)="",TRIM(DC18)=""),"",SUM(G18,L18,BO18,BT18,CI18,CN18,CS18,CX18,DC18)) -> 3890.348 | DL18: =IF(TRIM(DK18)="", "", IF(VLOOKUP(DK18,#REF!,2,FALSE)=0,"",VLOOKUP(DK18,#REF!,2,FALSE) ) ) -> 
C19: W02A | E19: HAZ_NHAZ | F19: Total | G19: =IF(AND(TRIM(G17)="",TRIM(G18)=""),"",G17+G18) -> 252.18 | L19: =IF(AND(TRIM(L17)="",TRIM(L18)=""),"",L17+L18) -> 446.694 | Q19: =IF(AND(TRIM(Q17)="",TRIM(Q18)=""),"",Q17+Q18) -> 528.266 | V19: =IF(AND(TRIM(V17)="",TRIM(V18)=""),"",V17+V18) -> 1979.673 | AA19: =IF(AND(TRIM(AA17)="",TRIM(AA18)=""),"",AA17+AA18) -> 243.794 | AF19: =IF(AND(TRIM(AF17)="",TRIM(AF18)=""),"",AF17+AF18) -> 837.985 | AK19: =IF(AND(TRIM(AK17)="",TRIM(AK18)=""),"",AK17+AK18) -> 1678.33 | AP19: =IF(AND(TRIM(AP17)="",TRIM(AP18)=""),"",AP17+AP18) -> 1947.957 | AU19: =IF(AND(TRIM(AU17)="",TRIM(AU18)=""),"",AU17+AU18) -> 409.342 | AZ19: =IF(AND(TRIM(AZ17)="",TRIM(AZ18)=""),"",AZ17+AZ18) -> 3354.656 | BE19: =IF(AND(TRIM(BE17)="",TRIM(BE18)=""),"",BE17+BE18) -> 1420.479 | BJ19: =IF(AND(TRIM(BJ17)="",TRIM(BJ18)=""),"",BJ17+BJ18) -> 1152.86 | BN19: =IF(TRIM(BM19)="", "", IF(VLOOKUP(BM19,#REF!,2,FALSE)=0,"",VLOOKUP(BM19,#REF!,2,FALSE) ) ) ->  | BO19: =IF(AND(TRIM(BO17)="", TRIM(BO18)=""), "", (IF(ISNUMBER(BO17),BO17,0)+IF(ISNUMBER(BO18),BO18,0))) -> 13553.342 | BS19: =IF(TRIM(BR19)="", "", IF(VLOOKUP(BR19,#REF!,2,FALSE)=0,"",VLOOKUP(BR19,#REF!,2,FALSE) ) ) ->  | BT19: =IF(AND(TRIM(BT17)="",TRIM(BT18)=""),"",BT17+BT18) -> 722.535 | BY19: =IF(AND(TRIM(BY17)="",TRIM(BY18)=""),"",BY17+BY18) -> 588.535 | CD19: =IF(AND(TRIM(CD17)="",TRIM(CD18)=""),"",CD17+CD18) -> 1467.154 | CH19: =IF(TRIM(CG19)="", "", IF(VLOOKUP(CG19,#REF!,2,FALSE)=0,"",VLOOKUP(CG19,#REF!,2,FALSE) ) ) ->  | CI19: =IF(AND(TRIM(CI17)="", TRIM(CI18)=""), "", (IF(ISNUMBER(CI17),CI17,0)+IF(ISNUMBER(CI18),CI18,0))) -> 2055.689 | CM19: =IF(TRIM(CL19)="", "", IF(VLOOKUP(CL19,#REF!,2,FALSE)=0,"",VLOOKUP(CL19,#REF!,2,FALSE) ) ) ->  | CN19: =IF(AND(TRIM(CN17)="",TRIM(CN18)=""),"",CN17+CN18) -> 1302.621 | CS19: =IF(AND(TRIM(CS17)="",TRIM(CS18)=""),"",CS17+CS18) -> 7033.198 | CX19: =IF(AND(TRIM(CX17)="",TRIM(CX18)=""),"",CX17+CX18) -> 0.025 | DC19: =IF(AND(TRIM(DC17)="",TRIM(DC18)=""),"",DC17+DC18) -> 651.298 | DG19: =IF(TRIM(DF19)="", "", IF(VLOOKUP(DF19,#REF!,2,FALSE)=0,"",VLOOKUP(DF19,#REF!,2,FALSE) ) ) ->  | DH19: =IF(AND(TRIM(DH17)="", TRIM(DH18)=""), "", SUM(DH17,DH18) ) -> 26017.582 | DL19: =IF(TRIM(DK19)="", "", IF(VLOOKUP(DK19,#REF!,2,FALSE)=0,"",VLOOKUP(DK19,#REF!,2,FALSE) ) ) -> 
B20: W032 | C20: W032 | D20: Industrial effluent sludges | E20: HAZ | F20: Hazardous | G20: 0.216 | L20: 80.352 | Q20: 7.174 | V20: 14.411 | AA20: 0 | AF20: 0.17 | AK20: 81.988 | AP20: 128.915 | AU20: 11.284 | AZ20: 137.348 | BE20: 909.231 | BJ20: 4.52 | BN20: =IF(TRIM(BM20)="", "", IF(VLOOKUP(BM20,#REF!,2,FALSE)=0,"",VLOOKUP(BM20,#REF!,2,FALSE) ) ) ->  | BO20: =IF(AND(TRIM(Q20)="",TRIM(V20)="",TRIM(AA20)="", TRIM(AF20)="", TRIM(AK20)="", TRIM(AP20)="", TRIM(AU20)="", TRIM(AZ20)="", TRIM(BE20)="", TRIM(BJ20)=""),"",Q20+V20+AA20+AF20+AK20+AP20+AU20+AZ20+BE20+BJ20) -> 1295.041 | BS20: =IF(TRIM(BR20)="", "", IF(VLOOKUP(BR20,#REF!,2,FALSE)=0,"",VLOOKUP(BR20,#REF!,2,FALSE) ) ) ->  | BT20: 5.165 | BY20: 38.205 | CD20: 19.408 | CH20: =IF(TRIM(CG20)="", "", IF(VLOOKUP(CG20,#REF!,2,FALSE)=0,"",VLOOKUP(CG20,#REF!,2,FALSE) ) ) ->  | CI20: =IF(AND(TRIM(BY20)="",TRIM(CD20)=""),"",BY20+CD20) -> 57.613 | CM20: =IF(TRIM(CL20)="", "", IF(VLOOKUP(CL20,#REF!,2,FALSE)=0,"",VLOOKUP(CL20,#REF!,2,FALSE) ) ) ->  | CN20: 4.153 | CS20: 78.572 | CX20: 0 | DC20: 0 | DG20: =IF(TRIM(DF20)="", "", IF(VLOOKUP(DF20,#REF!,2,FALSE)=0,"",VLOOKUP(DF20,#REF!,2,FALSE) ) ) ->  | DH20: =IF(AND(TRIM(G20)="",TRIM(L20)="",TRIM(BO20)="",TRIM(BT20)="",TRIM(CI20)="",TRIM(CN20)="",TRIM(CS20)="",TRIM(CX20)="",TRIM(DC20)=""),"",SUM(G20,L20,BO20,BT20,CI20,CN20,CS20,CX20,DC20)) -> 1521.112 | DL20: =IF(TRIM(DK20)="", "", IF(VLOOKUP(DK20,#REF!,2,FALSE)=0,"",VLOOKUP(DK20,#REF!,2,FALSE) ) ) -> 
C21: W032 | E21: NHAZ | F21: Non-hazardous | G21: 0 | L21: 95.99 | Q21: 173.596 | V21: 93.021 | AA21: 0 | AF21: 3053.385 | AK21: 0 | AP21: 141.328 | AU21: 3.576 | AZ21: 10.354 | BE21: 4.701 | BJ21: 0.008 | BN21: =IF(TRIM(BM21)="", "", IF(VLOOKUP(BM21,#REF!,2,FALSE)=0,"",VLOOKUP(BM21,#REF!,2,FALSE) ) ) ->  | BO21: =IF(AND(TRIM(Q21)="",TRIM(V21)="",TRIM(AA21)="", TRIM(AF21)="", TRIM(AK21)="", TRIM(AP21)="", TRIM(AU21)="", TRIM(AZ21)="", TRIM(BE21)="", TRIM(BJ21)=""),"",Q21+V21+AA21+AF21+AK21+AP21+AU21+AZ21+BE21+BJ21) -> 3479.969 | BS21: =IF(TRIM(BR21)="", "", IF(VLOOKUP(BR21,#REF!,2,FALSE)=0,"",VLOOKUP(BR21,#REF!,2,FALSE) ) ) ->  | BT21: 91.357 | BY21: 48.844 | CD21: 0 | CH21: =IF(TRIM(CG21)="", "", IF(VLOOKUP(CG21,#REF!,2,FALSE)=0,"",VLOOKUP(CG21,#REF!,2,FALSE) ) ) ->  | CI21: =IF(AND(TRIM(BY21)="",TRIM(CD21)=""),"",BY21+CD21) -> 48.844 | CM21: =IF(TRIM(CL21)="", "", IF(VLOOKUP(CL21,#REF!,2,FALSE)=0,"",VLOOKUP(CL21,#REF!,2,FALSE) ) ) ->  | CN21: 2.311 | CS21: 23.609 | CX21: 0 | DC21: 0 | DG21: =IF(TRIM(DF21)="", "", IF(VLOOKUP(DF21,#REF!,2,FALSE)=0,"",VLOOKUP(DF21,#REF!,2,FALSE) ) ) ->  | DH21: =IF(AND(TRIM(G21)="",TRIM(L21)="",TRIM(BO21)="",TRIM(BT21)="",TRIM(CI21)="",TRIM(CN21)="",TRIM(CS21)="",TRIM(CX21)="",TRIM(DC21)=""),"",SUM(G21,L21,BO21,BT21,CI21,CN21,CS21,CX21,DC21)) -> 3742.08 | DL21: =IF(TRIM(DK21)="", "", IF(VLOOKUP(DK21,#REF!,2,FALSE)=0,"",VLOOKUP(DK21,#REF!,2,FALSE) ) ) -> 
C22: W032 | E22: HAZ_NHAZ | F22: Total | G22: =IF(AND(TRIM(G20)="",TRIM(G21)=""),"",G20+G21) -> 0.216 | L22: =IF(AND(TRIM(L20)="",TRIM(L21)=""),"",L20+L21) -> 176.342 | Q22: =IF(AND(TRIM(Q20)="",TRIM(Q21)=""),"",Q20+Q21) -> 180.77 | V22: =IF(AND(TRIM(V20)="",TRIM(V21)=""),"",V20+V21) -> 107.432 | AA22: =IF(AND(TRIM(AA20)="",TRIM(AA21)=""),"",AA20+AA21) -> 0 | AF22: =IF(AND(TRIM(AF20)="",TRIM(AF21)=""),"",AF20+AF21) -> 3053.555 | AK22: =IF(AND(TRIM(AK20)="",TRIM(AK21)=""),"",AK20+AK21) -> 81.988 | AP22: =IF(AND(TRIM(AP20)="",TRIM(AP21)=""),"",AP20+AP21) -> 270.243 | AU22: =IF(AND(TRIM(AU20)="",TRIM(AU21)=""),"",AU20+AU21) -> 14.86 | AZ22: =IF(AND(TRIM(AZ20)="",TRIM(AZ21)=""),"",AZ20+AZ21) -> 147.702 | BE22: =IF(AND(TRIM(BE20)="",TRIM(BE21)=""),"",BE20+BE21) -> 913.932 | BJ22: =IF(AND(TRIM(BJ20)="",TRIM(BJ21)=""),"",BJ20+BJ21) -> 4.528 | BN22: =IF(TRIM(BM22)="", "", IF(VLOOKUP(BM22,#REF!,2,FALSE)=0,"",VLOOKUP(BM22,#REF!,2,FALSE) ) ) ->  | BO22: =IF(AND(TRIM(BO20)="", TRIM(BO21)=""), "", (IF(ISNUMBER(BO20),BO20,0)+IF(ISNUMBER(BO21),BO21,0))) -> 4775.01 | BS22: =IF(TRIM(BR22)="", "", IF(VLOOKUP(BR22,#REF!,2,FALSE)=0,"",VLOOKUP(BR22,#REF!,2,FALSE) ) ) ->  | BT22: =IF(AND(TRIM(BT20)="",TRIM(BT21)=""),"",BT20+BT21) -> 96.522 | BY22: =IF(AND(TRIM(BY20)="",TRIM(BY21)=""),"",BY20+BY21) -> 87.049 | CD22: =IF(AND(TRIM(CD20)="",TRIM(CD21)=""),"",CD20+CD21) -> 19.408 | CH22: =IF(TRIM(CG22)="", "", IF(VLOOKUP(CG22,#REF!,2,FALSE)=0,"",VLOOKUP(CG22,#REF!,2,FALSE) ) ) ->  | CI22: =IF(AND(TRIM(CI20)="", TRIM(CI21)=""), "", (IF(ISNUMBER(CI20),CI20,0)+IF(ISNUMBER(CI21),CI21,0))) -> 106.457 | CM22: =IF(TRIM(CL22)="", "", IF(VLOOKUP(CL22,#REF!,2,FALSE)=0,"",VLOOKUP(CL22,#REF!,2,FALSE) ) ) ->  | CN22: =IF(AND(TRIM(CN20)="",TRIM(CN21)=""),"",CN20+CN21) -> 6.464 | CS22: =IF(AND(TRIM(CS20)="",TRIM(CS21)=""),"",CS20+CS21) -> 102.181 | CX22: =IF(AND(TRIM(CX20)="",TRIM(CX21)=""),"",CX20+CX21) -> 0 | DC22: =IF(AND(TRIM(DC20)="",TRIM(DC21)=""),"",DC20+DC21) -> 0 | DG22: =IF(TRIM(DF22)="", "", IF(VLOOKUP(DF22,#REF!,2,FALSE)=0,"",VLOOKUP(DF22,#REF!,2,FALSE) ) ) ->  | DH22: =IF(AND(TRIM(DH20)="", TRIM(DH21)=""), "", SUM(DH20,DH21) ) -> 5263.192 | DL22: =IF(TRIM(DK22)="", "", IF(VLOOKUP(DK22,#REF!,2,FALSE)=0,"",VLOOKUP(DK22,#REF!,2,FALSE) ) ) -> 
B23: W033 | C23: W033 | D23: Sludges and liquid wastes from waste treatment | E23: HAZ | F23: Hazardous | G23: 0 | L23: 0 | Q23: 0 | V23: 0 | AA23: 0 | AF23: 0 | AK23: 0 | AP23: 0 | AU23: 0 | AZ23: 443.459 | BE23: 0 | BJ23: 0 | BN23: =IF(TRIM(BM23)="", "", IF(VLOOKUP(BM23,#REF!,2,FALSE)=0,"",VLOOKUP(BM23,#REF!,2,FALSE) ) ) ->  | BO23: =IF(AND(TRIM(Q23)="",TRIM(V23)="",TRIM(AA23)="", TRIM(AF23)="", TRIM(AK23)="", TRIM(AP23)="", TRIM(AU23)="", TRIM(AZ23)="", TRIM(BE23)="", TRIM(BJ23)=""),"",Q23+V23+AA23+AF23+AK23+AP23+AU23+AZ23+BE23+BJ23) -> 443.459 | BS23: =IF(TRIM(BR23)="", "", IF(VLOOKUP(BR23,#REF!,2,FALSE)=0,"",VLOOKUP(BR23,#REF!,2,FALSE) ) ) ->  | BT23: 0 | BY23: 1.112 | CD23: 3391.772 | CH23: =IF(TRIM(CG23)="", "", IF(VLOOKUP(CG23,#REF!,2,FALSE)=0,"",VLOOKUP(CG23,#REF!,2,FALSE) ) ) ->  | CI23: =IF(AND(TRIM(BY23)="",TRIM(CD23)=""),"",BY23+CD23) -> 3392.884 | CM23: =IF(TRIM(CL23)="", "", IF(VLOOKUP(CL23,#REF!,2,FALSE)=0,"",VLOOKUP(CL23,#REF!,2,FALSE) ) ) ->  | CN23: 0 | CS23: 2.895 | CX23: 0 | DC23: 0 | DG23: =IF(TRIM(DF23)="", "", IF(VLOOKUP(DF23,#REF!,2,FALSE)=0,"",VLOOKUP(DF23,#REF!,2,FALSE) ) ) ->  | DH23: =IF(AND(TRIM(G23)="",TRIM(L23)="",TRIM(BO23)="",TRIM(BT23)="",TRIM(CI23)="",TRIM(CN23)="",TRIM(CS23)="",TRIM(CX23)="",TRIM(DC23)=""),"",SUM(G23,L23,BO23,BT23,CI23,CN23,CS23,CX23,DC23)) -> 3839.238 | DL23: =IF(TRIM(DK23)="", "", IF(VLOOKUP(DK23,#REF!,2,FALSE)=0,"",VLOOKUP(DK23,#REF!,2,FALSE) ) ) -> 
C24: W033 | E24: NHAZ | F24: Non-hazardous | G24: 0 | L24: 0 | Q24: 6.04 | V24: 0 | AA24: 0 | AF24: 0 | AK24: 0 | AP24: 8.841 | AU24: 0 | AZ24: 351.478 | BE24: 0 | BJ24: 0 | BN24: =IF(TRIM(BM24)="", "", IF(VLOOKUP(BM24,#REF!,2,FALSE)=0,"",VLOOKUP(BM24,#REF!,2,FALSE) ) ) ->  | BO24: =IF(AND(TRIM(Q24)="",TRIM(V24)="",TRIM(AA24)="", TRIM(AF24)="", TRIM(AK24)="", TRIM(AP24)="", TRIM(AU24)="", TRIM(AZ24)="", TRIM(BE24)="", TRIM(BJ24)=""),"",Q24+V24+AA24+AF24+AK24+AP24+AU24+AZ24+BE24+BJ24) -> 366.359 | BS24: =IF(TRIM(BR24)="", "", IF(VLOOKUP(BR24,#REF!,2,FALSE)=0,"",VLOOKUP(BR24,#REF!,2,FALSE) ) ) ->  | BT24: 0 | BY24: 78.284 | CD24: 13.7 | CH24: =IF(TRIM(CG24)="", "", IF(VLOOKUP(CG24,#REF!,2,FALSE)=0,"",VLOOKUP(CG24,#REF!,2,FALSE) ) ) ->  | CI24: =IF(AND(TRIM(BY24)="",TRIM(CD24)=""),"",BY24+CD24) -> 91.984 | CM24: =IF(TRIM(CL24)="", "", IF(VLOOKUP(CL24,#REF!,2,FALSE)=0,"",VLOOKUP(CL24,#REF!,2,FALSE) ) ) ->  | CN24: 0 | CS24: 14.72 | CX24: 0 | DC24: 0 | DG24: =IF(TRIM(DF24)="", "", IF(VLOOKUP(DF24,#REF!,2,FALSE)=0,"",VLOOKUP(DF24,#REF!,2,FALSE) ) ) ->  | DH24: =IF(AND(TRIM(G24)="",TRIM(L24)="",TRIM(BO24)="",TRIM(BT24)="",TRIM(CI24)="",TRIM(CN24)="",TRIM(CS24)="",TRIM(CX24)="",TRIM(DC24)=""),"",SUM(G24,L24,BO24,BT24,CI24,CN24,CS24,CX24,DC24)) -> 473.063 | DL24: =IF(TRIM(DK24)="", "", IF(VLOOKUP(DK24,#REF!,2,FALSE)=0,"",VLOOKUP(DK24,#REF!,2,FALSE) ) ) -> 
C25: W033 | E25: HAZ_NHAZ | F25: Total | G25: =IF(AND(TRIM(G23)="",TRIM(G24)=""),"",G23+G24) -> 0 | L25: =IF(AND(TRIM(L23)="",TRIM(L24)=""),"",L23+L24) -> 0 | Q25: =IF(AND(TRIM(Q23)="",TRIM(Q24)=""),"",Q23+Q24) -> 6.04 | V25: =IF(AND(TRIM(V23)="",TRIM(V24)=""),"",V23+V24) -> 0 | AA25: =IF(AND(TRIM(AA23)="",TRIM(AA24)=""),"",AA23+AA24) -> 0 | AF25: =IF(AND(TRIM(AF23)="",TRIM(AF24)=""),"",AF23+AF24) -> 0 | AK25: =IF(AND(TRIM(AK23)="",TRIM(AK24)=""),"",AK23+AK24) -> 0 | AP25: =IF(AND(TRIM(AP23)="",TRIM(AP24)=""),"",AP23+AP24) -> 8.841 | AU25: =IF(AND(TRIM(AU23)="",TRIM(AU24)=""),"",AU23+AU24) -> 0 | AZ25: =IF(AND(TRIM(AZ23)="",TRIM(AZ24)=""),"",AZ23+AZ24) -> 794.937 | BE25: =IF(AND(TRIM(BE23)="",TRIM(BE24)=""),"",BE23+BE24) -> 0 | BJ25: =IF(AND(TRIM(BJ23)="",TRIM(BJ24)=""),"",BJ23+BJ24) -> 0 | BN25: =IF(TRIM(BM25)="", "", IF(VLOOKUP(BM25,#REF!,2,FALSE)=0,"",VLOOKUP(BM25,#REF!,2,FALSE) ) ) ->  | BO25: =IF(AND(TRIM(BO23)="", TRIM(BO24)=""), "", (IF(ISNUMBER(BO23),BO23,0)+IF(ISNUMBER(BO24),BO24,0))) -> 809.818 | BS25: =IF(TRIM(BR25)="", "", IF(VLOOKUP(BR25,#REF!,2,FALSE)=0,"",VLOOKUP(BR25,#REF!,2,FALSE) ) ) ->  | BT25: =IF(AND(TRIM(BT23)="",TRIM(BT24)=""),"",BT23+BT24) -> 0 | BY25: =IF(AND(TRIM(BY23)="",TRIM(BY24)=""),"",BY23+BY24) -> 79.396 | CD25: =IF(AND(TRIM(CD23)="",TRIM(CD24)=""),"",CD23+CD24) -> 3405.472 | CH25: =IF(TRIM(CG25)="", "", IF(VLOOKUP(CG25,#REF!,2,FALSE)=0,"",VLOOKUP(CG25,#REF!,2,FALSE) ) ) ->  | CI25: =IF(AND(TRIM(CI23)="", TRIM(CI24)=""), "", (IF(ISNUMBER(CI23),CI23,0)+IF(ISNUMBER(CI24),CI24,0))) -> 3484.868 | CM25: =IF(TRIM(CL25)="", "", IF(VLOOKUP(CL25,#REF!,2,FALSE)=0,"",VLOOKUP(CL25,#REF!,2,FALSE) ) ) ->  | CN25: =IF(AND(TRIM(CN23)="",TRIM(CN24)=""),"",CN23+CN24) -> 0 | CS25: =IF(AND(TRIM(CS23)="",TRIM(CS24)=""),"",CS23+CS24) -> 17.615 | CX25: =IF(AND(TRIM(CX23)="",TRIM(CX24)=""),"",CX23+CX24) -> 0 | DC25: =IF(AND(TRIM(DC23)="",TRIM(DC24)=""),"",DC23+DC24) -> 0 | DG25: =IF(TRIM(DF25)="", "", IF(VLOOKUP(DF25,#REF!,2,FALSE)=0,"",VLOOKUP(DF25,#REF!,2,FALSE) ) ) ->  | DH25: =IF(AND(TRIM(DH23)="", TRIM(DH24)=""), "", SUM(DH23,DH24) ) -> 4312.301 | DL25: =IF(TRIM(DK25)="", "", IF(VLOOKUP(DK25,#REF!,2,FALSE)=0,"",VLOOKUP(DK25,#REF!,2,FALSE) ) ) -> 
B26: W05 | C26: W05 | D26: Health care and biological wastes | E26: HAZ | F26: Hazardous | G26: 7.465 | L26: 0 | Q26: 11.042 | V26: 0 | AA26: 0 | AF26: 0 | AK26: 0 | AP26: 28.774 | AU26: 0 | AZ26: 0 | BE26: 0.04 | BJ26: 0 | BN26: =IF(TRIM(BM26)="", "", IF(VLOOKUP(BM26,#REF!,2,FALSE)=0,"",VLOOKUP(BM26,#REF!,2,FALSE) ) ) ->  | BO26: =IF(AND(TRIM(Q26)="",TRIM(V26)="",TRIM(AA26)="", TRIM(AF26)="", TRIM(AK26)="", TRIM(AP26)="", TRIM(AU26)="", TRIM(AZ26)="", TRIM(BE26)="", TRIM(BJ26)=""),"",Q26+V26+AA26+AF26+AK26+AP26+AU26+AZ26+BE26+BJ26) -> 39.856 | BS26: =IF(TRIM(BR26)="", "", IF(VLOOKUP(BR26,#REF!,2,FALSE)=0,"",VLOOKUP(BR26,#REF!,2,FALSE) ) ) ->  | BT26: 0.283 | BY26: 0.608 | CD26: 0.006 | CH26: =IF(TRIM(CG26)="", "", IF(VLOOKUP(CG26,#REF!,2,FALSE)=0,"",VLOOKUP(CG26,#REF!,2,FALSE) ) ) ->  | CI26: =IF(AND(TRIM(BY26)="",TRIM(CD26)=""),"",BY26+CD26) -> 0.614 | CM26: =IF(TRIM(CL26)="", "", IF(VLOOKUP(CL26,#REF!,2,FALSE)=0,"",VLOOKUP(CL26,#REF!,2,FALSE) ) ) ->  | CN26: 0 | CS26: 5920.032 | CX26: 0 | DC26: 0 | DG26: =IF(TRIM(DF26)="", "", IF(VLOOKUP(DF26,#REF!,2,FALSE)=0,"",VLOOKUP(DF26,#REF!,2,FALSE) ) ) ->  | DH26: =IF(AND(TRIM(G26)="",TRIM(L26)="",TRIM(BO26)="",TRIM(BT26)="",TRIM(CI26)="",TRIM(CN26)="",TRIM(CS26)="",TRIM(CX26)="",TRIM(DC26)=""),"",SUM(G26,L26,BO26,BT26,CI26,CN26,CS26,CX26,DC26)) -> 5968.25 | DL26: =IF(TRIM(DK26)="", "", IF(VLOOKUP(DK26,#REF!,2,FALSE)=0,"",VLOOKUP(DK26,#REF!,2,FALSE) ) ) -> 
C27: W05 | E27: NHAZ | F27: Non-hazardous | G27: 0.4 | L27: 0 | Q27: 7.966 | V27: 0 | AA27: 0 | AF27: 0 | AK27: 0 | AP27: 11.911 | AU27: 0 | AZ27: 0 | BE27: 0.043 | BJ27: 0 | BN27: =IF(TRIM(BM27)="", "", IF(VLOOKUP(BM27,#REF!,2,FALSE)=0,"",VLOOKUP(BM27,#REF!,2,FALSE) ) ) ->  | BO27: =IF(AND(TRIM(Q27)="",TRIM(V27)="",TRIM(AA27)="", TRIM(AF27)="", TRIM(AK27)="", TRIM(AP27)="", TRIM(AU27)="", TRIM(AZ27)="", TRIM(BE27)="", TRIM(BJ27)=""),"",Q27+V27+AA27+AF27+AK27+AP27+AU27+AZ27+BE27+BJ27) -> 19.92 | BS27: =IF(TRIM(BR27)="", "", IF(VLOOKUP(BR27,#REF!,2,FALSE)=0,"",VLOOKUP(BR27,#REF!,2,FALSE) ) ) ->  | BT27: 0 | BY27: 0 | CD27: 0 | CH27: =IF(TRIM(CG27)="", "", IF(VLOOKUP(CG27,#REF!,2,FALSE)=0,"",VLOOKUP(CG27,#REF!,2,FALSE) ) ) ->  | CI27: =IF(AND(TRIM(BY27)="",TRIM(CD27)=""),"",BY27+CD27) -> 0 | CM27: =IF(TRIM(CL27)="", "", IF(VLOOKUP(CL27,#REF!,2,FALSE)=0,"",VLOOKUP(CL27,#REF!,2,FALSE) ) ) ->  | CN27: 0 | CS27: 877.4 | CX27: 0 | DC27: 0.029 | DG27: =IF(TRIM(DF27)="", "", IF(VLOOKUP(DF27,#REF!,2,FALSE)=0,"",VLOOKUP(DF27,#REF!,2,FALSE) ) ) ->  | DH27: =IF(AND(TRIM(G27)="",TRIM(L27)="",TRIM(BO27)="",TRIM(BT27)="",TRIM(CI27)="",TRIM(CN27)="",TRIM(CS27)="",TRIM(CX27)="",TRIM(DC27)=""),"",SUM(G27,L27,BO27,BT27,CI27,CN27,CS27,CX27,DC27)) -> 897.749 | DL27: =IF(TRIM(DK27)="", "", IF(VLOOKUP(DK27,#REF!,2,FALSE)=0,"",VLOOKUP(DK27,#REF!,2,FALSE) ) ) -> 
C28: W05 | E28: HAZ_NHAZ | F28: Total | G28: =IF(AND(TRIM(G26)="",TRIM(G27)=""),"",G26+G27) -> 7.865 | L28: =IF(AND(TRIM(L26)="",TRIM(L27)=""),"",L26+L27) -> 0 | Q28: =IF(AND(TRIM(Q26)="",TRIM(Q27)=""),"",Q26+Q27) -> 19.008 | V28: =IF(AND(TRIM(V26)="",TRIM(V27)=""),"",V26+V27) -> 0 | AA28: =IF(AND(TRIM(AA26)="",TRIM(AA27)=""),"",AA26+AA27) -> 0 | AF28: =IF(AND(TRIM(AF26)="",TRIM(AF27)=""),"",AF26+AF27) -> 0 | AK28: =IF(AND(TRIM(AK26)="",TRIM(AK27)=""),"",AK26+AK27) -> 0 | AP28: =IF(AND(TRIM(AP26)="",TRIM(AP27)=""),"",AP26+AP27) -> 40.685 | AU28: =IF(AND(TRIM(AU26)="",TRIM(AU27)=""),"",AU26+AU27) -> 0 | AZ28: =IF(AND(TRIM(AZ26)="",TRIM(AZ27)=""),"",AZ26+AZ27) -> 0 | BE28: =IF(AND(TRIM(BE26)="",TRIM(BE27)=""),"",BE26+BE27) -> 0.083 | BJ28: =IF(AND(TRIM(BJ26)="",TRIM(BJ27)=""),"",BJ26+BJ27) -> 0 | BN28: =IF(TRIM(BM28)="", "", IF(VLOOKUP(BM28,#REF!,2,FALSE)=0,"",VLOOKUP(BM28,#REF!,2,FALSE) ) ) ->  | BO28: =IF(AND(TRIM(BO26)="", TRIM(BO27)=""), "", (IF(ISNUMBER(BO26),BO26,0)+IF(ISNUMBER(BO27),BO27,0))) -> 59.776 | BS28: =IF(TRIM(BR28)="", "", IF(VLOOKUP(BR28,#REF!,2,FALSE)=0,"",VLOOKUP(BR28,#REF!,2,FALSE) ) ) ->  | BT28: =IF(AND(TRIM(BT26)="",TRIM(BT27)=""),"",BT26+BT27) -> 0.283 | BY28: =IF(AND(TRIM(BY26)="",TRIM(BY27)=""),"",BY26+BY27) -> 0.608 | CD28: =IF(AND(TRIM(CD26)="",TRIM(CD27)=""),"",CD26+CD27) -> 0.006 | CH28: =IF(TRIM(CG28)="", "", IF(VLOOKUP(CG28,#REF!,2,FALSE)=0,"",VLOOKUP(CG28,#REF!,2,FALSE) ) ) ->  | CI28: =IF(AND(TRIM(CI26)="", TRIM(CI27)=""), "", (IF(ISNUMBER(CI26),CI26,0)+IF(ISNUMBER(CI27),CI27,0))) -> 0.614 | CM28: =IF(TRIM(CL28)="", "", IF(VLOOKUP(CL28,#REF!,2,FALSE)=0,"",VLOOKUP(CL28,#REF!,2,FALSE) ) ) ->  | CN28: =IF(AND(TRIM(CN26)="",TRIM(CN27)=""),"",CN26+CN27) -> 0 | CS28: =IF(AND(TRIM(CS26)="",TRIM(CS27)=""),"",CS26+CS27) -> 6797.432 | CX28: =IF(AND(TRIM(CX26)="",TRIM(CX27)=""),"",CX26+CX27) -> 0 | DC28: =IF(AND(TRIM(DC26)="",TRIM(DC27)=""),"",DC26+DC27) -> 0.029 | DG28: =IF(TRIM(DF28)="", "", IF(VLOOKUP(DF28,#REF!,2,FALSE)=0,"",VLOOKUP(DF28,#REF!,2,FALSE) ) ) ->  | DH28: =IF(AND(TRIM(DH26)="", TRIM(DH27)=""), "", SUM(DH26,DH27) ) -> 6865.999 | DL28: =IF(TRIM(DK28)="", "", IF(VLOOKUP(DK28,#REF!,2,FALSE)=0,"",VLOOKUP(DK28,#REF!,2,FALSE) ) ) -> 
B29: W061 | D29: Metallic wastes, ferrous | F29: Not applicable | G29: 0 | L29: 0 | Q29: 0 | V29: 0 | AA29: 0 | AF29: 0 | AK29: 0 | AP29: 0 | AU29: 0 | AZ29: 0 | BE29: 0 | BJ29: 0 | BT29: 0 | BY29: 0 | CD29: 0 | CN29: 0 | CS29: 0 | CX29: 0 | DC29: 0
C30: W061 | E30: NHAZ | F30: Non-hazardous | G30: 25.56 | L30: 31.79 | Q30: 45.968 | V30: 9.19 | AA30: 193.903 | AF30: 5.651 | AK30: 0 | AP30: 790.898 | AU30: 517.862 | AZ30: 37447.5 | BE30: 26536.958 | BJ30: 7496.385 | BN30: =IF(TRIM(BM30)="", "", IF(VLOOKUP(BM30,#REF!,2,FALSE)=0,"",VLOOKUP(BM30,#REF!,2,FALSE) ) ) ->  | BO30: =IF(AND(TRIM(Q30)="",TRIM(V30)="",TRIM(AA30)="", TRIM(AF30)="", TRIM(AK30)="", TRIM(AP30)="", TRIM(AU30)="", TRIM(AZ30)="", TRIM(BE30)="", TRIM(BJ30)=""),"",Q30+V30+AA30+AF30+AK30+AP30+AU30+AZ30+BE30+BJ30) -> 73044.315 | BS30: =IF(TRIM(BR30)="", "", IF(VLOOKUP(BR30,#REF!,2,FALSE)=0,"",VLOOKUP(BR30,#REF!,2,FALSE) ) ) ->  | BT30: 0.886 | BY30: 0.947 | CD30: 435366.66 | CH30: =IF(TRIM(CG30)="", "", IF(VLOOKUP(CG30,#REF!,2,FALSE)=0,"",VLOOKUP(CG30,#REF!,2,FALSE) ) ) ->  | CI30: =IF(AND(TRIM(BY30)="",TRIM(CD30)=""),"",BY30+CD30) -> 435367.607 | CM30: =IF(TRIM(CL30)="", "", IF(VLOOKUP(CL30,#REF!,2,FALSE)=0,"",VLOOKUP(CL30,#REF!,2,FALSE) ) ) ->  | CN30: 200226.3 | CS30: 6198.804 | CX30: 1913.74 | DC30: 1091.002 | DG30: =IF(TRIM(DF30)="", "", IF(VLOOKUP(DF30,#REF!,2,FALSE)=0,"",VLOOKUP(DF30,#REF!,2,FALSE) ) ) ->  | DH30: =IF(AND(TRIM(G30)="",TRIM(L30)="",TRIM(BO30)="",TRIM(BT30)="",TRIM(CI30)="",TRIM(CN30)="",TRIM(CS30)="",TRIM(CX30)="",TRIM(DC30)=""),"",SUM(G30,L30,BO30,BT30,CI30,CN30,CS30,CX30,DC30)) -> 717900.004 | DL30: =IF(TRIM(DK30)="", "", IF(VLOOKUP(DK30,#REF!,2,FALSE)=0,"",VLOOKUP(DK30,#REF!,2,FALSE) ) ) -> 
C31: W061 | E31: HAZ_NHAZ | F31: Total | G31: =IF(AND(TRIM(G29)="",TRIM(G30)=""),"",G29+G30) -> 25.56 | L31: =IF(AND(TRIM(L29)="",TRIM(L30)=""),"",L29+L30) -> 31.79 | Q31: =IF(AND(TRIM(Q29)="",TRIM(Q30)=""),"",Q29+Q30) -> 45.968 | V31: =IF(AND(TRIM(V29)="",TRIM(V30)=""),"",V29+V30) -> 9.19 | AA31: =IF(AND(TRIM(AA29)="",TRIM(AA30)=""),"",AA29+AA30) -> 193.903 | AF31: =IF(AND(TRIM(AF29)="",TRIM(AF30)=""),"",AF29+AF30) -> 5.651 | AK31: =IF(AND(TRIM(AK29)="",TRIM(AK30)=""),"",AK29+AK30) -> 0 | AP31: =IF(AND(TRIM(AP29)="",TRIM(AP30)=""),"",AP29+AP30) -> 790.898 | AU31: =IF(AND(TRIM(AU29)="",TRIM(AU30)=""),"",AU29+AU30) -> 517.862 | AZ31: =IF(AND(TRIM(AZ29)="",TRIM(AZ30)=""),"",AZ29+AZ30) -> 37447.5 | BE31: =IF(AND(TRIM(BE29)="",TRIM(BE30)=""),"",BE29+BE30) -> 26536.958 | BJ31: =IF(AND(TRIM(BJ29)="",TRIM(BJ30)=""),"",BJ29+BJ30) -> 7496.385 | BN31: =IF(TRIM(BM31)="", "", IF(VLOOKUP(BM31,#REF!,2,FALSE)=0,"",VLOOKUP(BM31,#REF!,2,FALSE) ) ) ->  | BO31: =IF(AND(TRIM(BO29)="", TRIM(BO30)=""), "", (IF(ISNUMBER(BO29),BO29,0)+IF(ISNUMBER(BO30),BO30,0))) -> 73044.315 | BS31: =IF(TRIM(BR31)="", "", IF(VLOOKUP(BR31,#REF!,2,FALSE)=0,"",VLOOKUP(BR31,#REF!,2,FALSE) ) ) ->  | BT31: =IF(AND(TRIM(BT29)="",TRIM(BT30)=""),"",BT29+BT30) -> 0.886 | BY31: =IF(AND(TRIM(BY29)="",TRIM(BY30)=""),"",BY29+BY30) -> 0.947 | CD31: =IF(AND(TRIM(CD29)="",TRIM(CD30)=""),"",CD29+CD30) -> 435366.66 | CH31: =IF(TRIM(CG31)="", "", IF(VLOOKUP(CG31,#REF!,2,FALSE)=0,"",VLOOKUP(CG31,#REF!,2,FALSE) ) ) ->  | CI31: =IF(AND(TRIM(CI29)="", TRIM(CI30)=""), "", (IF(ISNUMBER(CI29),CI29,0)+IF(ISNUMBER(CI30),CI30,0))) -> 435367.607 | CM31: =IF(TRIM(CL31)="", "", IF(VLOOKUP(CL31,#REF!,2,FALSE)=0,"",VLOOKUP(CL31,#REF!,2,FALSE) ) ) ->  | CN31: =IF(AND(TRIM(CN29)="",TRIM(CN30)=""),"",CN29+CN30) -> 200226.3 | CS31: =IF(AND(TRIM(CS29)="",TRIM(CS30)=""),"",CS29+CS30) -> 6198.804 | CX31: =IF(AND(TRIM(CX29)="",TRIM(CX30)=""),"",CX29+CX30) -> 1913.74 | DC31: =IF(AND(TRIM(DC29)="",TRIM(DC30)=""),"",DC29+DC30) -> 1091.002 | DG31: =IF(TRIM(DF31)="", "", IF(VLOOKUP(DF31,#REF!,2,FALSE)=0,"",VLOOKUP(DF31,#REF!,2,FALSE) ) ) ->  | DH31: =IF(AND(TRIM(DH29)="", TRIM(DH30)=""), "", SUM(DH29,DH30) ) -> 717900.004 | DL31: =IF(TRIM(DK31)="", "", IF(VLOOKUP(DK31,#REF!,2,FALSE)=0,"",VLOOKUP(DK31,#REF!,2,FALSE) ) ) -> 
B32: W062 | D32: Metallic wastes, non-ferrous | F32: Not applicable | G32: 0 | L32: 0 | Q32: 0 | V32: 0 | AA32: 0 | AF32: 0 | AK32: 0 | AP32: 0 | AU32: 0 | AZ32: 0 | BE32: 0 | BJ32: 0 | BT32: 0 | BY32: 0 | CD32: 0 | CN32: 0 | CS32: 0 | CX32: 0 | DC32: 0
C33: W062 | E33: NHAZ | F33: Non-hazardous | G33: 0 | L33: 0 | Q33: 2.26 | V33: 0 | AA33: 0.032 | AF33: 269.024 | AK33: 0 | AP33: 43.824 | AU33: 9.026 | AZ33: 18360.943 | BE33: 838.864 | BJ33: 40.549 | BN33: =IF(TRIM(BM33)="", "", IF(VLOOKUP(BM33,#REF!,2,FALSE)=0,"",VLOOKUP(BM33,#REF!,2,FALSE) ) ) ->  | BO33: =IF(AND(TRIM(Q33)="",TRIM(V33)="",TRIM(AA33)="", TRIM(AF33)="", TRIM(AK33)="", TRIM(AP33)="", TRIM(AU33)="", TRIM(AZ33)="", TRIM(BE33)="", TRIM(BJ33)=""),"",Q33+V33+AA33+AF33+AK33+AP33+AU33+AZ33+BE33+BJ33) -> 19564.522 | BS33: =IF(TRIM(BR33)="", "", IF(VLOOKUP(BR33,#REF!,2,FALSE)=0,"",VLOOKUP(BR33,#REF!,2,FALSE) ) ) ->  | BT33: 0 | BY33: 0 | CD33: 11383.094 | CH33: =IF(TRIM(CG33)="", "", IF(VLOOKUP(CG33,#REF!,2,FALSE)=0,"",VLOOKUP(CG33,#REF!,2,FALSE) ) ) ->  | CI33: =IF(AND(TRIM(BY33)="",TRIM(CD33)=""),"",BY33+CD33) -> 11383.094 | CM33: =IF(TRIM(CL33)="", "", IF(VLOOKUP(CL33,#REF!,2,FALSE)=0,"",VLOOKUP(CL33,#REF!,2,FALSE) ) ) ->  | CN33: 18056.018 | CS33: 81.693 | CX33: 1371.755 | DC33: 85.837 | DG33: =IF(TRIM(DF33)="", "", IF(VLOOKUP(DF33,#REF!,2,FALSE)=0,"",VLOOKUP(DF33,#REF!,2,FALSE) ) ) ->  | DH33: =IF(AND(TRIM(G33)="",TRIM(L33)="",TRIM(BO33)="",TRIM(BT33)="",TRIM(CI33)="",TRIM(CN33)="",TRIM(CS33)="",TRIM(CX33)="",TRIM(DC33)=""),"",SUM(G33,L33,BO33,BT33,CI33,CN33,CS33,CX33,DC33)) -> 50542.919 | DL33: =IF(TRIM(DK33)="", "", IF(VLOOKUP(DK33,#REF!,2,FALSE)=0,"",VLOOKUP(DK33,#REF!,2,FALSE) ) ) -> 
C34: W062 | E34: HAZ_NHAZ | F34: Total | G34: =IF(AND(TRIM(G32)="",TRIM(G33)=""),"",G32+G33) -> 0 | L34: =IF(AND(TRIM(L32)="",TRIM(L33)=""),"",L32+L33) -> 0 | Q34: =IF(AND(TRIM(Q32)="",TRIM(Q33)=""),"",Q32+Q33) -> 2.26 | V34: =IF(AND(TRIM(V32)="",TRIM(V33)=""),"",V32+V33) -> 0 | AA34: =IF(AND(TRIM(AA32)="",TRIM(AA33)=""),"",AA32+AA33) -> 0.032 | AF34: =IF(AND(TRIM(AF32)="",TRIM(AF33)=""),"",AF32+AF33) -> 269.024 | AK34: =IF(AND(TRIM(AK32)="",TRIM(AK33)=""),"",AK32+AK33) -> 0 | AP34: =IF(AND(TRIM(AP32)="",TRIM(AP33)=""),"",AP32+AP33) -> 43.824 | AU34: =IF(AND(TRIM(AU32)="",TRIM(AU33)=""),"",AU32+AU33) -> 9.026 | AZ34: =IF(AND(TRIM(AZ32)="",TRIM(AZ33)=""),"",AZ32+AZ33) -> 18360.943 | BE34: =IF(AND(TRIM(BE32)="",TRIM(BE33)=""),"",BE32+BE33) -> 838.864 | BJ34: =IF(AND(TRIM(BJ32)="",TRIM(BJ33)=""),"",BJ32+BJ33) -> 40.549 | BN34: =IF(TRIM(BM34)="", "", IF(VLOOKUP(BM34,#REF!,2,FALSE)=0,"",VLOOKUP(BM34,#REF!,2,FALSE) ) ) ->  | BO34: =IF(AND(TRIM(BO32)="", TRIM(BO33)=""), "", (IF(ISNUMBER(BO32),BO32,0)+IF(ISNUMBER(BO33),BO33,0))) -> 19564.522 | BS34: =IF(TRIM(BR34)="", "", IF(VLOOKUP(BR34,#REF!,2,FALSE)=0,"",VLOOKUP(BR34,#REF!,2,FALSE) ) ) ->  | BT34: =IF(AND(TRIM(BT32)="",TRIM(BT33)=""),"",BT32+BT33) -> 0 | BY34: =IF(AND(TRIM(BY32)="",TRIM(BY33)=""),"",BY32+BY33) -> 0 | CD34: =IF(AND(TRIM(CD32)="",TRIM(CD33)=""),"",CD32+CD33) -> 11383.094 | CH34: =IF(TRIM(CG34)="", "", IF(VLOOKUP(CG34,#REF!,2,FALSE)=0,"",VLOOKUP(CG34,#REF!,2,FALSE) ) ) ->  | CI34: =IF(AND(TRIM(CI32)="", TRIM(CI33)=""), "", (IF(ISNUMBER(CI32),CI32,0)+IF(ISNUMBER(CI33),CI33,0))) -> 11383.094 | CM34: =IF(TRIM(CL34)="", "", IF(VLOOKUP(CL34,#REF!,2,FALSE)=0,"",VLOOKUP(CL34,#REF!,2,FALSE) ) ) ->  | CN34: =IF(AND(TRIM(CN32)="",TRIM(CN33)=""),"",CN32+CN33) -> 18056.018 | CS34: =IF(AND(TRIM(CS32)="",TRIM(CS33)=""),"",CS32+CS33) -> 81.693 | CX34: =IF(AND(TRIM(CX32)="",TRIM(CX33)=""),"",CX32+CX33) -> 1371.755 | DC34: =IF(AND(TRIM(DC32)="",TRIM(DC33)=""),"",DC32+DC33) -> 85.837 | DG34: =IF(TRIM(DF34)="", "", IF(VLOOKUP(DF34,#REF!,2,FALSE)=0,"",VLOOKUP(DF34,#REF!,2,FALSE) ) ) ->  | DH34: =IF(AND(TRIM(DH32)="", TRIM(DH33)=""), "", SUM(DH32,DH33) ) -> 50542.919 | DL34: =IF(TRIM(DK34)="", "", IF(VLOOKUP(DK34,#REF!,2,FALSE)=0,"",VLOOKUP(DK34,#REF!,2,FALSE) ) ) -> 
B35: W063 | D35: Metal wastes, mixed ferrous and non-ferrous | F35: Not applicable | G35: 0 | L35: 0 | Q35: 0 | V35: 0 | AA35: 0 | AF35: 0 | AK35: 0 | AP35: 0 | AU35: 0 | AZ35: 0 | BE35: 0 | BJ35: 0 | BT35: 0 | BY35: 0 | CD35: 0 | CN35: 0 | CS35: 0 | CX35: 0 | DC35: 0
C36: W063 | E36: NHAZ | F36: Non-hazardous | G36: 13.629 | L36: 3265.238 | Q36: 405.042 | V36: 60.106 | AA36: 5.76 | AF36: 5.824 | AK36: 131.14 | AP36: 141.911 | AU36: 106.14 | AZ36: 52.27 | BE36: 46.315 | BJ36: 2.144 | BN36: =IF(TRIM(BM36)="", "", IF(VLOOKUP(BM36,#REF!,2,FALSE)=0,"",VLOOKUP(BM36,#REF!,2,FALSE) ) ) ->  | BO36: =IF(AND(TRIM(Q36)="",TRIM(V36)="",TRIM(AA36)="", TRIM(AF36)="", TRIM(AK36)="", TRIM(AP36)="", TRIM(AU36)="", TRIM(AZ36)="", TRIM(BE36)="", TRIM(BJ36)=""),"",Q36+V36+AA36+AF36+AK36+AP36+AU36+AZ36+BE36+BJ36) -> 956.652 | BS36: =IF(TRIM(BR36)="", "", IF(VLOOKUP(BR36,#REF!,2,FALSE)=0,"",VLOOKUP(BR36,#REF!,2,FALSE) ) ) ->  | BT36: 0.08 | BY36: 84.34 | CD36: 2650.671 | CH36: =IF(TRIM(CG36)="", "", IF(VLOOKUP(CG36,#REF!,2,FALSE)=0,"",VLOOKUP(CG36,#REF!,2,FALSE) ) ) ->  | CI36: =IF(AND(TRIM(BY36)="",TRIM(CD36)=""),"",BY36+CD36) -> 2735.011 | CM36: =IF(TRIM(CL36)="", "", IF(VLOOKUP(CL36,#REF!,2,FALSE)=0,"",VLOOKUP(CL36,#REF!,2,FALSE) ) ) ->  | CN36: 3488.255 | CS36: 9299.719 | CX36: 40813.13 | DC36: 29322.613 | DG36: =IF(TRIM(DF36)="", "", IF(VLOOKUP(DF36,#REF!,2,FALSE)=0,"",VLOOKUP(DF36,#REF!,2,FALSE) ) ) ->  | DH36: =IF(AND(TRIM(G36)="",TRIM(L36)="",TRIM(BO36)="",TRIM(BT36)="",TRIM(CI36)="",TRIM(CN36)="",TRIM(CS36)="",TRIM(CX36)="",TRIM(DC36)=""),"",SUM(G36,L36,BO36,BT36,CI36,CN36,CS36,CX36,DC36)) -> 89894.327 | DL36: =IF(TRIM(DK36)="", "", IF(VLOOKUP(DK36,#REF!,2,FALSE)=0,"",VLOOKUP(DK36,#REF!,2,FALSE) ) ) -> 
C37: W063 | E37: HAZ_NHAZ | F37: Total | G37: =IF(AND(TRIM(G35)="",TRIM(G36)=""),"",G35+G36) -> 13.629 | L37: =IF(AND(TRIM(L35)="",TRIM(L36)=""),"",L35+L36) -> 3265.238 | Q37: =IF(AND(TRIM(Q35)="",TRIM(Q36)=""),"",Q35+Q36) -> 405.042 | V37: =IF(AND(TRIM(V35)="",TRIM(V36)=""),"",V35+V36) -> 60.106 | AA37: =IF(AND(TRIM(AA35)="",TRIM(AA36)=""),"",AA35+AA36) -> 5.76 | AF37: =IF(AND(TRIM(AF35)="",TRIM(AF36)=""),"",AF35+AF36) -> 5.824 | AK37: =IF(AND(TRIM(AK35)="",TRIM(AK36)=""),"",AK35+AK36) -> 131.14 | AP37: =IF(AND(TRIM(AP35)="",TRIM(AP36)=""),"",AP35+AP36) -> 141.911 | AU37: =IF(AND(TRIM(AU35)="",TRIM(AU36)=""),"",AU35+AU36) -> 106.14 | AZ37: =IF(AND(TRIM(AZ35)="",TRIM(AZ36)=""),"",AZ35+AZ36) -> 52.27 | BE37: =IF(AND(TRIM(BE35)="",TRIM(BE36)=""),"",BE35+BE36) -> 46.315 | BJ37: =IF(AND(TRIM(BJ35)="",TRIM(BJ36)=""),"",BJ35+BJ36) -> 2.144 | BN37: =IF(TRIM(BM37)="", "", IF(VLOOKUP(BM37,#REF!,2,FALSE)=0,"",VLOOKUP(BM37,#REF!,2,FALSE) ) ) ->  | BO37: =IF(AND(TRIM(BO35)="", TRIM(BO36)=""), "", (IF(ISNUMBER(BO35),BO35,0)+IF(ISNUMBER(BO36),BO36,0))) -> 956.652 | BS37: =IF(TRIM(BR37)="", "", IF(VLOOKUP(BR37,#REF!,2,FALSE)=0,"",VLOOKUP(BR37,#REF!,2,FALSE) ) ) ->  | BT37: =IF(AND(TRIM(BT35)="",TRIM(BT36)=""),"",BT35+BT36) -> 0.08 | BY37: =IF(AND(TRIM(BY35)="",TRIM(BY36)=""),"",BY35+BY36) -> 84.34 | CD37: =IF(AND(TRIM(CD35)="",TRIM(CD36)=""),"",CD35+CD36) -> 2650.671 | CH37: =IF(TRIM(CG37)="", "", IF(VLOOKUP(CG37,#REF!,2,FALSE)=0,"",VLOOKUP(CG37,#REF!,2,FALSE) ) ) ->  | CI37: =IF(AND(TRIM(CI35)="", TRIM(CI36)=""), "", (IF(ISNUMBER(CI35),CI35,0)+IF(ISNUMBER(CI36),CI36,0))) -> 2735.011 | CM37: =IF(TRIM(CL37)="", "", IF(VLOOKUP(CL37,#REF!,2,FALSE)=0,"",VLOOKUP(CL37,#REF!,2,FALSE) ) ) ->  | CN37: =IF(AND(TRIM(CN35)="",TRIM(CN36)=""),"",CN35+CN36) -> 3488.255 | CS37: =IF(AND(TRIM(CS35)="",TRIM(CS36)=""),"",CS35+CS36) -> 9299.719 | CX37: =IF(AND(TRIM(CX35)="",TRIM(CX36)=""),"",CX35+CX36) -> 40813.13 | DC37: =IF(AND(TRIM(DC35)="",TRIM(DC36)=""),"",DC35+DC36) -> 29322.613 | DG37: =IF(TRIM(DF37)="", "", IF(VLOOKUP(DF37,#REF!,2,FALSE)=0,"",VLOOKUP(DF37,#REF!,2,FALSE) ) ) ->  | DH37: =IF(AND(TRIM(DH35)="", TRIM(DH36)=""), "", SUM(DH35,DH36) ) -> 89894.327 | DL37: =IF(TRIM(DK37)="", "", IF(VLOOKUP(DK37,#REF!,2,FALSE)=0,"",VLOOKUP(DK37,#REF!,2,FALSE) ) ) -> 
B38: W071 | C38: W071 | D38: Glass wastes | E38: HAZ | F38: Hazardous | G38: 0 | L38: 0 | Q38: 0 | V38: 0 | AA38: 0 | AF38: 0 | AK38: 0 | AP38: 0 | AU38: 0 | AZ38: 0 | BE38: 0 | BJ38: 0 | BN38: =IF(TRIM(BM38)="", "", IF(VLOOKUP(BM38,#REF!,2,FALSE)=0,"",VLOOKUP(BM38,#REF!,2,FALSE) ) ) ->  | BO38: =IF(AND(TRIM(Q38)="",TRIM(V38)="",TRIM(AA38)="", TRIM(AF38)="", TRIM(AK38)="", TRIM(AP38)="", TRIM(AU38)="", TRIM(AZ38)="", TRIM(BE38)="", TRIM(BJ38)=""),"",Q38+V38+AA38+AF38+AK38+AP38+AU38+AZ38+BE38+BJ38) -> 0 | BS38: =IF(TRIM(BR38)="", "", IF(VLOOKUP(BR38,#REF!,2,FALSE)=0,"",VLOOKUP(BR38,#REF!,2,FALSE) ) ) ->  | BT38: 0 | BY38: 0 | CD38: 0 | CH38: =IF(TRIM(CG38)="", "", IF(VLOOKUP(CG38,#REF!,2,FALSE)=0,"",VLOOKUP(CG38,#REF!,2,FALSE) ) ) ->  | CI38: =IF(AND(TRIM(BY38)="",TRIM(CD38)=""),"",BY38+CD38) -> 0 | CM38: =IF(TRIM(CL38)="", "", IF(VLOOKUP(CL38,#REF!,2,FALSE)=0,"",VLOOKUP(CL38,#REF!,2,FALSE) ) ) ->  | CN38: 0 | CS38: 0 | CX38: 0 | DC38: 0 | DG38: =IF(TRIM(DF38)="", "", IF(VLOOKUP(DF38,#REF!,2,FALSE)=0,"",VLOOKUP(DF38,#REF!,2,FALSE) ) ) ->  | DH38: =IF(AND(TRIM(G38)="",TRIM(L38)="",TRIM(BO38)="",TRIM(BT38)="",TRIM(CI38)="",TRIM(CN38)="",TRIM(CS38)="",TRIM(CX38)="",TRIM(DC38)=""),"",SUM(G38,L38,BO38,BT38,CI38,CN38,CS38,CX38,DC38)) -> 0 | DL38: =IF(TRIM(DK38)="", "", IF(VLOOKUP(DK38,#REF!,2,FALSE)=0,"",VLOOKUP(DK38,#REF!,2,FALSE) ) ) -> 
C39: W071 | E39: NHAZ | F39: Non-hazardous | G39: 0.07 | L39: 0 | Q39: 3765.08 | V39: 0.49 | AA39: 4.8 | AF39: 0.66 | AK39: 0 | AP39: 213.555 | AU39: 20362.451 | AZ39: 8.05 | BE39: 18.146 | BJ39: 12.701 | BN39: =IF(TRIM(BM39)="", "", IF(VLOOKUP(BM39,#REF!,2,FALSE)=0,"",VLOOKUP(BM39,#REF!,2,FALSE) ) ) ->  | BO39: =IF(AND(TRIM(Q39)="",TRIM(V39)="",TRIM(AA39)="", TRIM(AF39)="", TRIM(AK39)="", TRIM(AP39)="", TRIM(AU39)="", TRIM(AZ39)="", TRIM(BE39)="", TRIM(BJ39)=""),"",Q39+V39+AA39+AF39+AK39+AP39+AU39+AZ39+BE39+BJ39) -> 24385.933 | BS39: =IF(TRIM(BR39)="", "", IF(VLOOKUP(BR39,#REF!,2,FALSE)=0,"",VLOOKUP(BR39,#REF!,2,FALSE) ) ) ->  | BT39: 0.41 | BY39: 6.747 | CD39: 8540.497 | CH39: =IF(TRIM(CG39)="", "", IF(VLOOKUP(CG39,#REF!,2,FALSE)=0,"",VLOOKUP(CG39,#REF!,2,FALSE) ) ) ->  | CI39: =IF(AND(TRIM(BY39)="",TRIM(CD39)=""),"",BY39+CD39) -> 8547.244 | CM39: =IF(TRIM(CL39)="", "", IF(VLOOKUP(CL39,#REF!,2,FALSE)=0,"",VLOOKUP(CL39,#REF!,2,FALSE) ) ) ->  | CN39: 6379 | CS39: 32222.98 | CX39: 0 | DC39: 11515.464 | DG39: =IF(TRIM(DF39)="", "", IF(VLOOKUP(DF39,#REF!,2,FALSE)=0,"",VLOOKUP(DF39,#REF!,2,FALSE) ) ) ->  | DH39: =IF(AND(TRIM(G39)="",TRIM(L39)="",TRIM(BO39)="",TRIM(BT39)="",TRIM(CI39)="",TRIM(CN39)="",TRIM(CS39)="",TRIM(CX39)="",TRIM(DC39)=""),"",SUM(G39,L39,BO39,BT39,CI39,CN39,CS39,CX39,DC39)) -> 83051.101 | DL39: =IF(TRIM(DK39)="", "", IF(VLOOKUP(DK39,#REF!,2,FALSE)=0,"",VLOOKUP(DK39,#REF!,2,FALSE) ) ) -> 
C40: W071 | E40: HAZ_NHAZ | F40: Total | G40: =IF(AND(TRIM(G38)="",TRIM(G39)=""),"",G38+G39) -> 0.07 | L40: =IF(AND(TRIM(L38)="",TRIM(L39)=""),"",L38+L39) -> 0 | Q40: =IF(AND(TRIM(Q38)="",TRIM(Q39)=""),"",Q38+Q39) -> 3765.08 | V40: =IF(AND(TRIM(V38)="",TRIM(V39)=""),"",V38+V39) -> 0.49 | AA40: =IF(AND(TRIM(AA38)="",TRIM(AA39)=""),"",AA38+AA39) -> 4.8 | AF40: =IF(AND(TRIM(AF38)="",TRIM(AF39)=""),"",AF38+AF39) -> 0.66 | AK40: =IF(AND(TRIM(AK38)="",TRIM(AK39)=""),"",AK38+AK39) -> 0 | AP40: =IF(AND(TRIM(AP38)="",TRIM(AP39)=""),"",AP38+AP39) -> 213.555 | AU40: =IF(AND(TRIM(AU38)="",TRIM(AU39)=""),"",AU38+AU39) -> 20362.451 | AZ40: =IF(AND(TRIM(AZ38)="",TRIM(AZ39)=""),"",AZ38+AZ39) -> 8.05 | BE40: =IF(AND(TRIM(BE38)="",TRIM(BE39)=""),"",BE38+BE39) -> 18.146 | BJ40: =IF(AND(TRIM(BJ38)="",TRIM(BJ39)=""),"",BJ38+BJ39) -> 12.701 | BN40: =IF(TRIM(BM40)="", "", IF(VLOOKUP(BM40,#REF!,2,FALSE)=0,"",VLOOKUP(BM40,#REF!,2,FALSE) ) ) ->  | BO40: =IF(AND(TRIM(BO38)="", TRIM(BO39)=""), "", (IF(ISNUMBER(BO38),BO38,0)+IF(ISNUMBER(BO39),BO39,0))) -> 24385.933 | BS40: =IF(TRIM(BR40)="", "", IF(VLOOKUP(BR40,#REF!,2,FALSE)=0,"",VLOOKUP(BR40,#REF!,2,FALSE) ) ) ->  | BT40: =IF(AND(TRIM(BT38)="",TRIM(BT39)=""),"",BT38+BT39) -> 0.41 | BY40: =IF(AND(TRIM(BY38)="",TRIM(BY39)=""),"",BY38+BY39) -> 6.747 | CD40: =IF(AND(TRIM(CD38)="",TRIM(CD39)=""),"",CD38+CD39) -> 8540.497 | CH40: =IF(TRIM(CG40)="", "", IF(VLOOKUP(CG40,#REF!,2,FALSE)=0,"",VLOOKUP(CG40,#REF!,2,FALSE) ) ) ->  | CI40: =IF(AND(TRIM(CI38)="", TRIM(CI39)=""), "", (IF(ISNUMBER(CI38),CI38,0)+IF(ISNUMBER(CI39),CI39,0))) -> 8547.244 | CM40: =IF(TRIM(CL40)="", "", IF(VLOOKUP(CL40,#REF!,2,FALSE)=0,"",VLOOKUP(CL40,#REF!,2,FALSE) ) ) ->  | CN40: =IF(AND(TRIM(CN38)="",TRIM(CN39)=""),"",CN38+CN39) -> 6379 | CS40: =IF(AND(TRIM(CS38)="",TRIM(CS39)=""),"",CS38+CS39) -> 32222.98 | CX40: =IF(AND(TRIM(CX38)="",TRIM(CX39)=""),"",CX38+CX39) -> 0 | DC40: =IF(AND(TRIM(DC38)="",TRIM(DC39)=""),"",DC38+DC39) -> 11515.464 | DG40: =IF(TRIM(DF40)="", "", IF(VLOOKUP(DF40,#REF!,2,FALSE)=0,"",VLOOKUP(DF40,#REF!,2,FALSE) ) ) ->  | DH40: =IF(AND(TRIM(DH38)="", TRIM(DH39)=""), "", SUM(DH38,DH39) ) -> 83051.101 | DL40: =IF(TRIM(DK40)="", "", IF(VLOOKUP(DK40,#REF!,2,FALSE)=0,"",VLOOKUP(DK40,#REF!,2,FALSE) ) ) -> 
B41: W072 | D41: Paper and cardboard wastes | F41: Not applicable | G41: 0 | L41: 0 | Q41: 0 | V41: 0 | AA41: 0 | AF41: 0 | AK41: 0 | AP41: 0 | AU41: 0 | AZ41: 0 | BE41: 0 | BJ41: 0 | BT41: 0 | BY41: 0 | CD41: 0 | CN41: 0 | CS41: 0 | CX41: 0 | DC41: 0
C42: W072 | E42: NHAZ | F42: Non-hazardous | G42: 750.248 | L42: 30.26 | Q42: 9301.018 | V42: 1418.324 | AA42: 138.663 | AF42: 44021.378 | AK42: 158.08 | AP42: 2731.303 | AU42: 379.74 | AZ42: 895.6 | BE42: 1835.019 | BJ42: 582.149 | BN42: =IF(TRIM(BM42)="", "", IF(VLOOKUP(BM42,#REF!,2,FALSE)=0,"",VLOOKUP(BM42,#REF!,2,FALSE) ) ) ->  | BO42: =IF(AND(TRIM(Q42)="",TRIM(V42)="",TRIM(AA42)="", TRIM(AF42)="", TRIM(AK42)="", TRIM(AP42)="", TRIM(AU42)="", TRIM(AZ42)="", TRIM(BE42)="", TRIM(BJ42)=""),"",Q42+V42+AA42+AF42+AK42+AP42+AU42+AZ42+BE42+BJ42) -> 61461.274 | BS42: =IF(TRIM(BR42)="", "", IF(VLOOKUP(BR42,#REF!,2,FALSE)=0,"",VLOOKUP(BR42,#REF!,2,FALSE) ) ) ->  | BT42: 96.83 | BY42: 35.807 | CD42: 99016.499 | CH42: =IF(TRIM(CG42)="", "", IF(VLOOKUP(CG42,#REF!,2,FALSE)=0,"",VLOOKUP(CG42,#REF!,2,FALSE) ) ) ->  | CI42: =IF(AND(TRIM(BY42)="",TRIM(CD42)=""),"",BY42+CD42) -> 99052.306 | CM42: =IF(TRIM(CL42)="", "", IF(VLOOKUP(CL42,#REF!,2,FALSE)=0,"",VLOOKUP(CL42,#REF!,2,FALSE) ) ) ->  | CN42: 183.934 | CS42: 130941.295 | CX42: 2764.079 | DC42: 68796.138 | DG42: =IF(TRIM(DF42)="", "", IF(VLOOKUP(DF42,#REF!,2,FALSE)=0,"",VLOOKUP(DF42,#REF!,2,FALSE) ) ) ->  | DH42: =IF(AND(TRIM(G42)="",TRIM(L42)="",TRIM(BO42)="",TRIM(BT42)="",TRIM(CI42)="",TRIM(CN42)="",TRIM(CS42)="",TRIM(CX42)="",TRIM(DC42)=""),"",SUM(G42,L42,BO42,BT42,CI42,CN42,CS42,CX42,DC42)) -> 364076.364 | DL42: =IF(TRIM(DK42)="", "", IF(VLOOKUP(DK42,#REF!,2,FALSE)=0,"",VLOOKUP(DK42,#REF!,2,FALSE) ) ) -> 
C43: W072 | E43: HAZ_NHAZ | F43: Total | G43: =IF(AND(TRIM(G41)="",TRIM(G42)=""),"",G41+G42) -> 750.248 | L43: =IF(AND(TRIM(L41)="",TRIM(L42)=""),"",L41+L42) -> 30.26 | Q43: =IF(AND(TRIM(Q41)="",TRIM(Q42)=""),"",Q41+Q42) -> 9301.018 | V43: =IF(AND(TRIM(V41)="",TRIM(V42)=""),"",V41+V42) -> 1418.324 | AA43: =IF(AND(TRIM(AA41)="",TRIM(AA42)=""),"",AA41+AA42) -> 138.663 | AF43: =IF(AND(TRIM(AF41)="",TRIM(AF42)=""),"",AF41+AF42) -> 44021.378 | AK43: =IF(AND(TRIM(AK41)="",TRIM(AK42)=""),"",AK41+AK42) -> 158.08 | AP43: =IF(AND(TRIM(AP41)="",TRIM(AP42)=""),"",AP41+AP42) -> 2731.303 | AU43: =IF(AND(TRIM(AU41)="",TRIM(AU42)=""),"",AU41+AU42) -> 379.74 | AZ43: =IF(AND(TRIM(AZ41)="",TRIM(AZ42)=""),"",AZ41+AZ42) -> 895.6 | BE43: =IF(AND(TRIM(BE41)="",TRIM(BE42)=""),"",BE41+BE42) -> 1835.019 | BJ43: =IF(AND(TRIM(BJ41)="",TRIM(BJ42)=""),"",BJ41+BJ42) -> 582.149 | BN43: =IF(TRIM(BM43)="", "", IF(VLOOKUP(BM43,#REF!,2,FALSE)=0,"",VLOOKUP(BM43,#REF!,2,FALSE) ) ) ->  | BO43: =IF(AND(TRIM(BO41)="", TRIM(BO42)=""), "", (IF(ISNUMBER(BO41),BO41,0)+IF(ISNUMBER(BO42),BO42,0))) -> 61461.274 | BS43: =IF(TRIM(BR43)="", "", IF(VLOOKUP(BR43,#REF!,2,FALSE)=0,"",VLOOKUP(BR43,#REF!,2,FALSE) ) ) ->  | BT43: =IF(AND(TRIM(BT41)="",TRIM(BT42)=""),"",BT41+BT42) -> 96.83 | BY43: =IF(AND(TRIM(BY41)="",TRIM(BY42)=""),"",BY41+BY42) -> 35.807 | CD43: =IF(AND(TRIM(CD41)="",TRIM(CD42)=""),"",CD41+CD42) -> 99016.499 | CH43: =IF(TRIM(CG43)="", "", IF(VLOOKUP(CG43,#REF!,2,FALSE)=0,"",VLOOKUP(CG43,#REF!,2,FALSE) ) ) ->  | CI43: =IF(AND(TRIM(CI41)="", TRIM(CI42)=""), "", (IF(ISNUMBER(CI41),CI41,0)+IF(ISNUMBER(CI42),CI42,0))) -> 99052.306 | CM43: =IF(TRIM(CL43)="", "", IF(VLOOKUP(CL43,#REF!,2,FALSE)=0,"",VLOOKUP(CL43,#REF!,2,FALSE) ) ) ->  | CN43: =IF(AND(TRIM(CN41)="",TRIM(CN42)=""),"",CN41+CN42) -> 183.934 | CS43: =IF(AND(TRIM(CS41)="",TRIM(CS42)=""),"",CS41+CS42) -> 130941.295 | CX43: =IF(AND(TRIM(CX41)="",TRIM(CX42)=""),"",CX41+CX42) -> 2764.079 | DC43: =IF(AND(TRIM(DC41)="",TRIM(DC42)=""),"",DC41+DC42) -> 68796.138 | DG43: =IF(TRIM(DF43)="", "", IF(VLOOKUP(DF43,#REF!,2,FALSE)=0,"",VLOOKUP(DF43,#REF!,2,FALSE) ) ) ->  | DH43: =IF(AND(TRIM(DH41)="", TRIM(DH42)=""), "", SUM(DH41,DH42) ) -> 364076.364 | DL43: =IF(TRIM(DK43)="", "", IF(VLOOKUP(DK43,#REF!,2,FALSE)=0,"",VLOOKUP(DK43,#REF!,2,FALSE) ) ) -> 
B44: W073 | D44: Rubber wastes | F44: Not applicable | G44: 0 | L44: 0 | Q44: 0 | V44: 0 | AA44: 0 | AF44: 0 | AK44: 0 | AP44: 0 | AU44: 0 | AZ44: 0 | BE44: 0 | BJ44: 0 | BT44: 0 | BY44: 0 | CD44: 0 | CN44: 0 | CS44: 0 | CX44: 0 | DC44: 0
C45: W073 | E45: NHAZ | F45: Non-hazardous | G45: 22.53 | L45: 26.281 | Q45: 24.414 | V45: 1.05 | AA45: 19.55 | AF45: 0.34 | AK45: 0 | AP45: 3466.15 | AU45: 81.825 | AZ45: 35.173 | BE45: 46.587 | BJ45: 116.014 | BN45: =IF(TRIM(BM45)="", "", IF(VLOOKUP(BM45,#REF!,2,FALSE)=0,"",VLOOKUP(BM45,#REF!,2,FALSE) ) ) ->  | BO45: =IF(AND(TRIM(Q45)="",TRIM(V45)="",TRIM(AA45)="", TRIM(AF45)="", TRIM(AK45)="", TRIM(AP45)="", TRIM(AU45)="", TRIM(AZ45)="", TRIM(BE45)="", TRIM(BJ45)=""),"",Q45+V45+AA45+AF45+AK45+AP45+AU45+AZ45+BE45+BJ45) -> 3791.103 | BS45: =IF(TRIM(BR45)="", "", IF(VLOOKUP(BR45,#REF!,2,FALSE)=0,"",VLOOKUP(BR45,#REF!,2,FALSE) ) ) ->  | BT45: 12.613 | BY45: 6.41 | CD45: 1834.729 | CH45: =IF(TRIM(CG45)="", "", IF(VLOOKUP(CG45,#REF!,2,FALSE)=0,"",VLOOKUP(CG45,#REF!,2,FALSE) ) ) ->  | CI45: =IF(AND(TRIM(BY45)="",TRIM(CD45)=""),"",BY45+CD45) -> 1841.139 | CM45: =IF(TRIM(CL45)="", "", IF(VLOOKUP(CL45,#REF!,2,FALSE)=0,"",VLOOKUP(CL45,#REF!,2,FALSE) ) ) ->  | CN45: 146.15 | CS45: 18731.666 | CX45: 0 | DC45: 1477.388 | DG45: =IF(TRIM(DF45)="", "", IF(VLOOKUP(DF45,#REF!,2,FALSE)=0,"",VLOOKUP(DF45,#REF!,2,FALSE) ) ) ->  | DH45: =IF(AND(TRIM(G45)="",TRIM(L45)="",TRIM(BO45)="",TRIM(BT45)="",TRIM(CI45)="",TRIM(CN45)="",TRIM(CS45)="",TRIM(CX45)="",TRIM(DC45)=""),"",SUM(G45,L45,BO45,BT45,CI45,CN45,CS45,CX45,DC45)) -> 26048.87 | DL45: =IF(TRIM(DK45)="", "", IF(VLOOKUP(DK45,#REF!,2,FALSE)=0,"",VLOOKUP(DK45,#REF!,2,FALSE) ) ) -> 
C46: W073 | E46: HAZ_NHAZ | F46: Total | G46: =IF(AND(TRIM(G44)="",TRIM(G45)=""),"",G44+G45) -> 22.53 | L46: =IF(AND(TRIM(L44)="",TRIM(L45)=""),"",L44+L45) -> 26.281 | Q46: =IF(AND(TRIM(Q44)="",TRIM(Q45)=""),"",Q44+Q45) -> 24.414 | V46: =IF(AND(TRIM(V44)="",TRIM(V45)=""),"",V44+V45) -> 1.05 | AA46: =IF(AND(TRIM(AA44)="",TRIM(AA45)=""),"",AA44+AA45) -> 19.55 | AF46: =IF(AND(TRIM(AF44)="",TRIM(AF45)=""),"",AF44+AF45) -> 0.34 | AK46: =IF(AND(TRIM(AK44)="",TRIM(AK45)=""),"",AK44+AK45) -> 0 | AP46: =IF(AND(TRIM(AP44)="",TRIM(AP45)=""),"",AP44+AP45) -> 3466.15 | AU46: =IF(AND(TRIM(AU44)="",TRIM(AU45)=""),"",AU44+AU45) -> 81.825 | AZ46: =IF(AND(TRIM(AZ44)="",TRIM(AZ45)=""),"",AZ44+AZ45) -> 35.173 | BE46: =IF(AND(TRIM(BE44)="",TRIM(BE45)=""),"",BE44+BE45) -> 46.587 | BJ46: =IF(AND(TRIM(BJ44)="",TRIM(BJ45)=""),"",BJ44+BJ45) -> 116.014 | BN46: =IF(TRIM(BM46)="", "", IF(VLOOKUP(BM46,#REF!,2,FALSE)=0,"",VLOOKUP(BM46,#REF!,2,FALSE) ) ) ->  | BO46: =IF(AND(TRIM(BO44)="", TRIM(BO45)=""), "", (IF(ISNUMBER(BO44),BO44,0)+IF(ISNUMBER(BO45),BO45,0))) -> 3791.103 | BS46: =IF(TRIM(BR46)="", "", IF(VLOOKUP(BR46,#REF!,2,FALSE)=0,"",VLOOKUP(BR46,#REF!,2,FALSE) ) ) ->  | BT46: =IF(AND(TRIM(BT44)="",TRIM(BT45)=""),"",BT44+BT45) -> 12.613 | BY46: =IF(AND(TRIM(BY44)="",TRIM(BY45)=""),"",BY44+BY45) -> 6.41 | CD46: =IF(AND(TRIM(CD44)="",TRIM(CD45)=""),"",CD44+CD45) -> 1834.729 | CH46: =IF(TRIM(CG46)="", "", IF(VLOOKUP(CG46,#REF!,2,FALSE)=0,"",VLOOKUP(CG46,#REF!,2,FALSE) ) ) ->  | CI46: =IF(AND(TRIM(CI44)="", TRIM(CI45)=""), "", (IF(ISNUMBER(CI44),CI44,0)+IF(ISNUMBER(CI45),CI45,0))) -> 1841.139 | CM46: =IF(TRIM(CL46)="", "", IF(VLOOKUP(CL46,#REF!,2,FALSE)=0,"",VLOOKUP(CL46,#REF!,2,FALSE) ) ) ->  | CN46: =IF(AND(TRIM(CN44)="",TRIM(CN45)=""),"",CN44+CN45) -> 146.15 | CS46: =IF(AND(TRIM(CS44)="",TRIM(CS45)=""),"",CS44+CS45) -> 18731.666 | CX46: =IF(AND(TRIM(CX44)="",TRIM(CX45)=""),"",CX44+CX45) -> 0 | DC46: =IF(AND(TRIM(DC44)="",TRIM(DC45)=""),"",DC44+DC45) -> 1477.388 | DG46: =IF(TRIM(DF46)="", "", IF(VLOOKUP(DF46,#REF!,2,FALSE)=0,"",VLOOKUP(DF46,#REF!,2,FALSE) ) ) ->  | DH46: =IF(AND(TRIM(DH44)="", TRIM(DH45)=""), "", SUM(DH44,DH45) ) -> 26048.87 | DL46: =IF(TRIM(DK46)="", "", IF(VLOOKUP(DK46,#REF!,2,FALSE)=0,"",VLOOKUP(DK46,#REF!,2,FALSE) ) ) -> 
B47: W074 | D47: Plastic wastes | F47: Not applicable | G47: 0 | L47: 0 | Q47: 0 | V47: 0 | AA47: 0 | AF47: 0 | AK47: 0 | AP47: 0 | AU47: 0 | AZ47: 0 | BE47: 0 | BJ47: 0 | BT47: 0 | BY47: 0 | CD47: 0 | CN47: 0 | CS47: 0 | CX47: 0 | DC47: 0
C48: W074 | E48: NHAZ | F48: Non-hazardous | G48: 507.806 | L48: 10.547 | Q48: 3271.457 | V48: 343.21 | AA48: 123.669 | AF48: 629.18 | AK48: 37.715 | AP48: 5529.603 | AU48: 342.132 | AZ48: 1207.556 | BE48: 1403.433 | BJ48: 562.318 | BN48: =IF(TRIM(BM48)="", "", IF(VLOOKUP(BM48,#REF!,2,FALSE)=0,"",VLOOKUP(BM48,#REF!,2,FALSE) ) ) ->  | BO48: =IF(AND(TRIM(Q48)="",TRIM(V48)="",TRIM(AA48)="", TRIM(AF48)="", TRIM(AK48)="", TRIM(AP48)="", TRIM(AU48)="", TRIM(AZ48)="", TRIM(BE48)="", TRIM(BJ48)=""),"",Q48+V48+AA48+AF48+AK48+AP48+AU48+AZ48+BE48+BJ48) -> 13450.273 | BS48: =IF(TRIM(BR48)="", "", IF(VLOOKUP(BR48,#REF!,2,FALSE)=0,"",VLOOKUP(BR48,#REF!,2,FALSE) ) ) ->  | BT48: 44.604 | BY48: 50.9425 | CD48: 52361.57 | CH48: =IF(TRIM(CG48)="", "", IF(VLOOKUP(CG48,#REF!,2,FALSE)=0,"",VLOOKUP(CG48,#REF!,2,FALSE) ) ) ->  | CI48: =IF(AND(TRIM(BY48)="",TRIM(CD48)=""),"",BY48+CD48) -> 52412.513 | CM48: =IF(TRIM(CL48)="", "", IF(VLOOKUP(CL48,#REF!,2,FALSE)=0,"",VLOOKUP(CL48,#REF!,2,FALSE) ) ) ->  | CN48: 1039.432 | CS48: 25314.41 | CX48: 508.815 | DC48: 32934.15 | DG48: =IF(TRIM(DF48)="", "", IF(VLOOKUP(DF48,#REF!,2,FALSE)=0,"",VLOOKUP(DF48,#REF!,2,FALSE) ) ) ->  | DH48: =IF(AND(TRIM(G48)="",TRIM(L48)="",TRIM(BO48)="",TRIM(BT48)="",TRIM(CI48)="",TRIM(CN48)="",TRIM(CS48)="",TRIM(CX48)="",TRIM(DC48)=""),"",SUM(G48,L48,BO48,BT48,CI48,CN48,CS48,CX48,DC48)) -> 126222.55 | DL48: =IF(TRIM(DK48)="", "", IF(VLOOKUP(DK48,#REF!,2,FALSE)=0,"",VLOOKUP(DK48,#REF!,2,FALSE) ) ) -> 
C49: W074 | E49: HAZ_NHAZ | F49: Total | G49: =IF(AND(TRIM(G47)="",TRIM(G48)=""),"",G47+G48) -> 507.806 | L49: =IF(AND(TRIM(L47)="",TRIM(L48)=""),"",L47+L48) -> 10.547 | Q49: =IF(AND(TRIM(Q47)="",TRIM(Q48)=""),"",Q47+Q48) -> 3271.457 | V49: =IF(AND(TRIM(V47)="",TRIM(V48)=""),"",V47+V48) -> 343.21 | AA49: =IF(AND(TRIM(AA47)="",TRIM(AA48)=""),"",AA47+AA48) -> 123.669 | AF49: =IF(AND(TRIM(AF47)="",TRIM(AF48)=""),"",AF47+AF48) -> 629.18 | AK49: =IF(AND(TRIM(AK47)="",TRIM(AK48)=""),"",AK47+AK48) -> 37.715 | AP49: =IF(AND(TRIM(AP47)="",TRIM(AP48)=""),"",AP47+AP48) -> 5529.603 | AU49: =IF(AND(TRIM(AU47)="",TRIM(AU48)=""),"",AU47+AU48) -> 342.132 | AZ49: =IF(AND(TRIM(AZ47)="",TRIM(AZ48)=""),"",AZ47+AZ48) -> 1207.556 | BE49: =IF(AND(TRIM(BE47)="",TRIM(BE48)=""),"",BE47+BE48) -> 1403.433 | BJ49: =IF(AND(TRIM(BJ47)="",TRIM(BJ48)=""),"",BJ47+BJ48) -> 562.318 | BN49: =IF(TRIM(BM49)="", "", IF(VLOOKUP(BM49,#REF!,2,FALSE)=0,"",VLOOKUP(BM49,#REF!,2,FALSE) ) ) ->  | BO49: =IF(AND(TRIM(BO47)="", TRIM(BO48)=""), "", (IF(ISNUMBER(BO47),BO47,0)+IF(ISNUMBER(BO48),BO48,0))) -> 13450.273 | BS49: =IF(TRIM(BR49)="", "", IF(VLOOKUP(BR49,#REF!,2,FALSE)=0,"",VLOOKUP(BR49,#REF!,2,FALSE) ) ) ->  | BT49: =IF(AND(TRIM(BT47)="",TRIM(BT48)=""),"",BT47+BT48) -> 44.604 | BY49: =IF(AND(TRIM(BY47)="",TRIM(BY48)=""),"",BY47+BY48) -> 50.943 | CD49: =IF(AND(TRIM(CD47)="",TRIM(CD48)=""),"",CD47+CD48) -> 52361.57 | CH49: =IF(TRIM(CG49)="", "", IF(VLOOKUP(CG49,#REF!,2,FALSE)=0,"",VLOOKUP(CG49,#REF!,2,FALSE) ) ) ->  | CI49: =IF(AND(TRIM(CI47)="", TRIM(CI48)=""), "", (IF(ISNUMBER(CI47),CI47,0)+IF(ISNUMBER(CI48),CI48,0))) -> 52412.513 | CM49: =IF(TRIM(CL49)="", "", IF(VLOOKUP(CL49,#REF!,2,FALSE)=0,"",VLOOKUP(CL49,#REF!,2,FALSE) ) ) ->  | CN49: =IF(AND(TRIM(CN47)="",TRIM(CN48)=""),"",CN47+CN48) -> 1039.432 | CS49: =IF(AND(TRIM(CS47)="",TRIM(CS48)=""),"",CS47+CS48) -> 25314.41 | CX49: =IF(AND(TRIM(CX47)="",TRIM(CX48)=""),"",CX47+CX48) -> 508.815 | DC49: =IF(AND(TRIM(DC47)="",TRIM(DC48)=""),"",DC47+DC48) -> 32934.15 | DG49: =IF(TRIM(DF49)="", "", IF(VLOOKUP(DF49,#REF!,2,FALSE)=0,"",VLOOKUP(DF49,#REF!,2,FALSE) ) ) ->  | DH49: =IF(AND(TRIM(DH47)="", TRIM(DH48)=""), "", SUM(DH47,DH48) ) -> 126222.55 | DL49: =IF(TRIM(DK49)="", "", IF(VLOOKUP(DK49,#REF!,2,FALSE)=0,"",VLOOKUP(DK49,#REF!,2,FALSE) ) ) -> 
B50: W075 | C50: W075 | D50: Wood wastes | E50: HAZ | F50: Hazardous | G50: 0 | L50: 0 | Q50: 0 | V50: 0 | AA50: 0.319 | AF50: 0 | AK50: 0 | AP50: 6.123 | AU50: 0 | AZ50: 0 | BE50: 2.95 | BJ50: 0.915 | BN50: =IF(TRIM(BM50)="", "", IF(VLOOKUP(BM50,#REF!,2,FALSE)=0,"",VLOOKUP(BM50,#REF!,2,FALSE) ) ) ->  | BO50: =IF(AND(TRIM(Q50)="",TRIM(V50)="",TRIM(AA50)="", TRIM(AF50)="", TRIM(AK50)="", TRIM(AP50)="", TRIM(AU50)="", TRIM(AZ50)="", TRIM(BE50)="", TRIM(BJ50)=""),"",Q50+V50+AA50+AF50+AK50+AP50+AU50+AZ50+BE50+BJ50) -> 10.307 | BS50: =IF(TRIM(BR50)="", "", IF(VLOOKUP(BR50,#REF!,2,FALSE)=0,"",VLOOKUP(BR50,#REF!,2,FALSE) ) ) ->  | BT50: 0 | BY50: 0 | CD50: 2.973 | CH50: =IF(TRIM(CG50)="", "", IF(VLOOKUP(CG50,#REF!,2,FALSE)=0,"",VLOOKUP(CG50,#REF!,2,FALSE) ) ) ->  | CI50: =IF(AND(TRIM(BY50)="",TRIM(CD50)=""),"",BY50+CD50) -> 2.973 | CM50: =IF(TRIM(CL50)="", "", IF(VLOOKUP(CL50,#REF!,2,FALSE)=0,"",VLOOKUP(CL50,#REF!,2,FALSE) ) ) ->  | CN50: 0 | CS50: 0 | CX50: 0 | DC50: 1.574 | DG50: =IF(TRIM(DF50)="", "", IF(VLOOKUP(DF50,#REF!,2,FALSE)=0,"",VLOOKUP(DF50,#REF!,2,FALSE) ) ) ->  | DH50: =IF(AND(TRIM(G50)="",TRIM(L50)="",TRIM(BO50)="",TRIM(BT50)="",TRIM(CI50)="",TRIM(CN50)="",TRIM(CS50)="",TRIM(CX50)="",TRIM(DC50)=""),"",SUM(G50,L50,BO50,BT50,CI50,CN50,CS50,CX50,DC50)) -> 14.854 | DL50: =IF(TRIM(DK50)="", "", IF(VLOOKUP(DK50,#REF!,2,FALSE)=0,"",VLOOKUP(DK50,#REF!,2,FALSE) ) ) -> 
C51: W075 | E51: NHAZ | F51: Non-hazardous | G51: 24.96 | L51: 33.58 | Q51: 880.428 | V51: 130.851 | AA51: 51248.672 | AF51: 88.617 | AK51: 20.5 | AP51: 1285.571 | AU51: 141.7 | AZ51: 1031.338 | BE51: 1820.091 | BJ51: 7355.077 | BN51: =IF(TRIM(BM51)="", "", IF(VLOOKUP(BM51,#REF!,2,FALSE)=0,"",VLOOKUP(BM51,#REF!,2,FALSE) ) ) ->  | BO51: =IF(AND(TRIM(Q51)="",TRIM(V51)="",TRIM(AA51)="", TRIM(AF51)="", TRIM(AK51)="", TRIM(AP51)="", TRIM(AU51)="", TRIM(AZ51)="", TRIM(BE51)="", TRIM(BJ51)=""),"",Q51+V51+AA51+AF51+AK51+AP51+AU51+AZ51+BE51+BJ51) -> 64002.845 | BS51: =IF(TRIM(BR51)="", "", IF(VLOOKUP(BR51,#REF!,2,FALSE)=0,"",VLOOKUP(BR51,#REF!,2,FALSE) ) ) ->  | BT51: 634.747 | BY51: 44.61 | CD51: 29923.472 | CH51: =IF(TRIM(CG51)="", "", IF(VLOOKUP(CG51,#REF!,2,FALSE)=0,"",VLOOKUP(CG51,#REF!,2,FALSE) ) ) ->  | CI51: =IF(AND(TRIM(BY51)="",TRIM(CD51)=""),"",BY51+CD51) -> 29968.082 | CM51: =IF(TRIM(CL51)="", "", IF(VLOOKUP(CL51,#REF!,2,FALSE)=0,"",VLOOKUP(CL51,#REF!,2,FALSE) ) ) ->  | CN51: 8204.35 | CS51: 8864.902 | CX51: 20.78 | DC51: 14358.311 | DG51: =IF(TRIM(DF51)="", "", IF(VLOOKUP(DF51,#REF!,2,FALSE)=0,"",VLOOKUP(DF51,#REF!,2,FALSE) ) ) ->  | DH51: =IF(AND(TRIM(G51)="",TRIM(L51)="",TRIM(BO51)="",TRIM(BT51)="",TRIM(CI51)="",TRIM(CN51)="",TRIM(CS51)="",TRIM(CX51)="",TRIM(DC51)=""),"",SUM(G51,L51,BO51,BT51,CI51,CN51,CS51,CX51,DC51)) -> 126112.557 | DL51: =IF(TRIM(DK51)="", "", IF(VLOOKUP(DK51,#REF!,2,FALSE)=0,"",VLOOKUP(DK51,#REF!,2,FALSE) ) ) -> 
C52: W075 | E52: HAZ_NHAZ | F52: Total | G52: =IF(AND(TRIM(G50)="",TRIM(G51)=""),"",G50+G51) -> 24.96 | L52: =IF(AND(TRIM(L50)="",TRIM(L51)=""),"",L50+L51) -> 33.58 | Q52: =IF(AND(TRIM(Q50)="",TRIM(Q51)=""),"",Q50+Q51) -> 880.428 | V52: =IF(AND(TRIM(V50)="",TRIM(V51)=""),"",V50+V51) -> 130.851 | AA52: =IF(AND(TRIM(AA50)="",TRIM(AA51)=""),"",AA50+AA51) -> 51248.991 | AF52: =IF(AND(TRIM(AF50)="",TRIM(AF51)=""),"",AF50+AF51) -> 88.617 | AK52: =IF(AND(TRIM(AK50)="",TRIM(AK51)=""),"",AK50+AK51) -> 20.5 | AP52: =IF(AND(TRIM(AP50)="",TRIM(AP51)=""),"",AP50+AP51) -> 1291.694 | AU52: =IF(AND(TRIM(AU50)="",TRIM(AU51)=""),"",AU50+AU51) -> 141.7 | AZ52: =IF(AND(TRIM(AZ50)="",TRIM(AZ51)=""),"",AZ50+AZ51) -> 1031.338 | BE52: =IF(AND(TRIM(BE50)="",TRIM(BE51)=""),"",BE50+BE51) -> 1823.041 | BJ52: =IF(AND(TRIM(BJ50)="",TRIM(BJ51)=""),"",BJ50+BJ51) -> 7355.992 | BN52: =IF(TRIM(BM52)="", "", IF(VLOOKUP(BM52,#REF!,2,FALSE)=0,"",VLOOKUP(BM52,#REF!,2,FALSE) ) ) ->  | BO52: =IF(AND(TRIM(BO50)="", TRIM(BO51)=""), "", (IF(ISNUMBER(BO50),BO50,0)+IF(ISNUMBER(BO51),BO51,0))) -> 64013.152 | BS52: =IF(TRIM(BR52)="", "", IF(VLOOKUP(BR52,#REF!,2,FALSE)=0,"",VLOOKUP(BR52,#REF!,2,FALSE) ) ) ->  | BT52: =IF(AND(TRIM(BT50)="",TRIM(BT51)=""),"",BT50+BT51) -> 634.747 | BY52: =IF(AND(TRIM(BY50)="",TRIM(BY51)=""),"",BY50+BY51) -> 44.61 | CD52: =IF(AND(TRIM(CD50)="",TRIM(CD51)=""),"",CD50+CD51) -> 29926.445 | CH52: =IF(TRIM(CG52)="", "", IF(VLOOKUP(CG52,#REF!,2,FALSE)=0,"",VLOOKUP(CG52,#REF!,2,FALSE) ) ) ->  | CI52: =IF(AND(TRIM(CI50)="", TRIM(CI51)=""), "", (IF(ISNUMBER(CI50),CI50,0)+IF(ISNUMBER(CI51),CI51,0))) -> 29971.055 | CM52: =IF(TRIM(CL52)="", "", IF(VLOOKUP(CL52,#REF!,2,FALSE)=0,"",VLOOKUP(CL52,#REF!,2,FALSE) ) ) ->  | CN52: =IF(AND(TRIM(CN50)="",TRIM(CN51)=""),"",CN50+CN51) -> 8204.35 | CS52: =IF(AND(TRIM(CS50)="",TRIM(CS51)=""),"",CS50+CS51) -> 8864.902 | CX52: =IF(AND(TRIM(CX50)="",TRIM(CX51)=""),"",CX50+CX51) -> 20.78 | DC52: =IF(AND(TRIM(DC50)="",TRIM(DC51)=""),"",DC50+DC51) -> 14359.885 | DG52: =IF(TRIM(DF52)="", "", IF(VLOOKUP(DF52,#REF!,2,FALSE)=0,"",VLOOKUP(DF52,#REF!,2,FALSE) ) ) ->  | DH52: =IF(AND(TRIM(DH50)="", TRIM(DH51)=""), "", SUM(DH50,DH51) ) -> 126127.411 | DL52: =IF(TRIM(DK52)="", "", IF(VLOOKUP(DK52,#REF!,2,FALSE)=0,"",VLOOKUP(DK52,#REF!,2,FALSE) ) ) -> 
B53: W076 | D53: Textile wastes | F53: Not applicable | G53: 0 | L53: 0 | Q53: 0 | V53: 0 | AA53: 0 | AF53: 0 | AK53: 0 | AP53: 0 | AU53: 0 | AZ53: 0 | BE53: 0 | BJ53: 0 | BT53: 0 | BY53: 0 | CD53: 0 | CN53: 0 | CS53: 0 | CX53: 0 | DC53: 0
C54: W076 | E54: NHAZ | F54: Non-hazardous | G54: 0 | L54: 0.1 | Q54: 27.41 | V54: 3909.423 | AA54: 0 | AF54: 1.465 | AK54: 0.1 | AP54: 2179.023 | AU54: 16.82 | AZ54: 0.054 | BE54: 107.369 | BJ54: 124.478 | BN54: =IF(TRIM(BM54)="", "", IF(VLOOKUP(BM54,#REF!,2,FALSE)=0,"",VLOOKUP(BM54,#REF!,2,FALSE) ) ) ->  | BO54: =IF(AND(TRIM(Q54)="",TRIM(V54)="",TRIM(AA54)="", TRIM(AF54)="", TRIM(AK54)="", TRIM(AP54)="", TRIM(AU54)="", TRIM(AZ54)="", TRIM(BE54)="", TRIM(BJ54)=""),"",Q54+V54+AA54+AF54+AK54+AP54+AU54+AZ54+BE54+BJ54) -> 6366.142 | BS54: =IF(TRIM(BR54)="", "", IF(VLOOKUP(BR54,#REF!,2,FALSE)=0,"",VLOOKUP(BR54,#REF!,2,FALSE) ) ) ->  | BT54: 1.225 | BY54: 0 | CD54: 102.671 | CH54: =IF(TRIM(CG54)="", "", IF(VLOOKUP(CG54,#REF!,2,FALSE)=0,"",VLOOKUP(CG54,#REF!,2,FALSE) ) ) ->  | CI54: =IF(AND(TRIM(BY54)="",TRIM(CD54)=""),"",BY54+CD54) -> 102.671 | CM54: =IF(TRIM(CL54)="", "", IF(VLOOKUP(CL54,#REF!,2,FALSE)=0,"",VLOOKUP(CL54,#REF!,2,FALSE) ) ) ->  | CN54: 0.494 | CS54: 125.035 | CX54: 86.04 | DC54: 3340.958 | DG54: =IF(TRIM(DF54)="", "", IF(VLOOKUP(DF54,#REF!,2,FALSE)=0,"",VLOOKUP(DF54,#REF!,2,FALSE) ) ) ->  | DH54: =IF(AND(TRIM(G54)="",TRIM(L54)="",TRIM(BO54)="",TRIM(BT54)="",TRIM(CI54)="",TRIM(CN54)="",TRIM(CS54)="",TRIM(CX54)="",TRIM(DC54)=""),"",SUM(G54,L54,BO54,BT54,CI54,CN54,CS54,CX54,DC54)) -> 10022.665 | DL54: =IF(TRIM(DK54)="", "", IF(VLOOKUP(DK54,#REF!,2,FALSE)=0,"",VLOOKUP(DK54,#REF!,2,FALSE) ) ) -> 
C55: W076 | E55: HAZ_NHAZ | F55: Total | G55: =IF(AND(TRIM(G53)="",TRIM(G54)=""),"",G53+G54) -> 0 | L55: =IF(AND(TRIM(L53)="",TRIM(L54)=""),"",L53+L54) -> 0.1 | Q55: =IF(AND(TRIM(Q53)="",TRIM(Q54)=""),"",Q53+Q54) -> 27.41 | V55: =IF(AND(TRIM(V53)="",TRIM(V54)=""),"",V53+V54) -> 3909.423 | AA55: =IF(AND(TRIM(AA53)="",TRIM(AA54)=""),"",AA53+AA54) -> 0 | AF55: =IF(AND(TRIM(AF53)="",TRIM(AF54)=""),"",AF53+AF54) -> 1.465 | AK55: =IF(AND(TRIM(AK53)="",TRIM(AK54)=""),"",AK53+AK54) -> 0.1 | AP55: =IF(AND(TRIM(AP53)="",TRIM(AP54)=""),"",AP53+AP54) -> 2179.023 | AU55: =IF(AND(TRIM(AU53)="",TRIM(AU54)=""),"",AU53+AU54) -> 16.82 | AZ55: =IF(AND(TRIM(AZ53)="",TRIM(AZ54)=""),"",AZ53+AZ54) -> 0.054 | BE55: =IF(AND(TRIM(BE53)="",TRIM(BE54)=""),"",BE53+BE54) -> 107.369 | BJ55: =IF(AND(TRIM(BJ53)="",TRIM(BJ54)=""),"",BJ53+BJ54) -> 124.478 | BN55: =IF(TRIM(BM55)="", "", IF(VLOOKUP(BM55,#REF!,2,FALSE)=0,"",VLOOKUP(BM55,#REF!,2,FALSE) ) ) ->  | BO55: =IF(AND(TRIM(BO53)="", TRIM(BO54)=""), "", (IF(ISNUMBER(BO53),BO53,0)+IF(ISNUMBER(BO54),BO54,0))) -> 6366.142 | BS55: =IF(TRIM(BR55)="", "", IF(VLOOKUP(BR55,#REF!,2,FALSE)=0,"",VLOOKUP(BR55,#REF!,2,FALSE) ) ) ->  | BT55: =IF(AND(TRIM(BT53)="",TRIM(BT54)=""),"",BT53+BT54) -> 1.225 | BY55: =IF(AND(TRIM(BY53)="",TRIM(BY54)=""),"",BY53+BY54) -> 0 | CD55: =IF(AND(TRIM(CD53)="",TRIM(CD54)=""),"",CD53+CD54) -> 102.671 | CH55: =IF(TRIM(CG55)="", "", IF(VLOOKUP(CG55,#REF!,2,FALSE)=0,"",VLOOKUP(CG55,#REF!,2,FALSE) ) ) ->  | CI55: =IF(AND(TRIM(CI53)="", TRIM(CI54)=""), "", (IF(ISNUMBER(CI53),CI53,0)+IF(ISNUMBER(CI54),CI54,0))) -> 102.671 | CM55: =IF(TRIM(CL55)="", "", IF(VLOOKUP(CL55,#REF!,2,FALSE)=0,"",VLOOKUP(CL55,#REF!,2,FALSE) ) ) ->  | CN55: =IF(AND(TRIM(CN53)="",TRIM(CN54)=""),"",CN53+CN54) -> 0.494 | CS55: =IF(AND(TRIM(CS53)="",TRIM(CS54)=""),"",CS53+CS54) -> 125.035 | CX55: =IF(AND(TRIM(CX53)="",TRIM(CX54)=""),"",CX53+CX54) -> 86.04 | DC55: =IF(AND(TRIM(DC53)="",TRIM(DC54)=""),"",DC53+DC54) -> 3340.958 | DG55: =IF(TRIM(DF55)="", "", IF(VLOOKUP(DF55,#REF!,2,FALSE)=0,"",VLOOKUP(DF55,#REF!,2,FALSE) ) ) ->  | DH55: =IF(AND(TRIM(DH53)="", TRIM(DH54)=""), "", SUM(DH53,DH54) ) -> 10022.665 | DL55: =IF(TRIM(DK55)="", "", IF(VLOOKUP(DK55,#REF!,2,FALSE)=0,"",VLOOKUP(DK55,#REF!,2,FALSE) ) ) -> 
B56: W077 | C56: W077 | D56: Waste containing PCB | E56: HAZ | F56: Hazardous | G56: 0 | L56: 0 | Q56: 1.22 | V56: 0 | AA56: 2.57 | AF56: 0 | AK56: 0 | AP56: 0 | AU56: 0 | AZ56: 0 | BE56: 2.72 | BJ56: 0 | BN56: =IF(TRIM(BM56)="", "", IF(VLOOKUP(BM56,#REF!,2,FALSE)=0,"",VLOOKUP(BM56,#REF!,2,FALSE) ) ) ->  | BO56: =IF(AND(TRIM(Q56)="",TRIM(V56)="",TRIM(AA56)="", TRIM(AF56)="", TRIM(AK56)="", TRIM(AP56)="", TRIM(AU56)="", TRIM(AZ56)="", TRIM(BE56)="", TRIM(BJ56)=""),"",Q56+V56+AA56+AF56+AK56+AP56+AU56+AZ56+BE56+BJ56) -> 6.51 | BS56: =IF(TRIM(BR56)="", "", IF(VLOOKUP(BR56,#REF!,2,FALSE)=0,"",VLOOKUP(BR56,#REF!,2,FALSE) ) ) ->  | BT56: 0 | BY56: 0 | CD56: 0 | CH56: =IF(TRIM(CG56)="", "", IF(VLOOKUP(CG56,#REF!,2,FALSE)=0,"",VLOOKUP(CG56,#REF!,2,FALSE) ) ) ->  | CI56: =IF(AND(TRIM(BY56)="",TRIM(CD56)=""),"",BY56+CD56) -> 0 | CM56: =IF(TRIM(CL56)="", "", IF(VLOOKUP(CL56,#REF!,2,FALSE)=0,"",VLOOKUP(CL56,#REF!,2,FALSE) ) ) ->  | CN56: 15.336 | CS56: 0.306 | CX56: 0 | DC56: 0 | DG56: =IF(TRIM(DF56)="", "", IF(VLOOKUP(DF56,#REF!,2,FALSE)=0,"",VLOOKUP(DF56,#REF!,2,FALSE) ) ) ->  | DH56: =IF(AND(TRIM(G56)="",TRIM(L56)="",TRIM(BO56)="",TRIM(BT56)="",TRIM(CI56)="",TRIM(CN56)="",TRIM(CS56)="",TRIM(CX56)="",TRIM(DC56)=""),"",SUM(G56,L56,BO56,BT56,CI56,CN56,CS56,CX56,DC56)) -> 22.152 | DL56: =IF(TRIM(DK56)="", "", IF(VLOOKUP(DK56,#REF!,2,FALSE)=0,"",VLOOKUP(DK56,#REF!,2,FALSE) ) ) -> 
F57: Not applicable | G57: 0 | L57: 0 | Q57: 0 | V57: 0 | AA57: 0 | AF57: 0 | AK57: 0 | AP57: 0 | AU57: 0 | AZ57: 0 | BE57: 0 | BJ57: 0 | BT57: 0 | BY57: 0 | CD57: 0 | CN57: 0 | CS57: 0 | CX57: 0 | DC57: 0
C58: W077 | E58: HAZ_NHAZ | F58: Total | G58: =IF(AND(TRIM(G56)="",TRIM(G57)=""),"",G56+G57) -> 0 | L58: =IF(AND(TRIM(L56)="",TRIM(L57)=""),"",L56+L57) -> 0 | Q58: =IF(AND(TRIM(Q56)="",TRIM(Q57)=""),"",Q56+Q57) -> 1.22 | V58: =IF(AND(TRIM(V56)="",TRIM(V57)=""),"",V56+V57) -> 0 | AA58: =IF(AND(TRIM(AA56)="",TRIM(AA57)=""),"",AA56+AA57) -> 2.57 | AF58: =IF(AND(TRIM(AF56)="",TRIM(AF57)=""),"",AF56+AF57) -> 0 | AK58: =IF(AND(TRIM(AK56)="",TRIM(AK57)=""),"",AK56+AK57) -> 0 | AP58: =IF(AND(TRIM(AP56)="",TRIM(AP57)=""),"",AP56+AP57) -> 0 | AU58: =IF(AND(TRIM(AU56)="",TRIM(AU57)=""),"",AU56+AU57) -> 0 | AZ58: =IF(AND(TRIM(AZ56)="",TRIM(AZ57)=""),"",AZ56+AZ57) -> 0 | BE58: =IF(AND(TRIM(BE56)="",TRIM(BE57)=""),"",BE56+BE57) -> 2.72 | BJ58: =IF(AND(TRIM(BJ56)="",TRIM(BJ57)=""),"",BJ56+BJ57) -> 0 | BN58: =IF(TRIM(BM58)="", "", IF(VLOOKUP(BM58,#REF!,2,FALSE)=0,"",VLOOKUP(BM58,#REF!,2,FALSE) ) ) ->  | BO58: =IF(AND(TRIM(BO56)="", TRIM(BO57)=""), "", (IF(ISNUMBER(BO56),BO56,0)+IF(ISNUMBER(BO57),BO57,0))) -> 6.51 | BS58: =IF(TRIM(BR58)="", "", IF(VLOOKUP(BR58,#REF!,2,FALSE)=0,"",VLOOKUP(BR58,#REF!,2,FALSE) ) ) ->  | BT58: =IF(AND(TRIM(BT56)="",TRIM(BT57)=""),"",BT56+BT57) -> 0 | BY58: =IF(AND(TRIM(BY56)="",TRIM(BY57)=""),"",BY56+BY57) -> 0 | CD58: =IF(AND(TRIM(CD56)="",TRIM(CD57)=""),"",CD56+CD57) -> 0 | CH58: =IF(TRIM(CG58)="", "", IF(VLOOKUP(CG58,#REF!,2,FALSE)=0,"",VLOOKUP(CG58,#REF!,2,FALSE) ) ) ->  | CI58: =IF(AND(TRIM(CI56)="", TRIM(CI57)=""), "", (IF(ISNUMBER(CI56),CI56,0)+IF(ISNUMBER(CI57),CI57,0))) -> 0 | CM58: =IF(TRIM(CL58)="", "", IF(VLOOKUP(CL58,#REF!,2,FALSE)=0,"",VLOOKUP(CL58,#REF!,2,FALSE) ) ) ->  | CN58: =IF(AND(TRIM(CN56)="",TRIM(CN57)=""),"",CN56+CN57) -> 15.336 | CS58: =IF(AND(TRIM(CS56)="",TRIM(CS57)=""),"",CS56+CS57) -> 0.306 | CX58: =IF(AND(TRIM(CX56)="",TRIM(CX57)=""),"",CX56+CX57) -> 0 | DC58: =IF(AND(TRIM(DC56)="",TRIM(DC57)=""),"",DC56+DC57) -> 0 | DG58: =IF(TRIM(DF58)="", "", IF(VLOOKUP(DF58,#REF!,2,FALSE)=0,"",VLOOKUP(DF58,#REF!,2,FALSE) ) ) ->  | DH58: =IF(AND(TRIM(DH56)="", TRIM(DH57)=""), "", SUM(DH56,DH57) ) -> 22.152 | DL58: =IF(TRIM(DK58)="", "", IF(VLOOKUP(DK58,#REF!,2,FALSE)=0,"",VLOOKUP(DK58,#REF!,2,FALSE) ) ) -> 
B59: W08A | C59: W08A | D59: Discarded equipment (except discarded vehicles and batteries and accumulators waste) (W08 except W081, W0841) | E59: HAZ | F59: Hazardous | G59: 24.986 | L59: 17.795 | Q59: 538.158 | V59: 11.109 | AA59: 5.894 | AF59: 8.824 | AK59: 5.67 | AP59: 35.041 | AU59: 29.247 | AZ59: 50.001 | BE59: 177.27 | BJ59: 41.606 | BN59: =IF(TRIM(BM59)="", "", IF(VLOOKUP(BM59,#REF!,2,FALSE)=0,"",VLOOKUP(BM59,#REF!,2,FALSE) ) ) ->  | BO59: =IF(AND(TRIM(Q59)="",TRIM(V59)="",TRIM(AA59)="", TRIM(AF59)="", TRIM(AK59)="", TRIM(AP59)="", TRIM(AU59)="", TRIM(AZ59)="", TRIM(BE59)="", TRIM(BJ59)=""),"",Q59+V59+AA59+AF59+AK59+AP59+AU59+AZ59+BE59+BJ59) -> 902.82 | BS59: =IF(TRIM(BR59)="", "", IF(VLOOKUP(BR59,#REF!,2,FALSE)=0,"",VLOOKUP(BR59,#REF!,2,FALSE) ) ) ->  | BT59: 363.721 | BY59: 16.438 | CD59: 188.511 | CH59: =IF(TRIM(CG59)="", "", IF(VLOOKUP(CG59,#REF!,2,FALSE)=0,"",VLOOKUP(CG59,#REF!,2,FALSE) ) ) ->  | CI59: =IF(AND(TRIM(BY59)="",TRIM(CD59)=""),"",BY59+CD59) -> 204.949 | CM59: =IF(TRIM(CL59)="", "", IF(VLOOKUP(CL59,#REF!,2,FALSE)=0,"",VLOOKUP(CL59,#REF!,2,FALSE) ) ) ->  | CN59: 83.911 | CS59: 3066.722 | CX59: 0.01 | DC59: 24044.501 | DG59: =IF(TRIM(DF59)="", "", IF(VLOOKUP(DF59,#REF!,2,FALSE)=0,"",VLOOKUP(DF59,#REF!,2,FALSE) ) ) ->  | DH59: =IF(AND(TRIM(G59)="",TRIM(L59)="",TRIM(BO59)="",TRIM(BT59)="",TRIM(CI59)="",TRIM(CN59)="",TRIM(CS59)="",TRIM(CX59)="",TRIM(DC59)=""),"",SUM(G59,L59,BO59,BT59,CI59,CN59,CS59,CX59,DC59)) -> 28709.415 | DL59: =IF(TRIM(DK59)="", "", IF(VLOOKUP(DK59,#REF!,2,FALSE)=0,"",VLOOKUP(DK59,#REF!,2,FALSE) ) ) -> 
C60: W08A | E60: NHAZ | F60: Non-hazardous | G60: 0 | L60: 20.5 | Q60: 19.13 | V60: 0.21 | AA60: 0 | AF60: 5.334 | AK60: 4.68 | AP60: 1.048 | AU60: 41.289 | AZ60: 21.159 | BE60: 101.358 | BJ60: 83.49 | BN60: =IF(TRIM(BM60)="", "", IF(VLOOKUP(BM60,#REF!,2,FALSE)=0,"",VLOOKUP(BM60,#REF!,2,FALSE) ) ) ->  | BO60: =IF(AND(TRIM(Q60)="",TRIM(V60)="",TRIM(AA60)="", TRIM(AF60)="", TRIM(AK60)="", TRIM(AP60)="", TRIM(AU60)="", TRIM(AZ60)="", TRIM(BE60)="", TRIM(BJ60)=""),"",Q60+V60+AA60+AF60+AK60+AP60+AU60+AZ60+BE60+BJ60) -> 277.698 | BS60: =IF(TRIM(BR60)="", "", IF(VLOOKUP(BR60,#REF!,2,FALSE)=0,"",VLOOKUP(BR60,#REF!,2,FALSE) ) ) ->  | BT60: 7.365 | BY60: 0.064 | CD60: 9947.579 | CH60: =IF(TRIM(CG60)="", "", IF(VLOOKUP(CG60,#REF!,2,FALSE)=0,"",VLOOKUP(CG60,#REF!,2,FALSE) ) ) ->  | CI60: =IF(AND(TRIM(BY60)="",TRIM(CD60)=""),"",BY60+CD60) -> 9947.643 | CM60: =IF(TRIM(CL60)="", "", IF(VLOOKUP(CL60,#REF!,2,FALSE)=0,"",VLOOKUP(CL60,#REF!,2,FALSE) ) ) ->  | CN60: 1.086 | CS60: 277.531 | CX60: 18.57 | DC60: 9594.914 | DG60: =IF(TRIM(DF60)="", "", IF(VLOOKUP(DF60,#REF!,2,FALSE)=0,"",VLOOKUP(DF60,#REF!,2,FALSE) ) ) ->  | DH60: =IF(AND(TRIM(G60)="",TRIM(L60)="",TRIM(BO60)="",TRIM(BT60)="",TRIM(CI60)="",TRIM(CN60)="",TRIM(CS60)="",TRIM(CX60)="",TRIM(DC60)=""),"",SUM(G60,L60,BO60,BT60,CI60,CN60,CS60,CX60,DC60)) -> 20145.307 | DL60: =IF(TRIM(DK60)="", "", IF(VLOOKUP(DK60,#REF!,2,FALSE)=0,"",VLOOKUP(DK60,#REF!,2,FALSE) ) ) -> 
C61: W08A | E61: HAZ_NHAZ | F61: Total | G61: =IF(AND(TRIM(G59)="",TRIM(G60)=""),"",G59+G60) -> 24.986 | L61: =IF(AND(TRIM(L59)="",TRIM(L60)=""),"",L59+L60) -> 38.295 | Q61: =IF(AND(TRIM(Q59)="",TRIM(Q60)=""),"",Q59+Q60) -> 557.288 | V61: =IF(AND(TRIM(V59)="",TRIM(V60)=""),"",V59+V60) -> 11.319 | AA61: =IF(AND(TRIM(AA59)="",TRIM(AA60)=""),"",AA59+AA60) -> 5.894 | AF61: =IF(AND(TRIM(AF59)="",TRIM(AF60)=""),"",AF59+AF60) -> 14.158 | AK61: =IF(AND(TRIM(AK59)="",TRIM(AK60)=""),"",AK59+AK60) -> 10.35 | AP61: =IF(AND(TRIM(AP59)="",TRIM(AP60)=""),"",AP59+AP60) -> 36.089 | AU61: =IF(AND(TRIM(AU59)="",TRIM(AU60)=""),"",AU59+AU60) -> 70.536 | AZ61: =IF(AND(TRIM(AZ59)="",TRIM(AZ60)=""),"",AZ59+AZ60) -> 71.16 | BE61: =IF(AND(TRIM(BE59)="",TRIM(BE60)=""),"",BE59+BE60) -> 278.628 | BJ61: =IF(AND(TRIM(BJ59)="",TRIM(BJ60)=""),"",BJ59+BJ60) -> 125.096 | BN61: =IF(TRIM(BM61)="", "", IF(VLOOKUP(BM61,#REF!,2,FALSE)=0,"",VLOOKUP(BM61,#REF!,2,FALSE) ) ) ->  | BO61: =IF(AND(TRIM(BO59)="", TRIM(BO60)=""), "", (IF(ISNUMBER(BO59),BO59,0)+IF(ISNUMBER(BO60),BO60,0))) -> 1180.518 | BS61: =IF(TRIM(BR61)="", "", IF(VLOOKUP(BR61,#REF!,2,FALSE)=0,"",VLOOKUP(BR61,#REF!,2,FALSE) ) ) ->  | BT61: =IF(AND(TRIM(BT59)="",TRIM(BT60)=""),"",BT59+BT60) -> 371.086 | BY61: =IF(AND(TRIM(BY59)="",TRIM(BY60)=""),"",BY59+BY60) -> 16.502 | CD61: =IF(AND(TRIM(CD59)="",TRIM(CD60)=""),"",CD59+CD60) -> 10136.09 | CH61: =IF(TRIM(CG61)="", "", IF(VLOOKUP(CG61,#REF!,2,FALSE)=0,"",VLOOKUP(CG61,#REF!,2,FALSE) ) ) ->  | CI61: =IF(AND(TRIM(CI59)="", TRIM(CI60)=""), "", (IF(ISNUMBER(CI59),CI59,0)+IF(ISNUMBER(CI60),CI60,0))) -> 10152.592 | CM61: =IF(TRIM(CL61)="", "", IF(VLOOKUP(CL61,#REF!,2,FALSE)=0,"",VLOOKUP(CL61,#REF!,2,FALSE) ) ) ->  | CN61: =IF(AND(TRIM(CN59)="",TRIM(CN60)=""),"",CN59+CN60) -> 84.997 | CS61: =IF(AND(TRIM(CS59)="",TRIM(CS60)=""),"",CS59+CS60) -> 3344.253 | CX61: =IF(AND(TRIM(CX59)="",TRIM(CX60)=""),"",CX59+CX60) -> 18.58 | DC61: =IF(AND(TRIM(DC59)="",TRIM(DC60)=""),"",DC59+DC60) -> 33639.415 | DG61: =IF(TRIM(DF61)="", "", IF(VLOOKUP(DF61,#REF!,2,FALSE)=0,"",VLOOKUP(DF61,#REF!,2,FALSE) ) ) ->  | DH61: =IF(AND(TRIM(DH59)="", TRIM(DH60)=""), "", SUM(DH59,DH60) ) -> 48854.722 | DL61: =IF(TRIM(DK61)="", "", IF(VLOOKUP(DK61,#REF!,2,FALSE)=0,"",VLOOKUP(DK61,#REF!,2,FALSE) ) ) -> 
B62: W081 | C62: W081 | D62: Discarded vehicles | E62: HAZ | F62: Hazardous | G62: 528.42 | L62: 10.88 | Q62: 1.075 | V62: 0 | AA62: 0 | AF62: 0 | AK62: 0 | AP62: 0 | AU62: 0 | AZ62: 4.58 | BE62: 2.44 | BJ62: 4.88 | BN62: =IF(TRIM(BM62)="", "", IF(VLOOKUP(BM62,#REF!,2,FALSE)=0,"",VLOOKUP(BM62,#REF!,2,FALSE) ) ) ->  | BO62: =IF(AND(TRIM(Q62)="",TRIM(V62)="",TRIM(AA62)="", TRIM(AF62)="", TRIM(AK62)="", TRIM(AP62)="", TRIM(AU62)="", TRIM(AZ62)="", TRIM(BE62)="", TRIM(BJ62)=""),"",Q62+V62+AA62+AF62+AK62+AP62+AU62+AZ62+BE62+BJ62) -> 12.975 | BS62: =IF(TRIM(BR62)="", "", IF(VLOOKUP(BR62,#REF!,2,FALSE)=0,"",VLOOKUP(BR62,#REF!,2,FALSE) ) ) ->  | BT62: 25.4 | BY62: 40.01 | CD62: 18.78 | CH62: =IF(TRIM(CG62)="", "", IF(VLOOKUP(CG62,#REF!,2,FALSE)=0,"",VLOOKUP(CG62,#REF!,2,FALSE) ) ) ->  | CI62: =IF(AND(TRIM(BY62)="",TRIM(CD62)=""),"",BY62+CD62) -> 58.79 | CM62: =IF(TRIM(CL62)="", "", IF(VLOOKUP(CL62,#REF!,2,FALSE)=0,"",VLOOKUP(CL62,#REF!,2,FALSE) ) ) ->  | CN62: 16.935 | CS62: 4091.514 | CX62: 10.89 | DC62: 48086.39 | DG62: =IF(TRIM(DF62)="", "", IF(VLOOKUP(DF62,#REF!,2,FALSE)=0,"",VLOOKUP(DF62,#REF!,2,FALSE) ) ) ->  | DH62: =IF(AND(TRIM(G62)="",TRIM(L62)="",TRIM(BO62)="",TRIM(BT62)="",TRIM(CI62)="",TRIM(CN62)="",TRIM(CS62)="",TRIM(CX62)="",TRIM(DC62)=""),"",SUM(G62,L62,BO62,BT62,CI62,CN62,CS62,CX62,DC62)) -> 52842.194 | DL62: =IF(TRIM(DK62)="", "", IF(VLOOKUP(DK62,#REF!,2,FALSE)=0,"",VLOOKUP(DK62,#REF!,2,FALSE) ) ) -> 
C63: W081 | E63: NHAZ | F63: Non-hazardous | G63: 24.18 | L63: 0.98 | Q63: 0 | V63: 0 | AA63: 0 | AF63: 0 | AK63: 0 | AP63: 0 | AU63: 0 | AZ63: 0.357 | BE63: 4.8 | BJ63: 92.68 | BN63: =IF(TRIM(BM63)="", "", IF(VLOOKUP(BM63,#REF!,2,FALSE)=0,"",VLOOKUP(BM63,#REF!,2,FALSE) ) ) ->  | BO63: =IF(AND(TRIM(Q63)="",TRIM(V63)="",TRIM(AA63)="", TRIM(AF63)="", TRIM(AK63)="", TRIM(AP63)="", TRIM(AU63)="", TRIM(AZ63)="", TRIM(BE63)="", TRIM(BJ63)=""),"",Q63+V63+AA63+AF63+AK63+AP63+AU63+AZ63+BE63+BJ63) -> 97.837 | BS63: =IF(TRIM(BR63)="", "", IF(VLOOKUP(BR63,#REF!,2,FALSE)=0,"",VLOOKUP(BR63,#REF!,2,FALSE) ) ) ->  | BT63: 0 | BY63: 91.075 | CD63: 3.968 | CH63: =IF(TRIM(CG63)="", "", IF(VLOOKUP(CG63,#REF!,2,FALSE)=0,"",VLOOKUP(CG63,#REF!,2,FALSE) ) ) ->  | CI63: =IF(AND(TRIM(BY63)="",TRIM(CD63)=""),"",BY63+CD63) -> 95.043 | CM63: =IF(TRIM(CL63)="", "", IF(VLOOKUP(CL63,#REF!,2,FALSE)=0,"",VLOOKUP(CL63,#REF!,2,FALSE) ) ) ->  | CN63: 0.94 | CS63: 704.95 | CX63: 56.97 | DC63: 1437.23 | DG63: =IF(TRIM(DF63)="", "", IF(VLOOKUP(DF63,#REF!,2,FALSE)=0,"",VLOOKUP(DF63,#REF!,2,FALSE) ) ) ->  | DH63: =IF(AND(TRIM(G63)="",TRIM(L63)="",TRIM(BO63)="",TRIM(BT63)="",TRIM(CI63)="",TRIM(CN63)="",TRIM(CS63)="",TRIM(CX63)="",TRIM(DC63)=""),"",SUM(G63,L63,BO63,BT63,CI63,CN63,CS63,CX63,DC63)) -> 2418.13 | DL63: =IF(TRIM(DK63)="", "", IF(VLOOKUP(DK63,#REF!,2,FALSE)=0,"",VLOOKUP(DK63,#REF!,2,FALSE) ) ) -> 
C64: W081 | E64: HAZ_NHAZ | F64: Total | G64: =IF(AND(TRIM(G62)="",TRIM(G63)=""),"",G62+G63) -> 552.6 | L64: =IF(AND(TRIM(L62)="",TRIM(L63)=""),"",L62+L63) -> 11.86 | Q64: =IF(AND(TRIM(Q62)="",TRIM(Q63)=""),"",Q62+Q63) -> 1.075 | V64: =IF(AND(TRIM(V62)="",TRIM(V63)=""),"",V62+V63) -> 0 | AA64: =IF(AND(TRIM(AA62)="",TRIM(AA63)=""),"",AA62+AA63) -> 0 | AF64: =IF(AND(TRIM(AF62)="",TRIM(AF63)=""),"",AF62+AF63) -> 0 | AK64: =IF(AND(TRIM(AK62)="",TRIM(AK63)=""),"",AK62+AK63) -> 0 | AP64: =IF(AND(TRIM(AP62)="",TRIM(AP63)=""),"",AP62+AP63) -> 0 | AU64: =IF(AND(TRIM(AU62)="",TRIM(AU63)=""),"",AU62+AU63) -> 0 | AZ64: =IF(AND(TRIM(AZ62)="",TRIM(AZ63)=""),"",AZ62+AZ63) -> 4.937 | BE64: =IF(AND(TRIM(BE62)="",TRIM(BE63)=""),"",BE62+BE63) -> 7.24 | BJ64: =IF(AND(TRIM(BJ62)="",TRIM(BJ63)=""),"",BJ62+BJ63) -> 97.56 | BN64: =IF(TRIM(BM64)="", "", IF(VLOOKUP(BM64,#REF!,2,FALSE)=0,"",VLOOKUP(BM64,#REF!,2,FALSE) ) ) ->  | BO64: =IF(AND(TRIM(BO62)="", TRIM(BO63)=""), "", (IF(ISNUMBER(BO62),BO62,0)+IF(ISNUMBER(BO63),BO63,0))) -> 110.812 | BS64: =IF(TRIM(BR64)="", "", IF(VLOOKUP(BR64,#REF!,2,FALSE)=0,"",VLOOKUP(BR64,#REF!,2,FALSE) ) ) ->  | BT64: =IF(AND(TRIM(BT62)="",TRIM(BT63)=""),"",BT62+BT63) -> 25.4 | BY64: =IF(AND(TRIM(BY62)="",TRIM(BY63)=""),"",BY62+BY63) -> 131.085 | CD64: =IF(AND(TRIM(CD62)="",TRIM(CD63)=""),"",CD62+CD63) -> 22.748 | CH64: =IF(TRIM(CG64)="", "", IF(VLOOKUP(CG64,#REF!,2,FALSE)=0,"",VLOOKUP(CG64,#REF!,2,FALSE) ) ) ->  | CI64: =IF(AND(TRIM(CI62)="", TRIM(CI63)=""), "", (IF(ISNUMBER(CI62),CI62,0)+IF(ISNUMBER(CI63),CI63,0))) -> 153.833 | CM64: =IF(TRIM(CL64)="", "", IF(VLOOKUP(CL64,#REF!,2,FALSE)=0,"",VLOOKUP(CL64,#REF!,2,FALSE) ) ) ->  | CN64: =IF(AND(TRIM(CN62)="",TRIM(CN63)=""),"",CN62+CN63) -> 17.875 | CS64: =IF(AND(TRIM(CS62)="",TRIM(CS63)=""),"",CS62+CS63) -> 4796.464 | CX64: =IF(AND(TRIM(CX62)="",TRIM(CX63)=""),"",CX62+CX63) -> 67.86 | DC64: =IF(AND(TRIM(DC62)="",TRIM(DC63)=""),"",DC62+DC63) -> 49523.62 | DG64: =IF(TRIM(DF64)="", "", IF(VLOOKUP(DF64,#REF!,2,FALSE)=0,"",VLOOKUP(DF64,#REF!,2,FALSE) ) ) ->  | DH64: =IF(AND(TRIM(DH62)="", TRIM(DH63)=""), "", SUM(DH62,DH63) ) -> 55260.324 | DL64: =IF(TRIM(DK64)="", "", IF(VLOOKUP(DK64,#REF!,2,FALSE)=0,"",VLOOKUP(DK64,#REF!,2,FALSE) ) ) -> 
B65: W0841 | C65: W0841 | D65: Batteries and accumulators wastes | E65: HAZ | F65: Hazardous | G65: 16.307 | L65: 5.461 | Q65: 25.714 | V65: 1.319 | AA65: 2.057 | AF65: 1.698 | AK65: 0.05 | AP65: 11.222 | AU65: 10.004 | AZ65: 294.086 | BE65: 834.707 | BJ65: 59.308 | BN65: =IF(TRIM(BM65)="", "", IF(VLOOKUP(BM65,#REF!,2,FALSE)=0,"",VLOOKUP(BM65,#REF!,2,FALSE) ) ) ->  | BO65: =IF(AND(TRIM(Q65)="",TRIM(V65)="",TRIM(AA65)="", TRIM(AF65)="", TRIM(AK65)="", TRIM(AP65)="", TRIM(AU65)="", TRIM(AZ65)="", TRIM(BE65)="", TRIM(BJ65)=""),"",Q65+V65+AA65+AF65+AK65+AP65+AU65+AZ65+BE65+BJ65) -> 1240.165 | BS65: =IF(TRIM(BR65)="", "", IF(VLOOKUP(BR65,#REF!,2,FALSE)=0,"",VLOOKUP(BR65,#REF!,2,FALSE) ) ) ->  | BT65: 55.494 | BY65: 3.246 | CD65: 251.365 | CH65: =IF(TRIM(CG65)="", "", IF(VLOOKUP(CG65,#REF!,2,FALSE)=0,"",VLOOKUP(CG65,#REF!,2,FALSE) ) ) ->  | CI65: =IF(AND(TRIM(BY65)="",TRIM(CD65)=""),"",BY65+CD65) -> 254.611 | CM65: =IF(TRIM(CL65)="", "", IF(VLOOKUP(CL65,#REF!,2,FALSE)=0,"",VLOOKUP(CL65,#REF!,2,FALSE) ) ) ->  | CN65: 35.648 | CS65: 9798.104 | CX65: 1.23 | DC65: 3198.65 | DG65: =IF(TRIM(DF65)="", "", IF(VLOOKUP(DF65,#REF!,2,FALSE)=0,"",VLOOKUP(DF65,#REF!,2,FALSE) ) ) ->  | DH65: =IF(AND(TRIM(G65)="",TRIM(L65)="",TRIM(BO65)="",TRIM(BT65)="",TRIM(CI65)="",TRIM(CN65)="",TRIM(CS65)="",TRIM(CX65)="",TRIM(DC65)=""),"",SUM(G65,L65,BO65,BT65,CI65,CN65,CS65,CX65,DC65)) -> 14605.67 | DL65: =IF(TRIM(DK65)="", "", IF(VLOOKUP(DK65,#REF!,2,FALSE)=0,"",VLOOKUP(DK65,#REF!,2,FALSE) ) ) -> 
C66: W0841 | E66: NHAZ | F66: Non-hazardous | G66: 0 | L66: 0 | Q66: 0.852 | V66: 0 | AA66: 0 | AF66: 0.004 | AK66: 0 | AP66: 0.027 | AU66: 0.056 | AZ66: 87.333 | BE66: 0.069 | BJ66: 0.017 | BN66: =IF(TRIM(BM66)="", "", IF(VLOOKUP(BM66,#REF!,2,FALSE)=0,"",VLOOKUP(BM66,#REF!,2,FALSE) ) ) ->  | BO66: =IF(AND(TRIM(Q66)="",TRIM(V66)="",TRIM(AA66)="", TRIM(AF66)="", TRIM(AK66)="", TRIM(AP66)="", TRIM(AU66)="", TRIM(AZ66)="", TRIM(BE66)="", TRIM(BJ66)=""),"",Q66+V66+AA66+AF66+AK66+AP66+AU66+AZ66+BE66+BJ66) -> 88.358 | BS66: =IF(TRIM(BR66)="", "", IF(VLOOKUP(BR66,#REF!,2,FALSE)=0,"",VLOOKUP(BR66,#REF!,2,FALSE) ) ) ->  | BT66: 0.04 | BY66: 0.044 | CD66: 5.797 | CH66: =IF(TRIM(CG66)="", "", IF(VLOOKUP(CG66,#REF!,2,FALSE)=0,"",VLOOKUP(CG66,#REF!,2,FALSE) ) ) ->  | CI66: =IF(AND(TRIM(BY66)="",TRIM(CD66)=""),"",BY66+CD66) -> 5.841 | CM66: =IF(TRIM(CL66)="", "", IF(VLOOKUP(CL66,#REF!,2,FALSE)=0,"",VLOOKUP(CL66,#REF!,2,FALSE) ) ) ->  | CN66: 0.31 | CS66: 68.995 | CX66: 0 | DC66: 48.479 | DG66: =IF(TRIM(DF66)="", "", IF(VLOOKUP(DF66,#REF!,2,FALSE)=0,"",VLOOKUP(DF66,#REF!,2,FALSE) ) ) ->  | DH66: =IF(AND(TRIM(G66)="",TRIM(L66)="",TRIM(BO66)="",TRIM(BT66)="",TRIM(CI66)="",TRIM(CN66)="",TRIM(CS66)="",TRIM(CX66)="",TRIM(DC66)=""),"",SUM(G66,L66,BO66,BT66,CI66,CN66,CS66,CX66,DC66)) -> 212.023 | DL66: =IF(TRIM(DK66)="", "", IF(VLOOKUP(DK66,#REF!,2,FALSE)=0,"",VLOOKUP(DK66,#REF!,2,FALSE) ) ) -> 
C67: W0841 | E67: HAZ_NHAZ | F67: Total | G67: =IF(AND(TRIM(G65)="",TRIM(G66)=""),"",G65+G66) -> 16.307 | L67: =IF(AND(TRIM(L65)="",TRIM(L66)=""),"",L65+L66) -> 5.461 | Q67: =IF(AND(TRIM(Q65)="",TRIM(Q66)=""),"",Q65+Q66) -> 26.566 | V67: =IF(AND(TRIM(V65)="",TRIM(V66)=""),"",V65+V66) -> 1.319 | AA67: =IF(AND(TRIM(AA65)="",TRIM(AA66)=""),"",AA65+AA66) -> 2.057 | AF67: =IF(AND(TRIM(AF65)="",TRIM(AF66)=""),"",AF65+AF66) -> 1.702 | AK67: =IF(AND(TRIM(AK65)="",TRIM(AK66)=""),"",AK65+AK66) -> 0.05 | AP67: =IF(AND(TRIM(AP65)="",TRIM(AP66)=""),"",AP65+AP66) -> 11.249 | AU67: =IF(AND(TRIM(AU65)="",TRIM(AU66)=""),"",AU65+AU66) -> 10.06 | AZ67: =IF(AND(TRIM(AZ65)="",TRIM(AZ66)=""),"",AZ65+AZ66) -> 381.419 | BE67: =IF(AND(TRIM(BE65)="",TRIM(BE66)=""),"",BE65+BE66) -> 834.776 | BJ67: =IF(AND(TRIM(BJ65)="",TRIM(BJ66)=""),"",BJ65+BJ66) -> 59.325 | BN67: =IF(TRIM(BM67)="", "", IF(VLOOKUP(BM67,#REF!,2,FALSE)=0,"",VLOOKUP(BM67,#REF!,2,FALSE) ) ) ->  | BO67: =IF(AND(TRIM(BO65)="", TRIM(BO66)=""), "", (IF(ISNUMBER(BO65),BO65,0)+IF(ISNUMBER(BO66),BO66,0))) -> 1328.523 | BS67: =IF(TRIM(BR67)="", "", IF(VLOOKUP(BR67,#REF!,2,FALSE)=0,"",VLOOKUP(BR67,#REF!,2,FALSE) ) ) ->  | BT67: =IF(AND(TRIM(BT65)="",TRIM(BT66)=""),"",BT65+BT66) -> 55.534 | BY67: =IF(AND(TRIM(BY65)="",TRIM(BY66)=""),"",BY65+BY66) -> 3.29 | CD67: =IF(AND(TRIM(CD65)="",TRIM(CD66)=""),"",CD65+CD66) -> 257.162 | CH67: =IF(TRIM(CG67)="", "", IF(VLOOKUP(CG67,#REF!,2,FALSE)=0,"",VLOOKUP(CG67,#REF!,2,FALSE) ) ) ->  | CI67: =IF(AND(TRIM(CI65)="", TRIM(CI66)=""), "", (IF(ISNUMBER(CI65),CI65,0)+IF(ISNUMBER(CI66),CI66,0))) -> 260.452 | CM67: =IF(TRIM(CL67)="", "", IF(VLOOKUP(CL67,#REF!,2,FALSE)=0,"",VLOOKUP(CL67,#REF!,2,FALSE) ) ) ->  | CN67: =IF(AND(TRIM(CN65)="",TRIM(CN66)=""),"",CN65+CN66) -> 35.958 | CS67: =IF(AND(TRIM(CS65)="",TRIM(CS66)=""),"",CS65+CS66) -> 9867.099 | CX67: =IF(AND(TRIM(CX65)="",TRIM(CX66)=""),"",CX65+CX66) -> 1.23 | DC67: =IF(AND(TRIM(DC65)="",TRIM(DC66)=""),"",DC65+DC66) -> 3247.129 | DG67: =IF(TRIM(DF67)="", "", IF(VLOOKUP(DF67,#REF!,2,FALSE)=0,"",VLOOKUP(DF67,#REF!,2,FALSE) ) ) ->  | DH67: =IF(AND(TRIM(DH65)="", TRIM(DH66)=""), "", SUM(DH65,DH66) ) -> 14817.693 | DL67: =IF(TRIM(DK67)="", "", IF(VLOOKUP(DK67,#REF!,2,FALSE)=0,"",VLOOKUP(DK67,#REF!,2,FALSE) ) ) -> 
B68: W091 | D68: Animal and mixed food waste | F68: Not applicable | G68: 0 | L68: 0 | Q68: 0 | V68: 0 | AA68: 0 | AF68: 0 | AK68: 0 | AP68: 0 | AU68: 0 | AZ68: 0 | BE68: 0 | BJ68: 0 | BT68: 0 | BY68: 0 | CD68: 0 | CN68: 0 | CS68: 0 | CX68: 0 | DC68: 0
C69: W091 | E69: NHAZ | F69: Non-hazardous | G69: 12.093 | L69: 0 | Q69: 11082.551 | V69: 26.035 | AA69: 0.8 | AF69: 13.635 | AK69: 9.57 | AP69: 25.67 | AU69: 407.92 | AZ69: 14.345 | BE69: 63.15 | BJ69: 7.133 | BN69: =IF(TRIM(BM69)="", "", IF(VLOOKUP(BM69,#REF!,2,FALSE)=0,"",VLOOKUP(BM69,#REF!,2,FALSE) ) ) ->  | BO69: =IF(AND(TRIM(Q69)="",TRIM(V69)="",TRIM(AA69)="", TRIM(AF69)="", TRIM(AK69)="", TRIM(AP69)="", TRIM(AU69)="", TRIM(AZ69)="", TRIM(BE69)="", TRIM(BJ69)=""),"",Q69+V69+AA69+AF69+AK69+AP69+AU69+AZ69+BE69+BJ69) -> 11650.809 | BS69: =IF(TRIM(BR69)="", "", IF(VLOOKUP(BR69,#REF!,2,FALSE)=0,"",VLOOKUP(BR69,#REF!,2,FALSE) ) ) ->  | BT69: 8396.886 | BY69: 603.208 | CD69: 4426.671 | CH69: =IF(TRIM(CG69)="", "", IF(VLOOKUP(CG69,#REF!,2,FALSE)=0,"",VLOOKUP(CG69,#REF!,2,FALSE) ) ) ->  | CI69: =IF(AND(TRIM(BY69)="",TRIM(CD69)=""),"",BY69+CD69) -> 5029.879 | CM69: =IF(TRIM(CL69)="", "", IF(VLOOKUP(CL69,#REF!,2,FALSE)=0,"",VLOOKUP(CL69,#REF!,2,FALSE) ) ) ->  | CN69: 7.97 | CS69: 18403.723 | CX69: 1.5 | DC69: 33288.13 | DG69: =IF(TRIM(DF69)="", "", IF(VLOOKUP(DF69,#REF!,2,FALSE)=0,"",VLOOKUP(DF69,#REF!,2,FALSE) ) ) ->  | DH69: =IF(AND(TRIM(G69)="",TRIM(L69)="",TRIM(BO69)="",TRIM(BT69)="",TRIM(CI69)="",TRIM(CN69)="",TRIM(CS69)="",TRIM(CX69)="",TRIM(DC69)=""),"",SUM(G69,L69,BO69,BT69,CI69,CN69,CS69,CX69,DC69)) -> 76790.99 | DL69: =IF(TRIM(DK69)="", "", IF(VLOOKUP(DK69,#REF!,2,FALSE)=0,"",VLOOKUP(DK69,#REF!,2,FALSE) ) ) -> 
C70: W091 | E70: HAZ_NHAZ | F70: Total | G70: =IF(AND(TRIM(G68)="",TRIM(G69)=""),"",G68+G69) -> 12.093 | L70: =IF(AND(TRIM(L68)="",TRIM(L69)=""),"",L68+L69) -> 0 | Q70: =IF(AND(TRIM(Q68)="",TRIM(Q69)=""),"",Q68+Q69) -> 11082.551 | V70: =IF(AND(TRIM(V68)="",TRIM(V69)=""),"",V68+V69) -> 26.035 | AA70: =IF(AND(TRIM(AA68)="",TRIM(AA69)=""),"",AA68+AA69) -> 0.8 | AF70: =IF(AND(TRIM(AF68)="",TRIM(AF69)=""),"",AF68+AF69) -> 13.635 | AK70: =IF(AND(TRIM(AK68)="",TRIM(AK69)=""),"",AK68+AK69) -> 9.57 | AP70: =IF(AND(TRIM(AP68)="",TRIM(AP69)=""),"",AP68+AP69) -> 25.67 | AU70: =IF(AND(TRIM(AU68)="",TRIM(AU69)=""),"",AU68+AU69) -> 407.92 | AZ70: =IF(AND(TRIM(AZ68)="",TRIM(AZ69)=""),"",AZ68+AZ69) -> 14.345 | BE70: =IF(AND(TRIM(BE68)="",TRIM(BE69)=""),"",BE68+BE69) -> 63.15 | BJ70: =IF(AND(TRIM(BJ68)="",TRIM(BJ69)=""),"",BJ68+BJ69) -> 7.133 | BN70: =IF(TRIM(BM70)="", "", IF(VLOOKUP(BM70,#REF!,2,FALSE)=0,"",VLOOKUP(BM70,#REF!,2,FALSE) ) ) ->  | BO70: =IF(AND(TRIM(BO68)="", TRIM(BO69)=""), "", (IF(ISNUMBER(BO68),BO68,0)+IF(ISNUMBER(BO69),BO69,0))) -> 11650.809 | BS70: =IF(TRIM(BR70)="", "", IF(VLOOKUP(BR70,#REF!,2,FALSE)=0,"",VLOOKUP(BR70,#REF!,2,FALSE) ) ) ->  | BT70: =IF(AND(TRIM(BT68)="",TRIM(BT69)=""),"",BT68+BT69) -> 8396.886 | BY70: =IF(AND(TRIM(BY68)="",TRIM(BY69)=""),"",BY68+BY69) -> 603.208 | CD70: =IF(AND(TRIM(CD68)="",TRIM(CD69)=""),"",CD68+CD69) -> 4426.671 | CH70: =IF(TRIM(CG70)="", "", IF(VLOOKUP(CG70,#REF!,2,FALSE)=0,"",VLOOKUP(CG70,#REF!,2,FALSE) ) ) ->  | CI70: =IF(AND(TRIM(CI68)="", TRIM(CI69)=""), "", (IF(ISNUMBER(CI68),CI68,0)+IF(ISNUMBER(CI69),CI69,0))) -> 5029.879 | CM70: =IF(TRIM(CL70)="", "", IF(VLOOKUP(CL70,#REF!,2,FALSE)=0,"",VLOOKUP(CL70,#REF!,2,FALSE) ) ) ->  | CN70: =IF(AND(TRIM(CN68)="",TRIM(CN69)=""),"",CN68+CN69) -> 7.97 | CS70: =IF(AND(TRIM(CS68)="",TRIM(CS69)=""),"",CS68+CS69) -> 18403.723 | CX70: =IF(AND(TRIM(CX68)="",TRIM(CX69)=""),"",CX68+CX69) -> 1.5 | DC70: =IF(AND(TRIM(DC68)="",TRIM(DC69)=""),"",DC68+DC69) -> 33288.13 | DG70: =IF(TRIM(DF70)="", "", IF(VLOOKUP(DF70,#REF!,2,FALSE)=0,"",VLOOKUP(DF70,#REF!,2,FALSE) ) ) ->  | DH70: =IF(AND(TRIM(DH68)="", TRIM(DH69)=""), "", SUM(DH68,DH69) ) -> 76790.99 | DL70: =IF(TRIM(DK70)="", "", IF(VLOOKUP(DK70,#REF!,2,FALSE)=0,"",VLOOKUP(DK70,#REF!,2,FALSE) ) ) -> 
B71: W092 | D71: Vegetal wastes | F71: Not applicable | G71: 0 | L71: 0 | Q71: 0 | V71: 0 | AA71: 0 | AF71: 0 | AK71: 0 | AP71: 0 | AU71: 0 | AZ71: 0 | BE71: 0 | BJ71: 0 | BT71: 0 | BY71: 0 | CD71: 0 | CN71: 0 | CS71: 0 | CX71: 0 | DC71: 0
C72: W092 | E72: NHAZ | F72: Non-hazardous | G72: 1385.68 | L72: 0 | Q72: 15582.068 | V72: 3.18 | AA72: 0 | AF72: 0 | AK72: 0 | AP72: 118.474 | AU72: 20.45 | AZ72: 10.65 | BE72: 0 | BJ72: 0 | BN72: =IF(TRIM(BM72)="", "", IF(VLOOKUP(BM72,#REF!,2,FALSE)=0,"",VLOOKUP(BM72,#REF!,2,FALSE) ) ) ->  | BO72: =IF(AND(TRIM(Q72)="",TRIM(V72)="",TRIM(AA72)="", TRIM(AF72)="", TRIM(AK72)="", TRIM(AP72)="", TRIM(AU72)="", TRIM(AZ72)="", TRIM(BE72)="", TRIM(BJ72)=""),"",Q72+V72+AA72+AF72+AK72+AP72+AU72+AZ72+BE72+BJ72) -> 15734.822 | BS72: =IF(TRIM(BR72)="", "", IF(VLOOKUP(BR72,#REF!,2,FALSE)=0,"",VLOOKUP(BR72,#REF!,2,FALSE) ) ) ->  | BT72: 194.49 | BY72: 33.46 | CD72: 12628.26 | CH72: =IF(TRIM(CG72)="", "", IF(VLOOKUP(CG72,#REF!,2,FALSE)=0,"",VLOOKUP(CG72,#REF!,2,FALSE) ) ) ->  | CI72: =IF(AND(TRIM(BY72)="",TRIM(CD72)=""),"",BY72+CD72) -> 12661.72 | CM72: =IF(TRIM(CL72)="", "", IF(VLOOKUP(CL72,#REF!,2,FALSE)=0,"",VLOOKUP(CL72,#REF!,2,FALSE) ) ) ->  | CN72: 118.05 | CS72: 44530.541 | CX72: 0 | DC72: 25924.932 | DG72: =IF(TRIM(DF72)="", "", IF(VLOOKUP(DF72,#REF!,2,FALSE)=0,"",VLOOKUP(DF72,#REF!,2,FALSE) ) ) ->  | DH72: =IF(AND(TRIM(G72)="",TRIM(L72)="",TRIM(BO72)="",TRIM(BT72)="",TRIM(CI72)="",TRIM(CN72)="",TRIM(CS72)="",TRIM(CX72)="",TRIM(DC72)=""),"",SUM(G72,L72,BO72,BT72,CI72,CN72,CS72,CX72,DC72)) -> 100550.235 | DL72: =IF(TRIM(DK72)="", "", IF(VLOOKUP(DK72,#REF!,2,FALSE)=0,"",VLOOKUP(DK72,#REF!,2,FALSE) ) ) -> 
C73: W092 | E73: HAZ_NHAZ | F73: Total | G73: =IF(AND(TRIM(G71)="",TRIM(G72)=""),"",G71+G72) -> 1385.68 | L73: =IF(AND(TRIM(L71)="",TRIM(L72)=""),"",L71+L72) -> 0 | Q73: =IF(AND(TRIM(Q71)="",TRIM(Q72)=""),"",Q71+Q72) -> 15582.068 | V73: =IF(AND(TRIM(V71)="",TRIM(V72)=""),"",V71+V72) -> 3.18 | AA73: =IF(AND(TRIM(AA71)="",TRIM(AA72)=""),"",AA71+AA72) -> 0 | AF73: =IF(AND(TRIM(AF71)="",TRIM(AF72)=""),"",AF71+AF72) -> 0 | AK73: =IF(AND(TRIM(AK71)="",TRIM(AK72)=""),"",AK71+AK72) -> 0 | AP73: =IF(AND(TRIM(AP71)="",TRIM(AP72)=""),"",AP71+AP72) -> 118.474 | AU73: =IF(AND(TRIM(AU71)="",TRIM(AU72)=""),"",AU71+AU72) -> 20.45 | AZ73: =IF(AND(TRIM(AZ71)="",TRIM(AZ72)=""),"",AZ71+AZ72) -> 10.65 | BE73: =IF(AND(TRIM(BE71)="",TRIM(BE72)=""),"",BE71+BE72) -> 0 | BJ73: =IF(AND(TRIM(BJ71)="",TRIM(BJ72)=""),"",BJ71+BJ72) -> 0 | BN73: =IF(TRIM(BM73)="", "", IF(VLOOKUP(BM73,#REF!,2,FALSE)=0,"",VLOOKUP(BM73,#REF!,2,FALSE) ) ) ->  | BO73: =IF(AND(TRIM(BO71)="", TRIM(BO72)=""), "", (IF(ISNUMBER(BO71),BO71,0)+IF(ISNUMBER(BO72),BO72,0))) -> 15734.822 | BS73: =IF(TRIM(BR73)="", "", IF(VLOOKUP(BR73,#REF!,2,FALSE)=0,"",VLOOKUP(BR73,#REF!,2,FALSE) ) ) ->  | BT73: =IF(AND(TRIM(BT71)="",TRIM(BT72)=""),"",BT71+BT72) -> 194.49 | BY73: =IF(AND(TRIM(BY71)="",TRIM(BY72)=""),"",BY71+BY72) -> 33.46 | CD73: =IF(AND(TRIM(CD71)="",TRIM(CD72)=""),"",CD71+CD72) -> 12628.26 | CH73: =IF(TRIM(CG73)="", "", IF(VLOOKUP(CG73,#REF!,2,FALSE)=0,"",VLOOKUP(CG73,#REF!,2,FALSE) ) ) ->  | CI73: =IF(AND(TRIM(CI71)="", TRIM(CI72)=""), "", (IF(ISNUMBER(CI71),CI71,0)+IF(ISNUMBER(CI72),CI72,0))) -> 12661.72 | CM73: =IF(TRIM(CL73)="", "", IF(VLOOKUP(CL73,#REF!,2,FALSE)=0,"",VLOOKUP(CL73,#REF!,2,FALSE) ) ) ->  | CN73: =IF(AND(TRIM(CN71)="",TRIM(CN72)=""),"",CN71+CN72) -> 118.05 | CS73: =IF(AND(TRIM(CS71)="",TRIM(CS72)=""),"",CS71+CS72) -> 44530.541 | CX73: =IF(AND(TRIM(CX71)="",TRIM(CX72)=""),"",CX71+CX72) -> 0 | DC73: =IF(AND(TRIM(DC71)="",TRIM(DC72)=""),"",DC71+DC72) -> 25924.932 | DG73: =IF(TRIM(DF73)="", "", IF(VLOOKUP(DF73,#REF!,2,FALSE)=0,"",VLOOKUP(DF73,#REF!,2,FALSE) ) ) ->  | DH73: =IF(AND(TRIM(DH71)="", TRIM(DH72)=""), "", SUM(DH71,DH72) ) -> 100550.235 | DL73: =IF(TRIM(DK73)="", "", IF(VLOOKUP(DK73,#REF!,2,FALSE)=0,"",VLOOKUP(DK73,#REF!,2,FALSE) ) ) -> 
B74: W093 | D74: Animal faeces, urine and manure | F74: Not applicable | G74: 0 | L74: 0 | Q74: 0 | V74: 0 | AA74: 0 | AF74: 0 | AK74: 0 | AP74: 0 | AU74: 0 | AZ74: 0 | BE74: 0 | BJ74: 0 | BT74: 0 | BY74: 0 | CD74: 0 | CN74: 0 | CS74: 0 | CX74: 0 | DC74: 0
C75: W093 | E75: NHAZ | F75: Non-hazardous | G75: 554615 | L75: 0 | Q75: 0 | V75: 0 | AA75: 0 | AF75: 0 | AK75: 0 | AP75: 0 | AU75: 0 | AZ75: 0 | BE75: 0 | BJ75: 0 | BN75: =IF(TRIM(BM75)="", "", IF(VLOOKUP(BM75,#REF!,2,FALSE)=0,"",VLOOKUP(BM75,#REF!,2,FALSE) ) ) ->  | BO75: =IF(AND(TRIM(Q75)="",TRIM(V75)="",TRIM(AA75)="", TRIM(AF75)="", TRIM(AK75)="", TRIM(AP75)="", TRIM(AU75)="", TRIM(AZ75)="", TRIM(BE75)="", TRIM(BJ75)=""),"",Q75+V75+AA75+AF75+AK75+AP75+AU75+AZ75+BE75+BJ75) -> 0 | BS75: =IF(TRIM(BR75)="", "", IF(VLOOKUP(BR75,#REF!,2,FALSE)=0,"",VLOOKUP(BR75,#REF!,2,FALSE) ) ) ->  | BT75: 0 | BY75: 0 | CD75: 0 | CH75: =IF(TRIM(CG75)="", "", IF(VLOOKUP(CG75,#REF!,2,FALSE)=0,"",VLOOKUP(CG75,#REF!,2,FALSE) ) ) ->  | CI75: =IF(AND(TRIM(BY75)="",TRIM(CD75)=""),"",BY75+CD75) -> 0 | CM75: =IF(TRIM(CL75)="", "", IF(VLOOKUP(CL75,#REF!,2,FALSE)=0,"",VLOOKUP(CL75,#REF!,2,FALSE) ) ) ->  | CN75: 0 | CS75: 232.04 | CX75: 0 | DC75: 0 | DG75: =IF(TRIM(DF75)="", "", IF(VLOOKUP(DF75,#REF!,2,FALSE)=0,"",VLOOKUP(DF75,#REF!,2,FALSE) ) ) ->  | DH75: =IF(AND(TRIM(G75)="",TRIM(L75)="",TRIM(BO75)="",TRIM(BT75)="",TRIM(CI75)="",TRIM(CN75)="",TRIM(CS75)="",TRIM(CX75)="",TRIM(DC75)=""),"",SUM(G75,L75,BO75,BT75,CI75,CN75,CS75,CX75,DC75)) -> 554847.04 | DL75: =IF(TRIM(DK75)="", "", IF(VLOOKUP(DK75,#REF!,2,FALSE)=0,"",VLOOKUP(DK75,#REF!,2,FALSE) ) ) -> 
C76: W093 | E76: HAZ_NHAZ | F76: Total | G76: =IF(AND(TRIM(G74)="",TRIM(G75)=""),"",G74+G75) -> 554615 | L76: =IF(AND(TRIM(L74)="",TRIM(L75)=""),"",L74+L75) -> 0 | Q76: =IF(AND(TRIM(Q74)="",TRIM(Q75)=""),"",Q74+Q75) -> 0 | V76: =IF(AND(TRIM(V74)="",TRIM(V75)=""),"",V74+V75) -> 0 | AA76: =IF(AND(TRIM(AA74)="",TRIM(AA75)=""),"",AA74+AA75) -> 0 | AF76: =IF(AND(TRIM(AF74)="",TRIM(AF75)=""),"",AF74+AF75) -> 0 | AK76: =IF(AND(TRIM(AK74)="",TRIM(AK75)=""),"",AK74+AK75) -> 0 | AP76: =IF(AND(TRIM(AP74)="",TRIM(AP75)=""),"",AP74+AP75) -> 0 | AU76: =IF(AND(TRIM(AU74)="",TRIM(AU75)=""),"",AU74+AU75) -> 0 | AZ76: =IF(AND(TRIM(AZ74)="",TRIM(AZ75)=""),"",AZ74+AZ75) -> 0 | BE76: =IF(AND(TRIM(BE74)="",TRIM(BE75)=""),"",BE74+BE75) -> 0 | BJ76: =IF(AND(TRIM(BJ74)="",TRIM(BJ75)=""),"",BJ74+BJ75) -> 0 | BN76: =IF(TRIM(BM76)="", "", IF(VLOOKUP(BM76,#REF!,2,FALSE)=0,"",VLOOKUP(BM76,#REF!,2,FALSE) ) ) ->  | BO76: =IF(AND(TRIM(BO74)="", TRIM(BO75)=""), "", (IF(ISNUMBER(BO74),BO74,0)+IF(ISNUMBER(BO75),BO75,0))) -> 0 | BS76: =IF(TRIM(BR76)="", "", IF(VLOOKUP(BR76,#REF!,2,FALSE)=0,"",VLOOKUP(BR76,#REF!,2,FALSE) ) ) ->  | BT76: =IF(AND(TRIM(BT74)="",TRIM(BT75)=""),"",BT74+BT75) -> 0 | BY76: =IF(AND(TRIM(BY74)="",TRIM(BY75)=""),"",BY74+BY75) -> 0 | CD76: =IF(AND(TRIM(CD74)="",TRIM(CD75)=""),"",CD74+CD75) -> 0 | CH76: =IF(TRIM(CG76)="", "", IF(VLOOKUP(CG76,#REF!,2,FALSE)=0,"",VLOOKUP(CG76,#REF!,2,FALSE) ) ) ->  | CI76: =IF(AND(TRIM(CI74)="", TRIM(CI75)=""), "", (IF(ISNUMBER(CI74),CI74,0)+IF(ISNUMBER(CI75),CI75,0))) -> 0 | CM76: =IF(TRIM(CL76)="", "", IF(VLOOKUP(CL76,#REF!,2,FALSE)=0,"",VLOOKUP(CL76,#REF!,2,FALSE) ) ) ->  | CN76: =IF(AND(TRIM(CN74)="",TRIM(CN75)=""),"",CN74+CN75) -> 0 | CS76: =IF(AND(TRIM(CS74)="",TRIM(CS75)=""),"",CS74+CS75) -> 232.04 | CX76: =IF(AND(TRIM(CX74)="",TRIM(CX75)=""),"",CX74+CX75) -> 0 | DC76: =IF(AND(TRIM(DC74)="",TRIM(DC75)=""),"",DC74+DC75) -> 0 | DG76: =IF(TRIM(DF76)="", "", IF(VLOOKUP(DF76,#REF!,2,FALSE)=0,"",VLOOKUP(DF76,#REF!,2,FALSE) ) ) ->  | DH76: =IF(AND(TRIM(DH74)="", TRIM(DH75)=""), "", SUM(DH74,DH75) ) -> 554847.04 | DL76: =IF(TRIM(DK76)="", "", IF(VLOOKUP(DK76,#REF!,2,FALSE)=0,"",VLOOKUP(DK76,#REF!,2,FALSE) ) ) -> 
B77: W101 | D77: Household and similar wastes | F77: Not applicable | G77: 0 | L77: 0 | Q77: 0 | V77: 0 | AA77: 0 | AF77: 0 | AK77: 0 | AP77: 0 | AU77: 0 | AZ77: 0 | BE77: 0 | BJ77: 0 | BT77: 0 | BY77: 0 | CD77: 0 | CN77: 0 | CS77: 0 | CX77: 0 | DC77: 0
C78: W101 | E78: NHAZ | F78: Non-hazardous | G78: 6048.57 | L78: 485.327 | Q78: 6452.216 | V78: 3021.729 | AA78: 1995.361 | AF78: 1739.174 | AK78: 264.007 | AP78: 2986.016 | AU78: 1394.888 | AZ78: 4734.294 | BE78: 4392.168 | BJ78: 3870.652 | BN78: =IF(TRIM(BM78)="", "", IF(VLOOKUP(BM78,#REF!,2,FALSE)=0,"",VLOOKUP(BM78,#REF!,2,FALSE) ) ) ->  | BO78: =IF(AND(TRIM(Q78)="",TRIM(V78)="",TRIM(AA78)="", TRIM(AF78)="", TRIM(AK78)="", TRIM(AP78)="", TRIM(AU78)="", TRIM(AZ78)="", TRIM(BE78)="", TRIM(BJ78)=""),"",Q78+V78+AA78+AF78+AK78+AP78+AU78+AZ78+BE78+BJ78) -> 30850.505 | BS78: =IF(TRIM(BR78)="", "", IF(VLOOKUP(BR78,#REF!,2,FALSE)=0,"",VLOOKUP(BR78,#REF!,2,FALSE) ) ) ->  | BT78: 1713.282 | BY78: 1412.863 | CD78: 9507.222 | CH78: =IF(TRIM(CG78)="", "", IF(VLOOKUP(CG78,#REF!,2,FALSE)=0,"",VLOOKUP(CG78,#REF!,2,FALSE) ) ) ->  | CI78: =IF(AND(TRIM(BY78)="",TRIM(CD78)=""),"",BY78+CD78) -> 10920.085 | CM78: =IF(TRIM(CL78)="", "", IF(VLOOKUP(CL78,#REF!,2,FALSE)=0,"",VLOOKUP(CL78,#REF!,2,FALSE) ) ) ->  | CN78: 15179.451 | CS78: 183042.701 | CX78: 41.418 | DC78: 899503.084 | DG78: =IF(TRIM(DF78)="", "", IF(VLOOKUP(DF78,#REF!,2,FALSE)=0,"",VLOOKUP(DF78,#REF!,2,FALSE) ) ) ->  | DH78: =IF(AND(TRIM(G78)="",TRIM(L78)="",TRIM(BO78)="",TRIM(BT78)="",TRIM(CI78)="",TRIM(CN78)="",TRIM(CS78)="",TRIM(CX78)="",TRIM(DC78)=""),"",SUM(G78,L78,BO78,BT78,CI78,CN78,CS78,CX78,DC78)) -> 1147784.423 | DL78: =IF(TRIM(DK78)="", "", IF(VLOOKUP(DK78,#REF!,2,FALSE)=0,"",VLOOKUP(DK78,#REF!,2,FALSE) ) ) -> 
C79: W101 | E79: HAZ_NHAZ | F79: Total | G79: =IF(AND(TRIM(G77)="",TRIM(G78)=""),"",G77+G78) -> 6048.57 | L79: =IF(AND(TRIM(L77)="",TRIM(L78)=""),"",L77+L78) -> 485.327 | Q79: =IF(AND(TRIM(Q77)="",TRIM(Q78)=""),"",Q77+Q78) -> 6452.216 | V79: =IF(AND(TRIM(V77)="",TRIM(V78)=""),"",V77+V78) -> 3021.729 | AA79: =IF(AND(TRIM(AA77)="",TRIM(AA78)=""),"",AA77+AA78) -> 1995.361 | AF79: =IF(AND(TRIM(AF77)="",TRIM(AF78)=""),"",AF77+AF78) -> 1739.174 | AK79: =IF(AND(TRIM(AK77)="",TRIM(AK78)=""),"",AK77+AK78) -> 264.007 | AP79: =IF(AND(TRIM(AP77)="",TRIM(AP78)=""),"",AP77+AP78) -> 2986.016 | AU79: =IF(AND(TRIM(AU77)="",TRIM(AU78)=""),"",AU77+AU78) -> 1394.888 | AZ79: =IF(AND(TRIM(AZ77)="",TRIM(AZ78)=""),"",AZ77+AZ78) -> 4734.294 | BE79: =IF(AND(TRIM(BE77)="",TRIM(BE78)=""),"",BE77+BE78) -> 4392.168 | BJ79: =IF(AND(TRIM(BJ77)="",TRIM(BJ78)=""),"",BJ77+BJ78) -> 3870.652 | BN79: =IF(TRIM(BM79)="", "", IF(VLOOKUP(BM79,#REF!,2,FALSE)=0,"",VLOOKUP(BM79,#REF!,2,FALSE) ) ) ->  | BO79: =IF(AND(TRIM(BO77)="", TRIM(BO78)=""), "", (IF(ISNUMBER(BO77),BO77,0)+IF(ISNUMBER(BO78),BO78,0))) -> 30850.505 | BS79: =IF(TRIM(BR79)="", "", IF(VLOOKUP(BR79,#REF!,2,FALSE)=0,"",VLOOKUP(BR79,#REF!,2,FALSE) ) ) ->  | BT79: =IF(AND(TRIM(BT77)="",TRIM(BT78)=""),"",BT77+BT78) -> 1713.282 | BY79: =IF(AND(TRIM(BY77)="",TRIM(BY78)=""),"",BY77+BY78) -> 1412.863 | CD79: =IF(AND(TRIM(CD77)="",TRIM(CD78)=""),"",CD77+CD78) -> 9507.222 | CH79: =IF(TRIM(CG79)="", "", IF(VLOOKUP(CG79,#REF!,2,FALSE)=0,"",VLOOKUP(CG79,#REF!,2,FALSE) ) ) ->  | CI79: =IF(AND(TRIM(CI77)="", TRIM(CI78)=""), "", (IF(ISNUMBER(CI77),CI77,0)+IF(ISNUMBER(CI78),CI78,0))) -> 10920.085 | CM79: =IF(TRIM(CL79)="", "", IF(VLOOKUP(CL79,#REF!,2,FALSE)=0,"",VLOOKUP(CL79,#REF!,2,FALSE) ) ) ->  | CN79: =IF(AND(TRIM(CN77)="",TRIM(CN78)=""),"",CN77+CN78) -> 15179.451 | CS79: =IF(AND(TRIM(CS77)="",TRIM(CS78)=""),"",CS77+CS78) -> 183042.701 | CX79: =IF(AND(TRIM(CX77)="",TRIM(CX78)=""),"",CX77+CX78) -> 41.418 | DC79: =IF(AND(TRIM(DC77)="",TRIM(DC78)=""),"",DC77+DC78) -> 899503.084 | DG79: =IF(TRIM(DF79)="", "", IF(VLOOKUP(DF79,#REF!,2,FALSE)=0,"",VLOOKUP(DF79,#REF!,2,FALSE) ) ) ->  | DH79: =IF(AND(TRIM(DH77)="", TRIM(DH78)=""), "", SUM(DH77,DH78) ) -> 1147784.423 | DL79: =IF(TRIM(DK79)="", "", IF(VLOOKUP(DK79,#REF!,2,FALSE)=0,"",VLOOKUP(DK79,#REF!,2,FALSE) ) ) -> 
B80: W102 | C80: W102 | D80: Mixed and undifferentiated materials | E80: HAZ | F80: Hazardous | G80: 0 | L80: 0.003 | Q80: 4.173 | V80: 0 | AA80: 0 | AF80: 0 | AK80: 0 | AP80: 85.135 | AU80: 10.509 | AZ80: 22.18 | BE80: 26.909 | BJ80: 40.45 | BN80: =IF(TRIM(BM80)="", "", IF(VLOOKUP(BM80,#REF!,2,FALSE)=0,"",VLOOKUP(BM80,#REF!,2,FALSE) ) ) ->  | BO80: =IF(AND(TRIM(Q80)="",TRIM(V80)="",TRIM(AA80)="", TRIM(AF80)="", TRIM(AK80)="", TRIM(AP80)="", TRIM(AU80)="", TRIM(AZ80)="", TRIM(BE80)="", TRIM(BJ80)=""),"",Q80+V80+AA80+AF80+AK80+AP80+AU80+AZ80+BE80+BJ80) -> 189.356 | BS80: =IF(TRIM(BR80)="", "", IF(VLOOKUP(BR80,#REF!,2,FALSE)=0,"",VLOOKUP(BR80,#REF!,2,FALSE) ) ) ->  | BT80: 0 | BY80: 0.732 | CD80: 0.093 | CH80: =IF(TRIM(CG80)="", "", IF(VLOOKUP(CG80,#REF!,2,FALSE)=0,"",VLOOKUP(CG80,#REF!,2,FALSE) ) ) ->  | CI80: =IF(AND(TRIM(BY80)="",TRIM(CD80)=""),"",BY80+CD80) -> 0.825 | CM80: =IF(TRIM(CL80)="", "", IF(VLOOKUP(CL80,#REF!,2,FALSE)=0,"",VLOOKUP(CL80,#REF!,2,FALSE) ) ) ->  | CN80: 1192.2 | CS80: 101.607 | CX80: 0 | DC80: 0 | DG80: =IF(TRIM(DF80)="", "", IF(VLOOKUP(DF80,#REF!,2,FALSE)=0,"",VLOOKUP(DF80,#REF!,2,FALSE) ) ) ->  | DH80: =IF(AND(TRIM(G80)="",TRIM(L80)="",TRIM(BO80)="",TRIM(BT80)="",TRIM(CI80)="",TRIM(CN80)="",TRIM(CS80)="",TRIM(CX80)="",TRIM(DC80)=""),"",SUM(G80,L80,BO80,BT80,CI80,CN80,CS80,CX80,DC80)) -> 1483.991 | DL80: =IF(TRIM(DK80)="", "", IF(VLOOKUP(DK80,#REF!,2,FALSE)=0,"",VLOOKUP(DK80,#REF!,2,FALSE) ) ) -> 
C81: W102 | E81: NHAZ | F81: Non-hazardous | G81: 696.89 | L81: 899.33 | Q81: 3785.129 | V81: 979.023 | AA81: 3.14 | AF81: 23776.982 | AK81: 4166.82 | AP81: 1453.295 | AU81: 1743.393 | AZ81: 2867.367 | BE81: 1825.75 | BJ81: 226.71 | BN81: =IF(TRIM(BM81)="", "", IF(VLOOKUP(BM81,#REF!,2,FALSE)=0,"",VLOOKUP(BM81,#REF!,2,FALSE) ) ) ->  | BO81: =IF(AND(TRIM(Q81)="",TRIM(V81)="",TRIM(AA81)="", TRIM(AF81)="", TRIM(AK81)="", TRIM(AP81)="", TRIM(AU81)="", TRIM(AZ81)="", TRIM(BE81)="", TRIM(BJ81)=""),"",Q81+V81+AA81+AF81+AK81+AP81+AU81+AZ81+BE81+BJ81) -> 40827.609 | BS81: =IF(TRIM(BR81)="", "", IF(VLOOKUP(BR81,#REF!,2,FALSE)=0,"",VLOOKUP(BR81,#REF!,2,FALSE) ) ) ->  | BT81: 9.29 | BY81: 4560.521 | CD81: 10040.809 | CH81: =IF(TRIM(CG81)="", "", IF(VLOOKUP(CG81,#REF!,2,FALSE)=0,"",VLOOKUP(CG81,#REF!,2,FALSE) ) ) ->  | CI81: =IF(AND(TRIM(BY81)="",TRIM(CD81)=""),"",BY81+CD81) -> 14601.33 | CM81: =IF(TRIM(CL81)="", "", IF(VLOOKUP(CL81,#REF!,2,FALSE)=0,"",VLOOKUP(CL81,#REF!,2,FALSE) ) ) ->  | CN81: 251.665 | CS81: 2699.326 | CX81: 1 | DC81: 2811.303 | DG81: =IF(TRIM(DF81)="", "", IF(VLOOKUP(DF81,#REF!,2,FALSE)=0,"",VLOOKUP(DF81,#REF!,2,FALSE) ) ) ->  | DH81: =IF(AND(TRIM(G81)="",TRIM(L81)="",TRIM(BO81)="",TRIM(BT81)="",TRIM(CI81)="",TRIM(CN81)="",TRIM(CS81)="",TRIM(CX81)="",TRIM(DC81)=""),"",SUM(G81,L81,BO81,BT81,CI81,CN81,CS81,CX81,DC81)) -> 62797.743 | DL81: =IF(TRIM(DK81)="", "", IF(VLOOKUP(DK81,#REF!,2,FALSE)=0,"",VLOOKUP(DK81,#REF!,2,FALSE) ) ) -> 
C82: W102 | E82: HAZ_NHAZ | F82: Total | G82: =IF(AND(TRIM(G80)="",TRIM(G81)=""),"",G80+G81) -> 696.89 | L82: =IF(AND(TRIM(L80)="",TRIM(L81)=""),"",L80+L81) -> 899.333 | Q82: =IF(AND(TRIM(Q80)="",TRIM(Q81)=""),"",Q80+Q81) -> 3789.302 | V82: =IF(AND(TRIM(V80)="",TRIM(V81)=""),"",V80+V81) -> 979.023 | AA82: =IF(AND(TRIM(AA80)="",TRIM(AA81)=""),"",AA80+AA81) -> 3.14 | AF82: =IF(AND(TRIM(AF80)="",TRIM(AF81)=""),"",AF80+AF81) -> 23776.982 | AK82: =IF(AND(TRIM(AK80)="",TRIM(AK81)=""),"",AK80+AK81) -> 4166.82 | AP82: =IF(AND(TRIM(AP80)="",TRIM(AP81)=""),"",AP80+AP81) -> 1538.43 | AU82: =IF(AND(TRIM(AU80)="",TRIM(AU81)=""),"",AU80+AU81) -> 1753.902 | AZ82: =IF(AND(TRIM(AZ80)="",TRIM(AZ81)=""),"",AZ80+AZ81) -> 2889.547 | BE82: =IF(AND(TRIM(BE80)="",TRIM(BE81)=""),"",BE80+BE81) -> 1852.659 | BJ82: =IF(AND(TRIM(BJ80)="",TRIM(BJ81)=""),"",BJ80+BJ81) -> 267.16 | BN82: =IF(TRIM(BM82)="", "", IF(VLOOKUP(BM82,#REF!,2,FALSE)=0,"",VLOOKUP(BM82,#REF!,2,FALSE) ) ) ->  | BO82: =IF(AND(TRIM(BO80)="", TRIM(BO81)=""), "", (IF(ISNUMBER(BO80),BO80,0)+IF(ISNUMBER(BO81),BO81,0))) -> 41016.965 | BS82: =IF(TRIM(BR82)="", "", IF(VLOOKUP(BR82,#REF!,2,FALSE)=0,"",VLOOKUP(BR82,#REF!,2,FALSE) ) ) ->  | BT82: =IF(AND(TRIM(BT80)="",TRIM(BT81)=""),"",BT80+BT81) -> 9.29 | BY82: =IF(AND(TRIM(BY80)="",TRIM(BY81)=""),"",BY80+BY81) -> 4561.253 | CD82: =IF(AND(TRIM(CD80)="",TRIM(CD81)=""),"",CD80+CD81) -> 10040.902 | CH82: =IF(TRIM(CG82)="", "", IF(VLOOKUP(CG82,#REF!,2,FALSE)=0,"",VLOOKUP(CG82,#REF!,2,FALSE) ) ) ->  | CI82: =IF(AND(TRIM(CI80)="", TRIM(CI81)=""), "", (IF(ISNUMBER(CI80),CI80,0)+IF(ISNUMBER(CI81),CI81,0))) -> 14602.155 | CM82: =IF(TRIM(CL82)="", "", IF(VLOOKUP(CL82,#REF!,2,FALSE)=0,"",VLOOKUP(CL82,#REF!,2,FALSE) ) ) ->  | CN82: =IF(AND(TRIM(CN80)="",TRIM(CN81)=""),"",CN80+CN81) -> 1443.865 | CS82: =IF(AND(TRIM(CS80)="",TRIM(CS81)=""),"",CS80+CS81) -> 2800.933 | CX82: =IF(AND(TRIM(CX80)="",TRIM(CX81)=""),"",CX80+CX81) -> 1 | DC82: =IF(AND(TRIM(DC80)="",TRIM(DC81)=""),"",DC80+DC81) -> 2811.303 | DG82: =IF(TRIM(DF82)="", "", IF(VLOOKUP(DF82,#REF!,2,FALSE)=0,"",VLOOKUP(DF82,#REF!,2,FALSE) ) ) ->  | DH82: =IF(AND(TRIM(DH80)="", TRIM(DH81)=""), "", SUM(DH80,DH81) ) -> 64281.734 | DL82: =IF(TRIM(DK82)="", "", IF(VLOOKUP(DK82,#REF!,2,FALSE)=0,"",VLOOKUP(DK82,#REF!,2,FALSE) ) ) -> 
B83: W103 | C83: W103 | D83: Sorting residues | E83: HAZ | F83: Hazardous | G83: 0 | L83: 0 | Q83: 0 | V83: 0 | AA83: 0 | AF83: 0 | AK83: 0 | AP83: 0 | AU83: 0 | AZ83: 12214.004 | BE83: 0 | BJ83: 0 | BN83: =IF(TRIM(BM83)="", "", IF(VLOOKUP(BM83,#REF!,2,FALSE)=0,"",VLOOKUP(BM83,#REF!,2,FALSE) ) ) ->  | BO83: =IF(AND(TRIM(Q83)="",TRIM(V83)="",TRIM(AA83)="", TRIM(AF83)="", TRIM(AK83)="", TRIM(AP83)="", TRIM(AU83)="", TRIM(AZ83)="", TRIM(BE83)="", TRIM(BJ83)=""),"",Q83+V83+AA83+AF83+AK83+AP83+AU83+AZ83+BE83+BJ83) -> 12214.004 | BS83: =IF(TRIM(BR83)="", "", IF(VLOOKUP(BR83,#REF!,2,FALSE)=0,"",VLOOKUP(BR83,#REF!,2,FALSE) ) ) ->  | BT83: 0 | BY83: 0 | CD83: 572.585 | CH83: =IF(TRIM(CG83)="", "", IF(VLOOKUP(CG83,#REF!,2,FALSE)=0,"",VLOOKUP(CG83,#REF!,2,FALSE) ) ) ->  | CI83: =IF(AND(TRIM(BY83)="",TRIM(CD83)=""),"",BY83+CD83) -> 572.585 | CM83: =IF(TRIM(CL83)="", "", IF(VLOOKUP(CL83,#REF!,2,FALSE)=0,"",VLOOKUP(CL83,#REF!,2,FALSE) ) ) ->  | CN83: 0 | CS83: 815.796 | CX83: 0 | DC83: 0 | DG83: =IF(TRIM(DF83)="", "", IF(VLOOKUP(DF83,#REF!,2,FALSE)=0,"",VLOOKUP(DF83,#REF!,2,FALSE) ) ) ->  | DH83: =IF(AND(TRIM(G83)="",TRIM(L83)="",TRIM(BO83)="",TRIM(BT83)="",TRIM(CI83)="",TRIM(CN83)="",TRIM(CS83)="",TRIM(CX83)="",TRIM(DC83)=""),"",SUM(G83,L83,BO83,BT83,CI83,CN83,CS83,CX83,DC83)) -> 13602.385 | DL83: =IF(TRIM(DK83)="", "", IF(VLOOKUP(DK83,#REF!,2,FALSE)=0,"",VLOOKUP(DK83,#REF!,2,FALSE) ) ) -> 
C84: W103 | E84: NHAZ | F84: Non-hazardous | G84: 0 | L84: 0 | Q84: 0 | V84: 0 | AA84: 1.12 | AF84: 0 | AK84: 0 | AP84: 361.23 | AU84: 1234.66 | AZ84: 1513.538 | BE84: 0 | BJ84: 235.085 | BN84: =IF(TRIM(BM84)="", "", IF(VLOOKUP(BM84,#REF!,2,FALSE)=0,"",VLOOKUP(BM84,#REF!,2,FALSE) ) ) ->  | BO84: =IF(AND(TRIM(Q84)="",TRIM(V84)="",TRIM(AA84)="", TRIM(AF84)="", TRIM(AK84)="", TRIM(AP84)="", TRIM(AU84)="", TRIM(AZ84)="", TRIM(BE84)="", TRIM(BJ84)=""),"",Q84+V84+AA84+AF84+AK84+AP84+AU84+AZ84+BE84+BJ84) -> 3345.633 | BS84: =IF(TRIM(BR84)="", "", IF(VLOOKUP(BR84,#REF!,2,FALSE)=0,"",VLOOKUP(BR84,#REF!,2,FALSE) ) ) ->  | BT84: 762.7 | BY84: 0 | CD84: 226023.283 | CH84: =IF(TRIM(CG84)="", "", IF(VLOOKUP(CG84,#REF!,2,FALSE)=0,"",VLOOKUP(CG84,#REF!,2,FALSE) ) ) ->  | CI84: =IF(AND(TRIM(BY84)="",TRIM(CD84)=""),"",BY84+CD84) -> 226023.283 | CM84: =IF(TRIM(CL84)="", "", IF(VLOOKUP(CL84,#REF!,2,FALSE)=0,"",VLOOKUP(CL84,#REF!,2,FALSE) ) ) ->  | CN84: 0 | CS84: 5192.166 | CX84: 642.46 | DC84: 385.52 | DG84: =IF(TRIM(DF84)="", "", IF(VLOOKUP(DF84,#REF!,2,FALSE)=0,"",VLOOKUP(DF84,#REF!,2,FALSE) ) ) ->  | DH84: =IF(AND(TRIM(G84)="",TRIM(L84)="",TRIM(BO84)="",TRIM(BT84)="",TRIM(CI84)="",TRIM(CN84)="",TRIM(CS84)="",TRIM(CX84)="",TRIM(DC84)=""),"",SUM(G84,L84,BO84,BT84,CI84,CN84,CS84,CX84,DC84)) -> 236351.762 | DL84: =IF(TRIM(DK84)="", "", IF(VLOOKUP(DK84,#REF!,2,FALSE)=0,"",VLOOKUP(DK84,#REF!,2,FALSE) ) ) -> 
C85: W103 | E85: HAZ_NHAZ | F85: Total | G85: =IF(AND(TRIM(G83)="",TRIM(G84)=""),"",G83+G84) -> 0 | L85: =IF(AND(TRIM(L83)="",TRIM(L84)=""),"",L83+L84) -> 0 | Q85: =IF(AND(TRIM(Q83)="",TRIM(Q84)=""),"",Q83+Q84) -> 0 | V85: =IF(AND(TRIM(V83)="",TRIM(V84)=""),"",V83+V84) -> 0 | AA85: =IF(AND(TRIM(AA83)="",TRIM(AA84)=""),"",AA83+AA84) -> 1.12 | AF85: =IF(AND(TRIM(AF83)="",TRIM(AF84)=""),"",AF83+AF84) -> 0 | AK85: =IF(AND(TRIM(AK83)="",TRIM(AK84)=""),"",AK83+AK84) -> 0 | AP85: =IF(AND(TRIM(AP83)="",TRIM(AP84)=""),"",AP83+AP84) -> 361.23 | AU85: =IF(AND(TRIM(AU83)="",TRIM(AU84)=""),"",AU83+AU84) -> 1234.66 | AZ85: =IF(AND(TRIM(AZ83)="",TRIM(AZ84)=""),"",AZ83+AZ84) -> 13727.542 | BE85: =IF(AND(TRIM(BE83)="",TRIM(BE84)=""),"",BE83+BE84) -> 0 | BJ85: =IF(AND(TRIM(BJ83)="",TRIM(BJ84)=""),"",BJ83+BJ84) -> 235.085 | BN85: =IF(TRIM(BM85)="", "", IF(VLOOKUP(BM85,#REF!,2,FALSE)=0,"",VLOOKUP(BM85,#REF!,2,FALSE) ) ) ->  | BO85: =IF(AND(TRIM(BO83)="", TRIM(BO84)=""), "", (IF(ISNUMBER(BO83),BO83,0)+IF(ISNUMBER(BO84),BO84,0))) -> 15559.637 | BS85: =IF(TRIM(BR85)="", "", IF(VLOOKUP(BR85,#REF!,2,FALSE)=0,"",VLOOKUP(BR85,#REF!,2,FALSE) ) ) ->  | BT85: =IF(AND(TRIM(BT83)="",TRIM(BT84)=""),"",BT83+BT84) -> 762.7 | BY85: =IF(AND(TRIM(BY83)="",TRIM(BY84)=""),"",BY83+BY84) -> 0 | CD85: =IF(AND(TRIM(CD83)="",TRIM(CD84)=""),"",CD83+CD84) -> 226595.868 | CH85: =IF(TRIM(CG85)="", "", IF(VLOOKUP(CG85,#REF!,2,FALSE)=0,"",VLOOKUP(CG85,#REF!,2,FALSE) ) ) ->  | CI85: =IF(AND(TRIM(CI83)="", TRIM(CI84)=""), "", (IF(ISNUMBER(CI83),CI83,0)+IF(ISNUMBER(CI84),CI84,0))) -> 226595.868 | CM85: =IF(TRIM(CL85)="", "", IF(VLOOKUP(CL85,#REF!,2,FALSE)=0,"",VLOOKUP(CL85,#REF!,2,FALSE) ) ) ->  | CN85: =IF(AND(TRIM(CN83)="",TRIM(CN84)=""),"",CN83+CN84) -> 0 | CS85: =IF(AND(TRIM(CS83)="",TRIM(CS84)=""),"",CS83+CS84) -> 6007.962 | CX85: =IF(AND(TRIM(CX83)="",TRIM(CX84)=""),"",CX83+CX84) -> 642.46 | DC85: =IF(AND(TRIM(DC83)="",TRIM(DC84)=""),"",DC83+DC84) -> 385.52 | DG85: =IF(TRIM(DF85)="", "", IF(VLOOKUP(DF85,#REF!,2,FALSE)=0,"",VLOOKUP(DF85,#REF!,2,FALSE) ) ) ->  | DH85: =IF(AND(TRIM(DH83)="", TRIM(DH84)=""), "", SUM(DH83,DH84) ) -> 249954.147 | DL85: =IF(TRIM(DK85)="", "", IF(VLOOKUP(DK85,#REF!,2,FALSE)=0,"",VLOOKUP(DK85,#REF!,2,FALSE) ) ) -> 
B86: W11 | D86: Common sludges | F86: Not applicable | G86: 0 | L86: 0 | Q86: 0 | V86: 0 | AA86: 0 | AF86: 0 | AK86: 0 | AP86: 0 | AU86: 0 | AZ86: 0 | BE86: 0 | BJ86: 0 | BT86: 0 | BY86: 0 | CD86: 0 | CN86: 0 | CS86: 0 | CX86: 0 | DC86: 0
C87: W11 | E87: NHAZ | F87: Non-hazardous | G87: 174.361 | L87: 0 | Q87: 2770.179 | V87: 0 | AA87: 0 | AF87: 0 | AK87: 0 | AP87: 0 | AU87: 0.09 | AZ87: 0 | BE87: 0.777 | BJ87: 0.642 | BN87: =IF(TRIM(BM87)="", "", IF(VLOOKUP(BM87,#REF!,2,FALSE)=0,"",VLOOKUP(BM87,#REF!,2,FALSE) ) ) ->  | BO87: =IF(AND(TRIM(Q87)="",TRIM(V87)="",TRIM(AA87)="", TRIM(AF87)="", TRIM(AK87)="", TRIM(AP87)="", TRIM(AU87)="", TRIM(AZ87)="", TRIM(BE87)="", TRIM(BJ87)=""),"",Q87+V87+AA87+AF87+AK87+AP87+AU87+AZ87+BE87+BJ87) -> 2771.688 | BS87: =IF(TRIM(BR87)="", "", IF(VLOOKUP(BR87,#REF!,2,FALSE)=0,"",VLOOKUP(BR87,#REF!,2,FALSE) ) ) ->  | BT87: 0 | BY87: 22012.637 | CD87: 72.103 | CH87: =IF(TRIM(CG87)="", "", IF(VLOOKUP(CG87,#REF!,2,FALSE)=0,"",VLOOKUP(CG87,#REF!,2,FALSE) ) ) ->  | CI87: =IF(AND(TRIM(BY87)="",TRIM(CD87)=""),"",BY87+CD87) -> 22084.74 | CM87: =IF(TRIM(CL87)="", "", IF(VLOOKUP(CL87,#REF!,2,FALSE)=0,"",VLOOKUP(CL87,#REF!,2,FALSE) ) ) ->  | CN87: 7.89 | CS87: 106.935 | CX87: 0 | DC87: 0 | DG87: =IF(TRIM(DF87)="", "", IF(VLOOKUP(DF87,#REF!,2,FALSE)=0,"",VLOOKUP(DF87,#REF!,2,FALSE) ) ) ->  | DH87: =IF(AND(TRIM(G87)="",TRIM(L87)="",TRIM(BO87)="",TRIM(BT87)="",TRIM(CI87)="",TRIM(CN87)="",TRIM(CS87)="",TRIM(CX87)="",TRIM(DC87)=""),"",SUM(G87,L87,BO87,BT87,CI87,CN87,CS87,CX87,DC87)) -> 25145.614 | DL87: =IF(TRIM(DK87)="", "", IF(VLOOKUP(DK87,#REF!,2,FALSE)=0,"",VLOOKUP(DK87,#REF!,2,FALSE) ) ) -> 
C88: W11 | E88: HAZ_NHAZ | F88: Total | G88: =IF(AND(TRIM(G86)="",TRIM(G87)=""),"",G86+G87) -> 174.361 | L88: =IF(AND(TRIM(L86)="",TRIM(L87)=""),"",L86+L87) -> 0 | Q88: =IF(AND(TRIM(Q86)="",TRIM(Q87)=""),"",Q86+Q87) -> 2770.179 | V88: =IF(AND(TRIM(V86)="",TRIM(V87)=""),"",V86+V87) -> 0 | AA88: =IF(AND(TRIM(AA86)="",TRIM(AA87)=""),"",AA86+AA87) -> 0 | AF88: =IF(AND(TRIM(AF86)="",TRIM(AF87)=""),"",AF86+AF87) -> 0 | AK88: =IF(AND(TRIM(AK86)="",TRIM(AK87)=""),"",AK86+AK87) -> 0 | AP88: =IF(AND(TRIM(AP86)="",TRIM(AP87)=""),"",AP86+AP87) -> 0 | AU88: =IF(AND(TRIM(AU86)="",TRIM(AU87)=""),"",AU86+AU87) -> 0.09 | AZ88: =IF(AND(TRIM(AZ86)="",TRIM(AZ87)=""),"",AZ86+AZ87) -> 0 | BE88: =IF(AND(TRIM(BE86)="",TRIM(BE87)=""),"",BE86+BE87) -> 0.777 | BJ88: =IF(AND(TRIM(BJ86)="",TRIM(BJ87)=""),"",BJ86+BJ87) -> 0.642 | BN88: =IF(TRIM(BM88)="", "", IF(VLOOKUP(BM88,#REF!,2,FALSE)=0,"",VLOOKUP(BM88,#REF!,2,FALSE) ) ) ->  | BO88: =IF(AND(TRIM(BO86)="", TRIM(BO87)=""), "", (IF(ISNUMBER(BO86),BO86,0)+IF(ISNUMBER(BO87),BO87,0))) -> 2771.688 | BS88: =IF(TRIM(BR88)="", "", IF(VLOOKUP(BR88,#REF!,2,FALSE)=0,"",VLOOKUP(BR88,#REF!,2,FALSE) ) ) ->  | BT88: =IF(AND(TRIM(BT86)="",TRIM(BT87)=""),"",BT86+BT87) -> 0 | BY88: =IF(AND(TRIM(BY86)="",TRIM(BY87)=""),"",BY86+BY87) -> 22012.637 | CD88: =IF(AND(TRIM(CD86)="",TRIM(CD87)=""),"",CD86+CD87) -> 72.103 | CH88: =IF(TRIM(CG88)="", "", IF(VLOOKUP(CG88,#REF!,2,FALSE)=0,"",VLOOKUP(CG88,#REF!,2,FALSE) ) ) ->  | CI88: =IF(AND(TRIM(CI86)="", TRIM(CI87)=""), "", (IF(ISNUMBER(CI86),CI86,0)+IF(ISNUMBER(CI87),CI87,0))) -> 22084.74 | CM88: =IF(TRIM(CL88)="", "", IF(VLOOKUP(CL88,#REF!,2,FALSE)=0,"",VLOOKUP(CL88,#REF!,2,FALSE) ) ) ->  | CN88: =IF(AND(TRIM(CN86)="",TRIM(CN87)=""),"",CN86+CN87) -> 7.89 | CS88: =IF(AND(TRIM(CS86)="",TRIM(CS87)=""),"",CS86+CS87) -> 106.935 | CX88: =IF(AND(TRIM(CX86)="",TRIM(CX87)=""),"",CX86+CX87) -> 0 | DC88: =IF(AND(TRIM(DC86)="",TRIM(DC87)=""),"",DC86+DC87) -> 0 | DG88: =IF(TRIM(DF88)="", "", IF(VLOOKUP(DF88,#REF!,2,FALSE)=0,"",VLOOKUP(DF88,#REF!,2,FALSE) ) ) ->  | DH88: =IF(AND(TRIM(DH86)="", TRIM(DH87)=""), "", SUM(DH86,DH87) ) -> 25145.614 | DL88: =IF(TRIM(DK88)="", "", IF(VLOOKUP(DK88,#REF!,2,FALSE)=0,"",VLOOKUP(DK88,#REF!,2,FALSE) ) ) -> 
B89: W121 | C89: W121 | D89: Mineral waste from construction and demolition | E89: HAZ | F89: Hazardous | G89: 0 | L89: 0 | Q89: 0 | V89: 0 | AA89: 0 | AF89: 0 | AK89: 0 | AP89: 0 | AU89: 0 | AZ89: 0 | BE89: 0 | BJ89: 0 | BN89: =IF(TRIM(BM89)="", "", IF(VLOOKUP(BM89,#REF!,2,FALSE)=0,"",VLOOKUP(BM89,#REF!,2,FALSE) ) ) ->  | BO89: =IF(AND(TRIM(Q89)="",TRIM(V89)="",TRIM(AA89)="", TRIM(AF89)="", TRIM(AK89)="", TRIM(AP89)="", TRIM(AU89)="", TRIM(AZ89)="", TRIM(BE89)="", TRIM(BJ89)=""),"",Q89+V89+AA89+AF89+AK89+AP89+AU89+AZ89+BE89+BJ89) -> 0 | BS89: =IF(TRIM(BR89)="", "", IF(VLOOKUP(BR89,#REF!,2,FALSE)=0,"",VLOOKUP(BR89,#REF!,2,FALSE) ) ) ->  | BT89: 0 | BY89: 0 | CD89: 0 | CH89: =IF(TRIM(CG89)="", "", IF(VLOOKUP(CG89,#REF!,2,FALSE)=0,"",VLOOKUP(CG89,#REF!,2,FALSE) ) ) ->  | CI89: =IF(AND(TRIM(BY89)="",TRIM(CD89)=""),"",BY89+CD89) -> 0 | CM89: =IF(TRIM(CL89)="", "", IF(VLOOKUP(CL89,#REF!,2,FALSE)=0,"",VLOOKUP(CL89,#REF!,2,FALSE) ) ) ->  | CN89: 7160.6 | CS89: 0 | CX89: 0 | DC89: 0 | DG89: =IF(TRIM(DF89)="", "", IF(VLOOKUP(DF89,#REF!,2,FALSE)=0,"",VLOOKUP(DF89,#REF!,2,FALSE) ) ) ->  | DH89: =IF(AND(TRIM(G89)="",TRIM(L89)="",TRIM(BO89)="",TRIM(BT89)="",TRIM(CI89)="",TRIM(CN89)="",TRIM(CS89)="",TRIM(CX89)="",TRIM(DC89)=""),"",SUM(G89,L89,BO89,BT89,CI89,CN89,CS89,CX89,DC89)) -> 7160.6 | DL89: =IF(TRIM(DK89)="", "", IF(VLOOKUP(DK89,#REF!,2,FALSE)=0,"",VLOOKUP(DK89,#REF!,2,FALSE) ) ) -> 
C90: W121 | E90: NHAZ | F90: Non-hazardous | G90: 0 | L90: 0 | Q90: 0 | V90: 0 | AA90: 0 | AF90: 0 | AK90: 0 | AP90: 0 | AU90: 0 | AZ90: 0 | BE90: 0 | BJ90: 0 | BN90: =IF(TRIM(BM90)="", "", IF(VLOOKUP(BM90,#REF!,2,FALSE)=0,"",VLOOKUP(BM90,#REF!,2,FALSE) ) ) ->  | BO90: =IF(AND(TRIM(Q90)="",TRIM(V90)="",TRIM(AA90)="", TRIM(AF90)="", TRIM(AK90)="", TRIM(AP90)="", TRIM(AU90)="", TRIM(AZ90)="", TRIM(BE90)="", TRIM(BJ90)=""),"",Q90+V90+AA90+AF90+AK90+AP90+AU90+AZ90+BE90+BJ90) -> 0 | BS90: =IF(TRIM(BR90)="", "", IF(VLOOKUP(BR90,#REF!,2,FALSE)=0,"",VLOOKUP(BR90,#REF!,2,FALSE) ) ) ->  | BT90: 0 | BY90: 0 | CD90: 0 | CH90: =IF(TRIM(CG90)="", "", IF(VLOOKUP(CG90,#REF!,2,FALSE)=0,"",VLOOKUP(CG90,#REF!,2,FALSE) ) ) ->  | CI90: =IF(AND(TRIM(BY90)="",TRIM(CD90)=""),"",BY90+CD90) -> 0 | CM90: =IF(TRIM(CL90)="", "", IF(VLOOKUP(CL90,#REF!,2,FALSE)=0,"",VLOOKUP(CL90,#REF!,2,FALSE) ) ) ->  | CN90: 622978.02 | CS90: 0 | CX90: 0 | DC90: 0 | DG90: =IF(TRIM(DF90)="", "", IF(VLOOKUP(DF90,#REF!,2,FALSE)=0,"",VLOOKUP(DF90,#REF!,2,FALSE) ) ) ->  | DH90: =IF(AND(TRIM(G90)="",TRIM(L90)="",TRIM(BO90)="",TRIM(BT90)="",TRIM(CI90)="",TRIM(CN90)="",TRIM(CS90)="",TRIM(CX90)="",TRIM(DC90)=""),"",SUM(G90,L90,BO90,BT90,CI90,CN90,CS90,CX90,DC90)) -> 622978.02 | DL90: =IF(TRIM(DK90)="", "", IF(VLOOKUP(DK90,#REF!,2,FALSE)=0,"",VLOOKUP(DK90,#REF!,2,FALSE) ) ) -> 
C91: W121 | E91: HAZ_NHAZ | F91: Total | G91: =IF(AND(TRIM(G89)="",TRIM(G90)=""),"",G89+G90) -> 0 | L91: =IF(AND(TRIM(L89)="",TRIM(L90)=""),"",L89+L90) -> 0 | Q91: =IF(AND(TRIM(Q89)="",TRIM(Q90)=""),"",Q89+Q90) -> 0 | V91: =IF(AND(TRIM(V89)="",TRIM(V90)=""),"",V89+V90) -> 0 | AA91: =IF(AND(TRIM(AA89)="",TRIM(AA90)=""),"",AA89+AA90) -> 0 | AF91: =IF(AND(TRIM(AF89)="",TRIM(AF90)=""),"",AF89+AF90) -> 0 | AK91: =IF(AND(TRIM(AK89)="",TRIM(AK90)=""),"",AK89+AK90) -> 0 | AP91: =IF(AND(TRIM(AP89)="",TRIM(AP90)=""),"",AP89+AP90) -> 0 | AU91: =IF(AND(TRIM(AU89)="",TRIM(AU90)=""),"",AU89+AU90) -> 0 | AZ91: =IF(AND(TRIM(AZ89)="",TRIM(AZ90)=""),"",AZ89+AZ90) -> 0 | BE91: =IF(AND(TRIM(BE89)="",TRIM(BE90)=""),"",BE89+BE90) -> 0 | BJ91: =IF(AND(TRIM(BJ89)="",TRIM(BJ90)=""),"",BJ89+BJ90) -> 0 | BN91: =IF(TRIM(BM91)="", "", IF(VLOOKUP(BM91,#REF!,2,FALSE)=0,"",VLOOKUP(BM91,#REF!,2,FALSE) ) ) ->  | BO91: =IF(AND(TRIM(BO89)="", TRIM(BO90)=""), "", (IF(ISNUMBER(BO89),BO89,0)+IF(ISNUMBER(BO90),BO90,0))) -> 0 | BS91: =IF(TRIM(BR91)="", "", IF(VLOOKUP(BR91,#REF!,2,FALSE)=0,"",VLOOKUP(BR91,#REF!,2,FALSE) ) ) ->  | BT91: =IF(AND(TRIM(BT89)="",TRIM(BT90)=""),"",BT89+BT90) -> 0 | BY91: =IF(AND(TRIM(BY89)="",TRIM(BY90)=""),"",BY89+BY90) -> 0 | CD91: =IF(AND(TRIM(CD89)="",TRIM(CD90)=""),"",CD89+CD90) -> 0 | CH91: =IF(TRIM(CG91)="", "", IF(VLOOKUP(CG91,#REF!,2,FALSE)=0,"",VLOOKUP(CG91,#REF!,2,FALSE) ) ) ->  | CI91: =IF(AND(TRIM(CI89)="", TRIM(CI90)=""), "", (IF(ISNUMBER(CI89),CI89,0)+IF(ISNUMBER(CI90),CI90,0))) -> 0 | CM91: =IF(TRIM(CL91)="", "", IF(VLOOKUP(CL91,#REF!,2,FALSE)=0,"",VLOOKUP(CL91,#REF!,2,FALSE) ) ) ->  | CN91: =IF(AND(TRIM(CN89)="",TRIM(CN90)=""),"",CN89+CN90) -> 630138.62 | CS91: =IF(AND(TRIM(CS89)="",TRIM(CS90)=""),"",CS89+CS90) -> 0 | CX91: =IF(AND(TRIM(CX89)="",TRIM(CX90)=""),"",CX89+CX90) -> 0 | DC91: =IF(AND(TRIM(DC89)="",TRIM(DC90)=""),"",DC89+DC90) -> 0 | DG91: =IF(TRIM(DF91)="", "", IF(VLOOKUP(DF91,#REF!,2,FALSE)=0,"",VLOOKUP(DF91,#REF!,2,FALSE) ) ) ->  | DH91: =IF(AND(TRIM(DH89)="", TRIM(DH90)=""), "", SUM(DH89,DH90) ) -> 630138.62 | DL91: =IF(TRIM(DK91)="", "", IF(VLOOKUP(DK91,#REF!,2,FALSE)=0,"",VLOOKUP(DK91,#REF!,2,FALSE) ) ) -> 
B92: W12B | C92: W12B | D92: Other mineral wastes (W122+W123+W125) | E92: HAZ | F92: Hazardous | G92: 7.665 | L92: 3011.875 | Q92: 1.134 | V92: 0.2 | AA92: 3.394 | AF92: 0.084 | AK92: 0.38 | AP92: 7.023 | AU92: 10.627 | AZ92: 47.527 | BE92: 79.104 | BJ92: 9.8125 | BN92: =IF(TRIM(BM92)="", "", IF(VLOOKUP(BM92,#REF!,2,FALSE)=0,"",VLOOKUP(BM92,#REF!,2,FALSE) ) ) ->  | BO92: =IF(AND(TRIM(Q92)="",TRIM(V92)="",TRIM(AA92)="", TRIM(AF92)="", TRIM(AK92)="", TRIM(AP92)="", TRIM(AU92)="", TRIM(AZ92)="", TRIM(BE92)="", TRIM(BJ92)=""),"",Q92+V92+AA92+AF92+AK92+AP92+AU92+AZ92+BE92+BJ92) -> 159.286 | BS92: =IF(TRIM(BR92)="", "", IF(VLOOKUP(BR92,#REF!,2,FALSE)=0,"",VLOOKUP(BR92,#REF!,2,FALSE) ) ) ->  | BT92: 0.019 | BY92: 0 | CD92: 3.74 | CH92: =IF(TRIM(CG92)="", "", IF(VLOOKUP(CG92,#REF!,2,FALSE)=0,"",VLOOKUP(CG92,#REF!,2,FALSE) ) ) ->  | CI92: =IF(AND(TRIM(BY92)="",TRIM(CD92)=""),"",BY92+CD92) -> 3.74 | CM92: =IF(TRIM(CL92)="", "", IF(VLOOKUP(CL92,#REF!,2,FALSE)=0,"",VLOOKUP(CL92,#REF!,2,FALSE) ) ) ->  | CN92: 3564.87 | CS92: 16.717 | CX92: 0 | DC92: 10.721 | DG92: =IF(TRIM(DF92)="", "", IF(VLOOKUP(DF92,#REF!,2,FALSE)=0,"",VLOOKUP(DF92,#REF!,2,FALSE) ) ) ->  | DH92: =IF(AND(TRIM(G92)="",TRIM(L92)="",TRIM(BO92)="",TRIM(BT92)="",TRIM(CI92)="",TRIM(CN92)="",TRIM(CS92)="",TRIM(CX92)="",TRIM(DC92)=""),"",SUM(G92,L92,BO92,BT92,CI92,CN92,CS92,CX92,DC92)) -> 6774.893 | DL92: =IF(TRIM(DK92)="", "", IF(VLOOKUP(DK92,#REF!,2,FALSE)=0,"",VLOOKUP(DK92,#REF!,2,FALSE) ) ) -> 
C93: W12B | E93: NHAZ | F93: Non-hazardous | G93: 53.1 | L93: 681994.04 | Q93: 8.855 | V93: 0 | AA93: 0 | AF93: 0 | AK93: 78.94 | AP93: 199.649 | AU93: 365.514 | AZ93: 8388.414 | BE93: 3606.92 | BJ93: 64.676 | BN93: =IF(TRIM(BM93)="", "", IF(VLOOKUP(BM93,#REF!,2,FALSE)=0,"",VLOOKUP(BM93,#REF!,2,FALSE) ) ) ->  | BO93: =IF(AND(TRIM(Q93)="",TRIM(V93)="",TRIM(AA93)="", TRIM(AF93)="", TRIM(AK93)="", TRIM(AP93)="", TRIM(AU93)="", TRIM(AZ93)="", TRIM(BE93)="", TRIM(BJ93)=""),"",Q93+V93+AA93+AF93+AK93+AP93+AU93+AZ93+BE93+BJ93) -> 12712.968 | BS93: =IF(TRIM(BR93)="", "", IF(VLOOKUP(BR93,#REF!,2,FALSE)=0,"",VLOOKUP(BR93,#REF!,2,FALSE) ) ) ->  | BT93: 2 | BY93: 2241.867 | CD93: 2270.759 | CH93: =IF(TRIM(CG93)="", "", IF(VLOOKUP(CG93,#REF!,2,FALSE)=0,"",VLOOKUP(CG93,#REF!,2,FALSE) ) ) ->  | CI93: =IF(AND(TRIM(BY93)="",TRIM(CD93)=""),"",BY93+CD93) -> 4512.626 | CM93: =IF(TRIM(CL93)="", "", IF(VLOOKUP(CL93,#REF!,2,FALSE)=0,"",VLOOKUP(CL93,#REF!,2,FALSE) ) ) ->  | CN93: 10.56 | CS93: 3625.6 | CX93: 0 | DC93: 53.72 | DG93: =IF(TRIM(DF93)="", "", IF(VLOOKUP(DF93,#REF!,2,FALSE)=0,"",VLOOKUP(DF93,#REF!,2,FALSE) ) ) ->  | DH93: =IF(AND(TRIM(G93)="",TRIM(L93)="",TRIM(BO93)="",TRIM(BT93)="",TRIM(CI93)="",TRIM(CN93)="",TRIM(CS93)="",TRIM(CX93)="",TRIM(DC93)=""),"",SUM(G93,L93,BO93,BT93,CI93,CN93,CS93,CX93,DC93)) -> 702964.614 | DL93: =IF(TRIM(DK93)="", "", IF(VLOOKUP(DK93,#REF!,2,FALSE)=0,"",VLOOKUP(DK93,#REF!,2,FALSE) ) ) -> 
C94: W12B | E94: HAZ_NHAZ | F94: Total | G94: =IF(AND(TRIM(G92)="",TRIM(G93)=""),"",G92+G93) -> 60.765 | L94: =IF(AND(TRIM(L92)="",TRIM(L93)=""),"",L92+L93) -> 685005.915 | Q94: =IF(AND(TRIM(Q92)="",TRIM(Q93)=""),"",Q92+Q93) -> 9.989 | V94: =IF(AND(TRIM(V92)="",TRIM(V93)=""),"",V92+V93) -> 0.2 | AA94: =IF(AND(TRIM(AA92)="",TRIM(AA93)=""),"",AA92+AA93) -> 3.394 | AF94: =IF(AND(TRIM(AF92)="",TRIM(AF93)=""),"",AF92+AF93) -> 0.084 | AK94: =IF(AND(TRIM(AK92)="",TRIM(AK93)=""),"",AK92+AK93) -> 79.32 | AP94: =IF(AND(TRIM(AP92)="",TRIM(AP93)=""),"",AP92+AP93) -> 206.672 | AU94: =IF(AND(TRIM(AU92)="",TRIM(AU93)=""),"",AU92+AU93) -> 376.141 | AZ94: =IF(AND(TRIM(AZ92)="",TRIM(AZ93)=""),"",AZ92+AZ93) -> 8435.941 | BE94: =IF(AND(TRIM(BE92)="",TRIM(BE93)=""),"",BE92+BE93) -> 3686.024 | BJ94: =IF(AND(TRIM(BJ92)="",TRIM(BJ93)=""),"",BJ92+BJ93) -> 74.489 | BN94: =IF(TRIM(BM94)="", "", IF(VLOOKUP(BM94,#REF!,2,FALSE)=0,"",VLOOKUP(BM94,#REF!,2,FALSE) ) ) ->  | BO94: =IF(AND(TRIM(BO92)="", TRIM(BO93)=""), "", (IF(ISNUMBER(BO92),BO92,0)+IF(ISNUMBER(BO93),BO93,0))) -> 12872.254 | BS94: =IF(TRIM(BR94)="", "", IF(VLOOKUP(BR94,#REF!,2,FALSE)=0,"",VLOOKUP(BR94,#REF!,2,FALSE) ) ) ->  | BT94: =IF(AND(TRIM(BT92)="",TRIM(BT93)=""),"",BT92+BT93) -> 2.019 | BY94: =IF(AND(TRIM(BY92)="",TRIM(BY93)=""),"",BY92+BY93) -> 2241.867 | CD94: =IF(AND(TRIM(CD92)="",TRIM(CD93)=""),"",CD92+CD93) -> 2274.499 | CH94: =IF(TRIM(CG94)="", "", IF(VLOOKUP(CG94,#REF!,2,FALSE)=0,"",VLOOKUP(CG94,#REF!,2,FALSE) ) ) ->  | CI94: =IF(AND(TRIM(CI92)="", TRIM(CI93)=""), "", (IF(ISNUMBER(CI92),CI92,0)+IF(ISNUMBER(CI93),CI93,0))) -> 4516.366 | CM94: =IF(TRIM(CL94)="", "", IF(VLOOKUP(CL94,#REF!,2,FALSE)=0,"",VLOOKUP(CL94,#REF!,2,FALSE) ) ) ->  | CN94: =IF(AND(TRIM(CN92)="",TRIM(CN93)=""),"",CN92+CN93) -> 3575.43 | CS94: =IF(AND(TRIM(CS92)="",TRIM(CS93)=""),"",CS92+CS93) -> 3642.317 | CX94: =IF(AND(TRIM(CX92)="",TRIM(CX93)=""),"",CX92+CX93) -> 0 | DC94: =IF(AND(TRIM(DC92)="",TRIM(DC93)=""),"",DC92+DC93) -> 64.441 | DG94: =IF(TRIM(DF94)="", "", IF(VLOOKUP(DF94,#REF!,2,FALSE)=0,"",VLOOKUP(DF94,#REF!,2,FALSE) ) ) ->  | DH94: =IF(AND(TRIM(DH92)="", TRIM(DH93)=""), "", SUM(DH92,DH93) ) -> 709739.507 | DL94: =IF(TRIM(DK94)="", "", IF(VLOOKUP(DK94,#REF!,2,FALSE)=0,"",VLOOKUP(DK94,#REF!,2,FALSE) ) ) -> 
B95: W124 | C95: W124 | D95: Combustion wastes | E95: HAZ | F95: Hazardous | G95: 0 | L95: 0 | Q95: 0 | V95: 0 | AA95: 0 | AF95: 0 | AK95: 0 | AP95: 0 | AU95: 39.121 | AZ95: 2126.705 | BE95: 0.24 | BJ95: 0.4 | BN95: =IF(TRIM(BM95)="", "", IF(VLOOKUP(BM95,#REF!,2,FALSE)=0,"",VLOOKUP(BM95,#REF!,2,FALSE) ) ) ->  | BO95: =IF(AND(TRIM(Q95)="",TRIM(V95)="",TRIM(AA95)="", TRIM(AF95)="", TRIM(AK95)="", TRIM(AP95)="", TRIM(AU95)="", TRIM(AZ95)="", TRIM(BE95)="", TRIM(BJ95)=""),"",Q95+V95+AA95+AF95+AK95+AP95+AU95+AZ95+BE95+BJ95) -> 2166.466 | BS95: =IF(TRIM(BR95)="", "", IF(VLOOKUP(BR95,#REF!,2,FALSE)=0,"",VLOOKUP(BR95,#REF!,2,FALSE) ) ) ->  | BT95: 0.906 | BY95: 0 | CD95: 28.51 | CH95: =IF(TRIM(CG95)="", "", IF(VLOOKUP(CG95,#REF!,2,FALSE)=0,"",VLOOKUP(CG95,#REF!,2,FALSE) ) ) ->  | CI95: =IF(AND(TRIM(BY95)="",TRIM(CD95)=""),"",BY95+CD95) -> 28.51 | CM95: =IF(TRIM(CL95)="", "", IF(VLOOKUP(CL95,#REF!,2,FALSE)=0,"",VLOOKUP(CL95,#REF!,2,FALSE) ) ) ->  | CN95: 0 | CS95: 3.135 | CX95: 0 | DC95: 0 | DG95: =IF(TRIM(DF95)="", "", IF(VLOOKUP(DF95,#REF!,2,FALSE)=0,"",VLOOKUP(DF95,#REF!,2,FALSE) ) ) ->  | DH95: =IF(AND(TRIM(G95)="",TRIM(L95)="",TRIM(BO95)="",TRIM(BT95)="",TRIM(CI95)="",TRIM(CN95)="",TRIM(CS95)="",TRIM(CX95)="",TRIM(DC95)=""),"",SUM(G95,L95,BO95,BT95,CI95,CN95,CS95,CX95,DC95)) -> 2199.017 | DL95: =IF(TRIM(DK95)="", "", IF(VLOOKUP(DK95,#REF!,2,FALSE)=0,"",VLOOKUP(DK95,#REF!,2,FALSE) ) ) -> 
C96: W124 | E96: NHAZ | F96: Non-hazardous | G96: 0 | L96: 91.66 | Q96: 522.94 | V96: 0 | AA96: 1909.526 | AF96: 188.46 | AK96: 0 | AP96: 0 | AU96: 0 | AZ96: 10749.43 | BE96: 560.29 | BJ96: 20.325 | BN96: =IF(TRIM(BM96)="", "", IF(VLOOKUP(BM96,#REF!,2,FALSE)=0,"",VLOOKUP(BM96,#REF!,2,FALSE) ) ) ->  | BO96: =IF(AND(TRIM(Q96)="",TRIM(V96)="",TRIM(AA96)="", TRIM(AF96)="", TRIM(AK96)="", TRIM(AP96)="", TRIM(AU96)="", TRIM(AZ96)="", TRIM(BE96)="", TRIM(BJ96)=""),"",Q96+V96+AA96+AF96+AK96+AP96+AU96+AZ96+BE96+BJ96) -> 13950.971 | BS96: =IF(TRIM(BR96)="", "", IF(VLOOKUP(BR96,#REF!,2,FALSE)=0,"",VLOOKUP(BR96,#REF!,2,FALSE) ) ) ->  | BT96: 54818.55 | BY96: 0 | CD96: 41.086 | CH96: =IF(TRIM(CG96)="", "", IF(VLOOKUP(CG96,#REF!,2,FALSE)=0,"",VLOOKUP(CG96,#REF!,2,FALSE) ) ) ->  | CI96: =IF(AND(TRIM(BY96)="",TRIM(CD96)=""),"",BY96+CD96) -> 41.086 | CM96: =IF(TRIM(CL96)="", "", IF(VLOOKUP(CL96,#REF!,2,FALSE)=0,"",VLOOKUP(CL96,#REF!,2,FALSE) ) ) ->  | CN96: 0 | CS96: 29800.869 | CX96: 0 | DC96: 2.905 | DG96: =IF(TRIM(DF96)="", "", IF(VLOOKUP(DF96,#REF!,2,FALSE)=0,"",VLOOKUP(DF96,#REF!,2,FALSE) ) ) ->  | DH96: =IF(AND(TRIM(G96)="",TRIM(L96)="",TRIM(BO96)="",TRIM(BT96)="",TRIM(CI96)="",TRIM(CN96)="",TRIM(CS96)="",TRIM(CX96)="",TRIM(DC96)=""),"",SUM(G96,L96,BO96,BT96,CI96,CN96,CS96,CX96,DC96)) -> 98706.041 | DL96: =IF(TRIM(DK96)="", "", IF(VLOOKUP(DK96,#REF!,2,FALSE)=0,"",VLOOKUP(DK96,#REF!,2,FALSE) ) ) -> 
C97: W124 | E97: HAZ_NHAZ | F97: Total | G97: =IF(AND(TRIM(G95)="",TRIM(G96)=""),"",G95+G96) -> 0 | L97: =IF(AND(TRIM(L95)="",TRIM(L96)=""),"",L95+L96) -> 91.66 | Q97: =IF(AND(TRIM(Q95)="",TRIM(Q96)=""),"",Q95+Q96) -> 522.94 | V97: =IF(AND(TRIM(V95)="",TRIM(V96)=""),"",V95+V96) -> 0 | AA97: =IF(AND(TRIM(AA95)="",TRIM(AA96)=""),"",AA95+AA96) -> 1909.526 | AF97: =IF(AND(TRIM(AF95)="",TRIM(AF96)=""),"",AF95+AF96) -> 188.46 | AK97: =IF(AND(TRIM(AK95)="",TRIM(AK96)=""),"",AK95+AK96) -> 0 | AP97: =IF(AND(TRIM(AP95)="",TRIM(AP96)=""),"",AP95+AP96) -> 0 | AU97: =IF(AND(TRIM(AU95)="",TRIM(AU96)=""),"",AU95+AU96) -> 39.121 | AZ97: =IF(AND(TRIM(AZ95)="",TRIM(AZ96)=""),"",AZ95+AZ96) -> 12876.135 | BE97: =IF(AND(TRIM(BE95)="",TRIM(BE96)=""),"",BE95+BE96) -> 560.53 | BJ97: =IF(AND(TRIM(BJ95)="",TRIM(BJ96)=""),"",BJ95+BJ96) -> 20.725 | BN97: =IF(TRIM(BM97)="", "", IF(VLOOKUP(BM97,#REF!,2,FALSE)=0,"",VLOOKUP(BM97,#REF!,2,FALSE) ) ) ->  | BO97: =IF(AND(TRIM(BO95)="", TRIM(BO96)=""), "", (IF(ISNUMBER(BO95),BO95,0)+IF(ISNUMBER(BO96),BO96,0))) -> 16117.437 | BS97: =IF(TRIM(BR97)="", "", IF(VLOOKUP(BR97,#REF!,2,FALSE)=0,"",VLOOKUP(BR97,#REF!,2,FALSE) ) ) ->  | BT97: =IF(AND(TRIM(BT95)="",TRIM(BT96)=""),"",BT95+BT96) -> 54819.456 | BY97: =IF(AND(TRIM(BY95)="",TRIM(BY96)=""),"",BY95+BY96) -> 0 | CD97: =IF(AND(TRIM(CD95)="",TRIM(CD96)=""),"",CD95+CD96) -> 69.596 | CH97: =IF(TRIM(CG97)="", "", IF(VLOOKUP(CG97,#REF!,2,FALSE)=0,"",VLOOKUP(CG97,#REF!,2,FALSE) ) ) ->  | CI97: =IF(AND(TRIM(CI95)="", TRIM(CI96)=""), "", (IF(ISNUMBER(CI95),CI95,0)+IF(ISNUMBER(CI96),CI96,0))) -> 69.596 | CM97: =IF(TRIM(CL97)="", "", IF(VLOOKUP(CL97,#REF!,2,FALSE)=0,"",VLOOKUP(CL97,#REF!,2,FALSE) ) ) ->  | CN97: =IF(AND(TRIM(CN95)="",TRIM(CN96)=""),"",CN95+CN96) -> 0 | CS97: =IF(AND(TRIM(CS95)="",TRIM(CS96)=""),"",CS95+CS96) -> 29804.004 | CX97: =IF(AND(TRIM(CX95)="",TRIM(CX96)=""),"",CX95+CX96) -> 0 | DC97: =IF(AND(TRIM(DC95)="",TRIM(DC96)=""),"",DC95+DC96) -> 2.905 | DG97: =IF(TRIM(DF97)="", "", IF(VLOOKUP(DF97,#REF!,2,FALSE)=0,"",VLOOKUP(DF97,#REF!,2,FALSE) ) ) ->  | DH97: =IF(AND(TRIM(DH95)="", TRIM(DH96)=""), "", SUM(DH95,DH96) ) -> 100905.058 | DL97: =IF(TRIM(DK97)="", "", IF(VLOOKUP(DK97,#REF!,2,FALSE)=0,"",VLOOKUP(DK97,#REF!,2,FALSE) ) ) -> 
B98: W126 | C98: W126 | D98: Soils | E98: HAZ | F98: Hazardous | G98: 0 | L98: 136.22 | Q98: 0 | V98: 0 | AA98: 0 | AF98: 0 | AK98: 0 | AP98: 0 | AU98: 0 | AZ98: 0 | BE98: 0 | BJ98: 0 | BN98: =IF(TRIM(BM98)="", "", IF(VLOOKUP(BM98,#REF!,2,FALSE)=0,"",VLOOKUP(BM98,#REF!,2,FALSE) ) ) ->  | BO98: =IF(AND(TRIM(Q98)="",TRIM(V98)="",TRIM(AA98)="", TRIM(AF98)="", TRIM(AK98)="", TRIM(AP98)="", TRIM(AU98)="", TRIM(AZ98)="", TRIM(BE98)="", TRIM(BJ98)=""),"",Q98+V98+AA98+AF98+AK98+AP98+AU98+AZ98+BE98+BJ98) -> 0 | BS98: =IF(TRIM(BR98)="", "", IF(VLOOKUP(BR98,#REF!,2,FALSE)=0,"",VLOOKUP(BR98,#REF!,2,FALSE) ) ) ->  | BT98: 0 | BY98: 0 | CD98: 0 | CH98: =IF(TRIM(CG98)="", "", IF(VLOOKUP(CG98,#REF!,2,FALSE)=0,"",VLOOKUP(CG98,#REF!,2,FALSE) ) ) ->  | CI98: =IF(AND(TRIM(BY98)="",TRIM(CD98)=""),"",BY98+CD98) -> 0 | CM98: =IF(TRIM(CL98)="", "", IF(VLOOKUP(CL98,#REF!,2,FALSE)=0,"",VLOOKUP(CL98,#REF!,2,FALSE) ) ) ->  | CN98: 4786.7 | CS98: 0 | CX98: 0 | DC98: 0 | DG98: =IF(TRIM(DF98)="", "", IF(VLOOKUP(DF98,#REF!,2,FALSE)=0,"",VLOOKUP(DF98,#REF!,2,FALSE) ) ) ->  | DH98: =IF(AND(TRIM(G98)="",TRIM(L98)="",TRIM(BO98)="",TRIM(BT98)="",TRIM(CI98)="",TRIM(CN98)="",TRIM(CS98)="",TRIM(CX98)="",TRIM(DC98)=""),"",SUM(G98,L98,BO98,BT98,CI98,CN98,CS98,CX98,DC98)) -> 4922.92 | DL98: =IF(TRIM(DK98)="", "", IF(VLOOKUP(DK98,#REF!,2,FALSE)=0,"",VLOOKUP(DK98,#REF!,2,FALSE) ) ) -> 
C99: W126 | E99: NHAZ | F99: Non-hazardous | G99: 0 | L99: 0 | Q99: 0 | V99: 0 | AA99: 0 | AF99: 0 | AK99: 0 | AP99: 0 | AU99: 0 | AZ99: 0 | BE99: 0 | BJ99: 0 | BN99: =IF(TRIM(BM99)="", "", IF(VLOOKUP(BM99,#REF!,2,FALSE)=0,"",VLOOKUP(BM99,#REF!,2,FALSE) ) ) ->  | BO99: =IF(AND(TRIM(Q99)="",TRIM(V99)="",TRIM(AA99)="", TRIM(AF99)="", TRIM(AK99)="", TRIM(AP99)="", TRIM(AU99)="", TRIM(AZ99)="", TRIM(BE99)="", TRIM(BJ99)=""),"",Q99+V99+AA99+AF99+AK99+AP99+AU99+AZ99+BE99+BJ99) -> 0 | BS99: =IF(TRIM(BR99)="", "", IF(VLOOKUP(BR99,#REF!,2,FALSE)=0,"",VLOOKUP(BR99,#REF!,2,FALSE) ) ) ->  | BT99: 0 | BY99: 0 | CD99: 259.098 | CH99: =IF(TRIM(CG99)="", "", IF(VLOOKUP(CG99,#REF!,2,FALSE)=0,"",VLOOKUP(CG99,#REF!,2,FALSE) ) ) ->  | CI99: =IF(AND(TRIM(BY99)="",TRIM(CD99)=""),"",BY99+CD99) -> 259.098 | CM99: =IF(TRIM(CL99)="", "", IF(VLOOKUP(CL99,#REF!,2,FALSE)=0,"",VLOOKUP(CL99,#REF!,2,FALSE) ) ) ->  | CN99: 501383.4 | CS99: 0 | CX99: 0 | DC99: 23 | DG99: =IF(TRIM(DF99)="", "", IF(VLOOKUP(DF99,#REF!,2,FALSE)=0,"",VLOOKUP(DF99,#REF!,2,FALSE) ) ) ->  | DH99: =IF(AND(TRIM(G99)="",TRIM(L99)="",TRIM(BO99)="",TRIM(BT99)="",TRIM(CI99)="",TRIM(CN99)="",TRIM(CS99)="",TRIM(CX99)="",TRIM(DC99)=""),"",SUM(G99,L99,BO99,BT99,CI99,CN99,CS99,CX99,DC99)) -> 501665.498 | DL99: =IF(TRIM(DK99)="", "", IF(VLOOKUP(DK99,#REF!,2,FALSE)=0,"",VLOOKUP(DK99,#REF!,2,FALSE) ) ) -> 
C100: W126 | E100: HAZ_NHAZ | F100: Total | G100: =IF(AND(TRIM(G98)="",TRIM(G99)=""),"",G98+G99) -> 0 | L100: =IF(AND(TRIM(L98)="",TRIM(L99)=""),"",L98+L99) -> 136.22 | Q100: =IF(AND(TRIM(Q98)="",TRIM(Q99)=""),"",Q98+Q99) -> 0 | V100: =IF(AND(TRIM(V98)="",TRIM(V99)=""),"",V98+V99) -> 0 | AA100: =IF(AND(TRIM(AA98)="",TRIM(AA99)=""),"",AA98+AA99) -> 0 | AF100: =IF(AND(TRIM(AF98)="",TRIM(AF99)=""),"",AF98+AF99) -> 0 | AK100: =IF(AND(TRIM(AK98)="",TRIM(AK99)=""),"",AK98+AK99) -> 0 | AP100: =IF(AND(TRIM(AP98)="",TRIM(AP99)=""),"",AP98+AP99) -> 0 | AU100: =IF(AND(TRIM(AU98)="",TRIM(AU99)=""),"",AU98+AU99) -> 0 | AZ100: =IF(AND(TRIM(AZ98)="",TRIM(AZ99)=""),"",AZ98+AZ99) -> 0 | BE100: =IF(AND(TRIM(BE98)="",TRIM(BE99)=""),"",BE98+BE99) -> 0 | BJ100: =IF(AND(TRIM(BJ98)="",TRIM(BJ99)=""),"",BJ98+BJ99) -> 0 | BN100: =IF(TRIM(BM100)="", "", IF(VLOOKUP(BM100,#REF!,2,FALSE)=0,"",VLOOKUP(BM100,#REF!,2,FALSE) ) ) ->  | BO100: =IF(AND(TRIM(BO98)="", TRIM(BO99)=""), "", (IF(ISNUMBER(BO98),BO98,0)+IF(ISNUMBER(BO99),BO99,0))) -> 0 | BS100: =IF(TRIM(BR100)="", "", IF(VLOOKUP(BR100,#REF!,2,FALSE)=0,"",VLOOKUP(BR100,#REF!,2,FALSE) ) ) ->  | BT100: =IF(AND(TRIM(BT98)="",TRIM(BT99)=""),"",BT98+BT99) -> 0 | BY100: =IF(AND(TRIM(BY98)="",TRIM(BY99)=""),"",BY98+BY99) -> 0 | CD100: =IF(AND(TRIM(CD98)="",TRIM(CD99)=""),"",CD98+CD99) -> 259.098 | CH100: =IF(TRIM(CG100)="", "", IF(VLOOKUP(CG100,#REF!,2,FALSE)=0,"",VLOOKUP(CG100,#REF!,2,FALSE) ) ) ->  | CI100: =IF(AND(TRIM(CI98)="", TRIM(CI99)=""), "", (IF(ISNUMBER(CI98),CI98,0)+IF(ISNUMBER(CI99),CI99,0))) -> 259.098 | CM100: =IF(TRIM(CL100)="", "", IF(VLOOKUP(CL100,#REF!,2,FALSE)=0,"",VLOOKUP(CL100,#REF!,2,FALSE) ) ) ->  | CN100: =IF(AND(TRIM(CN98)="",TRIM(CN99)=""),"",CN98+CN99) -> 506170.1 | CS100: =IF(AND(TRIM(CS98)="",TRIM(CS99)=""),"",CS98+CS99) -> 0 | CX100: =IF(AND(TRIM(CX98)="",TRIM(CX99)=""),"",CX98+CX99) -> 0 | DC100: =IF(AND(TRIM(DC98)="",TRIM(DC99)=""),"",DC98+DC99) -> 23 | DG100: =IF(TRIM(DF100)="", "", IF(VLOOKUP(DF100,#REF!,2,FALSE)=0,"",VLOOKUP(DF100,#REF!,2,FALSE) ) ) ->  | DH100: =IF(AND(TRIM(DH98)="", TRIM(DH99)=""), "", SUM(DH98,DH99) ) -> 506588.418 | DL100: =IF(TRIM(DK100)="", "", IF(VLOOKUP(DK100,#REF!,2,FALSE)=0,"",VLOOKUP(DK100,#REF!,2,FALSE) ) ) -> 
B101: W127 | C101: W127 | D101: Dredging spoils | E101: HAZ | F101: Hazardous | G101: 0 | L101: 0 | Q101: 0 | V101: 0 | AA101: 0 | AF101: 0 | AK101: 0 | AP101: 0 | AU101: 0 | AZ101: 0 | BE101: 0 | BJ101: 0 | BN101: =IF(TRIM(BM101)="", "", IF(VLOOKUP(BM101,#REF!,2,FALSE)=0,"",VLOOKUP(BM101,#REF!,2,FALSE) ) ) ->  | BO101: =IF(AND(TRIM(Q101)="",TRIM(V101)="",TRIM(AA101)="", TRIM(AF101)="", TRIM(AK101)="", TRIM(AP101)="", TRIM(AU101)="", TRIM(AZ101)="", TRIM(BE101)="", TRIM(BJ101)=""),"",Q101+V101+AA101+AF101+AK101+AP101+AU101+AZ101+BE101+BJ101) -> 0 | BS101: =IF(TRIM(BR101)="", "", IF(VLOOKUP(BR101,#REF!,2,FALSE)=0,"",VLOOKUP(BR101,#REF!,2,FALSE) ) ) ->  | BT101: 0 | BY101: 0 | CD101: 0 | CH101: =IF(TRIM(CG101)="", "", IF(VLOOKUP(CG101,#REF!,2,FALSE)=0,"",VLOOKUP(CG101,#REF!,2,FALSE) ) ) ->  | CI101: =IF(AND(TRIM(BY101)="",TRIM(CD101)=""),"",BY101+CD101) -> 0 | CM101: =IF(TRIM(CL101)="", "", IF(VLOOKUP(CL101,#REF!,2,FALSE)=0,"",VLOOKUP(CL101,#REF!,2,FALSE) ) ) ->  | CN101: 1522.15 | CS101: 0 | CX101: 0 | DC101: 0 | DG101: =IF(TRIM(DF101)="", "", IF(VLOOKUP(DF101,#REF!,2,FALSE)=0,"",VLOOKUP(DF101,#REF!,2,FALSE) ) ) ->  | DH101: =IF(AND(TRIM(G101)="",TRIM(L101)="",TRIM(BO101)="",TRIM(BT101)="",TRIM(CI101)="",TRIM(CN101)="",TRIM(CS101)="",TRIM(CX101)="",TRIM(DC101)=""),"",SUM(G101,L101,BO101,BT101,CI101,CN101,CS101,CX101,DC101)) -> 1522.15 | DL101: =IF(TRIM(DK101)="", "", IF(VLOOKUP(DK101,#REF!,2,FALSE)=0,"",VLOOKUP(DK101,#REF!,2,FALSE) ) ) -> 
C102: W127 | E102: NHAZ | F102: Non-hazardous | G102: 0 | L102: 0 | Q102: 0 | V102: 0 | AA102: 0 | AF102: 0 | AK102: 0 | AP102: 0 | AU102: 0 | AZ102: 0 | BE102: 0 | BJ102: 0 | BN102: =IF(TRIM(BM102)="", "", IF(VLOOKUP(BM102,#REF!,2,FALSE)=0,"",VLOOKUP(BM102,#REF!,2,FALSE) ) ) ->  | BO102: =IF(AND(TRIM(Q102)="",TRIM(V102)="",TRIM(AA102)="", TRIM(AF102)="", TRIM(AK102)="", TRIM(AP102)="", TRIM(AU102)="", TRIM(AZ102)="", TRIM(BE102)="", TRIM(BJ102)=""),"",Q102+V102+AA102+AF102+AK102+AP102+AU102+AZ102+BE102+BJ102) -> 0 | BS102: =IF(TRIM(BR102)="", "", IF(VLOOKUP(BR102,#REF!,2,FALSE)=0,"",VLOOKUP(BR102,#REF!,2,FALSE) ) ) ->  | BT102: 0 | BY102: 0 | CD102: 0 | CH102: =IF(TRIM(CG102)="", "", IF(VLOOKUP(CG102,#REF!,2,FALSE)=0,"",VLOOKUP(CG102,#REF!,2,FALSE) ) ) ->  | CI102: =IF(AND(TRIM(BY102)="",TRIM(CD102)=""),"",BY102+CD102) -> 0 | CM102: =IF(TRIM(CL102)="", "", IF(VLOOKUP(CL102,#REF!,2,FALSE)=0,"",VLOOKUP(CL102,#REF!,2,FALSE) ) ) ->  | CN102: 9337.95 | CS102: 0 | CX102: 0 | DC102: 0 | DG102: =IF(TRIM(DF102)="", "", IF(VLOOKUP(DF102,#REF!,2,FALSE)=0,"",VLOOKUP(DF102,#REF!,2,FALSE) ) ) ->  | DH102: =IF(AND(TRIM(G102)="",TRIM(L102)="",TRIM(BO102)="",TRIM(BT102)="",TRIM(CI102)="",TRIM(CN102)="",TRIM(CS102)="",TRIM(CX102)="",TRIM(DC102)=""),"",SUM(G102,L102,BO102,BT102,CI102,CN102,CS102,CX102,DC102)) -> 9337.95 | DL102: =IF(TRIM(DK102)="", "", IF(VLOOKUP(DK102,#REF!,2,FALSE)=0,"",VLOOKUP(DK102,#REF!,2,FALSE) ) ) -> 
C103: W127 | E103: HAZ_NHAZ | F103: Total | G103: =IF(AND(TRIM(G101)="",TRIM(G102)=""),"",G101+G102) -> 0 | L103: =IF(AND(TRIM(L101)="",TRIM(L102)=""),"",L101+L102) -> 0 | Q103: =IF(AND(TRIM(Q101)="",TRIM(Q102)=""),"",Q101+Q102) -> 0 | V103: =IF(AND(TRIM(V101)="",TRIM(V102)=""),"",V101+V102) -> 0 | AA103: =IF(AND(TRIM(AA101)="",TRIM(AA102)=""),"",AA101+AA102) -> 0 | AF103: =IF(AND(TRIM(AF101)="",TRIM(AF102)=""),"",AF101+AF102) -> 0 | AK103: =IF(AND(TRIM(AK101)="",TRIM(AK102)=""),"",AK101+AK102) -> 0 | AP103: =IF(AND(TRIM(AP101)="",TRIM(AP102)=""),"",AP101+AP102) -> 0 | AU103: =IF(AND(TRIM(AU101)="",TRIM(AU102)=""),"",AU101+AU102) -> 0 | AZ103: =IF(AND(TRIM(AZ101)="",TRIM(AZ102)=""),"",AZ101+AZ102) -> 0 | BE103: =IF(AND(TRIM(BE101)="",TRIM(BE102)=""),"",BE101+BE102) -> 0 | BJ103: =IF(AND(TRIM(BJ101)="",TRIM(BJ102)=""),"",BJ101+BJ102) -> 0 | BN103: =IF(TRIM(BM103)="", "", IF(VLOOKUP(BM103,#REF!,2,FALSE)=0,"",VLOOKUP(BM103,#REF!,2,FALSE) ) ) ->  | BO103: =IF(AND(TRIM(BO101)="", TRIM(BO102)=""), "", (IF(ISNUMBER(BO101),BO101,0)+IF(ISNUMBER(BO102),BO102,0))) -> 0 | BS103: =IF(TRIM(BR103)="", "", IF(VLOOKUP(BR103,#REF!,2,FALSE)=0,"",VLOOKUP(BR103,#REF!,2,FALSE) ) ) ->  | BT103: =IF(AND(TRIM(BT101)="",TRIM(BT102)=""),"",BT101+BT102) -> 0 | BY103: =IF(AND(TRIM(BY101)="",TRIM(BY102)=""),"",BY101+BY102) -> 0 | CD103: =IF(AND(TRIM(CD101)="",TRIM(CD102)=""),"",CD101+CD102) -> 0 | CH103: =IF(TRIM(CG103)="", "", IF(VLOOKUP(CG103,#REF!,2,FALSE)=0,"",VLOOKUP(CG103,#REF!,2,FALSE) ) ) ->  | CI103: =IF(AND(TRIM(CI101)="", TRIM(CI102)=""), "", (IF(ISNUMBER(CI101),CI101,0)+IF(ISNUMBER(CI102),CI102,0))) -> 0 | CM103: =IF(TRIM(CL103)="", "", IF(VLOOKUP(CL103,#REF!,2,FALSE)=0,"",VLOOKUP(CL103,#REF!,2,FALSE) ) ) ->  | CN103: =IF(AND(TRIM(CN101)="",TRIM(CN102)=""),"",CN101+CN102) -> 10860.1 | CS103: =IF(AND(TRIM(CS101)="",TRIM(CS102)=""),"",CS101+CS102) -> 0 | CX103: =IF(AND(TRIM(CX101)="",TRIM(CX102)=""),"",CX101+CX102) -> 0 | DC103: =IF(AND(TRIM(DC101)="",TRIM(DC102)=""),"",DC101+DC102) -> 0 | DG103: =IF(TRIM(DF103)="", "", IF(VLOOKUP(DF103,#REF!,2,FALSE)=0,"",VLOOKUP(DF103,#REF!,2,FALSE) ) ) ->  | DH103: =IF(AND(TRIM(DH101)="", TRIM(DH102)=""), "", SUM(DH101,DH102) ) -> 10860.1 | DL103: =IF(TRIM(DK103)="", "", IF(VLOOKUP(DK103,#REF!,2,FALSE)=0,"",VLOOKUP(DK103,#REF!,2,FALSE) ) ) -> 
B104: W128_13 | C104: W128_13 | D104: Mineral wastes from waste treatment and stabilised wastes | E104: HAZ | F104: Hazardous | G104: 0 | L104: 0 | Q104: 0 | V104: 0 | AA104: 0 | AF104: 0 | AK104: 0 | AP104: 0 | AU104: 0 | AZ104: 0 | BE104: 0 | BJ104: 0.397 | BN104: =IF(TRIM(BM104)="", "", IF(VLOOKUP(BM104,#REF!,2,FALSE)=0,"",VLOOKUP(BM104,#REF!,2,FALSE) ) ) ->  | BO104: =IF(AND(TRIM(Q104)="",TRIM(V104)="",TRIM(AA104)="", TRIM(AF104)="", TRIM(AK104)="", TRIM(AP104)="", TRIM(AU104)="", TRIM(AZ104)="", TRIM(BE104)="", TRIM(BJ104)=""),"",Q104+V104+AA104+AF104+AK104+AP104+AU104+AZ104+BE104+BJ104) -> 0.397 | BS104: =IF(TRIM(BR104)="", "", IF(VLOOKUP(BR104,#REF!,2,FALSE)=0,"",VLOOKUP(BR104,#REF!,2,FALSE) ) ) ->  | BT104: 0 | BY104: 0 | CD104: 0 | CH104: =IF(TRIM(CG104)="", "", IF(VLOOKUP(CG104,#REF!,2,FALSE)=0,"",VLOOKUP(CG104,#REF!,2,FALSE) ) ) ->  | CI104: =IF(AND(TRIM(BY104)="",TRIM(CD104)=""),"",BY104+CD104) -> 0 | CM104: =IF(TRIM(CL104)="", "", IF(VLOOKUP(CL104,#REF!,2,FALSE)=0,"",VLOOKUP(CL104,#REF!,2,FALSE) ) ) ->  | CN104: 0 | CS104: 0 | CX104: 0 | DC104: 0 | DG104: =IF(TRIM(DF104)="", "", IF(VLOOKUP(DF104,#REF!,2,FALSE)=0,"",VLOOKUP(DF104,#REF!,2,FALSE) ) ) ->  | DH104: =IF(AND(TRIM(G104)="",TRIM(L104)="",TRIM(BO104)="",TRIM(BT104)="",TRIM(CI104)="",TRIM(CN104)="",TRIM(CS104)="",TRIM(CX104)="",TRIM(DC104)=""),"",SUM(G104,L104,BO104,BT104,CI104,CN104,CS104,CX104,DC104)) -> 0.397 | DL104: =IF(TRIM(DK104)="", "", IF(VLOOKUP(DK104,#REF!,2,FALSE)=0,"",VLOOKUP(DK104,#REF!,2,FALSE) ) ) -> 
C105: W128_13 | E105: NHAZ | F105: Non-hazardous | G105: 0 | L105: 0 | Q105: 0 | V105: 0 | AA105: 0 | AF105: 0 | AK105: 0 | AP105: 0 | AU105: 0 | AZ105: 3303.823 | BE105: 0 | BJ105: 0 | BN105: =IF(TRIM(BM105)="", "", IF(VLOOKUP(BM105,#REF!,2,FALSE)=0,"",VLOOKUP(BM105,#REF!,2,FALSE) ) ) ->  | BO105: =IF(AND(TRIM(Q105)="",TRIM(V105)="",TRIM(AA105)="", TRIM(AF105)="", TRIM(AK105)="", TRIM(AP105)="", TRIM(AU105)="", TRIM(AZ105)="", TRIM(BE105)="", TRIM(BJ105)=""),"",Q105+V105+AA105+AF105+AK105+AP105+AU105+AZ105+BE105+BJ105) -> 3303.823 | BS105: =IF(TRIM(BR105)="", "", IF(VLOOKUP(BR105,#REF!,2,FALSE)=0,"",VLOOKUP(BR105,#REF!,2,FALSE) ) ) ->  | BT105: 0 | BY105: 796.825 | CD105: 21858.341 | CH105: =IF(TRIM(CG105)="", "", IF(VLOOKUP(CG105,#REF!,2,FALSE)=0,"",VLOOKUP(CG105,#REF!,2,FALSE) ) ) ->  | CI105: =IF(AND(TRIM(BY105)="",TRIM(CD105)=""),"",BY105+CD105) -> 22655.166 | CM105: =IF(TRIM(CL105)="", "", IF(VLOOKUP(CL105,#REF!,2,FALSE)=0,"",VLOOKUP(CL105,#REF!,2,FALSE) ) ) ->  | CN105: 24847.772 | CS105: 0 | CX105: 0 | DC105: 0 | DG105: =IF(TRIM(DF105)="", "", IF(VLOOKUP(DF105,#REF!,2,FALSE)=0,"",VLOOKUP(DF105,#REF!,2,FALSE) ) ) ->  | DH105: =IF(AND(TRIM(G105)="",TRIM(L105)="",TRIM(BO105)="",TRIM(BT105)="",TRIM(CI105)="",TRIM(CN105)="",TRIM(CS105)="",TRIM(CX105)="",TRIM(DC105)=""),"",SUM(G105,L105,BO105,BT105,CI105,CN105,CS105,CX105,DC105)) -> 50806.761 | DL105: =IF(TRIM(DK105)="", "", IF(VLOOKUP(DK105,#REF!,2,FALSE)=0,"",VLOOKUP(DK105,#REF!,2,FALSE) ) ) -> 
C106: W128_13 | E106: HAZ_NHAZ | F106: Total | G106: =IF(AND(TRIM(G104)="",TRIM(G105)=""),"",G104+G105) -> 0 | L106: =IF(AND(TRIM(L104)="",TRIM(L105)=""),"",L104+L105) -> 0 | Q106: =IF(AND(TRIM(Q104)="",TRIM(Q105)=""),"",Q104+Q105) -> 0 | V106: =IF(AND(TRIM(V104)="",TRIM(V105)=""),"",V104+V105) -> 0 | AA106: =IF(AND(TRIM(AA104)="",TRIM(AA105)=""),"",AA104+AA105) -> 0 | AF106: =IF(AND(TRIM(AF104)="",TRIM(AF105)=""),"",AF104+AF105) -> 0 | AK106: =IF(AND(TRIM(AK104)="",TRIM(AK105)=""),"",AK104+AK105) -> 0 | AP106: =IF(AND(TRIM(AP104)="",TRIM(AP105)=""),"",AP104+AP105) -> 0 | AU106: =IF(AND(TRIM(AU104)="",TRIM(AU105)=""),"",AU104+AU105) -> 0 | AZ106: =IF(AND(TRIM(AZ104)="",TRIM(AZ105)=""),"",AZ104+AZ105) -> 3303.823 | BE106: =IF(AND(TRIM(BE104)="",TRIM(BE105)=""),"",BE104+BE105) -> 0 | BJ106: =IF(AND(TRIM(BJ104)="",TRIM(BJ105)=""),"",BJ104+BJ105) -> 0.397 | BN106: =IF(TRIM(BM106)="", "", IF(VLOOKUP(BM106,#REF!,2,FALSE)=0,"",VLOOKUP(BM106,#REF!,2,FALSE) ) ) ->  | BO106: =IF(AND(TRIM(BO104)="", TRIM(BO105)=""), "", (IF(ISNUMBER(BO104),BO104,0)+IF(ISNUMBER(BO105),BO105,0))) -> 3304.22 | BS106: =IF(TRIM(BR106)="", "", IF(VLOOKUP(BR106,#REF!,2,FALSE)=0,"",VLOOKUP(BR106,#REF!,2,FALSE) ) ) ->  | BT106: =IF(AND(TRIM(BT104)="",TRIM(BT105)=""),"",BT104+BT105) -> 0 | BY106: =IF(AND(TRIM(BY104)="",TRIM(BY105)=""),"",BY104+BY105) -> 796.825 | CD106: =IF(AND(TRIM(CD104)="",TRIM(CD105)=""),"",CD104+CD105) -> 21858.341 | CH106: =IF(TRIM(CG106)="", "", IF(VLOOKUP(CG106,#REF!,2,FALSE)=0,"",VLOOKUP(CG106,#REF!,2,FALSE) ) ) ->  | CI106: =IF(AND(TRIM(CI104)="", TRIM(CI105)=""), "", (IF(ISNUMBER(CI104),CI104,0)+IF(ISNUMBER(CI105),CI105,0))) -> 22655.166 | CM106: =IF(TRIM(CL106)="", "", IF(VLOOKUP(CL106,#REF!,2,FALSE)=0,"",VLOOKUP(CL106,#REF!,2,FALSE) ) ) ->  | CN106: =IF(AND(TRIM(CN104)="",TRIM(CN105)=""),"",CN104+CN105) -> 24847.772 | CS106: =IF(AND(TRIM(CS104)="",TRIM(CS105)=""),"",CS104+CS105) -> 0 | CX106: =IF(AND(TRIM(CX104)="",TRIM(CX105)=""),"",CX104+CX105) -> 0 | DC106: =IF(AND(TRIM(DC104)="",TRIM(DC105)=""),"",DC104+DC105) -> 0 | DG106: =IF(TRIM(DF106)="", "", IF(VLOOKUP(DF106,#REF!,2,FALSE)=0,"",VLOOKUP(DF106,#REF!,2,FALSE) ) ) ->  | DH106: =IF(AND(TRIM(DH104)="", TRIM(DH105)=""), "", SUM(DH104,DH105) ) -> 50807.158 | DL106: =IF(TRIM(DK106)="", "", IF(VLOOKUP(DK106,#REF!,2,FALSE)=0,"",VLOOKUP(DK106,#REF!,2,FALSE) ) ) -> 
B107: PRIM | C107: PRIM | D107: Primary waste | E107: HAZ | F107: Hazardous | G107: =SUM(G8,G11,G14,G17,G20,G26,G29,G32,G35,G38,G41,G44,G47,G50,G53,G56,G59,G62,G65,G68,G71,G74,G77,G80,G86,G89,G92,G95,G98,G101) -> 943.833 | K107: =IF(TRIM(J107)="", "", IF(VLOOKUP(J107,#REF!,2,FALSE)=0,"",VLOOKUP(J107,#REF!,2,FALSE) ) ) ->  | L107: =SUM(L8,L11,L14,L17,L20,L26,L29,L32,L35,L38,L41,L44,L47,L50,L53,L56,L59,L62,L65,L68,L71,L74,L77,L80,L86,L89,L92,L95,L98,L101) -> 6531.238 | P107: =IF(TRIM(O107)="", "", IF(VLOOKUP(O107,#REF!,2,FALSE)=0,"",VLOOKUP(O107,#REF!,2,FALSE) ) ) ->  | Q107: =SUM(Q8,Q11,Q14,Q17,Q20,Q26,Q29,Q32,Q35,Q38,Q41,Q44,Q47,Q50,Q53,Q56,Q59,Q62,Q65,Q68,Q71,Q74,Q77,Q80,Q86,Q89,Q92,Q95,Q98,Q101) -> 931.069 | U107: =IF(TRIM(T107)="", "", IF(VLOOKUP(T107,#REF!,2,FALSE)=0,"",VLOOKUP(T107,#REF!,2,FALSE) ) ) ->  | V107: =SUM(V8,V11,V14,V17,V20,V26,V29,V32,V35,V38,V41,V44,V47,V50,V53,V56,V59,V62,V65,V68,V71,V74,V77,V80,V86,V89,V92,V95,V98,V101) -> 373.414 | Z107: =IF(TRIM(Y107)="", "", IF(VLOOKUP(Y107,#REF!,2,FALSE)=0,"",VLOOKUP(Y107,#REF!,2,FALSE) ) ) ->  | AA107: =SUM(AA8,AA11,AA14,AA17,AA20,AA26,AA29,AA32,AA35,AA38,AA41,AA44,AA47,AA50,AA53,AA56,AA59,AA62,AA65,AA68,AA71,AA74,AA77,AA80,AA86,AA89,AA92,AA95,AA98,AA101) -> 169.536 | AE107: =IF(TRIM(AD107)="", "", IF(VLOOKUP(AD107,#REF!,2,FALSE)=0,"",VLOOKUP(AD107,#REF!,2,FALSE) ) ) ->  | AF107: =SUM(AF8,AF11,AF14,AF17,AF20,AF26,AF29,AF32,AF35,AF38,AF41,AF44,AF47,AF50,AF53,AF56,AF59,AF62,AF65,AF68,AF71,AF74,AF77,AF80,AF86,AF89,AF92,AF95,AF98,AF101) -> 1069.043 | AJ107: =IF(TRIM(AI107)="", "", IF(VLOOKUP(AI107,#REF!,2,FALSE)=0,"",VLOOKUP(AI107,#REF!,2,FALSE) ) ) ->  | AK107: =SUM(AK8,AK11,AK14,AK17,AK20,AK26,AK29,AK32,AK35,AK38,AK41,AK44,AK47,AK50,AK53,AK56,AK59,AK62,AK65,AK68,AK71,AK74,AK77,AK80,AK86,AK89,AK92,AK95,AK98,AK101) -> 1989.481 | AO107: =IF(TRIM(AN107)="", "", IF(VLOOKUP(AN107,#REF!,2,FALSE)=0,"",VLOOKUP(AN107,#REF!,2,FALSE) ) ) ->  | AP107: =SUM(AP8,AP11,AP14,AP17,AP20,AP26,AP29,AP32,AP35,AP38,AP41,AP44,AP47,AP50,AP53,AP56,AP59,AP62,AP65,AP68,AP71,AP74,AP77,AP80,AP86,AP89,AP92,AP95,AP98,AP101) -> 3357.251 | AT107: =IF(TRIM(AS107)="", "", IF(VLOOKUP(AS107,#REF!,2,FALSE)=0,"",VLOOKUP(AS107,#REF!,2,FALSE) ) ) ->  | AU107: =SUM(AU8,AU11,AU14,AU17,AU20,AU26,AU29,AU32,AU35,AU38,AU41,AU44,AU47,AU50,AU53,AU56,AU59,AU62,AU65,AU68,AU71,AU74,AU77,AU80,AU86,AU89,AU92,AU95,AU98,AU101) -> 625.046 | AY107: =IF(TRIM(AX107)="", "", IF(VLOOKUP(AX107,#REF!,2,FALSE)=0,"",VLOOKUP(AX107,#REF!,2,FALSE) ) ) ->  | AZ107: =SUM(AZ8,AZ11,AZ14,AZ17,AZ20,AZ26,AZ29,AZ32,AZ35,AZ38,AZ41,AZ44,AZ47,AZ50,AZ53,AZ56,AZ59,AZ62,AZ65,AZ68,AZ71,AZ74,AZ77,AZ80,AZ86,AZ89,AZ92,AZ95,AZ98,AZ101) -> 11306.799 | BD107: =IF(TRIM(BC107)="", "", IF(VLOOKUP(BC107,#REF!,2,FALSE)=0,"",VLOOKUP(BC107,#REF!,2,FALSE) ) ) ->  | BE107: =SUM(BE8,BE11,BE14,BE17,BE20,BE26,BE29,BE32,BE35,BE38,BE41,BE44,BE47,BE50,BE53,BE56,BE59,BE62,BE65,BE68,BE71,BE74,BE77,BE80,BE86,BE89,BE92,BE95,BE98,BE101) -> 5633.246 | BI107: =IF(TRIM(BH107)="", "", IF(VLOOKUP(BH107,#REF!,2,FALSE)=0,"",VLOOKUP(BH107,#REF!,2,FALSE) ) ) ->  | BJ107: =SUM(BJ8,BJ11,BJ14,BJ17,BJ20,BJ26,BJ29,BJ32,BJ35,BJ38,BJ41,BJ44,BJ47,BJ50,BJ53,BJ56,BJ59,BJ62,BJ65,BJ68,BJ71,BJ74,BJ77,BJ80,BJ86,BJ89,BJ92,BJ95,BJ98,BJ101) -> 1567.358 | BN107: =IF(TRIM(BM107)="", "", IF(VLOOKUP(BM107,#REF!,2,FALSE)=0,"",VLOOKUP(BM107,#REF!,2,FALSE) ) ) ->  | BO107: =SUM(BO8,BO11,BO14,BO17,BO20,BO26,BO29,BO32,BO35,BO38,BO41,BO44,BO47,BO50,BO53,BO56,BO59,BO62,BO65,BO68,BO71,BO74,BO77,BO80,BO86,BO89,BO92,BO95,BO98,BO101) -> 27022.243 | BS107: =IF(TRIM(BR107)="", "", IF(VLOOKUP(BR107,#REF!,2,FALSE)=0,"",VLOOKUP(BR107,#REF!,2,FALSE) ) ) ->  | BT107: =SUM(BT8,BT11,BT14,BT17,BT20,BT26,BT29,BT32,BT35,BT38,BT41,BT44,BT47,BT50,BT53,BT56,BT59,BT62,BT65,BT68,BT71,BT74,BT77,BT80,BT86,BT89,BT92,BT95,BT98,BT101) -> 1372.457 | BX107: =IF(TRIM(BW107)="", "", IF(VLOOKUP(BW107,#REF!,2,FALSE)=0,"",VLOOKUP(BW107,#REF!,2,FALSE) ) ) ->  | BY107: =SUM(BY8,BY11,BY14,BY17,BY20,BY26,BY29,BY32,BY35,BY38,BY41,BY44,BY47,BY50,BY53,BY56,BY59,BY62,BY65,BY68,BY71,BY74,BY77,BY80,BY86,BY89,BY92,BY95,BY98,BY101) -> 688.666 | CC107: =IF(TRIM(CB107)="", "", IF(VLOOKUP(CB107,#REF!,2,FALSE)=0,"",VLOOKUP(CB107,#REF!,2,FALSE) ) ) ->  | CD107: =SUM(CD8,CD11,CD14,CD17,CD20,CD26,CD29,CD32,CD35,CD38,CD41,CD44,CD47,CD50,CD53,CD56,CD59,CD62,CD65,CD68,CD71,CD74,CD77,CD80,CD86,CD89,CD92,CD95,CD98,CD101) -> 2218.909 | CH107: =IF(TRIM(CG107)="", "", IF(VLOOKUP(CG107,#REF!,2,FALSE)=0,"",VLOOKUP(CG107,#REF!,2,FALSE) ) ) ->  | CI107: =SUM(CI8,CI11,CI14,CI17,CI20,CI26,CI29,CI32,CI35,CI38,CI41,CI44,CI47,CI50,CI53,CI56,CI59,CI62,CI65,CI68,CI71,CI74,CI77,CI80,CI86,CI89,CI92,CI95,CI98,CI101) -> 2907.575 | CM107: =IF(TRIM(CL107)="", "", IF(VLOOKUP(CL107,#REF!,2,FALSE)=0,"",VLOOKUP(CL107,#REF!,2,FALSE) ) ) ->  | CN107: =SUM(CN8,CN11,CN14,CN17,CN20,CN26,CN29,CN32,CN35,CN38,CN41,CN44,CN47,CN50,CN53,CN56,CN59,CN62,CN65,CN68,CN71,CN74,CN77,CN80,CN86,CN89,CN92,CN95,CN98,CN101) -> 19839.105 | CR107: =IF(TRIM(CQ107)="", "", IF(VLOOKUP(CQ107,#REF!,2,FALSE)=0,"",VLOOKUP(CQ107,#REF!,2,FALSE) ) ) ->  | CS107: =SUM(CS8,CS11,CS14,CS17,CS20,CS26,CS29,CS32,CS35,CS38,CS41,CS44,CS47,CS50,CS53,CS56,CS59,CS62,CS65,CS68,CS71,CS74,CS77,CS80,CS86,CS89,CS92,CS95,CS98,CS101) -> 35189.285 | CW107: =IF(TRIM(CV107)="", "", IF(VLOOKUP(CV107,#REF!,2,FALSE)=0,"",VLOOKUP(CV107,#REF!,2,FALSE) ) ) ->  | CX107: =SUM(CX8,CX11,CX14,CX17,CX20,CX26,CX29,CX32,CX35,CX38,CX41,CX44,CX47,CX50,CX53,CX56,CX59,CX62,CX65,CX68,CX71,CX74,CX77,CX80,CX86,CX89,CX92,CX95,CX98,CX101) -> 14.499 | DB107: =IF(TRIM(DA107)="", "", IF(VLOOKUP(DA107,#REF!,2,FALSE)=0,"",VLOOKUP(DA107,#REF!,2,FALSE) ) ) ->  | DC107: =SUM(DC8,DC11,DC14,DC17,DC20,DC26,DC29,DC32,DC35,DC38,DC41,DC44,DC47,DC50,DC53,DC56,DC59,DC62,DC65,DC68,DC71,DC74,DC77,DC80,DC86,DC89,DC92,DC95,DC98,DC101) -> 75693.831 | DG107: =IF(TRIM(DF107)="", "", IF(VLOOKUP(DF107,#REF!,2,FALSE)=0,"",VLOOKUP(DF107,#REF!,2,FALSE) ) ) ->  | DH107: =SUM(DH8,DH11,DH14,DH17,DH20,DH26,DH29,DH32,DH35,DH38,DH41,DH44,DH47,DH50,DH53,DH56,DH59,DH62,DH65,DH68,DH71,DH74,DH77,DH80,DH86,DH89,DH92,DH95,DH98,DH101) -> 169514.066 | DL107: =IF(TRIM(DK107)="", "", IF(VLOOKUP(DK107,#REF!,2,FALSE)=0,"",VLOOKUP(DK107,#REF!,2,FALSE) ) ) -> 
C108: PRIM | E108: NHAZ | F108: Non-hazardous | G108: =SUM(G9,G12,G15,G18,G21,G27,G30,G33,G36,G39,G42,G45,G48,G51,G54,G57,G60,G63,G66,G69,G72,G75,G78,G81,G87,G90,G93,G96,G99,G102) -> 564356.547 | K108: =IF(TRIM(J108)="", "", IF(VLOOKUP(J108,#REF!,2,FALSE)=0,"",VLOOKUP(J108,#REF!,2,FALSE) ) ) ->  | L108: =SUM(L9,L12,L15,L18,L21,L27,L30,L33,L36,L39,L42,L45,L48,L51,L54,L57,L60,L63,L66,L69,L72,L75,L78,L81,L87,L90,L93,L96,L99,L102) -> 686986.003 | P108: =IF(TRIM(O108)="", "", IF(VLOOKUP(O108,#REF!,2,FALSE)=0,"",VLOOKUP(O108,#REF!,2,FALSE) ) ) ->  | Q108: =SUM(Q9,Q12,Q15,Q18,Q21,Q27,Q30,Q33,Q36,Q39,Q42,Q45,Q48,Q51,Q54,Q57,Q60,Q63,Q66,Q69,Q72,Q75,Q78,Q81,Q87,Q90,Q93,Q96,Q99,Q102) -> 58411.994 | U108: =IF(TRIM(T108)="", "", IF(VLOOKUP(T108,#REF!,2,FALSE)=0,"",VLOOKUP(T108,#REF!,2,FALSE) ) ) ->  | V108: =SUM(V9,V12,V15,V18,V21,V27,V30,V33,V36,V39,V42,V45,V48,V51,V54,V57,V60,V63,V66,V69,V72,V75,V78,V81,V87,V90,V93,V96,V99,V102) -> 11655.045 | Z108: =IF(TRIM(Y108)="", "", IF(VLOOKUP(Y108,#REF!,2,FALSE)=0,"",VLOOKUP(Y108,#REF!,2,FALSE) ) ) ->  | AA108: =SUM(AA9,AA12,AA15,AA18,AA21,AA27,AA30,AA33,AA36,AA39,AA42,AA45,AA48,AA51,AA54,AA57,AA60,AA63,AA66,AA69,AA72,AA75,AA78,AA81,AA87,AA90,AA93,AA96,AA99,AA102) -> 55782.699 | AE108: =IF(TRIM(AD108)="", "", IF(VLOOKUP(AD108,#REF!,2,FALSE)=0,"",VLOOKUP(AD108,#REF!,2,FALSE) ) ) ->  | AF108: =SUM(AF9,AF12,AF15,AF18,AF21,AF27,AF30,AF33,AF36,AF39,AF42,AF45,AF48,AF51,AF54,AF57,AF60,AF63,AF66,AF69,AF72,AF75,AF78,AF81,AF87,AF90,AF93,AF96,AF99,AF102) -> 73824.063 | AJ108: =IF(TRIM(AI108)="", "", IF(VLOOKUP(AI108,#REF!,2,FALSE)=0,"",VLOOKUP(AI108,#REF!,2,FALSE) ) ) ->  | AK108: =SUM(AK9,AK12,AK15,AK18,AK21,AK27,AK30,AK33,AK36,AK39,AK42,AK45,AK48,AK51,AK54,AK57,AK60,AK63,AK66,AK69,AK72,AK75,AK78,AK81,AK87,AK90,AK93,AK96,AK99,AK102) -> 5032.872 | AO108: =IF(TRIM(AN108)="", "", IF(VLOOKUP(AN108,#REF!,2,FALSE)=0,"",VLOOKUP(AN108,#REF!,2,FALSE) ) ) ->  | AP108: =SUM(AP9,AP12,AP15,AP18,AP21,AP27,AP30,AP33,AP36,AP39,AP42,AP45,AP48,AP51,AP54,AP57,AP60,AP63,AP66,AP69,AP72,AP75,AP78,AP81,AP87,AP90,AP93,AP96,AP99,AP102) -> 21820.354 | AT108: =IF(TRIM(AS108)="", "", IF(VLOOKUP(AS108,#REF!,2,FALSE)=0,"",VLOOKUP(AS108,#REF!,2,FALSE) ) ) ->  | AU108: =SUM(AU9,AU12,AU15,AU18,AU21,AU27,AU30,AU33,AU36,AU39,AU42,AU45,AU48,AU51,AU54,AU57,AU60,AU63,AU66,AU69,AU72,AU75,AU78,AU81,AU87,AU90,AU93,AU96,AU99,AU102) -> 25961.596 | AY108: =IF(TRIM(AX108)="", "", IF(VLOOKUP(AX108,#REF!,2,FALSE)=0,"",VLOOKUP(AX108,#REF!,2,FALSE) ) ) ->  | AZ108: =SUM(AZ9,AZ12,AZ15,AZ18,AZ21,AZ27,AZ30,AZ33,AZ36,AZ39,AZ42,AZ45,AZ48,AZ51,AZ54,AZ57,AZ60,AZ63,AZ66,AZ69,AZ72,AZ75,AZ78,AZ81,AZ87,AZ90,AZ93,AZ96,AZ99,AZ102) -> 86438.422 | BD108: =IF(TRIM(BC108)="", "", IF(VLOOKUP(BC108,#REF!,2,FALSE)=0,"",VLOOKUP(BC108,#REF!,2,FALSE) ) ) ->  | BE108: =SUM(BE9,BE12,BE15,BE18,BE21,BE27,BE30,BE33,BE36,BE39,BE42,BE45,BE48,BE51,BE54,BE57,BE60,BE63,BE66,BE69,BE72,BE75,BE78,BE81,BE87,BE90,BE93,BE96,BE99,BE102) -> 43307.049 | BI108: =IF(TRIM(BH108)="", "", IF(VLOOKUP(BH108,#REF!,2,FALSE)=0,"",VLOOKUP(BH108,#REF!,2,FALSE) ) ) ->  | BJ108: =SUM(BJ9,BJ12,BJ15,BJ18,BJ21,BJ27,BJ30,BJ33,BJ36,BJ39,BJ42,BJ45,BJ48,BJ51,BJ54,BJ57,BJ60,BJ63,BJ66,BJ69,BJ72,BJ75,BJ78,BJ81,BJ87,BJ90,BJ93,BJ96,BJ99,BJ102) -> 20745.355 | BN108: =IF(TRIM(BM108)="", "", IF(VLOOKUP(BM108,#REF!,2,FALSE)=0,"",VLOOKUP(BM108,#REF!,2,FALSE) ) ) ->  | BO108: =SUM(BO9,BO12,BO15,BO18,BO21,BO27,BO30,BO33,BO36,BO39,BO42,BO45,BO48,BO51,BO54,BO57,BO60,BO63,BO66,BO69,BO72,BO75,BO78,BO81,BO87,BO90,BO93,BO96,BO99,BO102) -> 402979.449 | BS108: =IF(TRIM(BR108)="", "", IF(VLOOKUP(BR108,#REF!,2,FALSE)=0,"",VLOOKUP(BR108,#REF!,2,FALSE) ) ) ->  | BT108: =SUM(BT9,BT12,BT15,BT18,BT21,BT27,BT30,BT33,BT36,BT39,BT42,BT45,BT48,BT51,BT54,BT57,BT60,BT63,BT66,BT69,BT72,BT75,BT78,BT81,BT87,BT90,BT93,BT96,BT99,BT102) -> 66265.068 | BX108: =IF(TRIM(BW108)="", "", IF(VLOOKUP(BW108,#REF!,2,FALSE)=0,"",VLOOKUP(BW108,#REF!,2,FALSE) ) ) ->  | BY108: =SUM(BY9,BY12,BY15,BY18,BY21,BY27,BY30,BY33,BY36,BY39,BY42,BY45,BY48,BY51,BY54,BY57,BY60,BY63,BY66,BY69,BY72,BY75,BY78,BY81,BY87,BY90,BY93,BY96,BY99,BY102) -> 31280.401 | CC108: =IF(TRIM(CB108)="", "", IF(VLOOKUP(CB108,#REF!,2,FALSE)=0,"",VLOOKUP(CB108,#REF!,2,FALSE) ) ) ->  | CD108: =SUM(CD9,CD12,CD15,CD18,CD21,CD27,CD30,CD33,CD36,CD39,CD42,CD45,CD48,CD51,CD54,CD57,CD60,CD63,CD66,CD69,CD72,CD75,CD78,CD81,CD87,CD90,CD93,CD96,CD99,CD102) -> 690397.203 | CH108: =IF(TRIM(CG108)="", "", IF(VLOOKUP(CG108,#REF!,2,FALSE)=0,"",VLOOKUP(CG108,#REF!,2,FALSE) ) ) ->  | CI108: =SUM(CI9,CI12,CI15,CI18,CI21,CI27,CI30,CI33,CI36,CI39,CI42,CI45,CI48,CI51,CI54,CI57,CI60,CI63,CI66,CI69,CI72,CI75,CI78,CI81,CI87,CI90,CI93,CI96,CI99,CI102) -> 721677.604 | CM108: =IF(TRIM(CL108)="", "", IF(VLOOKUP(CL108,#REF!,2,FALSE)=0,"",VLOOKUP(CL108,#REF!,2,FALSE) ) ) ->  | CN108: =SUM(CN9,CN12,CN15,CN18,CN21,CN27,CN30,CN33,CN36,CN39,CN42,CN45,CN48,CN51,CN54,CN57,CN60,CN63,CN66,CN69,CN72,CN75,CN78,CN81,CN87,CN90,CN93,CN96,CN99,CN102) -> 1387007.311 | CR108: =IF(TRIM(CQ108)="", "", IF(VLOOKUP(CQ108,#REF!,2,FALSE)=0,"",VLOOKUP(CQ108,#REF!,2,FALSE) ) ) ->  | CS108: =SUM(CS9,CS12,CS15,CS18,CS21,CS27,CS30,CS33,CS36,CS39,CS42,CS45,CS48,CS51,CS54,CS57,CS60,CS63,CS66,CS69,CS72,CS75,CS78,CS81,CS87,CS90,CS93,CS96,CS99,CS102) -> 516314.199 | CW108: =IF(TRIM(CV108)="", "", IF(VLOOKUP(CV108,#REF!,2,FALSE)=0,"",VLOOKUP(CV108,#REF!,2,FALSE) ) ) ->  | CX108: =SUM(CX9,CX12,CX15,CX18,CX21,CX27,CX30,CX33,CX36,CX39,CX42,CX45,CX48,CX51,CX54,CX57,CX60,CX63,CX66,CX69,CX72,CX75,CX78,CX81,CX87,CX90,CX93,CX96,CX99,CX102) -> 47597.797 | DB108: =IF(TRIM(DA108)="", "", IF(VLOOKUP(DA108,#REF!,2,FALSE)=0,"",VLOOKUP(DA108,#REF!,2,FALSE) ) ) ->  | DC108: =SUM(DC9,DC12,DC15,DC18,DC21,DC27,DC30,DC33,DC36,DC39,DC42,DC45,DC48,DC51,DC54,DC57,DC60,DC63,DC66,DC69,DC72,DC75,DC78,DC81,DC87,DC90,DC93,DC96,DC99,DC102) -> 1135988.43 | DG108: =IF(TRIM(DF108)="", "", IF(VLOOKUP(DF108,#REF!,2,FALSE)=0,"",VLOOKUP(DF108,#REF!,2,FALSE) ) ) ->  | DH108: =SUM(DH9,DH12,DH15,DH18,DH21,DH27,DH30,DH33,DH36,DH39,DH42,DH45,DH48,DH51,DH54,DH57,DH60,DH63,DH66,DH69,DH72,DH75,DH78,DH81,DH87,DH90,DH93,DH96,DH99,DH102) -> 5529172.408 | DL108: =IF(TRIM(DK108)="", "", IF(VLOOKUP(DK108,#REF!,2,FALSE)=0,"",VLOOKUP(DK108,#REF!,2,FALSE) ) ) -> 
C109: PRIM | E109: HAZ_NHAZ | F109: Total | G109: 565300.38 | K109: =IF(TRIM(J109)="", "", IF(VLOOKUP(J109,#REF!,2,FALSE)=0,"",VLOOKUP(J109,#REF!,2,FALSE) ) ) ->  | L109: 693517.241 | P109: =IF(TRIM(O109)="", "", IF(VLOOKUP(O109,#REF!,2,FALSE)=0,"",VLOOKUP(O109,#REF!,2,FALSE) ) ) ->  | Q109: 59343.063 | U109: =IF(TRIM(T109)="", "", IF(VLOOKUP(T109,#REF!,2,FALSE)=0,"",VLOOKUP(T109,#REF!,2,FALSE) ) ) ->  | V109: 12028.459 | Z109: =IF(TRIM(Y109)="", "", IF(VLOOKUP(Y109,#REF!,2,FALSE)=0,"",VLOOKUP(Y109,#REF!,2,FALSE) ) ) ->  | AA109: 55952.235 | AE109: =IF(TRIM(AD109)="", "", IF(VLOOKUP(AD109,#REF!,2,FALSE)=0,"",VLOOKUP(AD109,#REF!,2,FALSE) ) ) ->  | AF109: 74893.106 | AJ109: =IF(TRIM(AI109)="", "", IF(VLOOKUP(AI109,#REF!,2,FALSE)=0,"",VLOOKUP(AI109,#REF!,2,FALSE) ) ) ->  | AK109: 7022.353 | AO109: =IF(TRIM(AN109)="", "", IF(VLOOKUP(AN109,#REF!,2,FALSE)=0,"",VLOOKUP(AN109,#REF!,2,FALSE) ) ) ->  | AP109: 25177.605 | AT109: =IF(TRIM(AS109)="", "", IF(VLOOKUP(AS109,#REF!,2,FALSE)=0,"",VLOOKUP(AS109,#REF!,2,FALSE) ) ) ->  | AU109: 26586.642 | AY109: =IF(TRIM(AX109)="", "", IF(VLOOKUP(AX109,#REF!,2,FALSE)=0,"",VLOOKUP(AX109,#REF!,2,FALSE) ) ) ->  | AZ109: 97745.221 | BD109: =IF(TRIM(BC109)="", "", IF(VLOOKUP(BC109,#REF!,2,FALSE)=0,"",VLOOKUP(BC109,#REF!,2,FALSE) ) ) ->  | BE109: 48940.295 | BI109: =IF(TRIM(BH109)="", "", IF(VLOOKUP(BH109,#REF!,2,FALSE)=0,"",VLOOKUP(BH109,#REF!,2,FALSE) ) ) ->  | BJ109: 22312.713 | BN109: =IF(TRIM(BM109)="", "", IF(VLOOKUP(BM109,#REF!,2,FALSE)=0,"",VLOOKUP(BM109,#REF!,2,FALSE) ) ) ->  | BO109: 430001.692 | BS109: =IF(TRIM(BR109)="", "", IF(VLOOKUP(BR109,#REF!,2,FALSE)=0,"",VLOOKUP(BR109,#REF!,2,FALSE) ) ) ->  | BT109: 67637.525 | BX109: =IF(TRIM(BW109)="", "", IF(VLOOKUP(BW109,#REF!,2,FALSE)=0,"",VLOOKUP(BW109,#REF!,2,FALSE) ) ) ->  | BY109: 31969.067 | CC109: =IF(TRIM(CB109)="", "", IF(VLOOKUP(CB109,#REF!,2,FALSE)=0,"",VLOOKUP(CB109,#REF!,2,FALSE) ) ) ->  | CD109: 692616.112 | CH109: =IF(TRIM(CG109)="", "", IF(VLOOKUP(CG109,#REF!,2,FALSE)=0,"",VLOOKUP(CG109,#REF!,2,FALSE) ) ) ->  | CI109: 724585.179 | CM109: =IF(TRIM(CL109)="", "", IF(VLOOKUP(CL109,#REF!,2,FALSE)=0,"",VLOOKUP(CL109,#REF!,2,FALSE) ) ) ->  | CN109: 1406846.416 | CR109: =IF(TRIM(CQ109)="", "", IF(VLOOKUP(CQ109,#REF!,2,FALSE)=0,"",VLOOKUP(CQ109,#REF!,2,FALSE) ) ) ->  | CS109: 551503.484 | CW109: =IF(TRIM(CV109)="", "", IF(VLOOKUP(CV109,#REF!,2,FALSE)=0,"",VLOOKUP(CV109,#REF!,2,FALSE) ) ) ->  | CX109: 47612.296 | DB109: =IF(TRIM(DA109)="", "", IF(VLOOKUP(DA109,#REF!,2,FALSE)=0,"",VLOOKUP(DA109,#REF!,2,FALSE) ) ) ->  | DC109: 1211682.261 | DG109: =IF(TRIM(DF109)="", "", IF(VLOOKUP(DF109,#REF!,2,FALSE)=0,"",VLOOKUP(DF109,#REF!,2,FALSE) ) ) ->  | DH109: 5698686.474 | DL109: =IF(TRIM(DK109)="", "", IF(VLOOKUP(DK109,#REF!,2,FALSE)=0,"",VLOOKUP(DK109,#REF!,2,FALSE) ) ) -> 
B110: SEC | C110: SEC | D110: Secondary Waste | E110: HAZ | F110: Hazardous | G110: =SUM(G23,G83,G104) -> 0 | K110: =IF(TRIM(J110)="", "", IF(VLOOKUP(J110,#REF!,2,FALSE)=0,"",VLOOKUP(J110,#REF!,2,FALSE) ) ) ->  | L110: =SUM(L23,L83,L104) -> 0 | P110: =IF(TRIM(O110)="", "", IF(VLOOKUP(O110,#REF!,2,FALSE)=0,"",VLOOKUP(O110,#REF!,2,FALSE) ) ) ->  | Q110: =SUM(Q23,Q83,Q104) -> 0 | U110: =IF(TRIM(T110)="", "", IF(VLOOKUP(T110,#REF!,2,FALSE)=0,"",VLOOKUP(T110,#REF!,2,FALSE) ) ) ->  | V110: =SUM(V23,V83,V104) -> 0 | Z110: =IF(TRIM(Y110)="", "", IF(VLOOKUP(Y110,#REF!,2,FALSE)=0,"",VLOOKUP(Y110,#REF!,2,FALSE) ) ) ->  | AA110: =SUM(AA23,AA83,AA104) -> 0 | AE110: =IF(TRIM(AD110)="", "", IF(VLOOKUP(AD110,#REF!,2,FALSE)=0,"",VLOOKUP(AD110,#REF!,2,FALSE) ) ) ->  | AF110: =SUM(AF23,AF83,AF104) -> 0 | AJ110: =IF(TRIM(AI110)="", "", IF(VLOOKUP(AI110,#REF!,2,FALSE)=0,"",VLOOKUP(AI110,#REF!,2,FALSE) ) ) ->  | AK110: =SUM(AK23,AK83,AK104) -> 0 | AO110: =IF(TRIM(AN110)="", "", IF(VLOOKUP(AN110,#REF!,2,FALSE)=0,"",VLOOKUP(AN110,#REF!,2,FALSE) ) ) ->  | AP110: =SUM(AP23,AP83,AP104) -> 0 | AT110: =IF(TRIM(AS110)="", "", IF(VLOOKUP(AS110,#REF!,2,FALSE)=0,"",VLOOKUP(AS110,#REF!,2,FALSE) ) ) ->  | AU110: =SUM(AU23,AU83,AU104) -> 0 | AY110: =IF(TRIM(AX110)="", "", IF(VLOOKUP(AX110,#REF!,2,FALSE)=0,"",VLOOKUP(AX110,#REF!,2,FALSE) ) ) ->  | AZ110: =SUM(AZ23,AZ83,AZ104) -> 12657.463 | BD110: =IF(TRIM(BC110)="", "", IF(VLOOKUP(BC110,#REF!,2,FALSE)=0,"",VLOOKUP(BC110,#REF!,2,FALSE) ) ) ->  | BE110: =SUM(BE23,BE83,BE104) -> 0 | BI110: =IF(TRIM(BH110)="", "", IF(VLOOKUP(BH110,#REF!,2,FALSE)=0,"",VLOOKUP(BH110,#REF!,2,FALSE) ) ) ->  | BJ110: =SUM(BJ23,BJ83,BJ104) -> 0.397 | BN110: =IF(TRIM(BM110)="", "", IF(VLOOKUP(BM110,#REF!,2,FALSE)=0,"",VLOOKUP(BM110,#REF!,2,FALSE) ) ) ->  | BO110: =SUM(BO23,BO83,BO104) -> 12657.86 | BS110: =IF(TRIM(BR110)="", "", IF(VLOOKUP(BR110,#REF!,2,FALSE)=0,"",VLOOKUP(BR110,#REF!,2,FALSE) ) ) ->  | BT110: =SUM(BT23,BT83,BT104) -> 0 | BX110: =IF(TRIM(BW110)="", "", IF(VLOOKUP(BW110,#REF!,2,FALSE)=0,"",VLOOKUP(BW110,#REF!,2,FALSE) ) ) ->  | BY110: =SUM(BY23,BY83,BY104) -> 1.112 | CC110: =IF(TRIM(CB110)="", "", IF(VLOOKUP(CB110,#REF!,2,FALSE)=0,"",VLOOKUP(CB110,#REF!,2,FALSE) ) ) ->  | CD110: =SUM(CD23,CD83,CD104) -> 3964.357 | CH110: =IF(TRIM(CG110)="", "", IF(VLOOKUP(CG110,#REF!,2,FALSE)=0,"",VLOOKUP(CG110,#REF!,2,FALSE) ) ) ->  | CI110: =SUM(CI23,CI83,CI104) -> 3965.469 | CM110: =IF(TRIM(CL110)="", "", IF(VLOOKUP(CL110,#REF!,2,FALSE)=0,"",VLOOKUP(CL110,#REF!,2,FALSE) ) ) ->  | CN110: =SUM(CN23,CN83,CN104) -> 0 | CR110: =IF(TRIM(CQ110)="", "", IF(VLOOKUP(CQ110,#REF!,2,FALSE)=0,"",VLOOKUP(CQ110,#REF!,2,FALSE) ) ) ->  | CS110: =SUM(CS23,CS83,CS104) -> 818.691 | CW110: =IF(TRIM(CV110)="", "", IF(VLOOKUP(CV110,#REF!,2,FALSE)=0,"",VLOOKUP(CV110,#REF!,2,FALSE) ) ) ->  | CX110: =SUM(CX23,CX83,CX104) -> 0 | DB110: =IF(TRIM(DA110)="", "", IF(VLOOKUP(DA110,#REF!,2,FALSE)=0,"",VLOOKUP(DA110,#REF!,2,FALSE) ) ) ->  | DC110: =SUM(DC23,DC83,DC104) -> 0 | DG110: =IF(TRIM(DF110)="", "", IF(VLOOKUP(DF110,#REF!,2,FALSE)=0,"",VLOOKUP(DF110,#REF!,2,FALSE) ) ) ->  | DH110: =SUM(DH23,DH83,DH104) -> 17442.02 | DL110: =IF(TRIM(DK110)="", "", IF(VLOOKUP(DK110,#REF!,2,FALSE)=0,"",VLOOKUP(DK110,#REF!,2,FALSE) ) ) -> 
C111: SEC | E111: NHAZ | F111: Non-hazardous | G111: =SUM(G24,G84,G105) -> 0 | K111: =IF(TRIM(J111)="", "", IF(VLOOKUP(J111,#REF!,2,FALSE)=0,"",VLOOKUP(J111,#REF!,2,FALSE) ) ) ->  | L111: =SUM(L24,L84,L105) -> 0 | P111: =IF(TRIM(O111)="", "", IF(VLOOKUP(O111,#REF!,2,FALSE)=0,"",VLOOKUP(O111,#REF!,2,FALSE) ) ) ->  | Q111: =SUM(Q24,Q84,Q105) -> 6.04 | U111: =IF(TRIM(T111)="", "", IF(VLOOKUP(T111,#REF!,2,FALSE)=0,"",VLOOKUP(T111,#REF!,2,FALSE) ) ) ->  | V111: =SUM(V24,V84,V105) -> 0 | Z111: =IF(TRIM(Y111)="", "", IF(VLOOKUP(Y111,#REF!,2,FALSE)=0,"",VLOOKUP(Y111,#REF!,2,FALSE) ) ) ->  | AA111: =SUM(AA24,AA84,AA105) -> 1.12 | AE111: =IF(TRIM(AD111)="", "", IF(VLOOKUP(AD111,#REF!,2,FALSE)=0,"",VLOOKUP(AD111,#REF!,2,FALSE) ) ) ->  | AF111: =SUM(AF24,AF84,AF105) -> 0 | AJ111: =IF(TRIM(AI111)="", "", IF(VLOOKUP(AI111,#REF!,2,FALSE)=0,"",VLOOKUP(AI111,#REF!,2,FALSE) ) ) ->  | AK111: =SUM(AK24,AK84,AK105) -> 0 | AO111: =IF(TRIM(AN111)="", "", IF(VLOOKUP(AN111,#REF!,2,FALSE)=0,"",VLOOKUP(AN111,#REF!,2,FALSE) ) ) ->  | AP111: =SUM(AP24,AP84,AP105) -> 370.071 | AT111: =IF(TRIM(AS111)="", "", IF(VLOOKUP(AS111,#REF!,2,FALSE)=0,"",VLOOKUP(AS111,#REF!,2,FALSE) ) ) ->  | AU111: =SUM(AU24,AU84,AU105) -> 1234.66 | AY111: =IF(TRIM(AX111)="", "", IF(VLOOKUP(AX111,#REF!,2,FALSE)=0,"",VLOOKUP(AX111,#REF!,2,FALSE) ) ) ->  | AZ111: =SUM(AZ24,AZ84,AZ105) -> 5168.839 | BD111: =IF(TRIM(BC111)="", "", IF(VLOOKUP(BC111,#REF!,2,FALSE)=0,"",VLOOKUP(BC111,#REF!,2,FALSE) ) ) ->  | BE111: =SUM(BE24,BE84,BE105) -> 0 | BI111: =IF(TRIM(BH111)="", "", IF(VLOOKUP(BH111,#REF!,2,FALSE)=0,"",VLOOKUP(BH111,#REF!,2,FALSE) ) ) ->  | BJ111: =SUM(BJ24,BJ84,BJ105) -> 235.085 | BN111: =IF(TRIM(BM111)="", "", IF(VLOOKUP(BM111,#REF!,2,FALSE)=0,"",VLOOKUP(BM111,#REF!,2,FALSE) ) ) ->  | BO111: =SUM(BO24,BO84,BO105) -> 7015.815 | BS111: =IF(TRIM(BR111)="", "", IF(VLOOKUP(BR111,#REF!,2,FALSE)=0,"",VLOOKUP(BR111,#REF!,2,FALSE) ) ) ->  | BT111: =SUM(BT24,BT84,BT105) -> 762.7 | BX111: =IF(TRIM(BW111)="", "", IF(VLOOKUP(BW111,#REF!,2,FALSE)=0,"",VLOOKUP(BW111,#REF!,2,FALSE) ) ) ->  | BY111: =SUM(BY24,BY84,BY105) -> 875.109 | CC111: =IF(TRIM(CB111)="", "", IF(VLOOKUP(CB111,#REF!,2,FALSE)=0,"",VLOOKUP(CB111,#REF!,2,FALSE) ) ) ->  | CD111: =SUM(CD24,CD84,CD105) -> 247895.324 | CH111: =IF(TRIM(CG111)="", "", IF(VLOOKUP(CG111,#REF!,2,FALSE)=0,"",VLOOKUP(CG111,#REF!,2,FALSE) ) ) ->  | CI111: =SUM(CI24,CI84,CI105) -> 248770.433 | CM111: =IF(TRIM(CL111)="", "", IF(VLOOKUP(CL111,#REF!,2,FALSE)=0,"",VLOOKUP(CL111,#REF!,2,FALSE) ) ) ->  | CN111: =SUM(CN24,CN84,CN105) -> 24847.772 | CR111: =IF(TRIM(CQ111)="", "", IF(VLOOKUP(CQ111,#REF!,2,FALSE)=0,"",VLOOKUP(CQ111,#REF!,2,FALSE) ) ) ->  | CS111: =SUM(CS24,CS84,CS105) -> 5206.886 | CW111: =IF(TRIM(CV111)="", "", IF(VLOOKUP(CV111,#REF!,2,FALSE)=0,"",VLOOKUP(CV111,#REF!,2,FALSE) ) ) ->  | CX111: =SUM(CX24,CX84,CX105) -> 642.46 | DB111: =IF(TRIM(DA111)="", "", IF(VLOOKUP(DA111,#REF!,2,FALSE)=0,"",VLOOKUP(DA111,#REF!,2,FALSE) ) ) ->  | DC111: =SUM(DC24,DC84,DC105) -> 385.52 | DG111: =IF(TRIM(DF111)="", "", IF(VLOOKUP(DF111,#REF!,2,FALSE)=0,"",VLOOKUP(DF111,#REF!,2,FALSE) ) ) ->  | DH111: =SUM(DH24,DH84,DH105) -> 287631.586 | DL111: =IF(TRIM(DK111)="", "", IF(VLOOKUP(DK111,#REF!,2,FALSE)=0,"",VLOOKUP(DK111,#REF!,2,FALSE) ) ) -> 
C112: SEC | E112: HAZ_NHAZ | F112: Total | G112: 0 | K112: =IF(TRIM(J112)="", "", IF(VLOOKUP(J112,#REF!,2,FALSE)=0,"",VLOOKUP(J112,#REF!,2,FALSE) ) ) ->  | L112: 0 | P112: =IF(TRIM(O112)="", "", IF(VLOOKUP(O112,#REF!,2,FALSE)=0,"",VLOOKUP(O112,#REF!,2,FALSE) ) ) ->  | Q112: 6.04 | U112: =IF(TRIM(T112)="", "", IF(VLOOKUP(T112,#REF!,2,FALSE)=0,"",VLOOKUP(T112,#REF!,2,FALSE) ) ) ->  | V112: 0 | Z112: =IF(TRIM(Y112)="", "", IF(VLOOKUP(Y112,#REF!,2,FALSE)=0,"",VLOOKUP(Y112,#REF!,2,FALSE) ) ) ->  | AA112: 1.12 | AE112: =IF(TRIM(AD112)="", "", IF(VLOOKUP(AD112,#REF!,2,FALSE)=0,"",VLOOKUP(AD112,#REF!,2,FALSE) ) ) ->  | AF112: 0 | AJ112: =IF(TRIM(AI112)="", "", IF(VLOOKUP(AI112,#REF!,2,FALSE)=0,"",VLOOKUP(AI112,#REF!,2,FALSE) ) ) ->  | AK112: 0 | AO112: =IF(TRIM(AN112)="", "", IF(VLOOKUP(AN112,#REF!,2,FALSE)=0,"",VLOOKUP(AN112,#REF!,2,FALSE) ) ) ->  | AP112: 370.071 | AT112: =IF(TRIM(AS112)="", "", IF(VLOOKUP(AS112,#REF!,2,FALSE)=0,"",VLOOKUP(AS112,#REF!,2,FALSE) ) ) ->  | AU112: 1234.66 | AY112: =IF(TRIM(AX112)="", "", IF(VLOOKUP(AX112,#REF!,2,FALSE)=0,"",VLOOKUP(AX112,#REF!,2,FALSE) ) ) ->  | AZ112: 17826.302 | BD112: =IF(TRIM(BC112)="", "", IF(VLOOKUP(BC112,#REF!,2,FALSE)=0,"",VLOOKUP(BC112,#REF!,2,FALSE) ) ) ->  | BE112: 0 | BI112: =IF(TRIM(BH112)="", "", IF(VLOOKUP(BH112,#REF!,2,FALSE)=0,"",VLOOKUP(BH112,#REF!,2,FALSE) ) ) ->  | BJ112: 235.482 | BN112: =IF(TRIM(BM112)="", "", IF(VLOOKUP(BM112,#REF!,2,FALSE)=0,"",VLOOKUP(BM112,#REF!,2,FALSE) ) ) ->  | BO112: 19673.675 | BS112: =IF(TRIM(BR112)="", "", IF(VLOOKUP(BR112,#REF!,2,FALSE)=0,"",VLOOKUP(BR112,#REF!,2,FALSE) ) ) ->  | BT112: 762.7 | BX112: =IF(TRIM(BW112)="", "", IF(VLOOKUP(BW112,#REF!,2,FALSE)=0,"",VLOOKUP(BW112,#REF!,2,FALSE) ) ) ->  | BY112: 876.221 | CC112: =IF(TRIM(CB112)="", "", IF(VLOOKUP(CB112,#REF!,2,FALSE)=0,"",VLOOKUP(CB112,#REF!,2,FALSE) ) ) ->  | CD112: 251859.681 | CH112: =IF(TRIM(CG112)="", "", IF(VLOOKUP(CG112,#REF!,2,FALSE)=0,"",VLOOKUP(CG112,#REF!,2,FALSE) ) ) ->  | CI112: 252735.902 | CM112: =IF(TRIM(CL112)="", "", IF(VLOOKUP(CL112,#REF!,2,FALSE)=0,"",VLOOKUP(CL112,#REF!,2,FALSE) ) ) ->  | CN112: 24847.772 | CR112: =IF(TRIM(CQ112)="", "", IF(VLOOKUP(CQ112,#REF!,2,FALSE)=0,"",VLOOKUP(CQ112,#REF!,2,FALSE) ) ) ->  | CS112: 6025.577 | CW112: =IF(TRIM(CV112)="", "", IF(VLOOKUP(CV112,#REF!,2,FALSE)=0,"",VLOOKUP(CV112,#REF!,2,FALSE) ) ) ->  | CX112: 642.46 | DB112: =IF(TRIM(DA112)="", "", IF(VLOOKUP(DA112,#REF!,2,FALSE)=0,"",VLOOKUP(DA112,#REF!,2,FALSE) ) ) ->  | DC112: 385.52 | DG112: =IF(TRIM(DF112)="", "", IF(VLOOKUP(DF112,#REF!,2,FALSE)=0,"",VLOOKUP(DF112,#REF!,2,FALSE) ) ) ->  | DH112: 305073.606 | DL112: =IF(TRIM(DK112)="", "", IF(VLOOKUP(DK112,#REF!,2,FALSE)=0,"",VLOOKUP(DK112,#REF!,2,FALSE) ) ) -> 
B113: TOT_X_MIN | C113: TOT_X_MIN | D113: Total Waste (excluding mineral waste) | E113: HAZ | F113: Hazardous | G113: =SUM(G8,G11,G14,G17,G20,G23,G26,G29,G32,G35,G38,G41,G44,G47,G50,G53,G56,G59,G62,G65,G68,G71,G74,G77,G80,G83,G86,G95,G104) -> 936.168 | K113: =IF(TRIM(J113)="", "", IF(VLOOKUP(J113,#REF!,2,FALSE)=0,"",VLOOKUP(J113,#REF!,2,FALSE) ) ) ->  | L113: =SUM(L8,L11,L14,L17,L20,L23,L26,L29,L32,L35,L38,L41,L44,L47,L50,L53,L56,L59,L62,L65,L68,L71,L74,L77,L80,L83,L86,L95,L104) -> 3383.143 | P113: =IF(TRIM(O113)="", "", IF(VLOOKUP(O113,#REF!,2,FALSE)=0,"",VLOOKUP(O113,#REF!,2,FALSE) ) ) ->  | Q113: =SUM(Q8,Q11,Q14,Q17,Q20,Q23,Q26,Q29,Q32,Q35,Q38,Q41,Q44,Q47,Q50,Q53,Q56,Q59,Q62,Q65,Q68,Q71,Q74,Q77,Q80,Q83,Q86,Q95,Q104) -> 929.935 | U113: =IF(TRIM(T113)="", "", IF(VLOOKUP(T113,#REF!,2,FALSE)=0,"",VLOOKUP(T113,#REF!,2,FALSE) ) ) ->  | V113: =SUM(V8,V11,V14,V17,V20,V23,V26,V29,V32,V35,V38,V41,V44,V47,V50,V53,V56,V59,V62,V65,V68,V71,V74,V77,V80,V83,V86,V95,V104) -> 373.214 | Z113: =IF(TRIM(Y113)="", "", IF(VLOOKUP(Y113,#REF!,2,FALSE)=0,"",VLOOKUP(Y113,#REF!,2,FALSE) ) ) ->  | AA113: =SUM(AA8,AA11,AA14,AA17,AA20,AA23,AA26,AA29,AA32,AA35,AA38,AA41,AA44,AA47,AA50,AA53,AA56,AA59,AA62,AA65,AA68,AA71,AA74,AA77,AA80,AA83,AA86,AA95,AA104) -> 166.142 | AE113: =IF(TRIM(AD113)="", "", IF(VLOOKUP(AD113,#REF!,2,FALSE)=0,"",VLOOKUP(AD113,#REF!,2,FALSE) ) ) ->  | AF113: =SUM(AF8,AF11,AF14,AF17,AF20,AF23,AF26,AF29,AF32,AF35,AF38,AF41,AF44,AF47,AF50,AF53,AF56,AF59,AF62,AF65,AF68,AF71,AF74,AF77,AF80,AF83,AF86,AF95,AF104) -> 1068.959 | AJ113: =IF(TRIM(AI113)="", "", IF(VLOOKUP(AI113,#REF!,2,FALSE)=0,"",VLOOKUP(AI113,#REF!,2,FALSE) ) ) ->  | AK113: =SUM(AK8,AK11,AK14,AK17,AK20,AK23,AK26,AK29,AK32,AK35,AK38,AK41,AK44,AK47,AK50,AK53,AK56,AK59,AK62,AK65,AK68,AK71,AK74,AK77,AK80,AK83,AK86,AK95,AK104) -> 1989.101 | AO113: =IF(TRIM(AN113)="", "", IF(VLOOKUP(AN113,#REF!,2,FALSE)=0,"",VLOOKUP(AN113,#REF!,2,FALSE) ) ) ->  | AP113: =SUM(AP8,AP11,AP14,AP17,AP20,AP23,AP26,AP29,AP32,AP35,AP38,AP41,AP44,AP47,AP50,AP53,AP56,AP59,AP62,AP65,AP68,AP71,AP74,AP77,AP80,AP83,AP86,AP95,AP104) -> 3350.228 | AT113: =IF(TRIM(AS113)="", "", IF(VLOOKUP(AS113,#REF!,2,FALSE)=0,"",VLOOKUP(AS113,#REF!,2,FALSE) ) ) ->  | AU113: =SUM(AU8,AU11,AU14,AU17,AU20,AU23,AU26,AU29,AU32,AU35,AU38,AU41,AU44,AU47,AU50,AU53,AU56,AU59,AU62,AU65,AU68,AU71,AU74,AU77,AU80,AU83,AU86,AU95,AU104) -> 614.419 | AY113: =IF(TRIM(AX113)="", "", IF(VLOOKUP(AX113,#REF!,2,FALSE)=0,"",VLOOKUP(AX113,#REF!,2,FALSE) ) ) ->  | AZ113: =SUM(AZ8,AZ11,AZ14,AZ17,AZ20,AZ23,AZ26,AZ29,AZ32,AZ35,AZ38,AZ41,AZ44,AZ47,AZ50,AZ53,AZ56,AZ59,AZ62,AZ65,AZ68,AZ71,AZ74,AZ77,AZ80,AZ83,AZ86,AZ95,AZ104) -> 23916.735 | BD113: =IF(TRIM(BC113)="", "", IF(VLOOKUP(BC113,#REF!,2,FALSE)=0,"",VLOOKUP(BC113,#REF!,2,FALSE) ) ) ->  | BE113: =SUM(BE8,BE11,BE14,BE17,BE20,BE23,BE26,BE29,BE32,BE35,BE38,BE41,BE44,BE47,BE50,BE53,BE56,BE59,BE62,BE65,BE68,BE71,BE74,BE77,BE80,BE83,BE86,BE95,BE104) -> 5554.142 | BI113: =IF(TRIM(BH113)="", "", IF(VLOOKUP(BH113,#REF!,2,FALSE)=0,"",VLOOKUP(BH113,#REF!,2,FALSE) ) ) ->  | BJ113: =SUM(BJ8,BJ11,BJ14,BJ17,BJ20,BJ23,BJ26,BJ29,BJ32,BJ35,BJ38,BJ41,BJ44,BJ47,BJ50,BJ53,BJ56,BJ59,BJ62,BJ65,BJ68,BJ71,BJ74,BJ77,BJ80,BJ83,BJ86,BJ95,BJ104) -> 1557.942 | BN113: =IF(TRIM(BM113)="", "", IF(VLOOKUP(BM113,#REF!,2,FALSE)=0,"",VLOOKUP(BM113,#REF!,2,FALSE) ) ) ->  | BO113: =SUM(BO8,BO11,BO14,BO17,BO20,BO23,BO26,BO29,BO32,BO35,BO38,BO41,BO44,BO47,BO50,BO53,BO56,BO59,BO62,BO65,BO68,BO71,BO74,BO77,BO80,BO83,BO86,BO95,BO104) -> 39520.817 | BS113: =IF(TRIM(BR113)="", "", IF(VLOOKUP(BR113,#REF!,2,FALSE)=0,"",VLOOKUP(BR113,#REF!,2,FALSE) ) ) ->  | BT113: =SUM(BT8,BT11,BT14,BT17,BT20,BT23,BT26,BT29,BT32,BT35,BT38,BT41,BT44,BT47,BT50,BT53,BT56,BT59,BT62,BT65,BT68,BT71,BT74,BT77,BT80,BT83,BT86,BT95,BT104) -> 1372.438 | BX113: =IF(TRIM(BW113)="", "", IF(VLOOKUP(BW113,#REF!,2,FALSE)=0,"",VLOOKUP(BW113,#REF!,2,FALSE) ) ) ->  | BY113: =SUM(BY8,BY11,BY14,BY17,BY20,BY23,BY26,BY29,BY32,BY35,BY38,BY41,BY44,BY47,BY50,BY53,BY56,BY59,BY62,BY65,BY68,BY71,BY74,BY77,BY80,BY83,BY86,BY95,BY104) -> 689.778 | CC113: =IF(TRIM(CB113)="", "", IF(VLOOKUP(CB113,#REF!,2,FALSE)=0,"",VLOOKUP(CB113,#REF!,2,FALSE) ) ) ->  | CD113: =SUM(CD8,CD11,CD14,CD17,CD20,CD23,CD26,CD29,CD32,CD35,CD38,CD41,CD44,CD47,CD50,CD53,CD56,CD59,CD62,CD65,CD68,CD71,CD74,CD77,CD80,CD83,CD86,CD95,CD104) -> 6179.526 | CH113: =IF(TRIM(CG113)="", "", IF(VLOOKUP(CG113,#REF!,2,FALSE)=0,"",VLOOKUP(CG113,#REF!,2,FALSE) ) ) ->  | CI113: =SUM(CI8,CI11,CI14,CI17,CI20,CI23,CI26,CI29,CI32,CI35,CI38,CI41,CI44,CI47,CI50,CI53,CI56,CI59,CI62,CI65,CI68,CI71,CI74,CI77,CI80,CI83,CI86,CI95,CI104) -> 6869.304 | CM113: =IF(TRIM(CL113)="", "", IF(VLOOKUP(CL113,#REF!,2,FALSE)=0,"",VLOOKUP(CL113,#REF!,2,FALSE) ) ) ->  | CN113: =SUM(CN8,CN11,CN14,CN17,CN20,CN23,CN26,CN29,CN32,CN35,CN38,CN41,CN44,CN47,CN50,CN53,CN56,CN59,CN62,CN65,CN68,CN71,CN74,CN77,CN80,CN83,CN86,CN95,CN104) -> 2804.785 | CR113: =IF(TRIM(CQ113)="", "", IF(VLOOKUP(CQ113,#REF!,2,FALSE)=0,"",VLOOKUP(CQ113,#REF!,2,FALSE) ) ) ->  | CS113: =SUM(CS8,CS11,CS14,CS17,CS20,CS23,CS26,CS29,CS32,CS35,CS38,CS41,CS44,CS47,CS50,CS53,CS56,CS59,CS62,CS65,CS68,CS71,CS74,CS77,CS80,CS83,CS86,CS95,CS104) -> 35991.259 | CW113: =IF(TRIM(CV113)="", "", IF(VLOOKUP(CV113,#REF!,2,FALSE)=0,"",VLOOKUP(CV113,#REF!,2,FALSE) ) ) ->  | CX113: =SUM(CX8,CX11,CX14,CX17,CX20,CX23,CX26,CX29,CX32,CX35,CX38,CX41,CX44,CX47,CX50,CX53,CX56,CX59,CX62,CX65,CX68,CX71,CX74,CX77,CX80,CX83,CX86,CX95,CX104) -> 14.499 | DB113: =IF(TRIM(DA113)="", "", IF(VLOOKUP(DA113,#REF!,2,FALSE)=0,"",VLOOKUP(DA113,#REF!,2,FALSE) ) ) ->  | DC113: =SUM(DC8,DC11,DC14,DC17,DC20,DC23,DC26,DC29,DC32,DC35,DC38,DC41,DC44,DC47,DC50,DC53,DC56,DC59,DC62,DC65,DC68,DC71,DC74,DC77,DC80,DC83,DC86,DC95,DC104) -> 75683.11 | DG113: =IF(TRIM(DF113)="", "", IF(VLOOKUP(DF113,#REF!,2,FALSE)=0,"",VLOOKUP(DF113,#REF!,2,FALSE) ) ) ->  | DH113: =SUM(DH8,DH11,DH14,DH17,DH20,DH23,DH26,DH29,DH32,DH35,DH38,DH41,DH44,DH47,DH50,DH53,DH56,DH59,DH62,DH65,DH68,DH71,DH74,DH77,DH80,DH83,DH86,DH95,DH104) -> 166575.523 | DL113: =IF(TRIM(DK113)="", "", IF(VLOOKUP(DK113,#REF!,2,FALSE)=0,"",VLOOKUP(DK113,#REF!,2,FALSE) ) ) -> 
C114: TOT_X_MIN | E114: NHAZ | F114: Non-hazardous | G114: =SUM(G9,G12,G15,G18,G21,G24,G27,G30,G33,G36,G39,G42,G45,G48,G51,G54,G57,G60,G63,G66,G69,G72,G75,G78,G81,G84,G87,G96,G105) -> 564303.447 | K114: =IF(TRIM(J114)="", "", IF(VLOOKUP(J114,#REF!,2,FALSE)=0,"",VLOOKUP(J114,#REF!,2,FALSE) ) ) ->  | L114: =SUM(L9,L12,L15,L18,L21,L24,L27,L30,L33,L36,L39,L42,L45,L48,L51,L54,L57,L60,L63,L66,L69,L72,L75,L78,L81,L84,L87,L96,L105) -> 4991.963 | P114: =IF(TRIM(O114)="", "", IF(VLOOKUP(O114,#REF!,2,FALSE)=0,"",VLOOKUP(O114,#REF!,2,FALSE) ) ) ->  | Q114: =SUM(Q9,Q12,Q15,Q18,Q21,Q24,Q27,Q30,Q33,Q36,Q39,Q42,Q45,Q48,Q51,Q54,Q57,Q60,Q63,Q66,Q69,Q72,Q75,Q78,Q81,Q84,Q87,Q96,Q105) -> 58409.179 | U114: =IF(TRIM(T114)="", "", IF(VLOOKUP(T114,#REF!,2,FALSE)=0,"",VLOOKUP(T114,#REF!,2,FALSE) ) ) ->  | V114: =SUM(V9,V12,V15,V18,V21,V24,V27,V30,V33,V36,V39,V42,V45,V48,V51,V54,V57,V60,V63,V66,V69,V72,V75,V78,V81,V84,V87,V96,V105) -> 11655.045 | Z114: =IF(TRIM(Y114)="", "", IF(VLOOKUP(Y114,#REF!,2,FALSE)=0,"",VLOOKUP(Y114,#REF!,2,FALSE) ) ) ->  | AA114: =SUM(AA9,AA12,AA15,AA18,AA21,AA24,AA27,AA30,AA33,AA36,AA39,AA42,AA45,AA48,AA51,AA54,AA57,AA60,AA63,AA66,AA69,AA72,AA75,AA78,AA81,AA84,AA87,AA96,AA105) -> 55783.819 | AE114: =IF(TRIM(AD114)="", "", IF(VLOOKUP(AD114,#REF!,2,FALSE)=0,"",VLOOKUP(AD114,#REF!,2,FALSE) ) ) ->  | AF114: =SUM(AF9,AF12,AF15,AF18,AF21,AF24,AF27,AF30,AF33,AF36,AF39,AF42,AF45,AF48,AF51,AF54,AF57,AF60,AF63,AF66,AF69,AF72,AF75,AF78,AF81,AF84,AF87,AF96,AF105) -> 73824.063 | AJ114: =IF(TRIM(AI114)="", "", IF(VLOOKUP(AI114,#REF!,2,FALSE)=0,"",VLOOKUP(AI114,#REF!,2,FALSE) ) ) ->  | AK114: =SUM(AK9,AK12,AK15,AK18,AK21,AK24,AK27,AK30,AK33,AK36,AK39,AK42,AK45,AK48,AK51,AK54,AK57,AK60,AK63,AK66,AK69,AK72,AK75,AK78,AK81,AK84,AK87,AK96,AK105) -> 4953.932 | AO114: =IF(TRIM(AN114)="", "", IF(VLOOKUP(AN114,#REF!,2,FALSE)=0,"",VLOOKUP(AN114,#REF!,2,FALSE) ) ) ->  | AP114: =SUM(AP9,AP12,AP15,AP18,AP21,AP24,AP27,AP30,AP33,AP36,AP39,AP42,AP45,AP48,AP51,AP54,AP57,AP60,AP63,AP66,AP69,AP72,AP75,AP78,AP81,AP84,AP87,AP96,AP105) -> 21990.776 | AT114: =IF(TRIM(AS114)="", "", IF(VLOOKUP(AS114,#REF!,2,FALSE)=0,"",VLOOKUP(AS114,#REF!,2,FALSE) ) ) ->  | AU114: =SUM(AU9,AU12,AU15,AU18,AU21,AU24,AU27,AU30,AU33,AU36,AU39,AU42,AU45,AU48,AU51,AU54,AU57,AU60,AU63,AU66,AU69,AU72,AU75,AU78,AU81,AU84,AU87,AU96,AU105) -> 26830.742 | AY114: =IF(TRIM(AX114)="", "", IF(VLOOKUP(AX114,#REF!,2,FALSE)=0,"",VLOOKUP(AX114,#REF!,2,FALSE) ) ) ->  | AZ114: =SUM(AZ9,AZ12,AZ15,AZ18,AZ21,AZ24,AZ27,AZ30,AZ33,AZ36,AZ39,AZ42,AZ45,AZ48,AZ51,AZ54,AZ57,AZ60,AZ63,AZ66,AZ69,AZ72,AZ75,AZ78,AZ81,AZ84,AZ87,AZ96,AZ105) -> 83218.847 | BD114: =IF(TRIM(BC114)="", "", IF(VLOOKUP(BC114,#REF!,2,FALSE)=0,"",VLOOKUP(BC114,#REF!,2,FALSE) ) ) ->  | BE114: =SUM(BE9,BE12,BE15,BE18,BE21,BE24,BE27,BE30,BE33,BE36,BE39,BE42,BE45,BE48,BE51,BE54,BE57,BE60,BE63,BE66,BE69,BE72,BE75,BE78,BE81,BE84,BE87,BE96,BE105) -> 39700.129 | BI114: =IF(TRIM(BH114)="", "", IF(VLOOKUP(BH114,#REF!,2,FALSE)=0,"",VLOOKUP(BH114,#REF!,2,FALSE) ) ) ->  | BJ114: =SUM(BJ9,BJ12,BJ15,BJ18,BJ21,BJ24,BJ27,BJ30,BJ33,BJ36,BJ39,BJ42,BJ45,BJ48,BJ51,BJ54,BJ57,BJ60,BJ63,BJ66,BJ69,BJ72,BJ75,BJ78,BJ81,BJ84,BJ87,BJ96,BJ105) -> 20915.764 | BN114: =IF(TRIM(BM114)="", "", IF(VLOOKUP(BM114,#REF!,2,FALSE)=0,"",VLOOKUP(BM114,#REF!,2,FALSE) ) ) ->  | BO114: =SUM(BO9,BO12,BO15,BO18,BO21,BO24,BO27,BO30,BO33,BO36,BO39,BO42,BO45,BO48,BO51,BO54,BO57,BO60,BO63,BO66,BO69,BO72,BO75,BO78,BO81,BO84,BO87,BO96,BO105) -> 397282.296 | BS114: =IF(TRIM(BR114)="", "", IF(VLOOKUP(BR114,#REF!,2,FALSE)=0,"",VLOOKUP(BR114,#REF!,2,FALSE) ) ) ->  | BT114: =SUM(BT9,BT12,BT15,BT18,BT21,BT24,BT27,BT30,BT33,BT36,BT39,BT42,BT45,BT48,BT51,BT54,BT57,BT60,BT63,BT66,BT69,BT72,BT75,BT78,BT81,BT84,BT87,BT96,BT105) -> 67025.768 | BX114: =IF(TRIM(BW114)="", "", IF(VLOOKUP(BW114,#REF!,2,FALSE)=0,"",VLOOKUP(BW114,#REF!,2,FALSE) ) ) ->  | BY114: =SUM(BY9,BY12,BY15,BY18,BY21,BY24,BY27,BY30,BY33,BY36,BY39,BY42,BY45,BY48,BY51,BY54,BY57,BY60,BY63,BY66,BY69,BY72,BY75,BY78,BY81,BY84,BY87,BY96,BY105) -> 29913.643 | CC114: =IF(TRIM(CB114)="", "", IF(VLOOKUP(CB114,#REF!,2,FALSE)=0,"",VLOOKUP(CB114,#REF!,2,FALSE) ) ) ->  | CD114: =SUM(CD9,CD12,CD15,CD18,CD21,CD24,CD27,CD30,CD33,CD36,CD39,CD42,CD45,CD48,CD51,CD54,CD57,CD60,CD63,CD66,CD69,CD72,CD75,CD78,CD81,CD84,CD87,CD96,CD105) -> 935762.67 | CH114: =IF(TRIM(CG114)="", "", IF(VLOOKUP(CG114,#REF!,2,FALSE)=0,"",VLOOKUP(CG114,#REF!,2,FALSE) ) ) ->  | CI114: =SUM(CI9,CI12,CI15,CI18,CI21,CI24,CI27,CI30,CI33,CI36,CI39,CI42,CI45,CI48,CI51,CI54,CI57,CI60,CI63,CI66,CI69,CI72,CI75,CI78,CI81,CI84,CI87,CI96,CI105) -> 965676.313 | CM114: =IF(TRIM(CL114)="", "", IF(VLOOKUP(CL114,#REF!,2,FALSE)=0,"",VLOOKUP(CL114,#REF!,2,FALSE) ) ) ->  | CN114: =SUM(CN9,CN12,CN15,CN18,CN21,CN24,CN27,CN30,CN33,CN36,CN39,CN42,CN45,CN48,CN51,CN54,CN57,CN60,CN63,CN66,CN69,CN72,CN75,CN78,CN81,CN84,CN87,CN96,CN105) -> 278145.153 | CR114: =IF(TRIM(CQ114)="", "", IF(VLOOKUP(CQ114,#REF!,2,FALSE)=0,"",VLOOKUP(CQ114,#REF!,2,FALSE) ) ) ->  | CS114: =SUM(CS9,CS12,CS15,CS18,CS21,CS24,CS27,CS30,CS33,CS36,CS39,CS42,CS45,CS48,CS51,CS54,CS57,CS60,CS63,CS66,CS69,CS72,CS75,CS78,CS81,CS84,CS87,CS96,CS105) -> 517895.485 | CW114: =IF(TRIM(CV114)="", "", IF(VLOOKUP(CV114,#REF!,2,FALSE)=0,"",VLOOKUP(CV114,#REF!,2,FALSE) ) ) ->  | CX114: =SUM(CX9,CX12,CX15,CX18,CX21,CX24,CX27,CX30,CX33,CX36,CX39,CX42,CX45,CX48,CX51,CX54,CX57,CX60,CX63,CX66,CX69,CX72,CX75,CX78,CX81,CX84,CX87,CX96,CX105) -> 48240.257 | DB114: =IF(TRIM(DA114)="", "", IF(VLOOKUP(DA114,#REF!,2,FALSE)=0,"",VLOOKUP(DA114,#REF!,2,FALSE) ) ) ->  | DC114: =SUM(DC9,DC12,DC15,DC18,DC21,DC24,DC27,DC30,DC33,DC36,DC39,DC42,DC45,DC48,DC51,DC54,DC57,DC60,DC63,DC66,DC69,DC72,DC75,DC78,DC81,DC84,DC87,DC96,DC105) -> 1136297.23 | DG114: =IF(TRIM(DF114)="", "", IF(VLOOKUP(DF114,#REF!,2,FALSE)=0,"",VLOOKUP(DF114,#REF!,2,FALSE) ) ) ->  | DH114: =SUM(DH9,DH12,DH15,DH18,DH21,DH24,DH27,DH30,DH33,DH36,DH39,DH42,DH45,DH48,DH51,DH54,DH57,DH60,DH63,DH66,DH69,DH72,DH75,DH78,DH81,DH84,DH87,DH96,DH105) -> 3979857.912 | DL114: =IF(TRIM(DK114)="", "", IF(VLOOKUP(DK114,#REF!,2,FALSE)=0,"",VLOOKUP(DK114,#REF!,2,FALSE) ) ) -> 
C115: TOT_X_MIN | E115: HAZ_NHAZ | F115: Total | G115: 565239.615 | K115: =IF(TRIM(J115)="", "", IF(VLOOKUP(J115,#REF!,2,FALSE)=0,"",VLOOKUP(J115,#REF!,2,FALSE) ) ) ->  | L115: 8375.106 | P115: =IF(TRIM(O115)="", "", IF(VLOOKUP(O115,#REF!,2,FALSE)=0,"",VLOOKUP(O115,#REF!,2,FALSE) ) ) ->  | Q115: 59339.114 | U115: =IF(TRIM(T115)="", "", IF(VLOOKUP(T115,#REF!,2,FALSE)=0,"",VLOOKUP(T115,#REF!,2,FALSE) ) ) ->  | V115: 12028.259 | Z115: =IF(TRIM(Y115)="", "", IF(VLOOKUP(Y115,#REF!,2,FALSE)=0,"",VLOOKUP(Y115,#REF!,2,FALSE) ) ) ->  | AA115: 55949.961 | AE115: =IF(TRIM(AD115)="", "", IF(VLOOKUP(AD115,#REF!,2,FALSE)=0,"",VLOOKUP(AD115,#REF!,2,FALSE) ) ) ->  | AF115: 74893.022 | AJ115: =IF(TRIM(AI115)="", "", IF(VLOOKUP(AI115,#REF!,2,FALSE)=0,"",VLOOKUP(AI115,#REF!,2,FALSE) ) ) ->  | AK115: 6943.033 | AO115: =IF(TRIM(AN115)="", "", IF(VLOOKUP(AN115,#REF!,2,FALSE)=0,"",VLOOKUP(AN115,#REF!,2,FALSE) ) ) ->  | AP115: 25341.004 | AT115: =IF(TRIM(AS115)="", "", IF(VLOOKUP(AS115,#REF!,2,FALSE)=0,"",VLOOKUP(AS115,#REF!,2,FALSE) ) ) ->  | AU115: 27445.161 | AY115: =IF(TRIM(AX115)="", "", IF(VLOOKUP(AX115,#REF!,2,FALSE)=0,"",VLOOKUP(AX115,#REF!,2,FALSE) ) ) ->  | AZ115: 107135.582 | BD115: =IF(TRIM(BC115)="", "", IF(VLOOKUP(BC115,#REF!,2,FALSE)=0,"",VLOOKUP(BC115,#REF!,2,FALSE) ) ) ->  | BE115: 45254.271 | BI115: =IF(TRIM(BH115)="", "", IF(VLOOKUP(BH115,#REF!,2,FALSE)=0,"",VLOOKUP(BH115,#REF!,2,FALSE) ) ) ->  | BJ115: 22473.706 | BN115: =IF(TRIM(BM115)="", "", IF(VLOOKUP(BM115,#REF!,2,FALSE)=0,"",VLOOKUP(BM115,#REF!,2,FALSE) ) ) ->  | BO115: 436803.113 | BS115: =IF(TRIM(BR115)="", "", IF(VLOOKUP(BR115,#REF!,2,FALSE)=0,"",VLOOKUP(BR115,#REF!,2,FALSE) ) ) ->  | BT115: 68398.206 | BX115: =IF(TRIM(BW115)="", "", IF(VLOOKUP(BW115,#REF!,2,FALSE)=0,"",VLOOKUP(BW115,#REF!,2,FALSE) ) ) ->  | BY115: 30603.421 | CC115: =IF(TRIM(CB115)="", "", IF(VLOOKUP(CB115,#REF!,2,FALSE)=0,"",VLOOKUP(CB115,#REF!,2,FALSE) ) ) ->  | CD115: 941942.196 | CH115: =IF(TRIM(CG115)="", "", IF(VLOOKUP(CG115,#REF!,2,FALSE)=0,"",VLOOKUP(CG115,#REF!,2,FALSE) ) ) ->  | CI115: 972545.617 | CM115: =IF(TRIM(CL115)="", "", IF(VLOOKUP(CL115,#REF!,2,FALSE)=0,"",VLOOKUP(CL115,#REF!,2,FALSE) ) ) ->  | CN115: 280949.938 | CR115: =IF(TRIM(CQ115)="", "", IF(VLOOKUP(CQ115,#REF!,2,FALSE)=0,"",VLOOKUP(CQ115,#REF!,2,FALSE) ) ) ->  | CS115: 553886.744 | CW115: =IF(TRIM(CV115)="", "", IF(VLOOKUP(CV115,#REF!,2,FALSE)=0,"",VLOOKUP(CV115,#REF!,2,FALSE) ) ) ->  | CX115: 48254.756 | DB115: =IF(TRIM(DA115)="", "", IF(VLOOKUP(DA115,#REF!,2,FALSE)=0,"",VLOOKUP(DA115,#REF!,2,FALSE) ) ) ->  | DC115: 1211980.34 | DG115: =IF(TRIM(DF115)="", "", IF(VLOOKUP(DF115,#REF!,2,FALSE)=0,"",VLOOKUP(DF115,#REF!,2,FALSE) ) ) ->  | DH115: 4146433.435 | DL115: =IF(TRIM(DK115)="", "", IF(VLOOKUP(DK115,#REF!,2,FALSE)=0,"",VLOOKUP(DK115,#REF!,2,FALSE) ) ) -> 
B116: TOTAL | C116: TOTAL | D116: Total Waste | E116: HAZ | F116: Hazardous | G116: =SUM(G8,G11,G14,G17,G20,G23,G26,G29,G32,G35,G38,G41,G44,G47,G50,G53,G56,G59,G62,G65,G68,G71,G74,G77,G80,G83,G86,G89,G92,G95,G98,G101,G104) -> 943.833 | K116: =IF(TRIM(J116)="", "", IF(VLOOKUP(J116,#REF!,2,FALSE)=0,"",VLOOKUP(J116,#REF!,2,FALSE) ) ) ->  | L116: =SUM(L8,L11,L14,L17,L20,L23,L26,L29,L32,L35,L38,L41,L44,L47,L50,L53,L56,L59,L62,L65,L68,L71,L74,L77,L80,L83,L86,L89,L92,L95,L98,L101,L104) -> 6531.238 | P116: =IF(TRIM(O116)="", "", IF(VLOOKUP(O116,#REF!,2,FALSE)=0,"",VLOOKUP(O116,#REF!,2,FALSE) ) ) ->  | Q116: =SUM(Q8,Q11,Q14,Q17,Q20,Q23,Q26,Q29,Q32,Q35,Q38,Q41,Q44,Q47,Q50,Q53,Q56,Q59,Q62,Q65,Q68,Q71,Q74,Q77,Q80,Q83,Q86,Q89,Q92,Q95,Q98,Q101,Q104) -> 931.069 | U116: =IF(TRIM(T116)="", "", IF(VLOOKUP(T116,#REF!,2,FALSE)=0,"",VLOOKUP(T116,#REF!,2,FALSE) ) ) ->  | V116: =SUM(V8,V11,V14,V17,V20,V23,V26,V29,V32,V35,V38,V41,V44,V47,V50,V53,V56,V59,V62,V65,V68,V71,V74,V77,V80,V83,V86,V89,V92,V95,V98,V101,V104) -> 373.414 | Z116: =IF(TRIM(Y116)="", "", IF(VLOOKUP(Y116,#REF!,2,FALSE)=0,"",VLOOKUP(Y116,#REF!,2,FALSE) ) ) ->  | AA116: =SUM(AA8,AA11,AA14,AA17,AA20,AA23,AA26,AA29,AA32,AA35,AA38,AA41,AA44,AA47,AA50,AA53,AA56,AA59,AA62,AA65,AA68,AA71,AA74,AA77,AA80,AA83,AA86,AA89,AA92,AA95,AA98,AA101,AA104) -> 169.536 | AE116: =IF(TRIM(AD116)="", "", IF(VLOOKUP(AD116,#REF!,2,FALSE)=0,"",VLOOKUP(AD116,#REF!,2,FALSE) ) ) ->  | AF116: =SUM(AF8,AF11,AF14,AF17,AF20,AF23,AF26,AF29,AF32,AF35,AF38,AF41,AF44,AF47,AF50,AF53,AF56,AF59,AF62,AF65,AF68,AF71,AF74,AF77,AF80,AF83,AF86,AF89,AF92,AF95,AF98,AF101,AF104) -> 1069.043 | AJ116: =IF(TRIM(AI116)="", "", IF(VLOOKUP(AI116,#REF!,2,FALSE)=0,"",VLOOKUP(AI116,#REF!,2,FALSE) ) ) ->  | AK116: =SUM(AK8,AK11,AK14,AK17,AK20,AK23,AK26,AK29,AK32,AK35,AK38,AK41,AK44,AK47,AK50,AK53,AK56,AK59,AK62,AK65,AK68,AK71,AK74,AK77,AK80,AK83,AK86,AK89,AK92,AK95,AK98,AK101,AK104) -> 1989.481 | AO116: =IF(TRIM(AN116)="", "", IF(VLOOKUP(AN116,#REF!,2,FALSE)=0,"",VLOOKUP(AN116,#REF!,2,FALSE) ) ) ->  | AP116: =SUM(AP8,AP11,AP14,AP17,AP20,AP23,AP26,AP29,AP32,AP35,AP38,AP41,AP44,AP47,AP50,AP53,AP56,AP59,AP62,AP65,AP68,AP71,AP74,AP77,AP80,AP83,AP86,AP89,AP92,AP95,AP98,AP101,AP104) -> 3357.251 | AT116: =IF(TRIM(AS116)="", "", IF(VLOOKUP(AS116,#REF!,2,FALSE)=0,"",VLOOKUP(AS116,#REF!,2,FALSE) ) ) ->  | AU116: =SUM(AU8,AU11,AU14,AU17,AU20,AU23,AU26,AU29,AU32,AU35,AU38,AU41,AU44,AU47,AU50,AU53,AU56,AU59,AU62,AU65,AU68,AU71,AU74,AU77,AU80,AU83,AU86,AU89,AU92,AU95,AU98,AU101,AU104) -> 625.046 | AY116: =IF(TRIM(AX116)="", "", IF(VLOOKUP(AX116,#REF!,2,FALSE)=0,"",VLOOKUP(AX116,#REF!,2,FALSE) ) ) ->  | AZ116: =SUM(AZ8,AZ11,AZ14,AZ17,AZ20,AZ23,AZ26,AZ29,AZ32,AZ35,AZ38,AZ41,AZ44,AZ47,AZ50,AZ53,AZ56,AZ59,AZ62,AZ65,AZ68,AZ71,AZ74,AZ77,AZ80,AZ83,AZ86,AZ89,AZ92,AZ95,AZ98,AZ101,AZ104) -> 23964.262 | BD116: =IF(TRIM(BC116)="", "", IF(VLOOKUP(BC116,#REF!,2,FALSE)=0,"",VLOOKUP(BC116,#REF!,2,FALSE) ) ) ->  | BE116: =SUM(BE8,BE11,BE14,BE17,BE20,BE23,BE26,BE29,BE32,BE35,BE38,BE41,BE44,BE47,BE50,BE53,BE56,BE59,BE62,BE65,BE68,BE71,BE74,BE77,BE80,BE83,BE86,BE89,BE92,BE95,BE98,BE101,BE104) -> 5633.246 | BI116: =IF(TRIM(BH116)="", "", IF(VLOOKUP(BH116,#REF!,2,FALSE)=0,"",VLOOKUP(BH116,#REF!,2,FALSE) ) ) ->  | BJ116: =SUM(BJ8,BJ11,BJ14,BJ17,BJ20,BJ23,BJ26,BJ29,BJ32,BJ35,BJ38,BJ41,BJ44,BJ47,BJ50,BJ53,BJ56,BJ59,BJ62,BJ65,BJ68,BJ71,BJ74,BJ77,BJ80,BJ83,BJ86,BJ89,BJ92,BJ95,BJ98,BJ101,BJ104) -> 1567.755 | BN116: =IF(TRIM(BM116)="", "", IF(VLOOKUP(BM116,#REF!,2,FALSE)=0,"",VLOOKUP(BM116,#REF!,2,FALSE) ) ) ->  | BO116: =SUM(BO8,BO11,BO14,BO17,BO20,BO23,BO26,BO29,BO32,BO35,BO38,BO41,BO44,BO47,BO50,BO53,BO56,BO59,BO62,BO65,BO68,BO71,BO74,BO77,BO80,BO83,BO86,BO89,BO92,BO95,BO98,BO101,BO104) -> 39680.103 | BS116: =IF(TRIM(BR116)="", "", IF(VLOOKUP(BR116,#REF!,2,FALSE)=0,"",VLOOKUP(BR116,#REF!,2,FALSE) ) ) ->  | BT116: =SUM(BT8,BT11,BT14,BT17,BT20,BT23,BT26,BT29,BT32,BT35,BT38,BT41,BT44,BT47,BT50,BT53,BT56,BT59,BT62,BT65,BT68,BT71,BT74,BT77,BT80,BT83,BT86,BT89,BT92,BT95,BT98,BT101,BT104) -> 1372.457 | BX116: =IF(TRIM(BW116)="", "", IF(VLOOKUP(BW116,#REF!,2,FALSE)=0,"",VLOOKUP(BW116,#REF!,2,FALSE) ) ) ->  | BY116: =SUM(BY8,BY11,BY14,BY17,BY20,BY23,BY26,BY29,BY32,BY35,BY38,BY41,BY44,BY47,BY50,BY53,BY56,BY59,BY62,BY65,BY68,BY71,BY74,BY77,BY80,BY83,BY86,BY89,BY92,BY95,BY98,BY101,BY104) -> 689.778 | CC116: =IF(TRIM(CB116)="", "", IF(VLOOKUP(CB116,#REF!,2,FALSE)=0,"",VLOOKUP(CB116,#REF!,2,FALSE) ) ) ->  | CD116: =SUM(CD8,CD11,CD14,CD17,CD20,CD23,CD26,CD29,CD32,CD35,CD38,CD41,CD44,CD47,CD50,CD53,CD56,CD59,CD62,CD65,CD68,CD71,CD74,CD77,CD80,CD83,CD86,CD89,CD92,CD95,CD98,CD101,CD104) -> 6183.266 | CH116: =IF(TRIM(CG116)="", "", IF(VLOOKUP(CG116,#REF!,2,FALSE)=0,"",VLOOKUP(CG116,#REF!,2,FALSE) ) ) ->  | CI116: =SUM(CI8,CI11,CI14,CI17,CI20,CI23,CI26,CI29,CI32,CI35,CI38,CI41,CI44,CI47,CI50,CI53,CI56,CI59,CI62,CI65,CI68,CI71,CI74,CI77,CI80,CI83,CI86,CI89,CI92,CI95,CI98,CI101,CI104) -> 6873.044 | CM116: =IF(TRIM(CL116)="", "", IF(VLOOKUP(CL116,#REF!,2,FALSE)=0,"",VLOOKUP(CL116,#REF!,2,FALSE) ) ) ->  | CN116: =SUM(CN8,CN11,CN14,CN17,CN20,CN23,CN26,CN29,CN32,CN35,CN38,CN41,CN44,CN47,CN50,CN53,CN56,CN59,CN62,CN65,CN68,CN71,CN74,CN77,CN80,CN83,CN86,CN89,CN92,CN95,CN98,CN101,CN104) -> 19839.105 | CR116: =IF(TRIM(CQ116)="", "", IF(VLOOKUP(CQ116,#REF!,2,FALSE)=0,"",VLOOKUP(CQ116,#REF!,2,FALSE) ) ) ->  | CS116: =SUM(CS8,CS11,CS14,CS17,CS20,CS23,CS26,CS29,CS32,CS35,CS38,CS41,CS44,CS47,CS50,CS53,CS56,CS59,CS62,CS65,CS68,CS71,CS74,CS77,CS80,CS83,CS86,CS89,CS92,CS95,CS98,CS101,CS104) -> 36007.976 | CW116: =IF(TRIM(CV116)="", "", IF(VLOOKUP(CV116,#REF!,2,FALSE)=0,"",VLOOKUP(CV116,#REF!,2,FALSE) ) ) ->  | CX116: =SUM(CX8,CX11,CX14,CX17,CX20,CX23,CX26,CX29,CX32,CX35,CX38,CX41,CX44,CX47,CX50,CX53,CX56,CX59,CX62,CX65,CX68,CX71,CX74,CX77,CX80,CX83,CX86,CX89,CX92,CX95,CX98,CX101,CX104) -> 14.499 | DB116: =IF(TRIM(DA116)="", "", IF(VLOOKUP(DA116,#REF!,2,FALSE)=0,"",VLOOKUP(DA116,#REF!,2,FALSE) ) ) ->  | DC116: =SUM(DC8,DC11,DC14,DC17,DC20,DC23,DC26,DC29,DC32,DC35,DC38,DC41,DC44,DC47,DC50,DC53,DC56,DC59,DC62,DC65,DC68,DC71,DC74,DC77,DC80,DC83,DC86,DC89,DC92,DC95,DC98,DC101,DC104) -> 75693.831 | DG116: =IF(TRIM(DF116)="", "", IF(VLOOKUP(DF116,#REF!,2,FALSE)=0,"",VLOOKUP(DF116,#REF!,2,FALSE) ) ) ->  | DH116: =SUM(DH8,DH11,DH14,DH17,DH20,DH23,DH26,DH29,DH32,DH35,DH38,DH41,DH44,DH47,DH50,DH53,DH56,DH59,DH62,DH65,DH68,DH71,DH74,DH77,DH80,DH83,DH86,DH89,DH92,DH95,DH98,DH101,DH104) -> 186956.086 | DL116: =IF(TRIM(DK116)="", "", IF(VLOOKUP(DK116,#REF!,2,FALSE)=0,"",VLOOKUP(DK116,#REF!,2,FALSE) ) ) -> 
C117: TOTAL | E117: NHAZ | F117: Non-hazardous | G117: =SUM(G9,G12,G15,G18,G21,G24,G27,G30,G33,G36,G39,G42,G45,G48,G51,G54,G57,G60,G63,G66,G69,G72,G75,G78,G81,G84,G87,G90,G93,G96,G99,G102,G105) -> 564356.547 | K117: =IF(TRIM(J117)="", "", IF(VLOOKUP(J117,#REF!,2,FALSE)=0,"",VLOOKUP(J117,#REF!,2,FALSE) ) ) ->  | L117: =SUM(L9,L12,L15,L18,L21,L24,L27,L30,L33,L36,L39,L42,L45,L48,L51,L54,L57,L60,L63,L66,L69,L72,L75,L78,L81,L84,L87,L90,L93,L96,L99,L102,L105) -> 686986.003 | P117: =IF(TRIM(O117)="", "", IF(VLOOKUP(O117,#REF!,2,FALSE)=0,"",VLOOKUP(O117,#REF!,2,FALSE) ) ) ->  | Q117: =SUM(Q9,Q12,Q15,Q18,Q21,Q24,Q27,Q30,Q33,Q36,Q39,Q42,Q45,Q48,Q51,Q54,Q57,Q60,Q63,Q66,Q69,Q72,Q75,Q78,Q81,Q84,Q87,Q90,Q93,Q96,Q99,Q102,Q105) -> 58418.034 | U117: =IF(TRIM(T117)="", "", IF(VLOOKUP(T117,#REF!,2,FALSE)=0,"",VLOOKUP(T117,#REF!,2,FALSE) ) ) ->  | V117: =SUM(V9,V12,V15,V18,V21,V24,V27,V30,V33,V36,V39,V42,V45,V48,V51,V54,V57,V60,V63,V66,V69,V72,V75,V78,V81,V84,V87,V90,V93,V96,V99,V102,V105) -> 11655.045 | Z117: =IF(TRIM(Y117)="", "", IF(VLOOKUP(Y117,#REF!,2,FALSE)=0,"",VLOOKUP(Y117,#REF!,2,FALSE) ) ) ->  | AA117: =SUM(AA9,AA12,AA15,AA18,AA21,AA24,AA27,AA30,AA33,AA36,AA39,AA42,AA45,AA48,AA51,AA54,AA57,AA60,AA63,AA66,AA69,AA72,AA75,AA78,AA81,AA84,AA87,AA90,AA93,AA96,AA99,AA102,AA105) -> 55783.819 | AE117: =IF(TRIM(AD117)="", "", IF(VLOOKUP(AD117,#REF!,2,FALSE)=0,"",VLOOKUP(AD117,#REF!,2,FALSE) ) ) ->  | AF117: =SUM(AF9,AF12,AF15,AF18,AF21,AF24,AF27,AF30,AF33,AF36,AF39,AF42,AF45,AF48,AF51,AF54,AF57,AF60,AF63,AF66,AF69,AF72,AF75,AF78,AF81,AF84,AF87,AF90,AF93,AF96,AF99,AF102,AF105) -> 73824.063 | AJ117: =IF(TRIM(AI117)="", "", IF(VLOOKUP(AI117,#REF!,2,FALSE)=0,"",VLOOKUP(AI117,#REF!,2,FALSE) ) ) ->  | AK117: =SUM(AK9,AK12,AK15,AK18,AK21,AK24,AK27,AK30,AK33,AK36,AK39,AK42,AK45,AK48,AK51,AK54,AK57,AK60,AK63,AK66,AK69,AK72,AK75,AK78,AK81,AK84,AK87,AK90,AK93,AK96,AK99,AK102,AK105) -> 5032.872 | AO117: =IF(TRIM(AN117)="", "", IF(VLOOKUP(AN117,#REF!,2,FALSE)=0,"",VLOOKUP(AN117,#REF!,2,FALSE) ) ) ->  | AP117: =SUM(AP9,AP12,AP15,AP18,AP21,AP24,AP27,AP30,AP33,AP36,AP39,AP42,AP45,AP48,AP51,AP54,AP57,AP60,AP63,AP66,AP69,AP72,AP75,AP78,AP81,AP84,AP87,AP90,AP93,AP96,AP99,AP102,AP105) -> 22190.425 | AT117: =IF(TRIM(AS117)="", "", IF(VLOOKUP(AS117,#REF!,2,FALSE)=0,"",VLOOKUP(AS117,#REF!,2,FALSE) ) ) ->  | AU117: =SUM(AU9,AU12,AU15,AU18,AU21,AU24,AU27,AU30,AU33,AU36,AU39,AU42,AU45,AU48,AU51,AU54,AU57,AU60,AU63,AU66,AU69,AU72,AU75,AU78,AU81,AU84,AU87,AU90,AU93,AU96,AU99,AU102,AU105) -> 27196.256 | AY117: =IF(TRIM(AX117)="", "", IF(VLOOKUP(AX117,#REF!,2,FALSE)=0,"",VLOOKUP(AX117,#REF!,2,FALSE) ) ) ->  | AZ117: =SUM(AZ9,AZ12,AZ15,AZ18,AZ21,AZ24,AZ27,AZ30,AZ33,AZ36,AZ39,AZ42,AZ45,AZ48,AZ51,AZ54,AZ57,AZ60,AZ63,AZ66,AZ69,AZ72,AZ75,AZ78,AZ81,AZ84,AZ87,AZ90,AZ93,AZ96,AZ99,AZ102,AZ105) -> 91607.261 | BD117: =IF(TRIM(BC117)="", "", IF(VLOOKUP(BC117,#REF!,2,FALSE)=0,"",VLOOKUP(BC117,#REF!,2,FALSE) ) ) ->  | BE117: =SUM(BE9,BE12,BE15,BE18,BE21,BE24,BE27,BE30,BE33,BE36,BE39,BE42,BE45,BE48,BE51,BE54,BE57,BE60,BE63,BE66,BE69,BE72,BE75,BE78,BE81,BE84,BE87,BE90,BE93,BE96,BE99,BE102,BE105) -> 43307.049 | BI117: =IF(TRIM(BH117)="", "", IF(VLOOKUP(BH117,#REF!,2,FALSE)=0,"",VLOOKUP(BH117,#REF!,2,FALSE) ) ) ->  | BJ117: =SUM(BJ9,BJ12,BJ15,BJ18,BJ21,BJ24,BJ27,BJ30,BJ33,BJ36,BJ39,BJ42,BJ45,BJ48,BJ51,BJ54,BJ57,BJ60,BJ63,BJ66,BJ69,BJ72,BJ75,BJ78,BJ81,BJ84,BJ87,BJ90,BJ93,BJ96,BJ99,BJ102,BJ105) -> 20980.44 | BN117: =IF(TRIM(BM117)="", "", IF(VLOOKUP(BM117,#REF!,2,FALSE)=0,"",VLOOKUP(BM117,#REF!,2,FALSE) ) ) ->  | BO117: =SUM(BO9,BO12,BO15,BO18,BO21,BO24,BO27,BO30,BO33,BO36,BO39,BO42,BO45,BO48,BO51,BO54,BO57,BO60,BO63,BO66,BO69,BO72,BO75,BO78,BO81,BO84,BO87,BO90,BO93,BO96,BO99,BO102,BO105) -> 409995.264 | BS117: =IF(TRIM(BR117)="", "", IF(VLOOKUP(BR117,#REF!,2,FALSE)=0,"",VLOOKUP(BR117,#REF!,2,FALSE) ) ) ->  | BT117: =SUM(BT9,BT12,BT15,BT18,BT21,BT24,BT27,BT30,BT33,BT36,BT39,BT42,BT45,BT48,BT51,BT54,BT57,BT60,BT63,BT66,BT69,BT72,BT75,BT78,BT81,BT84,BT87,BT90,BT93,BT96,BT99,BT102,BT105) -> 67027.768 | BX117: =IF(TRIM(BW117)="", "", IF(VLOOKUP(BW117,#REF!,2,FALSE)=0,"",VLOOKUP(BW117,#REF!,2,FALSE) ) ) ->  | BY117: =SUM(BY9,BY12,BY15,BY18,BY21,BY24,BY27,BY30,BY33,BY36,BY39,BY42,BY45,BY48,BY51,BY54,BY57,BY60,BY63,BY66,BY69,BY72,BY75,BY78,BY81,BY84,BY87,BY90,BY93,BY96,BY99,BY102,BY105) -> 32155.51 | CC117: =IF(TRIM(CB117)="", "", IF(VLOOKUP(CB117,#REF!,2,FALSE)=0,"",VLOOKUP(CB117,#REF!,2,FALSE) ) ) ->  | CD117: =SUM(CD9,CD12,CD15,CD18,CD21,CD24,CD27,CD30,CD33,CD36,CD39,CD42,CD45,CD48,CD51,CD54,CD57,CD60,CD63,CD66,CD69,CD72,CD75,CD78,CD81,CD84,CD87,CD90,CD93,CD96,CD99,CD102,CD105) -> 938292.527 | CH117: =IF(TRIM(CG117)="", "", IF(VLOOKUP(CG117,#REF!,2,FALSE)=0,"",VLOOKUP(CG117,#REF!,2,FALSE) ) ) ->  | CI117: =SUM(CI9,CI12,CI15,CI18,CI21,CI24,CI27,CI30,CI33,CI36,CI39,CI42,CI45,CI48,CI51,CI54,CI57,CI60,CI63,CI66,CI69,CI72,CI75,CI78,CI81,CI84,CI87,CI90,CI93,CI96,CI99,CI102,CI105) -> 970448.037 | CM117: =IF(TRIM(CL117)="", "", IF(VLOOKUP(CL117,#REF!,2,FALSE)=0,"",VLOOKUP(CL117,#REF!,2,FALSE) ) ) ->  | CN117: =SUM(CN9,CN12,CN15,CN18,CN21,CN24,CN27,CN30,CN33,CN36,CN39,CN42,CN45,CN48,CN51,CN54,CN57,CN60,CN63,CN66,CN69,CN72,CN75,CN78,CN81,CN84,CN87,CN90,CN93,CN96,CN99,CN102,CN105) -> 1411855.083 | CR117: =IF(TRIM(CQ117)="", "", IF(VLOOKUP(CQ117,#REF!,2,FALSE)=0,"",VLOOKUP(CQ117,#REF!,2,FALSE) ) ) ->  | CS117: =SUM(CS9,CS12,CS15,CS18,CS21,CS24,CS27,CS30,CS33,CS36,CS39,CS42,CS45,CS48,CS51,CS54,CS57,CS60,CS63,CS66,CS69,CS72,CS75,CS78,CS81,CS84,CS87,CS90,CS93,CS96,CS99,CS102,CS105) -> 521521.085 | CW117: =IF(TRIM(CV117)="", "", IF(VLOOKUP(CV117,#REF!,2,FALSE)=0,"",VLOOKUP(CV117,#REF!,2,FALSE) ) ) ->  | CX117: =SUM(CX9,CX12,CX15,CX18,CX21,CX24,CX27,CX30,CX33,CX36,CX39,CX42,CX45,CX48,CX51,CX54,CX57,CX60,CX63,CX66,CX69,CX72,CX75,CX78,CX81,CX84,CX87,CX90,CX93,CX96,CX99,CX102,CX105) -> 48240.257 | DB117: =IF(TRIM(DA117)="", "", IF(VLOOKUP(DA117,#REF!,2,FALSE)=0,"",VLOOKUP(DA117,#REF!,2,FALSE) ) ) ->  | DC117: =SUM(DC9,DC12,DC15,DC18,DC21,DC24,DC27,DC30,DC33,DC36,DC39,DC42,DC45,DC48,DC51,DC54,DC57,DC60,DC63,DC66,DC69,DC72,DC75,DC78,DC81,DC84,DC87,DC90,DC93,DC96,DC99,DC102,DC105) -> 1136373.95 | DG117: =IF(TRIM(DF117)="", "", IF(VLOOKUP(DF117,#REF!,2,FALSE)=0,"",VLOOKUP(DF117,#REF!,2,FALSE) ) ) ->  | DH117: =SUM(DH9,DH12,DH15,DH18,DH21,DH24,DH27,DH30,DH33,DH36,DH39,DH42,DH45,DH48,DH51,DH54,DH57,DH60,DH63,DH66,DH69,DH72,DH75,DH78,DH81,DH84,DH87,DH90,DH93,DH96,DH99,DH102,DH105) -> 5816803.994 | DL117: =IF(TRIM(DK117)="", "", IF(VLOOKUP(DK117,#REF!,2,FALSE)=0,"",VLOOKUP(DK117,#REF!,2,FALSE) ) ) -> 
C118: TOTAL | E118: HAZ_NHAZ | F118: Total | G118: 565300.38 | K118: =IF(TRIM(J118)="", "", IF(VLOOKUP(J118,#REF!,2,FALSE)=0,"",VLOOKUP(J118,#REF!,2,FALSE) ) ) ->  | L118: 693517.241 | P118: =IF(TRIM(O118)="", "", IF(VLOOKUP(O118,#REF!,2,FALSE)=0,"",VLOOKUP(O118,#REF!,2,FALSE) ) ) ->  | Q118: 59349.103 | U118: =IF(TRIM(T118)="", "", IF(VLOOKUP(T118,#REF!,2,FALSE)=0,"",VLOOKUP(T118,#REF!,2,FALSE) ) ) ->  | V118: 12028.459 | Z118: =IF(TRIM(Y118)="", "", IF(VLOOKUP(Y118,#REF!,2,FALSE)=0,"",VLOOKUP(Y118,#REF!,2,FALSE) ) ) ->  | AA118: 55953.355 | AE118: =IF(TRIM(AD118)="", "", IF(VLOOKUP(AD118,#REF!,2,FALSE)=0,"",VLOOKUP(AD118,#REF!,2,FALSE) ) ) ->  | AF118: 74893.106 | AJ118: =IF(TRIM(AI118)="", "", IF(VLOOKUP(AI118,#REF!,2,FALSE)=0,"",VLOOKUP(AI118,#REF!,2,FALSE) ) ) ->  | AK118: 7022.353 | AO118: =IF(TRIM(AN118)="", "", IF(VLOOKUP(AN118,#REF!,2,FALSE)=0,"",VLOOKUP(AN118,#REF!,2,FALSE) ) ) ->  | AP118: 25547.676 | AT118: =IF(TRIM(AS118)="", "", IF(VLOOKUP(AS118,#REF!,2,FALSE)=0,"",VLOOKUP(AS118,#REF!,2,FALSE) ) ) ->  | AU118: 27821.302 | AY118: =IF(TRIM(AX118)="", "", IF(VLOOKUP(AX118,#REF!,2,FALSE)=0,"",VLOOKUP(AX118,#REF!,2,FALSE) ) ) ->  | AZ118: 115571.523 | BD118: =IF(TRIM(BC118)="", "", IF(VLOOKUP(BC118,#REF!,2,FALSE)=0,"",VLOOKUP(BC118,#REF!,2,FALSE) ) ) ->  | BE118: 48940.295 | BI118: =IF(TRIM(BH118)="", "", IF(VLOOKUP(BH118,#REF!,2,FALSE)=0,"",VLOOKUP(BH118,#REF!,2,FALSE) ) ) ->  | BJ118: 22548.195 | BN118: =IF(TRIM(BM118)="", "", IF(VLOOKUP(BM118,#REF!,2,FALSE)=0,"",VLOOKUP(BM118,#REF!,2,FALSE) ) ) ->  | BO118: 449675.367 | BS118: =IF(TRIM(BR118)="", "", IF(VLOOKUP(BR118,#REF!,2,FALSE)=0,"",VLOOKUP(BR118,#REF!,2,FALSE) ) ) ->  | BT118: 68400.225 | BX118: =IF(TRIM(BW118)="", "", IF(VLOOKUP(BW118,#REF!,2,FALSE)=0,"",VLOOKUP(BW118,#REF!,2,FALSE) ) ) ->  | BY118: 32845.288 | CC118: =IF(TRIM(CB118)="", "", IF(VLOOKUP(CB118,#REF!,2,FALSE)=0,"",VLOOKUP(CB118,#REF!,2,FALSE) ) ) ->  | CD118: 944475.793 | CH118: =IF(TRIM(CG118)="", "", IF(VLOOKUP(CG118,#REF!,2,FALSE)=0,"",VLOOKUP(CG118,#REF!,2,FALSE) ) ) ->  | CI118: 977321.081 | CM118: =IF(TRIM(CL118)="", "", IF(VLOOKUP(CL118,#REF!,2,FALSE)=0,"",VLOOKUP(CL118,#REF!,2,FALSE) ) ) ->  | CN118: 1431694.188 | CR118: =IF(TRIM(CQ118)="", "", IF(VLOOKUP(CQ118,#REF!,2,FALSE)=0,"",VLOOKUP(CQ118,#REF!,2,FALSE) ) ) ->  | CS118: 557529.061 | CW118: =IF(TRIM(CV118)="", "", IF(VLOOKUP(CV118,#REF!,2,FALSE)=0,"",VLOOKUP(CV118,#REF!,2,FALSE) ) ) ->  | CX118: 48254.756 | DB118: =IF(TRIM(DA118)="", "", IF(VLOOKUP(DA118,#REF!,2,FALSE)=0,"",VLOOKUP(DA118,#REF!,2,FALSE) ) ) ->  | DC118: 1212067.781 | DG118: =IF(TRIM(DF118)="", "", IF(VLOOKUP(DF118,#REF!,2,FALSE)=0,"",VLOOKUP(DF118,#REF!,2,FALSE) ) ) ->  | DH118: 6003760.08 | DL118: =IF(TRIM(DK118)="", "", IF(VLOOKUP(DK118,#REF!,2,FALSE)=0,"",VLOOKUP(DK118,#REF!,2,FALSE) ) ) -> 
B120: Notes:
B122: Cell shading:
B123: White: Data provision is mandatory.
B124: Light grey: Automatic calculation. Formula can exceptionally be changed by a value
B125: Light orange: Footnotes (only to be filled-in when relevant)
B126: Black: Not applicable
B129: Valid standard footnotes:
B130: B - Break in time series
B131: E - Estimate
B132: P - Provisional
B134: Valid confidentiality footnotes:
B135: C - Confidential
B136: D - Secondary confidentiality set by the sender, not for publication

Sheet Validation rules
C2: Preliminary checks: | D2: ESTAT technical instructions for VB rules development | E2: ESTAT technical instructions for CONVAL rules development
A4: COUNTRYCODE | C4: The reporting country name must be filled in the sheet "Basic Instructions". | D4: See hidden sheet "Country code" | E4: This looks more like a STRUVAL rule (country code must not be empty)
C6: Mandatory Data:
A8: MANDATORY | C8: All the mandatory cells (white cells) in table 1 must be filled-in. | D8: See hidden sheet "Mandatory" | E8: E2 to provide list of mandatory primary keys. Notice it is allowed a null (NaN) obs_value if a footnote (obs_comment) is provided
C9: If mandatory cells are left empty, an explanation why the data is missing has to be provided by means of the "Explanatory footnote" next to the missing value. | D9: This is controlled in the VB rule by the parameter "EmptyIsValidIfFootnoteExists". This parameter is defined in the hidden sheet "Mandatory". Notice we check the footnote in the hidden column copying the footnote text, and not for the visible column with the footnote call. This is in case the user set as footnote a number (call) with no text associated in the "Footnote List" sheet.
C11: Arithmetic rules
A13: ZEROORBIGGER | C13: All reported values must be numbers equal or greater than 0 | D13: See hidden sheet "ZeroOrBiggerOrNull". Null values are accepted but not strings. ISNUMBER(cell) is needed (a string is considered as zero) | E13: Every obs_value must be null, zero or positive.
A15: TOTALVSADDENDUMS | C15: Hazardous plus non-hazardous waste must be equal to the total for each waste category. | D15: HAZ_NHAZ = HAZ + NHAZ | E15: See formula on the column on the left (dim: waste)
C17: Total waste (coded as TOTAL) must equal to the sum of all EWCstat. categories | D17: TOTAL = W011 + W012 + W013 + W02A + W032 + W033 + W05 + W061 + W062 + W063 + W071 + W072 + W073 + W074 + W075 + W076 + W077 + W08A + W081 + W0841 + W091 + W092 + W093 + W101 + W102 + W103 + W11 + W121 + W12B + W124 + W126 + W127 + W128_13 | E17: See formula on the column on the left (dim: waste)
C19: Total Waste (excluding mineral waste) coded as TOT_X_MIN must be equal to the sum of all EWCstat. minus the following categories: - 12.1 Mineral waste from construction and demolition (coded W121) - 12.2,12.3 and 12.5 Other mineral wastes (Coded W12B) - 12.6 Soils (coded W126) - 12.7 Dredging spoils (coded W127) | D19: TOT_X_MIN = W011 + W012 + W013 + W02A + W032 + W033 + W05 + W061 + W062 + W063 + W071 + W072 + W073 + W074 + W075 + W076 + W077 + W08A + W081 + W0841 + W091 + W092 + W093 + W101 + W102 + W103 + W11 + W124 + W128_13 | E19: See formula on the column on the left (dim: waste)
C21: Primary waste, coded as PRIM, must be equal to the sum of all EWCstat. categories minus - 03.3 Sludges and liquid waste from waste treatment (Coded W033) - 10.3 Sorting residues (Coded W103) - 128_13 Mineral waste from waste treatment and stabilised waste (Coded W128_13) | D21: PRIM = W011 + W012 + W013 + W02A + W032 + W05 + W061 + W062 + W063 + W071 + W072 + W073 + W074 + W075 + W076 + W077 + W08A + W081 + W0841 + W091 + W092 + W093 + W101 + W102 + W103 + W11 + W121 + W12B + W124 + W126 + W127 + W128_13 | E21: See formula on the column on the left (dim: waste)
C23: Secondary waste, coded as SEC, must be equal to the sum of the following EWCstat. categories - 03.3 Sludges and liquid waste from waste treatment (Coded W033) - 10.3 Sorting residues (Coded W103) - 128_13 Mineral waste from waste treatment and stabilised waste (Coded W128_13) | D23: SEC = W033 + W103 + W128_13 | E23: See formula on the column on the left (dim: waste)
C25: All NACE activities plus households, coded as TOTAL_HH, must equal the sum of the all NACE classes plus households. | D25: TOTAL_HH = A + B + C10-C12 + C13-C15 + C16 + C17_C18 + C19 + C20-C22 + C23 + C24_C25 + C26-C30 + C31-C33 + D + E36_E37_E39 + E38 + F + G-U_X_G4677 + G4677 + HH | E25: See formula on the column on the left (dim: nace_r2)
A27: FOOTNOTECONTENT | C27: Explanatory footnotes
C29: When an explanatory footnote is referenced (by means of a number selected from the drop-down list), the referenced footnote in the sheet "Footnotes list" must not be empty. | D29: See hidden sheet FootnoteContent | E29: length (obs_comment) must be > 6 characters

Sheet Lists (hidden)
A1: Country label | B1: Country code | D1: Valid flags | E1: Label | G1: Code | H1: Description
A2: Belgium | B2: BE | D2: B | E2: Break in time series | G2: C | H2: confidential
A3: Bulgaria | B3: BG | D3: E | E3: Estimated data | G3: D | H3: secondary confidentiality set by the sender
A4: Czechia | B4: CZ | D4: P | E4: Provisional
A5: Denmark | B5: DK | D5: BE | E5: Break in time series, estimated
A6: Germany | B6: DE | D6: BP | E6: Break in time series, provisional
A7: Estonia | B7: EE | D7: EP | E7: Estimated, provisional
A8: Ireland | B8: IE | D8: BEP | E8: Break in time series, estimated, provisional
A9: Greece | B9: EL
A10: Spain | B10: ES
A11: France | B11: FR
A12: Croatia | B12: HR
A13: Italy | B13: IT
A14: Cyprus | B14: CY
A15: Latvia | B15: LV
A16: Lithuania | B16: LT
A17: Luxembourg | B17: LU
A18: Hungary | B18: HU
A19: Malta | B19: MT
A20: Netherlands | B20: NL
A21: Austria | B21: AT
A22: Poland | B22: PL
A23: Portugal | B23: PT
A24: Romania | B24: RO
A25: Slovenia | B25: SI
A26: Slovakia | B26: SK
A27: Finland | B27: FI
A28: Sweden | B28: SE
A29: United Kingdom | B29: UK
A30: Iceland | B30: IS
A31: Liechtenstein | B31: LI
A32: Norway | B32: NO
A33: Switzerland | B33: CH
A34: Montenegro | B34: ME
A35: North Macedonia | B35: MK
A36: Albania | B36: AL
A37: Serbia | B37: RS
A38: Turkey | B38: TR
A39: Bosnia and Herzegovina | B39: BA
A40: Kosovo (UNSCR 1244) | B40: XK
A42: ESTAT-E2-WASTE-2020 | B42: CDD

Sheet Locks (hidden)
A1: SheetName | B1: Top Left Cell | C1: Bottom Right Cell | D1: Row Step | E1: Column Step | F1: Lock Type | G1: Focus Back To | H1: IMPORTANT: The same cell must not be included in two ranges. In such a case the switch will operate twice, leaving the cell in the same original state
A2: Table_1 | B2: G10 | C2: BJ106 | D2: 3 | E2: 5 | F2: Formulas | G2: G8 | H2: Hazardous + non hazardous (left block, until NACE C)
A3: Table_1 | B3: BT10 | C3: CD106 | D3: 3 | E3: 5 | F3: Formulas | G3: G8 | H3: Hazardous + non hazardous (Middle block, between NACE C and E)
A4: Table_1 | B4: CN10 | C4: DC106 | D4: 3 | E4: 5 | F4: Formulas | G4: G8 | H4: Hazardous + non hazardous (Right block, between NACE E and Total NACE)
A5: Table_1 | B5: G107 | C5: DH118 | D5: 1 | E5: 5 | F5: Formulas | G5: G8 | H5: Bottom grand totals
A6: Table_1 | B6: BO8 | C6: CI8 | D6: 999 | E6: 20 | F6: Formulas | G6: G8 | H6: NACE C and NACE E
A7: Table_1 | B7: BO10 | C7: CI14 | D7: 1 | E7: 20 | F7: Formulas | G7: G8 | H7: NACE C and NACE E
A8: Table_1 | B8: BO16 | C8: CI28 | D8: 1 | E8: 20 | F8: Formulas | G8: G8 | H8: NACE C and NACE E
A9: Table_1 | B9: BO30 | C9: CI31 | D9: 1 | E9: 20 | F9: Formulas | G9: G8 | H9: NACE C and NACE E
A10: Table_1 | B10: BO33 | C10: CI34 | D10: 1 | E10: 20 | F10: Formulas | G10: G8 | H10: NACE C and NACE E
A11: Table_1 | B11: BO36 | C11: CI40 | D11: 1 | E11: 20 | F11: Formulas | G11: G8 | H11: NACE C and NACE E
A12: Table_1 | B12: BO42 | C12: CI43 | D12: 1 | E12: 20 | F12: Formulas | G12: G8 | H12: NACE C and NACE E
A13: Table_1 | B13: BO45 | C13: CI46 | D13: 1 | E13: 20 | F13: Formulas | G13: G8 | H13: NACE C and NACE E
A14: Table_1 | B14: BO48 | C14: CI52 | D14: 1 | E14: 20 | F14: Formulas | G14: G8 | H14: NACE C and NACE E
A15: Table_1 | B15: BO54 | C15: CI56 | D15: 1 | E15: 20 | F15: Formulas | G15: G8 | H15: NACE C and NACE E
A16: Table_1 | B16: BO58 | C16: CI67 | D16: 1 | E16: 20 | F16: Formulas | G16: G8 | H16: NACE C and NACE E
A17: Table_1 | B17: BO69 | C17: CI70 | D17: 1 | E17: 20 | F17: Formulas | G17: G8 | H17: NACE C and NACE E
A18: Table_1 | B18: BO72 | C18: CI73 | D18: 1 | E18: 20 | F18: Formulas | G18: G8 | H18: NACE C and NACE E
A19: Table_1 | B19: BO75 | C19: CI76 | D19: 1 | E19: 20 | F19: Formulas | G19: G8 | H19: NACE C and NACE E
A20: Table_1 | B20: BO78 | C20: CI85 | D20: 1 | E20: 20 | F20: Formulas | G20: G8 | H20: NACE C and NACE E
A21: Table_1 | B21: BO87 | C21: CI106 | D21: 1 | E21: 20 | F21: Formulas | G21: G8 | H21: NACE C and NACE E
A22: Table_1 | B22: DH8 | C22: DH8 | D22: 999 | E22: 999 | F22: Formulas | G22: G8 | H22: TOTAL NACE
A23: Table_1 | B23: DH10 | C23: DH14 | D23: 1 | E23: 999 | F23: Formulas | G23: G8 | H23: TOTAL NACE
A24: Table_1 | B24: DH16 | C24: DH28 | D24: 1 | E24: 999 | F24: Formulas | G24: G8 | H24: TOTAL NACE
A25: Table_1 | B25: DH30 | C25: DH31 | D25: 1 | E25: 999 | F25: Formulas | G25: G8 | H25: TOTAL NACE
A26: Table_1 | B26: DH33 | C26: DH34 | D26: 1 | E26: 999 | F26: Formulas | G26: G8 | H26: TOTAL NACE
A27: Table_1 | B27: DH36 | C27: DH40 | D27: 1 | E27: 999 | F27: Formulas | G27: G8 | H27: TOTAL NACE
A28: Table_1 | B28: DH42 | C28: DH43 | D28: 1 | E28: 999 | F28: Formulas | G28: G8 | H28: TOTAL NACE
A29: Table_1 | B29: DH45 | C29: DH46 | D29: 1 | E29: 999 | F29: Formulas | G29: G8 | H29: TOTAL NACE
A30: Table_1 | B30: DH48 | C30: DH52 | D30: 1 | E30: 999 | F30: Formulas | G30: G8 | H30: TOTAL NACE
A31: Table_1 | B31: DH54 | C31: DH56 | D31: 1 | E31: 999 | F31: Formulas | G31: G8 | H31: TOTAL NACE
A32: Table_1 | B32: DH58 | C32: DH67 | D32: 1 | E32: 999 | F32: Formulas | G32: G8 | H32: TOTAL NACE
A33: Table_1 | B33: DH69 | C33: DH70 | D33: 1 | E33: 999 | F33: Formulas | G33: G8 | H33: TOTAL NACE
A34: Table_1 | B34: DH72 | C34: DH73 | D34: 1 | E34: 999 | F34: Formulas | G34: G8 | H34: TOTAL NACE
A35: Table_1 | B35: DH75 | C35: DH76 | D35: 1 | E35: 999 | F35: Formulas | G35: G8 | H35: TOTAL NACE
A36: Table_1 | B36: DH78 | C36: DH85 | D36: 1 | E36: 999 | F36: Formulas | G36: G8 | H36: TOTAL NACE
A37: Table_1 | B37: DH87 | C37: DH106 | D37: 1 | E37: 999 | F37: Formulas | G37: G8 | H37: TOTAL NACE

Sheet CountryName (hidden)
A1: Severity | B1: SheetName | C1: TopLeftCell | D1: BottomRightCell | E1: RowStep | F1: ColumnStep
A2: Error | B2: Basic instructions | C2: G11 | D2: G11 | E2: 1 | F2: 1
A6: DESCRIPTION
A7: Spot the position where the reporting country is defined
A9: PARAMETERS
A10: =B1 -> SheetName | B10: Name of the sheet to be validated (e.g. Table 1)
A11: =C1 -> TopLeftCell | B11: Cell where the country name must be selected
A12: =D1 -> BottomRightCell | B12: Same as TopLeftCell (*)
A13: =E1 -> RowStep | B13: Must be "1" (*)
A14: =F1 -> ColumnStep | B14: Must be "1" (*)
A16: (*) These parameters, apparently useless, are kept to make this validation compatible with other standard validation structures

Sheet Summations (hidden)
A1: Severity | B1: Sheet Name | C1: List of Cells (first block) | D1: First Total Cell (first block) | E1: Last Total Cell (Last block) | F1: Row Block Repetition Step | G1: Column Block Repetition Step | H1: Greater or Equal | I1: Valid Threshold | J1: Only if all data is available | K1: Display text in error
A2: Error | B2: Table_1 | C2: G8,G11,G14,G17,G20,G26,G29,G32,G35,G38,G41,G44,G47,G50,G53,G56,G59,G62,G65,G68,G71,G74,G77,G80,G86,G89,G92,G95,G98,G101 | D2: G107 | E2: DH109 | F2: 1 | G2: 5 | H2: EQ | I2: 0.1 | J2: NO | K2: Primary Waste
A3: Error | B3: Table_1 | C3: G23,G83,G104 | D3: G110 | E3: DH112 | F3: 1 | G3: 5 | H3: EQ | I3: 0.1 | J3: NO | K3: Secondary Waste
A4: Error | B4: Table_1 | C4: G8,G11,G14,G17,G20,G23,G26,G29,G32,G35,G38,G41,G44,G47,G50,G53,G56,G59,G62,G65,G68,G71,G74,G77,G80,G83,G86,G95,G104 | D4: G113 | E4: DH115 | F4: 1 | G4: 5 | H4: EQ | I4: 0.1 | J4: NO | K4: Total Waste (excluding mineral waste)
A5: Error | B5: Table_1 | C5: G8,G11,G14,G17,G20,G23,G26,G29,G32,G35,G38,G41,G44,G47,G50,G53,G56,G59,G62,G65,G68,G71,G74,G77,G80,G83,G86,G89,G92,G95,G98,G101,G104 | D5: G116 | E5: DH118 | F5: 1 | G5: 5 | H5: EQ | I5: 0.1 | J5: NO | K5: Waste total
A6: Error | B6: Table_1 | C6: G8,G9 | D6: G10 | E6: DH118 | F6: 3 | G6: 5 | H6: EQ | I6: 0.1 | J6: NO | K6: Total = Haz. + Non-Haz.
A7: Error | B7: Table_1 | C7: Q8,V8,AA8,AF8,AK8,AP8,AU8,AZ8,BE8,BJ8 | D7: BO8 | E7: BO118 | F7: 1 | G7: 9999 | H7: EQ | I7: 0.1 | J7: NO | K7: NACE C
A8: Error | B8: Table_1 | C8: BY8,CD8 | D8: CI8 | E8: CI118 | F8: 1 | G8: 9999 | H8: EQ | I8: 0.1 | J8: NO | K8: NACE E
A9: Error | B9: Table_1 | C9: G8,L8,BO8,BT8,CI8,CN8,CS8,CX8,DC8 | D9: DH8 | E9: DH118 | F9: 1 | G9: 9999 | H9: EQ | I9: 0.1 | J9: NO | K9: Total NACE + Households
F12: Must be > 0 for a not relevant dimension. Else you get an infinite loop | H12: EQ or GE or GT | I12: GT does not admit threshold | J12: NO or YES
A14: DESCRIPTION
A15: This sheet is meant to define the validation for summations in a row or in a column.
A16: - A block is defined as a sequence of addendums in the same row or column
A17: - Only the first block must be explicitly defined
A18: - The block can be repeated at regular patterns through rows and columns at the same time
A21: PARAMETRES
A22: SheetName | C22: Name of the sheet to be validated (e.g. Table 1)
A23: List of Cells (first block) | C23: First cell in the first block to be validated
A24: First TotalCell (first block)
A25: Last TotalCell (Last block)
A26: Row Block Repetition Step
A27: Column Block Repetition Step
A28: Greater or Equal
A29: Valid Threshold
A30: Only if all data is available
A31: Display text in error | C31: Valid values: EQ (Strictly equal); GE (Greater or Equal); GT (Strictly greater - No threshold will be considered)
D110: =SUM(Summations!B3º) -> 

Sheet Mandatory (hidden)
A1: Severity | B1: SheetName | C1: Top Left Cell | D1: Bottom Right Cell | E1: Row Step | F1: Column Step | G1: Empty Is Valid If Footnote Exists | H1: Footnote Shift From Value
A2: Error | B2: Table_1 | C2: G8 | D2: DC8 | E2: 1 | F2: 5 | G2: YES | H2: 4
A3: Error | B3: Table_1 | C3: G10 | D3: DC14 | E3: 1 | F3: 5 | G3: YES | H3: 4
A4: Error | B4: Table_1 | C4: G16 | D4: DC28 | E4: 1 | F4: 5 | G4: YES | H4: 4
A5: Error | B5: Table_1 | C5: G30 | D5: DC31 | E5: 1 | F5: 5 | G5: YES | H5: 4
A6: Error | B6: Table_1 | C6: G33 | D6: DC34 | E6: 1 | F6: 5 | G6: YES | H6: 4
A7: Error | B7: Table_1 | C7: G36 | D7: DC40 | E7: 1 | F7: 5 | G7: YES | H7: 4
A8: Error | B8: Table_1 | C8: G42 | D8: DC43 | E8: 1 | F8: 5 | G8: YES | H8: 4
A9: Error | B9: Table_1 | C9: G45 | D9: DC46 | E9: 1 | F9: 5 | G9: YES | H9: 4
A10: Error | B10: Table_1 | C10: G48 | D10: DC52 | E10: 1 | F10: 5 | G10: YES | H10: 4
A11: Error | B11: Table_1 | C11: G54 | D11: DC56 | E11: 1 | F11: 5 | G11: YES | H11: 4
A12: Error | B12: Table_1 | C12: G56 | D12: DC56 | E12: 1 | F12: 5 | G12: YES | H12: 4
A13: Error | B13: Table_1 | C13: G58 | D13: DC67 | E13: 1 | F13: 5 | G13: YES | H13: 4
A14: Error | B14: Table_1 | C14: G69 | D14: DC70 | E14: 1 | F14: 5 | G14: YES | H14: 4
A15: Error | B15: Table_1 | C15: G72 | D15: DC73 | E15: 1 | F15: 5 | G15: YES | H15: 4
A16: Error | B16: Table_1 | C16: G75 | D16: DC76 | E16: 1 | F16: 5 | G16: YES | H16: 4
A17: Error | B17: Table_1 | C17: G78 | D17: DC85 | E17: 1 | F17: 5 | G17: YES | H17: 4
A18: Error | B18: Table_1 | C18: G87 | D18: DC118 | E18: 1 | F18: 5 | G18: YES | H18: 4

Sheet SimpleRatios (hidden)
A1: Severity | B1: Sheet Name | C1: Numerator (first block) | D1: Denominator (first block) | E1: First result (First block) | F1: Last result (Last block) | G1: Row Block Repetition Step | H1: Column Block Repetition Step | I1: Numerator multiplied by | J1: Ratio Greater or Equal than result cell | K1: Valid Tolerance | L1: If denominator = 0 | M1: Display text in error | N1: Accept error If Footnote Exists | O1: Column shift from value to footnote
G6: Must be > 0 for a not relevant dimension. Else you get an infinite loop

Sheet Thresholds (hidden)
A1: Severity | B1: SheetName | C1: Top Left Cell | D1: Bottom Right Cell | E1: Row Step | F1: Column Step | G1: Lower value | H1: Upper value

Sheet IsFormula (hidden)
A1: Severity | B1: Sheet Name | C1: Top Left Cell | D1: Bottom Right Cell | E1: Row Step | F1: Column Step
A2: Info | B2: Table_1 | C2: G10 | D2: BJ106 | E2: 3 | F2: 5 | G2: Hazardous + non hazardous (left block, until NACE C)
A3: Info | B3: Table_1 | C3: BT10 | D3: CD106 | E3: 3 | F3: 5 | G3: Hazardous + non hazardous (Middle block, between NACE C and E)
A4: Info | B4: Table_1 | C4: CN10 | D4: DC106 | E4: 3 | F4: 5 | G4: Hazardous + non hazardous (Right block, between NACE E and Total NACE)
A5: Info | B5: Table_1 | C5: G107 | D5: DH118 | E5: 1 | F5: 5 | G5: Bottom grand totals
A6: Info | B6: Table_1 | C6: BO8 | D6: CI8 | E6: 999 | F6: 20 | G6: NACE C and NACE E
A7: Info | B7: Table_1 | C7: BO10 | D7: CI14 | E7: 1 | F7: 20 | G7: NACE C and NACE E
A8: Info | B8: Table_1 | C8: BO16 | D8: CI28 | E8: 1 | F8: 20 | G8: NACE C and NACE E
A9: Info | B9: Table_1 | C9: BO30 | D9: CI31 | E9: 1 | F9: 20 | G9: NACE C and NACE E
A10: Info | B10: Table_1 | C10: BO33 | D10: CI34 | E10: 1 | F10: 20 | G10: NACE C and NACE E
A11: Info | B11: Table_1 | C11: BO36 | D11: CI40 | E11: 1 | F11: 20 | G11: NACE C and NACE E
A12: Info | B12: Table_1 | C12: BO42 | D12: CI43 | E12: 1 | F12: 20 | G12: NACE C and NACE E
A13: Info | B13: Table_1 | C13: BO45 | D13: CI46 | E13: 1 | F13: 20 | G13: NACE C and NACE E
A14: Info | B14: Table_1 | C14: BO48 | D14: CI52 | E14: 1 | F14: 20 | G14: NACE C and NACE E
A15: Info | B15: Table_1 | C15: BO54 | D15: CI56 | E15: 1 | F15: 20 | G15: NACE C and NACE E
A16: Info | B16: Table_1 | C16: BO58 | D16: CI67 | E16: 1 | F16: 20 | G16: NACE C and NACE E
A17: Info | B17: Table_1 | C17: BO69 | D17: CI70 | E17: 1 | F17: 20 | G17: NACE C and NACE E
A18: Info | B18: Table_1 | C18: BO72 | D18: CI73 | E18: 1 | F18: 20 | G18: NACE C and NACE E
A19: Info | B19: Table_1 | C19: BO75 | D19: CI76 | E19: 1 | F19: 20 | G19: NACE C and NACE E
A20: Info | B20: Table_1 | C20: BO78 | D20: CI85 | E20: 1 | F20: 20 | G20: NACE C and NACE E
A21: Info | B21: Table_1 | C21: BO87 | D21: CI106 | E21: 1 | F21: 20 | G21: NACE C and NACE E
A22: Info | B22: Table_1 | C22: DH8 | D22: DH8 | E22: 999 | F22: 999 | G22: TOTAL NACE
A23: Info | B23: Table_1 | C23: DH10 | D23: DH14 | E23: 1 | F23: 999 | G23: TOTAL NACE
A24: Info | B24: Table_1 | C24: DH16 | D24: DH28 | E24: 1 | F24: 999 | G24: TOTAL NACE
A25: Info | B25: Table_1 | C25: DH30 | D25: DH31 | E25: 1 | F25: 999 | G25: TOTAL NACE
A26: Info | B26: Table_1 | C26: DH33 | D26: DH34 | E26: 1 | F26: 999 | G26: TOTAL NACE
A27: Info | B27: Table_1 | C27: DH36 | D27: DH40 | E27: 1 | F27: 999 | G27: TOTAL NACE
A28: Info | B28: Table_1 | C28: DH42 | D28: DH43 | E28: 1 | F28: 999 | G28: TOTAL NACE
A29: Info | B29: Table_1 | C29: DH45 | D29: DH46 | E29: 1 | F29: 999 | G29: TOTAL NACE
A30: Info | B30: Table_1 | C30: DH48 | D30: DH52 | E30: 1 | F30: 999 | G30: TOTAL NACE
A31: Info | B31: Table_1 | C31: DH54 | D31: DH56 | E31: 1 | F31: 999 | G31: TOTAL NACE
A32: Info | B32: Table_1 | C32: DH58 | D32: DH67 | E32: 1 | F32: 999 | G32: TOTAL NACE
A33: Info | B33: Table_1 | C33: DH69 | D33: DH70 | E33: 1 | F33: 999 | G33: TOTAL NACE
A34: Info | B34: Table_1 | C34: DH72 | D34: DH73 | E34: 1 | F34: 999 | G34: TOTAL NACE
A35: Info | B35: Table_1 | C35: DH75 | D35: DH76 | E35: 1 | F35: 999 | G35: TOTAL NACE
A36: Info | B36: Table_1 | C36: DH78 | D36: DH85 | E36: 1 | F36: 999 | G36: TOTAL NACE
A37: Info | B37: Table_1 | C37: DH87 | D37: DH106 | E37: 1 | F37: 999 | G37: TOTAL NACE

Sheet MustNotBeNegative (hidden)
A1: Severity | B1: SheetName | C1: TopLeftCell | D1: BottomRightCell | E1: RowStep | F1: ColumnStep
A2: Error | B2: Table_1 | C2: G8 | D2: DC118 | E2: 1 | F2: 5

Sheet FootnoteContent (hidden)
A1: Severity | B1: SheetName | C1: TopLeftCell | D1: BottomRightCell | E1: RowStep | F1: ColumnStep | G1: DistanceFromReferenceToText
A2: Error | B2: Table_1 | C2: J8 | D2: DK118 | E2: 1 | F2: 5 | G2: 1

Sheet IsNumeric (hidden)
A1: Severity | B1: SheetName | C1: TopLeftCell | D1: BottomRightCell | E1: RowStep | F1: ColumnStep
A2: Error | B2: Table_1 | C2: G8 | D2: DC118 | E2: 1 | F2: 5
